Workbook

Sheet Budzet po zmianach (rok N) (hidden)
E1: Zestawienie wygenerowane na podstawie danych wprowadzonych do systemu BESTI@ | J1: © CWA "Pro publico" Sp. z o.o. | L1: =+ver_metodologii -> ver metodologii (2017-02-03a)
E2: Stan budżetu po zmianach w układzie poz. WPF (np. do wypełnienia kol. Prognoza roku [N] w nowym WPF) | F2: =+IF(SzczegolowoscDanych=2,2,1) -> 1
E3: =+IF(SzczegolowoscDanych=0,"Brak danych o budżecie. Uruchom ponownie raport i zanim kliniesz OK wybierz w filtrze TYP DOKUMENTU.",IF(SzczegolowoscDanych=3,"Raport wykrył, że w systemie BeSTi@ BUDŻET jest ZARÓWNO w grupach i w §§","")) -> 
E4: Stan budżetu po zmianach uchwałą/zarządzeniem Numer: | F4: =+DaneBudzetWsk243!$M$10 -> niew/2017 | J4: Relacje obliczone wg stanu budżetu po zmianach: | K4: Relacje wg stanu WPF z zakładki "WPF a Budzet"
E5: z dn.: | F5: =+DaneBudzetWsk243!$O$10 -> 2017-06-30 | J5: =+F51 -> 1220034.63 | K5: =+'WPF a Budzet (rok N)'!J51 -> 1220034.63 | L5: poz. 8.1 | M5: Db-Wb
E6: Nazwa JST: | F6: =+DaneBudzetWsk243!$I$10 -> WIDUCHOWA | J6: =+IF(F2=1,IF(F10<>0,(F42+F23+F27)/F10,"x"),"brak danych dot. O") -> 0.0452209739 | K6: =+'WPF a Budzet (rok N)'!J54 -> 0.0452 | L6: poz. 9.1 | M6: (R+O)/D (bez wyłączeń)
J7: =+IF(F10<>0,(F11+F19-F22)/F10,"x") -> 0.07471461557 | K7: =+'WPF a Budzet (rok N)'!J58 -> 0.07471461557 | L7: poz. 9.5 | M7: (Db-Wb+Dsm)/D (jednoroczny - bez wyłączeń)
F8: =+"Budżet wg "&IF(F2=1,"§§",IF(F2=2,"grup",+CHAR(10)&"! wybierz układ z listy !")) -> Budżet wg §§
A9: Lp. | B9: PozObl | C9: X | E9: Wyszczególnienie | F9: =+Rok_bazowy -> 2017 | G9: wg §§ | H9: wg grup
A10: 1 | B10: 1 | C10: x | E10: Dochody ogółem | F10: =+IF(WydatkiParBud,G10,H10) -> 20344541.94 | G10: =20344541.94 -> 20344541.94 | H10: =0 -> 0
A11: 1.1 | B11: 1 | C11: x | E11: Dochody bieżące | F11: =+F10-F18 -> 19965541.94 | G11: =+G10-G18 -> 19965541.94 | H11: =+H10-H18 -> 0
A12: 1.1.1 | B12: 1 | E12: dochody z tytułu udziału we wpływach z podatku dochodowego od osób fizycznych | F12: =+IF(WydatkiParBud,G12,H12) -> 2287693 | G12: =2287693 -> 2287693 | H12: =0 -> 0
A13: 1.1.2 | B13: 1 | E13: dochody z tytułu udziału we wpływach z podatku dochodowego od osób prawnych | F13: 6000 | G13: =6000 -> 6000 | H13: =0 -> 0
A14: 1.1.3 | B14: 1 | E14: podatki i opłaty | F14: 4055680 | G14: =4055680 -> 4055680 | H14: =0 -> 0
A15: 1.1.3.1 | B15: 1 | E15: z podatku od nieruchomości | F15: 1985000 | G15: =1985000 -> 1985000 | H15: =0 -> 0
A16: 1.1.4 | B16: 1 | E16: z subwencji ogólnej | F16: 5956543 | G16: =5956543 -> 5956543 | H16: =0 -> 0
A17: 1.1.5 | B17: 1 | E17: z tytułu dotacji i środków przeznaczonych na cele bieżące | F17: 7158325.94 | G17: =7158325.94 -> 7158325.94 | H17: =0 -> 0
A18: 1.2 | B18: 1 | C18: x | E18: Dochody majątkowe, w tym | F18: 379000 | G18: =379000 -> 379000 | H18: =0 -> 0
A19: 1.2.1 | B19: 1 | C19: x | E19: ze sprzedaży majątku | F19: 300000 | G19: =300000 -> 300000 | H19: =0 -> 0
A20: 1.2.2 | B20: 1 | E20: z tytułu dotacji oraz środków przeznaczonych na inwestycje | F20: 69000 | G20: =69000 -> 69000 | H20: =0 -> 0
A21: 2 | B21: 1 | C21: x | E21: Wydatki ogółem | F21: 22257541.94 | G21: =22257541.94 -> 22257541.94 | H21: =0 -> 0
A22: 2.1 | B22: 1 | C22: x | E22: Wydatki bieżące, w tym: | F22: =+F21-F30 -> 18745507.31 | G22: =+G21-G30 -> 18745507.31 | H22: =+H21-H30 -> 0
A23: 2.1.1 | B23: 1 | C23: x | E23: z tytułu poręczeń i gwarancji | F23: =+IF(WydatkiParBud,G23,H23) -> 0 | G23: =0 -> 0 | H23: =0 -> 0
A24: 2.1.1.1 | B24: 0 | C24: x | E24: w tym: gwarancje i poręczenia podlegające wyłączeniu z limitu spłaty zobowiązań, o którym mowa w art. 243 ustawy | F24: x | G24: x | H24: x
A25: 2.1.2 | B25: 0 | E25: na spłatę przejętych zobowiązań samodzielnego publicznego zakładu opieki zdrowotnej przekształconego na zasadach określonych w przepisach o działalności leczniczej, w wysokości w jakiej nie podlegają sfinansowaniu dotacją z budżetu państwa | F25: x | G25: x | H25: x
A26: 2.1.3 | B26: 1 | C26: x | E26: wydatki na obsługę długu, w tym: | F26: =+IF(WydatkiParBud,G26,H26) -> 320000 | G26: =320000 -> 320000 | H26: =0 -> 0
A27: 2.1.3.1 | B27: 1 | C27: x | E27: odsetki i dyskonto określone w art. 243 ust. 1 ustawy, w tym: | F27: =+IF(WydatkiParBud,G27,"bd") -> 320000 | G27: =320000 -> 320000 | H27: =0 -> 0
A28: 2.1.3.1.1 | B28: 0 | C28: x | E28: odsetki i dyskonto podlegające wyłączeniu z limitu spłaty zobowiązań, o którym mowa w art. 243 ustawy, w terminie nie dłuższym niż 90 dni po zakończeniu programu, projektu lub zadania i otrzymaniu refundacji z tych środków (bez odsetek i dyskonta od zobowiązań na wkład krajowy) | F28: x | G28: x | H28: x
A29: 2.1.3.1.2 | B29: 0 | C29: x | E29: odsetki i dyskonto podlegające wyłączeniu z limitu spłaty zobowiązań, o którym mowa w art. 243 ustawy, z tytułu zobowiązań zaciągniętych na wkład krajowy | F29: x | G29: x | H29: x
A30: 2.2 | B30: 1 | C30: x | E30: Wydatki majątkowe | F30: =+IF(WydatkiParBud,G30,H30) -> 3512034.63 | G30: =3512034.63 -> 3512034.63 | H30: =0 -> 0
A31: 3 | B31: 1 | C31: x | E31: Wynik budżetu | F31: =+F10-F21 -> -1913000
A32: 4 | B32: 1 | C32: x | E32: Przychody budżetu | F32: =2513000 -> 2513000
A33: 4.1 | B33: 1 | C33: x | E33: Nadwyżka budżetowa z lat ubiegłych | F33: =0 -> 0
A34: 4.1.1 | B34: 0 | C34: x | E34: w tym na pokrycie deficytu budżetu | F34: x | G34: x | H34: x
A35: 4.2 | B35: 1 | C35: x | E35: Wolne środki, o których mowa w art. 217 ust.2 pkt 6 ustawy | F35: =1073000 -> 1073000
A36: 4.2.1 | B36: 0 | C36: x | E36: w tym na pokrycie deficytu budżetu | F36: x | G36: x | H36: x
A37: 4.3 | B37: 1 | C37: x | E37: Kredyty, pożyczki, emisja papierów wartościowych | F37: =1440000 -> 1440000
A38: 4.3.1 | B38: 0 | C38: x | E38: w tym na pokrycie deficytu budżetu | F38: x | G38: x | H38: x
A39: 4.4 | B39: 1 | C39: x | E39: Inne przychody niezwiązane z zaciągnięciem długu | F39: =0 -> 0
A40: 4.4.1 | B40: 0 | C40: x | E40: w tym na pokrycie deficytu budżetu | F40: x | G40: x | H40: x
A41: 5 | B41: 1 | C41: x | E41: Rozchody budżetu | F41: =600000 -> 600000
A42: 5.1 | B42: 1 | C42: x | E42: Spłaty rat kapitałowych kredytów i pożyczek oraz wykup papierów wartościowych | F42: =600000 -> 600000
A43: 5.1.1 | B43: 0 | C43: x | E43: w tym łączna kwota przypadających na dany rok kwot ustawowych wyłączeń z limitu spłaty zobowiązań, o którym mowa w art. 243 ustawy, z tego: | F43: x | G43: x | H43: x
A44: 5.1.1.1 | B44: 0 | C44: x | E44: kwota przypadających na dany rok kwot ustawowych wyłączeń określonych w art. 243 ust. 3 ustawy | F44: x | G44: x | H44: x
A45: 5.1.1.2 | B45: 0 | C45: x | E45: kwota przypadających na dany rok kwot ustawowych wyłączeń określonych w art. 243 ust. 3a ustawy | F45: x | G45: x | H45: x
A46: 5.1.1.3 | B46: 0 | C46: x | E46: kwota przypadających na dany rok kwot ustawowych wyłączeń innych niż określone w art. 243 ustawy | F46: x | G46: x | H46: x
A47: 5.2 | B47: 1 | E47: Inne rozchody niezwiązane ze spłatą długu | F47: =0 -> 0
A48: 6 | B48: 0 | C48: x | E48: Kwota długu | F48: x | G48: x | H48: x
A49: 7 | B49: 0 | E49: Kwota zobowiązań wynikających z przejęcia przez jednostkę samorządu terytorialnego zobowiązań po likwidowanych i przekształcanych jednostkach zaliczanych do sektora finansów publicznych | F49: x | G49: x | H49: x
A50: 8 | B50: 1 | E50: Relacja zrównoważenia wydatków bieżących, o której mowa w art. 242 ustawy | F50: x | G50: x | H50: x
A51: 8.1 | B51: 1 | E51: Różnica między dochodami bieżącymi a wydatkami bieżącymi | F51: =+F11-F22 -> 1220034.63
A52: 8.2 | B52: 1 | E52: Różnica między dochodami bieżącymi, skorygowanymi o środki a wydatkami bieżącymi, pomniejszonymi o wydatki | F52: =+F11+F33+F35-F22 -> 2293034.63
A53: 9 | B53: 0 | C53: x | E53: Wskaźnik spłaty zobowiązań | F53: x | G53: x | H53: x
A54: 9.1 | B54: 0 | C54: x | E54: Wskaźnik planowanej łącznej kwoty spłaty zobowiązań, o której mowa w art. 243 ust. 1 ustawy do dochodów, bez uwzględnienia zobowiązań związku współtworzonego przez jednostkę samorządu terytorialnego i bez uwzględnienia ustawowych wyłączeń przypadających na dany rok. | F54: x | G54: x | H54: x
A55: 9.2 | B55: 0 | C55: x | E55: Wskaźnik planowanej łącznej kwoty spłaty zobowiązań, o której mowa w art. 243 ust. 1 ustawy do dochodów, bez uwzględnienia zobowiązań związku współtworzonego przez jednostkę samorządu terytorialnego, po uwzględnieniu ustawowych wyłączeń przypadających na dany rok. | F55: x | G55: x | H55: x
A56: 9.3 | B56: 0 | C56: x | E56: Kwota zobowiązań związku współtworzonego przez jednostkę samorządu terytorialnego przypadających do spłaty w danym roku budżetowym, podlegająca doliczeniu zgodnie z art. 244 ustawy | F56: x | G56: x | H56: x
A57: 9.4 | B57: 0 | C57: x | E57: Wskaźnik planowanej łącznej kwoty spłaty zobowiązań, o której mowa w art. 243 ust. 1 ustawy do dochodów, po uwzględnieniu zobowiązań związku współtworzonego przez jednostkę samorządu terytorialnego oraz po uwzględnieniu ustawowych wyłączeń przypadających na dany rok | F57: x | G57: x | H57: x
A58: 9.5 | B58: 0 | C58: x | E58: Wskaźnik dochodów bieżących powiększonych o dochody ze sprzedaży majątku oraz pomniejszonych o wydatki bieżące, do dochodów budżetu, ustalony dla danego roku (wskaźnik jednoroczny) | F58: x | G58: x | H58: x
A59: 9.6 | B59: 0 | C59: x | E59: Dopuszczalny wskaźnik spłaty zobowiązań określony w art. 243 ustawy, po uwzględnieniu ustawowych wyłączeń , obliczony w oparciu o plan 3 kwartału roku poprzedzającego pierwszy rok prognozy (wskaźnik ustalony w oparciu o średnią arytmetyczną z 3 poprzednich lat) | F59: x | G59: x | H59: x
A60: 9.6.1 | B60: 0 | C60: x | E60: Dopuszczalny wskaźnik spłaty zobowiązań określony w art. 243 ustawy, po uwzględnieniu ustawowych wyłączeń, obliczony w oparciu o wykonanie roku poprzedzającego pierwszy rok prognozy (wskaźnik ustalony w oparciu o średnią arytmetyczną z 3 poprzednich lat) | F60: x | G60: x | H60: x
A61: 9.7 | B61: 0 | C61: x | E61: Informacja o spełnieniu wskaźnika spłaty zobowiązań określonego w art. 243 ustawy, po uwzględnieniu zobowiązań związku współtworzonego przez jednostkę samorządu terytorialnego oraz po uwzględnieniu ustawowych wyłączeń, obliczonego w oparciu o plan 3 kwartałów roku poprzedzającego rok budżetowy | F61: x | G61: x | H61: x
A62: 9.7.1 | B62: 0 | C62: x | E62: Informacja o spełnieniu wskaźnika spłaty zobowiązań określonego w art. 243 ustawy, po uwzględnieniu zobowiązań związku współtworzonego przez jednostkę samorządu terytorialnego oraz po uwzględnieniu ustawowych wyłączeń, obliczonego w oparciu o wykonanie roku poprzedzającego rok budżetowy | F62: x | G62: x | H62: x
A63: 10 | B63: 0 | E63: Przeznaczenie prognozowanej nadwyżki budżetowej, w tym na: | F63: x | G63: x | H63: x
A64: 10.1 | B64: 0 | E64: Spłaty kredytów, pożyczek i wykup papierów wartościowych | F64: x | G64: x | H64: x
A65: 11 | B65: 1 | E65: Informacje uzupełniające o wybranych rodzajach wydatków budżetowych | F65: x
A66: 11.1 | B66: 1 | E66: Wydatki bieżące na wynagrodzenia i składki od nich naliczane | F66: =+IF(WydatkiParBud,G66,H66) -> 7085185.02 | G66: =7085185.02 -> 7085185.02 | H66: =0 -> 0
A67: 11.2 | B67: 1 | E67: Wydatki związane z funkcjonowaniem organów jednostki samorządu terytorialnego | F67: =+IF(WydatkiParBud,G67,H67) -> 2208521 | G67: =2208521 -> 2208521 | H67: =0 -> 0
A68: 11.3 | B68: 0 | E68: Wydatki objęte limitem, o którym mowa w art. 226 ust. 3 pkt 4 ustawy | F68: x | G68: x | H68: x
A69: 11.3.1 | B69: 0 | E69: bieżące | F69: x | G69: x | H69: x
A70: 11.3.2 | B70: 0 | E70: majątkowe | F70: x | G70: x | H70: x
A71: 11.4 | B71: 1 | E71: Wydatki inwestycyjne kontynuowane | F71: =+IF(WydatkiParBud,G72,"bd") -> 3462034.63
A72: 11.5 | B72: 1 | E72: Nowe wydatki inwestycyjne | G72: =3462034.63 -> 3462034.63 | H72: =0 -> 0
A73: 11.6 | B73: 1 | E73: Wydatki majątkowe w formie dotacji | F73: =+IF(WydatkiParBud,G73,"bd") -> 50000 | G73: =50000 -> 50000 | H73: =0 -> 0
A74: 12 | B74: 1 | E74: Finansowanie programów, projektów lub zadań realizowanych z udziałem środków, o których mowa w art. 5 ust. 1 pkt 2 i 3 ustawy | F74: x | G74: x | H74: x
A75: 12.1 | B75: 1 | E75: Dochody bieżące na programy, projekty lub zadania finansowane z udziałem środków, o których mowa w art. 5 ust. 1 pkt 2 i 3 ustawy | F75: =+IF(WydatkiParBud,G75,H75) -> 69542 | G75: =69542 -> 69542 | H75: =0 -> 0
A76: 12.1.1 | B76: 1 | E76: - w tym środki określone w art. 5 ust. 1 pkt 2 ustawy | F76: =+IF(WydatkiParBud,G76,H76) -> 69542 | G76: =69542 -> 69542 | H76: =0 -> 0
A77: 12.1.1.1 | B77: 0 | E77: - w tym środki określone w art. 5 ust. 1 pkt 2 ustawy wynikające wyłącznie z zawartych umów na realizację programu, projektu lub zadania | F77: x | G77: x | H77: x
A78: 12.2 | B78: 1 | E78: Dochody majątkowe na programy, projekty lub zadania finansowane z udziałem środków, o których mowa w art. 5 ust. 1 pkt 2 i 3 ustawy | F78: =+IF(WydatkiParBud,G78,H78) -> 0 | G78: =0 -> 0 | H78: =0 -> 0
A79: 12.2.1 | B79: 1 | E79: - w tym środki określone w art. 5 ust. 1 pkt 2 ustawy | F79: =+IF(WydatkiParBud,G79,H79) -> 0 | G79: =0 -> 0 | H79: =0 -> 0
A80: 12.2.1.1 | B80: 0 | E80: - w tym środki określone w art. 5 ust. 1 pkt 2 ustawy wynikające wyłącznie z zawartych umów na realizację programu, projektu lub zadania | F80: x | G80: x | H80: x
A81: 12.3 | B81: 1 | E81: Wydatki bieżące na programy, projekty lub zadania finansowane z udziałem środków, o których mowa w art. 5 ust. 1 pkt 2 i 3 ustawy | F81: =+IF(WydatkiParBud,G81,H81) -> 79456 | G81: =79456 -> 79456 | H81: =0 -> 0
A82: 12.3.1 | B82: 1 | E82: - w tym finansowane środkami określonymi w art. 5 ust. 1 pkt 2 ustawy | F82: =+IF(WydatkiParBud,G82,"bd") -> 69542 | G82: =69542 -> 69542
A83: 12.3.2 | B83: 0 | E83: Wydatki bieżące na realizację programu, projektu lub zadania wynikające wyłącznie z zawartych umów z podmiotem dysponującym środkami, o których mowa w art. 5 ust. 1 pkt 2 ustawy | F83: x | G83: x | H83: x
A84: 12.4 | B84: 1 | E84: Wydatki majątkowe na programy, projekty lub zadania finansowane z udziałem środków, o których mowa w art. 5 ust. 1 pkt 2 i 3 ustawy | F84: =+IF(WydatkiParBud,G84,H84) -> 2466474 | G84: =2466474 -> 2466474 | H84: =0 -> 0
A85: 12.4.1 | B85: 1 | E85: - w tym finansowane środkami określonymi w art. 5 ust. 1 pkt 2 ustawy | F85: =+IF(WydatkiParBud,G85,"bd") -> 1442182 | G85: =1442182 -> 1442182
A86: 12.4.2 | B86: 0 | E86: Wydatki majątkowe na realizację programu, projektu lub zadania wynikające wyłącznie z zawartych umów z podmiotem dysponującym środkami, o których mowa w art. 5 ust. 1 pkt 2 ustawy | F86: x | G86: x | H86: x
A87: 12.5 | B87: 0 | E87: Wydatki na wkład krajowy w związku z umową na realizację programu, projektu lub zadania finansowanego z udziałem środków, o których mowa w art. 5 ust. 1 pkt 2 ustawy bez względu na stopień finansowania tymi środkami | F87: x | G87: x | H87: x
A88: 12.5.1 | B88: 0 | E88: w tym w związku z już zawartą umową na realizację programu, projektu lub zadania | F88: x | G88: x | H88: x
A89: 12.6 | B89: 0 | E89: Wydatki na wkład krajowy w związku z zawartą po dniu 1 stycznia 2013 r. umową na realizację programu, projektu lub zadania finansowanego w co najmniej 60% środkami, o których mowa w art. 5 ust. 1 pkt 2 ustawy | F89: x | G89: x | H89: x
A90: 12.6.1 | B90: 0 | E90: w tym w związku z już zawartą umową na realizację programu, projektu lub zadania | F90: x | G90: x | H90: x
A91: 12.7 | B91: 0 | E91: Przychody z tytułu kredytów, pożyczek, emisji papierów wartościowych powstające w związku z umową na realizację programu, projektu lub zadania finansowanego z udziałem środków, o których mowa w art. 5 ust. 1 pkt 2 ustawy bez względu na stopień finansowania tymi środkami | F91: x | G91: x | H91: x
A92: 12.7.1 | B92: 0 | E92: w tym w związku z już zawartą umową na realizację programu, projektu lub zadania | F92: x | G92: x | H92: x
A93: 12.8 | B93: 0 | E93: Przychody z tytułu kredytów, pożyczek, emisji papierów wartościowych powstające w związku z zawartą po dniu 1 stycznia 2013 r. umową na realizację programu, projektu lub zadania finansowanego w co najmniej 60% środkami, o których mowa w art. 5 ust. 1 pkt 2 ustawy | F93: x | G93: x | H93: x
A94: 12.8.1 | B94: 0 | E94: w tym w związku z już zawartą umową na realizację programu, projektu lub zadania | F94: x | G94: x | H94: x
A95: 13 | B95: 1 | E95: Kwoty dotyczące przejęcia i spłaty zobowiązań po samodzielnych publicznych zakładach opieki zdrowotnej oraz pokrycia ujemnego wyniku | F95: x | G95: x | H95: x
A96: 13.1 | B96: 0 | E96: Kwota zobowiązań wynikających z przejęcia przez jednostkę samorządu terytorialnego zobowiązań po likwidowanych i przekształcanych samodzielnych zakładach opieki zdrowotnej | F96: x | G96: x | H96: x
A97: 13.2 | B97: 0 | E97: Dochody budżetowe z tytułu dotacji celowej z budżetu państwa, o której mowa w art. 196 ustawy z dnia 15 kwietnia 2011 r. o działalności leczniczej (Dz.U. Nr 112, poz. 654, z późn. zm.) | F97: x | G97: x | H97: x
A98: 13.3 | B98: 0 | E98: Wysokość zobowiązań podlegających umorzeniu, o którym mowa w art. 190 ustawy o działalności leczniczej | F98: x | G98: x | H98: x
A99: 13.4 | B99: 1 | E99: Wydatki na spłatę przejętych zobowiązań samodzielnego publicznego zakładu opieki zdrowotnej przekształconego na zasadach określonych w przepisach o działalności leczniczej | F99: =+IF(WydatkiParBud,G99,"bd") -> 0 | G99: =0 -> 0 | H99: =0 -> 0
A100: 13.5 | B100: 1 | E100: Wydatki na spłatę przejętych zobowiązań samodzielnego publicznego zakładu opieki zdrowotnej likwidowanego na zasadach określonych w przepisach o działalności leczniczej | F100: =+IF(WydatkiParBud,G100,"bd") -> 0 | G100: =0 -> 0 | H100: =0 -> 0
A101: 13.6 | B101: 1 | E101: Wydatki na spłatę zobowiązań samodzielnego publicznego zakładu opieki zdrowotnej przejętych do końca 2011 r. na podstawie przepisów o zakładach opieki zdrowotnej | F101: =+IF(WydatkiParBud,G101,"bd") -> 0 | G101: =0 -> 0 | H101: =0 -> 0
A102: 13.7 | B102: 1 | E102: Wydatki bieżące na pokrycie ujemnego wyniku finansowego samodzielnego publicznego zakładu opieki zdrowotnej | F102: =+IF(WydatkiParBud,G102,"bd") -> 0 | G102: =0 -> 0 | H102: =0 -> 0
A103: 14 | B103: 0 | C103: x | E103: Dane uzupełniające o długu i jego spłacie | F103: x | G103: x | H103: x
A104: 14.1 | B104: 0 | C104: x | E104: Spłaty rat kapitałowych oraz wykup papierów wartościowych, o których mowa w pkt. 5.1., wynikające wyłącznie z tytułu zobowiązań już zaciągniętych | F104: x | G104: x | H104: x
A105: 14.2 | B105: 0 | C105: x | E105: Kwota długu, którego planowana spłata dokona się z wydatków budżetu | F105: x | G105: x | H105: x
A106: 14.3 | B106: 0 | C106: x | E106: Wydatki zmniejszające dług, w tym | F106: x | G106: x | H106: x
A107: 14.3.1 | B107: 0 | C107: x | E107: spłata zobowiązań wymagalnych z lat poprzednich, innych niż w pkt 14.3.3 | F107: x | G107: x | H107: x
A108: 14.3.2 | B108: 0 | C108: x | E108: związane z umowami zaliczanymi do tytułów dłużnych wliczanych do państwowego długu publicznego | F108: x | G108: x | H108: x
A109: 14.3.3 | B109: 0 | C109: x | E109: wypłaty z tytułu wymagalnych poręczeń i gwarancji | F109: x | G109: x | H109: x
A110: 14.4 | B110: 0 | C110: x | E110: Wynik operacji niekasowych wpływających na kwotę długu ( m.in. umorzenia, różnice kursowe) | F110: x | G110: x | H110: x
A111: 15 | B111: 0 | E111: Dane dotyczące emitowanych obligacji przychodowych | F111: x | G111: x | H111: x
A112: 15.1 | B112: 0 | E112: Środki z przedsięwzięcia gromadzone na rachunku bankowym, w tym: | F112: x | G112: x | H112: x
A113: 15.1.1 | B113: 0 | C113: x | E113: środki na zaspokojenie roszczeń obligatariuszy | F113: x | G113: x | H113: x
A114: 15.2 | B114: 0 | C114: x | E114: Wydatki bieżące z tytułu świadczenia emitenta należnego obligatariuszom, nieuwzględniane w limicie spłaty zobowiązań, o którym mowa w art. 243 ustawy | F114: x | G114: x | H114: x

Sheet WPF a Budzet (rok N) (hidden)
E1: Zestawienie wygenerowane na podstawie danych wprowadzonych do systemu BESTI@ | J1: © CWA "Pro publico" Sp. z o.o. | N1: =+ver_metodologii -> ver metodologii (2017-02-03a)
E2: Porównanie WPF rok prognozy N z projektem budżetu/budżetem po zmianach (na tle danych za lata od N-3 do N-1 z eWPF) | K2: =+IF(SzczegolowoscDanych=2,2,1) -> 1
E3: =+IF(SzczegolowoscDanych=0,"Brak danych o budżecie. Uruchom ponownie raport i zanim kliniesz OK wybierz w filtrze TYP DOKUMENTU.",IF(SzczegolowoscDanych=3,"Raport wykrył, że w systemie BeSTi@ BUDŻET jest ZARÓWNO w grupach i w §§","")) -> 
E4: Nr Uchwały: | J4: =DaneZrodlowe!B4 -> nowyWPF czerwiec | K4: =IF(DaneZrodlowe!C4=0,"",+"ver.: "&DaneZrodlowe!C4) -> 
E5: z dn.: | J5: =+DaneZrodlowe!$P$4 -> 2017-06-30
E6: Nazwa JST: | J6: =DaneZrodlowe!D4 -> WIDUCHOWA
E7: WPF za lata: | J7: =CONCATENATE(DaneZrodlowe!O1," - ",DaneZrodlowe!R1) -> 2017 - 2030
F8: Wykonanie (eWPF) | H8: Plan 3 kw. (eWPF) | I8: Wykonanie (eWPF) | J8: WPF | K8: =+"Budżet wg "&IF(K2=1,"§§",IF(K2=2,"grup",+CHAR(10)&"! wybierz układ z listy !")) -> Budżet wg §§
A9: Lp. | B9: PozObl | C9: X | E9: Wyszczególnienie | F9: =+G9-1 -> 2014 | G9: =+H9-1 -> 2015 | H9: =+I9 -> 2016 | I9: =+J9-1 -> 2016 | J9: =+K9 -> 2017 | K9: =+Rok_bazowy -> 2017 | L9: wg §§ | M9: wg grup | N9: WPF - Budzet
A10: 1 | B10: 1 | C10: x | E10: Dochody ogółem | F10: =17392993.42 -> 17392993.42 | G10: =17101682.73 -> 17101682.73 | H10: =20918417.46 -> 20918417.46 | I10: =20940703.88 -> 20940703.88 | J10: =20344541.94 -> 20344541.94 | K10: =+IF(WydatkiPar,L10,M10) -> 20344541.94 | L10: =20344541.94 -> 20344541.94 | M10: =0 -> 0 | N10: =+ROUND(J10-K10,4) -> 0
A11: 1.1 | B11: 1 | C11: x | E11: Dochody bieżące | F11: =17056473.25 -> 17056473.25 | G11: =16811380.25 -> 16811380.25 | H11: =19931725.25 -> 19931725.25 | I11: =20404178 -> 20404178 | J11: =19965541.94 -> 19965541.94 | K11: =+K10-K18 -> 19965541.94 | L11: =+L10-L18 -> 19965541.94 | M11: =+M10-M18 -> 0 | N11: =+ROUND(J11-K11,4) -> 0
A12: 1.1.1 | B12: 1 | E12: dochody z tytułu udziału we wpływach z podatku dochodowego od osób fizycznych | F12: =1673051 -> 1673051 | G12: =1919798 -> 1919798 | H12: =1938140 -> 1938140 | I12: =1971057 -> 1971057 | J12: =2287693 -> 2287693 | K12: =+IF(WydatkiPar,L12,M12) -> 2287693 | L12: =2287693 -> 2287693 | M12: =0 -> 0 | N12: 0
A13: 1.1.2 | B13: 1 | E13: dochody z tytułu udziału we wpływach z podatku dochodowego od osób prawnych | F13: =8401.41 -> 8401.41 | G13: =3238.59 -> 3238.59 | H13: =3000 -> 3000 | I13: =6077.76 -> 6077.76 | J13: =6000 -> 6000 | K13: 6000 | L13: =6000 -> 6000 | M13: =0 -> 0 | N13: 0
A14: 1.1.3 | B14: 1 | E14: podatki i opłaty | F14: =4929544.81 -> 4929544.81 | G14: =5000956.35 -> 5000956.35 | H14: =3921378 -> 3921378 | I14: =3889520.17 -> 3889520.17 | J14: =4055680 -> 4055680 | K14: 4055680 | L14: =4055680 -> 4055680 | M14: =0 -> 0 | N14: 0
A15: 1.1.3.1 | B15: 1 | E15: z podatku od nieruchomości | F15: =2990336.23 -> 2990336.23 | G15: =3054437.86 -> 3054437.86 | H15: =1870000 -> 1870000 | I15: =1949911.42 -> 1949911.42 | J15: =1985000 -> 1985000 | K15: 1985000 | L15: =1985000 -> 1985000 | M15: =0 -> 0 | N15: 0
A16: 1.1.4 | B16: 1 | E16: z subwencji ogólnej | F16: =5676996 -> 5676996 | G16: =5458757 -> 5458757 | H16: =5866227 -> 5866227 | I16: =5866227 -> 5866227 | J16: =5956543 -> 5956543 | K16: 5956543 | L16: =5956543 -> 5956543 | M16: =0 -> 0 | N16: 0
A17: 1.1.5 | B17: 1 | E17: z tytułu dotacji i środków przeznaczonych na cele bieżące | F17: =4287663.44 -> 4287663.44 | G17: =4019037.08 -> 4019037.08 | H17: =6646197.25 -> 6646197.25 | I17: =7032750.51 -> 7032750.51 | J17: =7158325.94 -> 7158325.94 | K17: 7158325.94 | L17: =7158325.94 -> 7158325.94 | M17: =0 -> 0 | N17: 0
A18: 1.2 | B18: 1 | C18: x | E18: Dochody majątkowe, w tym | F18: =336520.17 -> 336520.17 | G18: =290302.48 -> 290302.48 | H18: =986692.21 -> 986692.21 | I18: =536525.88 -> 536525.88 | J18: =379000 -> 379000 | K18: 379000 | L18: =379000 -> 379000 | M18: =0 -> 0 | N18: 0
A19: 1.2.1 | B19: 1 | C19: x | E19: ze sprzedaży majątku | F19: =179740.6 -> 179740.6 | G19: =222848.13 -> 222848.13 | H19: =391378 -> 391378 | I19: =286306.04 -> 286306.04 | J19: =300000 -> 300000 | K19: 300000 | L19: =300000 -> 300000 | M19: =0 -> 0 | N19: 0
A20: 1.2.2 | B20: 1 | E20: z tytułu dotacji oraz środków przeznaczonych na inwestycje | F20: =148162.3 -> 148162.3 | G20: =55441.71 -> 55441.71 | H20: =586314.21 -> 586314.21 | I20: =236186.71 -> 236186.71 | J20: =69000 -> 69000 | K20: 69000 | L20: =69000 -> 69000 | M20: =0 -> 0 | N20: 0
A21: 2 | B21: 1 | C21: x | E21: Wydatki ogółem | F21: =17186267.02 -> 17186267.02 | G21: =16884782.78 -> 16884782.78 | H21: =20918417.46 -> 20918417.46 | I21: =20139669.01 -> 20139669.01 | J21: =22257541.94 -> 22257541.94 | K21: 22257541.94 | L21: =22257541.94 -> 22257541.94 | M21: =0 -> 0 | N21: 0
A22: 2.1 | B22: 1 | C22: x | E22: Wydatki bieżące, w tym: | F22: =16441428.08 -> 16441428.08 | G22: =16307675.05 -> 16307675.05 | H22: =18300888.25 -> 18300888.25 | I22: =18183468.64 -> 18183468.64 | J22: =18745507.31 -> 18745507.31 | K22: =+K21-K30 -> 18745507.31 | L22: =+L21-L30 -> 18745507.31 | M22: =+M21-M30 -> 0 | N22: 0
A23: 2.1.1 | B23: 1 | C23: x | E23: z tytułu poręczeń i gwarancji | F23: =0 -> 0 | G23: =0 -> 0 | H23: =0 -> 0 | I23: =0 -> 0 | J23: =0 -> 0 | K23: =+IF(WydatkiPar,L23,M23) -> 0 | L23: =0 -> 0 | M23: =0 -> 0 | N23: 0
A24: 2.1.1.1 | B24: 0 | C24: x | E24: w tym: gwarancje i poręczenia podlegające wyłączeniu z limitu spłaty zobowiązań, o którym mowa w art. 243 ustawy | F24: =0 -> 0 | G24: =0 -> 0 | H24: =0 -> 0 | I24: =0 -> 0 | J24: =0 -> 0 | K24: x | L24: x | M24: x | N24: x
A25: 2.1.2 | B25: 0 | E25: na spłatę przejętych zobowiązań samodzielnego publicznego zakładu opieki zdrowotnej przekształconego na zasadach określonych w przepisach o działalności leczniczej, w wysokości w jakiej nie podlegają sfinansowaniu dotacją z budżetu państwa | F25: =0 -> 0 | G25: =0 -> 0 | H25: =0 -> 0 | I25: =0 -> 0 | J25: =0 -> 0 | K25: x | L25: x | M25: x | N25: x
A26: 2.1.3 | B26: 1 | C26: x | E26: wydatki na obsługę długu, w tym: | F26: =430171.93 -> 430171.93 | G26: =352254.63 -> 352254.63 | H26: =340000 -> 340000 | I26: =314345.48 -> 314345.48 | J26: =320000 -> 320000 | K26: =+IF(WydatkiPar,L26,M26) -> 320000 | L26: =320000 -> 320000 | M26: =0 -> 0 | N26: =+ROUND(J26-K26,4) -> 0
A27: 2.1.3.1 | B27: 1 | C27: x | E27: odsetki i dyskonto określone w art. 243 ust. 1 ustawy, w tym: | F27: =430171.93 -> 430171.93 | G27: =352254.63 -> 352254.63 | H27: =340000 -> 340000 | I27: =309345.48 -> 309345.48 | J27: =320000 -> 320000 | K27: =+IF(WydatkiPar,L27,"bd") -> 320000 | L27: =320000 -> 320000 | M27: =0 -> 0 | N27: =+IF(WydatkiPar,ROUND(J27-K27,4),"x") -> 0
A28: 2.1.3.1.1 | B28: 0 | C28: x | E28: odsetki i dyskonto podlegające wyłączeniu z limitu spłaty zobowiązań, o którym mowa w art. 243 ustawy, w terminie nie dłuższym niż 90 dni po zakończeniu programu, projektu lub zadania i otrzymaniu refundacji z tych środków (bez odsetek i dyskonta od zobowiązań na wkład krajowy) | F28: =40000 -> 40000 | G28: =0 -> 0 | H28: =0 -> 0 | I28: =0 -> 0 | J28: =0 -> 0 | K28: x | L28: x | M28: x | N28: x
A29: 2.1.3.1.2 | B29: 0 | C29: x | E29: odsetki i dyskonto podlegające wyłączeniu z limitu spłaty zobowiązań, o którym mowa w art. 243 ustawy, z tytułu zobowiązań zaciągniętych na wkład krajowy | F29: =130000 -> 130000 | G29: =107230.61 -> 107230.61 | H29: =105951.71 -> 105951.71 | I29: =96473.89 -> 96473.89 | J29: =87300 -> 87300 | K29: x | L29: x | M29: x | N29: x
A30: 2.2 | B30: 1 | C30: x | E30: Wydatki majątkowe | F30: =744838.94 -> 744838.94 | G30: =577107.73 -> 577107.73 | H30: =2617529.21 -> 2617529.21 | I30: =1956200.37 -> 1956200.37 | J30: =3512034.63 -> 3512034.63 | K30: =+IF(WydatkiPar,L30,M30) -> 3512034.63 | L30: =3512034.63 -> 3512034.63 | M30: =0 -> 0 | N30: =+ROUND(J30-K30,4) -> 0
A31: 3 | B31: 1 | C31: x | E31: Wynik budżetu | F31: =206726.4 -> 206726.4 | G31: =216899.95 -> 216899.95 | H31: =0 -> 0 | I31: =801034.87 -> 801034.87 | J31: =-1913000 -> -1913000 | K31: =+K10-K21 -> -1913000 | N31: =+ROUND(J31-K31,4) -> 0
A32: 4 | B32: 1 | C32: x | E32: Przychody budżetu | F32: =1405350.74 -> 1405350.74 | G32: =555077.14 -> 555077.14 | H32: =400000 -> 400000 | I32: =671977.09 -> 671977.09 | J32: =2513000 -> 2513000 | K32: =2513000 -> 2513000 | N32: =+ROUND(J32-K32,4) -> 0
A33: 4.1 | B33: 1 | C33: x | E33: Nadwyżka budżetowa z lat ubiegłych | F33: =0 -> 0 | G33: =0 -> 0 | H33: =0 -> 0 | I33: =0 -> 0 | J33: =0 -> 0 | K33: =0 -> 0 | N33: =+ROUND(J33-K33,4) -> 0
A34: 4.1.1 | B34: 0 | C34: x | E34: w tym na pokrycie deficytu budżetu | F34: =0 -> 0 | G34: =0 -> 0 | H34: =0 -> 0 | I34: =0 -> 0 | J34: =0 -> 0 | K34: x | L34: x | M34: x | N34: x
A35: 4.2 | B35: 1 | C35: x | E35: Wolne środki, o których mowa w art. 217 ust.2 pkt 6 ustawy | F35: =1405350.74 -> 1405350.74 | G35: =555077.14 -> 555077.14 | H35: =400000 -> 400000 | I35: =671977.09 -> 671977.09 | J35: =1073000 -> 1073000 | K35: =1073000 -> 1073000 | N35: =+ROUND(J35-K35,4) -> 0
A36: 4.2.1 | B36: 0 | C36: x | E36: w tym na pokrycie deficytu budżetu | F36: =0 -> 0 | G36: =0 -> 0 | H36: =0 -> 0 | I36: =0 -> 0 | J36: =473000 -> 473000 | K36: x | L36: x | M36: x | N36: x
A37: 4.3 | B37: 1 | C37: x | E37: Kredyty, pożyczki, emisja papierów wartościowych | F37: =0 -> 0 | G37: =0 -> 0 | H37: =0 -> 0 | I37: =0 -> 0 | J37: =1440000 -> 1440000 | K37: =1440000 -> 1440000 | N37: =+ROUND(J37-K37,4) -> 0
A38: 4.3.1 | B38: 0 | C38: x | E38: w tym na pokrycie deficytu budżetu | F38: =0 -> 0 | G38: =0 -> 0 | H38: =0 -> 0 | I38: =0 -> 0 | J38: =1440000 -> 1440000 | K38: x | L38: x | M38: x | N38: x
A39: 4.4 | B39: 1 | C39: x | E39: Inne przychody niezwiązane z zaciągnięciem długu | F39: =0 -> 0 | G39: =0 -> 0 | H39: =0 -> 0 | I39: =0 -> 0 | J39: =0 -> 0 | K39: =0 -> 0 | N39: =+ROUND(J39-K39,4) -> 0
A40: 4.4.1 | B40: 0 | C40: x | E40: w tym na pokrycie deficytu budżetu | F40: =0 -> 0 | G40: =0 -> 0 | H40: =0 -> 0 | I40: =0 -> 0 | J40: =0 -> 0 | K40: x | L40: x | M40: x | N40: x
A41: 5 | B41: 1 | C41: x | E41: Rozchody budżetu | F41: =1057000 -> 1057000 | G41: =100000 -> 100000 | H41: =400000 -> 400000 | I41: =400000 -> 400000 | J41: =600000 -> 600000 | K41: =600000 -> 600000 | N41: =+ROUND(J41-K41,4) -> 0
A42: 5.1 | B42: 1 | C42: x | E42: Spłaty rat kapitałowych kredytów i pożyczek oraz wykup papierów wartościowych | F42: =1057000 -> 1057000 | G42: =100000 -> 100000 | H42: =400000 -> 400000 | I42: =400000 -> 400000 | J42: =600000 -> 600000 | K42: =600000 -> 600000 | N42: =+ROUND(J42-K42,4) -> 0
A43: 5.1.1 | B43: 0 | C43: x | E43: w tym łączna kwota przypadających na dany rok kwot ustawowych wyłączeń z limitu spłaty zobowiązań, o którym mowa w art. 243 ustawy, z tego: | F43: =1057000 -> 1057000 | G43: =0 -> 0 | H43: =0 -> 0 | I43: =0 -> 0 | J43: =0 -> 0 | K43: x | L43: x | M43: x | N43: x
A44: 5.1.1.1 | B44: 0 | C44: x | E44: kwota przypadających na dany rok kwot ustawowych wyłączeń określonych w art. 243 ust. 3 ustawy | F44: =1057000 -> 1057000 | G44: =0 -> 0 | H44: =0 -> 0 | I44: =0 -> 0 | J44: =0 -> 0 | K44: x | L44: x | M44: x | N44: x
A45: 5.1.1.2 | B45: 0 | C45: x | E45: kwota przypadających na dany rok kwot ustawowych wyłączeń określonych w art. 243 ust. 3a ustawy | F45: =0 -> 0 | G45: =0 -> 0 | H45: =0 -> 0 | I45: =0 -> 0 | J45: =0 -> 0 | K45: x | L45: x | M45: x | N45: x
A46: 5.1.1.3 | B46: 0 | C46: x | E46: kwota przypadających na dany rok kwot ustawowych wyłączeń innych niż określone w art. 243 ustawy | F46: =0 -> 0 | G46: =0 -> 0 | H46: =0 -> 0 | I46: =0 -> 0 | J46: =0 -> 0 | K46: x | L46: x | M46: x | N46: x
A47: 5.2 | B47: 1 | E47: Inne rozchody niezwiązane ze spłatą długu | F47: =0 -> 0 | G47: =0 -> 0 | H47: =0 -> 0 | I47: =0 -> 0 | J47: =0 -> 0 | K47: =0 -> 0 | N47: =+ROUND(J47-K47,4) -> 0
A48: 6 | B48: 0 | C48: x | E48: Kwota długu | F48: =10540850 -> 10540850 | G48: =10431000 -> 10431000 | H48: =10719000 -> 10719000 | I48: =10727129.22 -> 10727129.22 | J48: =11435000 -> 11435000 | K48: x | L48: x | M48: x | N48: x
A49: 7 | B49: 0 | E49: Kwota zobowiązań wynikających z przejęcia przez jednostkę samorządu terytorialnego zobowiązań po likwidowanych i przekształcanych jednostkach zaliczanych do sektora finansów publicznych | F49: =0 -> 0 | G49: =0 -> 0 | H49: =0 -> 0 | I49: =0 -> 0 | J49: =0 -> 0 | K49: x | L49: x | M49: x | N49: x
A50: 8 | B50: 1 | E50: Relacja zrównoważenia wydatków bieżących, o której mowa w art. 242 ustawy | F50: x | G50: x | H50: x | I50: x | J50: x | K50: x | L50: x | M50: x | N50: x
A51: 8.1 | B51: 1 | E51: Różnica między dochodami bieżącymi a wydatkami bieżącymi | F51: =615045.17 -> 615045.17 | G51: =503705.2 -> 503705.2 | H51: =1630837 -> 1630837 | I51: =2220709.36 -> 2220709.36 | J51: =1220034.63 -> 1220034.63 | K51: =+K11-K22 -> 1220034.63 | N51: =+ROUND(J51-K51,4) -> 0
A52: 8.2 | B52: 1 | E52: Różnica między dochodami bieżącymi, skorygowanymi o środki a wydatkami bieżącymi, pomniejszonymi o wydatki | F52: =2020395.91 -> 2020395.91 | G52: =1058782.34 -> 1058782.34 | H52: =2030837 -> 2030837 | I52: =2892686.45 -> 2892686.45 | J52: =2293034.63 -> 2293034.63 | K52: =+K11+K33+K35-K22 -> 2293034.63 | N52: =+ROUND(J52-K52,4) -> 0
A53: 9 | B53: 0 | C53: x | E53: Wskaźnik spłaty zobowiązań | F53: x | G53: x | H53: x | I53: x | J53: x | K53: x | L53: x | M53: x | N53: x
A54: 9.1 | B54: 0 | C54: x | E54: Wskaźnik planowanej łącznej kwoty spłaty zobowiązań, o której mowa w art. 243 ust. 1 ustawy do dochodów, bez uwzględnienia zobowiązań związku współtworzonego przez jednostkę samorządu terytorialnego i bez uwzględnienia ustawowych wyłączeń przypadających na dany rok. | F54: =0.0855 -> 0.0855 | G54: =0.0264 -> 0.0264 | H54: =0.0354 -> 0.0354 | I54: =0.0339 -> 0.0339 | J54: =0.0452 -> 0.0452 | K54: x | L54: x | M54: x | N54: x
A55: 9.2 | B55: 0 | C55: x | E55: Wskaźnik planowanej łącznej kwoty spłaty zobowiązań, o której mowa w art. 243 ust. 1 ustawy do dochodów, bez uwzględnienia zobowiązań związku współtworzonego przez jednostkę samorządu terytorialnego, po uwzględnieniu ustawowych wyłączeń przypadających na dany rok. | F55: =0.015 -> 0.015 | G55: =0.0202 -> 0.0202 | H55: =0.0303 -> 0.0303 | I55: =0.0293 -> 0.0293 | J55: =0.0409 -> 0.0409 | K55: x | L55: x | M55: x | N55: x
A56: 9.3 | B56: 0 | C56: x | E56: Kwota zobowiązań związku współtworzonego przez jednostkę samorządu terytorialnego przypadających do spłaty w danym roku budżetowym, podlegająca doliczeniu zgodnie z art. 244 ustawy | F56: =0 -> 0 | G56: =0 -> 0 | H56: =0 -> 0 | I56: =0 -> 0 | J56: =0 -> 0 | K56: x | L56: x | M56: x | N56: x
A57: 9.4 | B57: 0 | C57: x | E57: Wskaźnik planowanej łącznej kwoty spłaty zobowiązań, o której mowa w art. 243 ust. 1 ustawy do dochodów, po uwzględnieniu zobowiązań związku współtworzonego przez jednostkę samorządu terytorialnego oraz po uwzględnieniu ustawowych wyłączeń przypadających na dany rok | F57: =0.015 -> 0.015 | G57: =0.0202 -> 0.0202 | H57: =0.0303 -> 0.0303 | I57: =0.0293 -> 0.0293 | J57: =0.0409 -> 0.0409 | K57: x | L57: x | M57: x | N57: x
A58: 9.5 | B58: 0 | C58: x | E58: Wskaźnik dochodów bieżących powiększonych o dochody ze sprzedaży majątku oraz pomniejszonych o wydatki bieżące, do dochodów budżetu, ustalony dla danego roku (wskaźnik jednoroczny) | F58: =+IF(AND(F9>=2013,F9<=2018),IF(F10<>0,(F11+F19-F22+F25)/F10,0),IF(F10<>0,(F11+F19-F22)/F10,0)) -> 0.04569574373 | G58: =+IF(AND(G9>=2013,G9<=2018),IF(G10<>0,(G11+G19-G22+G25)/G10,0),IF(G10<>0,(G11+G19-G22)/G10,0)) -> 0.04248431815 | H58: =+IF(AND(H9>=2013,H9<=2018),IF(H10<>0,(H11+H19-H22+H25)/H10,0),IF(H10<>0,(H11+H19-H22)/H10,0)) -> 0.09667150987 | I58: =+IF(AND(I9>=2013,I9<=2018),IF(I10<>0,(I11+I19-I22+I25)/I10,0),IF(I10<>0,(I11+I19-I22)/I10,0)) -> 0.1197197293 | J58: =+IF(J10<>0,(J11+J19-J22)/J10,0) -> 0.07471461557 | K58: x | L58: x | M58: x | N58: x
A59: 9.6 | B59: 0 | C59: x | E59: Dopuszczalny wskaźnik spłaty zobowiązań określony w art. 243 ustawy, po uwzględnieniu ustawowych wyłączeń , obliczony w oparciu o plan 3 kwartału roku poprzedzającego pierwszy rok prognozy (wskaźnik ustalony w oparciu o średnią arytmetyczną z 3 poprzednich lat) | F59: x | G59: x | H59: x | I59: x | J59: =0.0616 -> 0.0616 | K59: x | L59: x | M59: x | N59: x
A60: 9.6.1 | B60: 0 | C60: x | E60: Dopuszczalny wskaźnik spłaty zobowiązań określony w art. 243 ustawy, po uwzględnieniu ustawowych wyłączeń, obliczony w oparciu o wykonanie roku poprzedzającego pierwszy rok prognozy (wskaźnik ustalony w oparciu o średnią arytmetyczną z 3 poprzednich lat) | F60: x | G60: x | H60: x | I60: x | J60: =0.0693 -> 0.0693 | K60: x | L60: x | M60: x | N60: x
A61: 9.7 | B61: 0 | C61: x | E61: Informacja o spełnieniu wskaźnika spłaty zobowiązań określonego w art. 243 ustawy, po uwzględnieniu zobowiązań związku współtworzonego przez jednostkę samorządu terytorialnego oraz po uwzględnieniu ustawowych wyłączeń, obliczonego w oparciu o plan 3 kwartałów roku poprzedzającego rok budżetowy | F61: x | G61: x | H61: x | I61: x | J61: =IF(J57<=J59,"Spełniona","Nie spełniona") -> Spełniona | K61: x | L61: x | M61: x | N61: x
A62: 9.7.1 | B62: 0 | C62: x | E62: Informacja o spełnieniu wskaźnika spłaty zobowiązań określonego w art. 243 ustawy, po uwzględnieniu zobowiązań związku współtworzonego przez jednostkę samorządu terytorialnego oraz po uwzględnieniu ustawowych wyłączeń, obliczonego w oparciu o wykonanie roku poprzedzającego rok budżetowy | F62: x | G62: x | H62: x | I62: x | J62: =IF(J57<=J60,"Spełniona","Nie spełniona") -> Spełniona | K62: x | L62: x | M62: x | N62: x
A63: 10 | B63: 0 | E63: Przeznaczenie prognozowanej nadwyżki budżetowej, w tym na: | F63: =0 -> 0 | G63: =0 -> 0 | H63: =0 -> 0 | I63: =0 -> 0 | J63: =0 -> 0 | K63: x | L63: x | M63: x | N63: x
A64: 10.1 | B64: 0 | E64: Spłaty kredytów, pożyczek i wykup papierów wartościowych | F64: =406000 -> 406000 | G64: =100000 -> 100000 | H64: =0 -> 0 | I64: =0 -> 0 | J64: =0 -> 0 | K64: x | L64: x | M64: x | N64: x
A65: 11 | B65: 1 | E65: Informacje uzupełniające o wybranych rodzajach wydatków budżetowych | F65: x | G65: x | H65: x | I65: x | J65: x | K65: x | N65: x
A66: 11.1 | B66: 1 | E66: Wydatki bieżące na wynagrodzenia i składki od nich naliczane | F66: =6698815.09 -> 6698815.09 | G66: =7091945.11 -> 7091945.11 | H66: =7280908.61 -> 7280908.61 | I66: =7055332.33 -> 7055332.33 | J66: =7085185.02 -> 7085185.02 | K66: =+IF(WydatkiPar,L66,M66) -> 7085185.02 | L66: =7085185.02 -> 7085185.02 | M66: =0 -> 0 | N66: =+ROUND(J66-K66,4) -> 0
A67: 11.2 | B67: 1 | E67: Wydatki związane z funkcjonowaniem organów jednostki samorządu terytorialnego | F67: =2100000 -> 2100000 | G67: =2269710.14 -> 2269710.14 | H67: =2379480.93 -> 2379480.93 | I67: =2259588.38 -> 2259588.38 | J67: =2208521 -> 2208521 | K67: =+IF(WydatkiPar,L67,M67) -> 2208521 | L67: =2208521 -> 2208521 | M67: =0 -> 0 | N67: =+ROUND(J67-K67,4) -> 0
A68: 11.3 | B68: 0 | E68: Wydatki objęte limitem, o którym mowa w art. 226 ust. 3 pkt 4 ustawy | F68: =315833.26 -> 315833.26 | G68: =0 -> 0 | H68: =1315050 -> 1315050 | I68: =583530 -> 583530 | J68: =3212044 -> 3212044 | K68: x | L68: x | M68: x | N68: x
A69: 11.3.1 | B69: 0 | E69: bieżące | F69: =116605.57 -> 116605.57 | G69: =0 -> 0 | H69: =418000 -> 418000 | I69: =400000 -> 400000 | J69: =470570 -> 470570 | K69: x | L69: x | M69: x | N69: x
A70: 11.3.2 | B70: 0 | E70: majątkowe | F70: =199227.69 -> 199227.69 | G70: =0 -> 0 | H70: =897050 -> 897050 | I70: =183530 -> 183530 | J70: =2741474 -> 2741474 | K70: x | L70: x | M70: x | N70: x
A71: 11.4 | B71: 1 | E71: Wydatki inwestycyjne kontynuowane | F71: =261062 -> 261062 | G71: =0 -> 0 | H71: =0 -> 0 | I71: =0 -> 0 | J71: =321470 -> 321470 | K71: =+IF(WydatkiPar,L72,"bd") -> 3462034.63 | N71: =+IF(WydatkiPar,ROUND(SUM(J71:J72)-K71,4),"x") -> 0
A72: 11.5 | B72: 1 | E72: Nowe wydatki inwestycyjne | F72: =383938 -> 383938 | G72: =512107.73 -> 512107.73 | H72: =2567529.21 -> 2567529.21 | I72: =1777814.09 -> 1777814.09 | J72: =3140564.63 -> 3140564.63 | L72: =3462034.63 -> 3462034.63 | M72: =0 -> 0
A73: 11.6 | B73: 1 | E73: Wydatki majątkowe w formie dotacji | F73: =55000 -> 55000 | G73: =65000 -> 65000 | H73: =50000 -> 50000 | I73: =50000 -> 50000 | J73: =50000 -> 50000 | K73: =+IF(WydatkiPar,L73,"bd") -> 50000 | L73: =50000 -> 50000 | M73: =0 -> 0 | N73: =+IF(WydatkiPar,ROUND(J73-K73,4),"x") -> 0
A74: 12 | B74: 1 | E74: Finansowanie programów, projektów lub zadań realizowanych z udziałem środków, o których mowa w art. 5 ust. 1 pkt 2 i 3 ustawy | F74: x | G74: x | H74: x | I74: x | J74: x | K74: x | L74: x | M74: x | N74: x
A75: 12.1 | B75: 1 | E75: Dochody bieżące na programy, projekty lub zadania finansowane z udziałem środków, o których mowa w art. 5 ust. 1 pkt 2 i 3 ustawy | F75: =0 -> 0 | G75: =0 -> 0 | H75: =0 -> 0 | I75: =0 -> 0 | J75: =69542 -> 69542 | K75: =+IF(WydatkiPar,L75,M75) -> 69542 | L75: =69542 -> 69542 | M75: =0 -> 0 | N75: =+ROUND(J75-K75,4) -> 0
A76: 12.1.1 | B76: 1 | E76: - w tym środki określone w art. 5 ust. 1 pkt 2 ustawy | F76: =0 -> 0 | G76: =0 -> 0 | H76: =0 -> 0 | I76: =0 -> 0 | J76: =69542 -> 69542 | K76: =+IF(WydatkiPar,L76,M76) -> 69542 | L76: =69542 -> 69542 | M76: =0 -> 0 | N76: =+ROUND(J76-K76,4) -> 0
A77: 12.1.1.1 | B77: 0 | E77: - w tym środki określone w art. 5 ust. 1 pkt 2 ustawy wynikające wyłącznie z zawartych umów na realizację programu, projektu lub zadania | F77: =0 -> 0 | G77: =0 -> 0 | H77: =0 -> 0 | I77: =0 -> 0 | J77: =69542 -> 69542 | K77: x | L77: x | M77: x | N77: x
A78: 12.2 | B78: 1 | E78: Dochody majątkowe na programy, projekty lub zadania finansowane z udziałem środków, o których mowa w art. 5 ust. 1 pkt 2 i 3 ustawy | F78: =0 -> 0 | G78: =0 -> 0 | H78: =462622 -> 462622 | I78: =0 -> 0 | J78: =0 -> 0 | K78: =+IF(WydatkiPar,L78,M78) -> 0 | L78: =0 -> 0 | M78: =0 -> 0 | N78: =+ROUND(J78-K78,4) -> 0
A79: 12.2.1 | B79: 1 | E79: - w tym środki określone w art. 5 ust. 1 pkt 2 ustawy | F79: =0 -> 0 | G79: =0 -> 0 | H79: =462622 -> 462622 | I79: =0 -> 0 | J79: =0 -> 0 | K79: =+IF(WydatkiPar,L79,M79) -> 0 | L79: =0 -> 0 | M79: =0 -> 0 | N79: =+ROUND(J79-K79,4) -> 0
A80: 12.2.1.1 | B80: 0 | E80: - w tym środki określone w art. 5 ust. 1 pkt 2 ustawy wynikające wyłącznie z zawartych umów na realizację programu, projektu lub zadania | F80: =0 -> 0 | G80: =0 -> 0 | H80: =0 -> 0 | I80: =0 -> 0 | J80: =0 -> 0 | K80: x | L80: x | M80: x | N80: x
A81: 12.3 | B81: 1 | E81: Wydatki bieżące na programy, projekty lub zadania finansowane z udziałem środków, o których mowa w art. 5 ust. 1 pkt 2 i 3 ustawy | F81: =0 -> 0 | G81: =0 -> 0 | H81: =0 -> 0 | I81: =0 -> 0 | J81: =79456 -> 79456 | K81: =+IF(WydatkiPar,L81,M81) -> 79456 | L81: =79456 -> 79456 | M81: =0 -> 0 | N81: =+ROUND(J81-K81,4) -> 0
A82: 12.3.1 | B82: 1 | E82: - w tym finansowane środkami określonymi w art. 5 ust. 1 pkt 2 ustawy | F82: =0 -> 0 | G82: =0 -> 0 | H82: =0 -> 0 | I82: =0 -> 0 | J82: =69542 -> 69542 | K82: =+IF(WydatkiPar,L82,"bd") -> 69542 | L82: =69542 -> 69542 | N82: =+IF(WydatkiPar,ROUND(J82-K82,4),"x") -> 0
A83: 12.3.2 | B83: 0 | E83: Wydatki bieżące na realizację programu, projektu lub zadania wynikające wyłącznie z zawartych umów z podmiotem dysponującym środkami, o których mowa w art. 5 ust. 1 pkt 2 ustawy | F83: =0 -> 0 | G83: =0 -> 0 | H83: =0 -> 0 | I83: =0 -> 0 | J83: =79456 -> 79456 | K83: x | L83: x | M83: x | N83: x
A84: 12.4 | B84: 1 | E84: Wydatki majątkowe na programy, projekty lub zadania finansowane z udziałem środków, o których mowa w art. 5 ust. 1 pkt 2 i 3 ustawy | F84: =0 -> 0 | G84: =0 -> 0 | H84: =727050 -> 727050 | I84: =34850 -> 34850 | J84: =2466474 -> 2466474 | K84: =+IF(WydatkiPar,L84,M84) -> 2466474 | L84: =2466474 -> 2466474 | M84: =0 -> 0 | N84: =+ROUND(J84-K84,4) -> 0
A85: 12.4.1 | B85: 1 | E85: - w tym finansowane środkami określonymi w art. 5 ust. 1 pkt 2 ustawy | F85: =0 -> 0 | G85: =0 -> 0 | H85: =462622 -> 462622 | I85: =0 -> 0 | J85: =1442182 -> 1442182 | K85: =+IF(WydatkiPar,L85,"bd") -> 1442182 | L85: =1442182 -> 1442182 | N85: =+IF(WydatkiPar,ROUND(J85-K85,4),"x") -> 0
A86: 12.4.2 | B86: 0 | E86: Wydatki majątkowe na realizację programu, projektu lub zadania wynikające wyłącznie z zawartych umów z podmiotem dysponującym środkami, o których mowa w art. 5 ust. 1 pkt 2 ustawy | F86: =0 -> 0 | G86: =0 -> 0 | H86: =0 -> 0 | I86: =0 -> 0 | J86: =1873431 -> 1873431 | K86: x | L86: x | M86: x | N86: x
A87: 12.5 | B87: 0 | E87: Wydatki na wkład krajowy w związku z umową na realizację programu, projektu lub zadania finansowanego z udziałem środków, o których mowa w art. 5 ust. 1 pkt 2 ustawy bez względu na stopień finansowania tymi środkami | F87: =0 -> 0 | G87: =0 -> 0 | H87: =264428 -> 264428 | I87: =0 -> 0 | J87: =1024292 -> 1024292 | K87: x | L87: x | M87: x | N87: x
A88: 12.5.1 | B88: 0 | E88: w tym w związku z już zawartą umową na realizację programu, projektu lub zadania | F88: =0 -> 0 | G88: =0 -> 0 | H88: =0 -> 0 | I88: =0 -> 0 | J88: =802042 -> 802042 | K88: x | L88: x | M88: x | N88: x
A89: 12.6 | B89: 0 | E89: Wydatki na wkład krajowy w związku z zawartą po dniu 1 stycznia 2013 r. umową na realizację programu, projektu lub zadania finansowanego w co najmniej 60% środkami, o których mowa w art. 5 ust. 1 pkt 2 ustawy | F89: =0 -> 0 | G89: =0 -> 0 | H89: =264428 -> 264428 | I89: =0 -> 0 | J89: =1024292 -> 1024292 | K89: x | L89: x | M89: x | N89: x
A90: 12.6.1 | B90: 0 | E90: w tym w związku z już zawartą umową na realizację programu, projektu lub zadania | F90: =0 -> 0 | G90: =0 -> 0 | H90: =0 -> 0 | I90: =0 -> 0 | J90: =802042 -> 802042 | K90: x | L90: x | M90: x | N90: x
A91: 12.7 | B91: 0 | E91: Przychody z tytułu kredytów, pożyczek, emisji papierów wartościowych powstające w związku z umową na realizację programu, projektu lub zadania finansowanego z udziałem środków, o których mowa w art. 5 ust. 1 pkt 2 ustawy bez względu na stopień finansowania tymi środkami | F91: =0 -> 0 | G91: =0 -> 0 | H91: =0 -> 0 | I91: =0 -> 0 | J91: =0 -> 0 | K91: x | L91: x | M91: x | N91: x
A92: 12.7.1 | B92: 0 | E92: w tym w związku z już zawartą umową na realizację programu, projektu lub zadania | F92: =0 -> 0 | G92: =0 -> 0 | H92: =0 -> 0 | I92: =0 -> 0 | J92: =0 -> 0 | K92: x | L92: x | M92: x | N92: x
A93: 12.8 | B93: 0 | E93: Przychody z tytułu kredytów, pożyczek, emisji papierów wartościowych powstające w związku z zawartą po dniu 1 stycznia 2013 r. umową na realizację programu, projektu lub zadania finansowanego w co najmniej 60% środkami, o których mowa w art. 5 ust. 1 pkt 2 ustawy | F93: =0 -> 0 | G93: =0 -> 0 | H93: =0 -> 0 | I93: =0 -> 0 | J93: =0 -> 0 | K93: x | L93: x | M93: x | N93: x
A94: 12.8.1 | B94: 0 | E94: w tym w związku z już zawartą umową na realizację programu, projektu lub zadania | F94: =0 -> 0 | G94: =0 -> 0 | H94: =0 -> 0 | I94: =0 -> 0 | J94: =0 -> 0 | K94: x | L94: x | M94: x | N94: x
A95: 13 | B95: 1 | E95: Kwoty dotyczące przejęcia i spłaty zobowiązań po samodzielnych publicznych zakładach opieki zdrowotnej oraz pokrycia ujemnego wyniku | F95: x | G95: x | H95: x | I95: x | J95: x | K95: x | L95: x | M95: x | N95: x
A96: 13.1 | B96: 0 | E96: Kwota zobowiązań wynikających z przejęcia przez jednostkę samorządu terytorialnego zobowiązań po likwidowanych i przekształcanych samodzielnych zakładach opieki zdrowotnej | F96: =0 -> 0 | G96: =0 -> 0 | H96: =0 -> 0 | I96: =0 -> 0 | J96: =0 -> 0 | K96: x | L96: x | M96: x | N96: x
A97: 13.2 | B97: 0 | E97: Dochody budżetowe z tytułu dotacji celowej z budżetu państwa, o której mowa w art. 196 ustawy z dnia 15 kwietnia 2011 r. o działalności leczniczej (Dz.U. Nr 112, poz. 654, z późn. zm.) | F97: =0 -> 0 | G97: =0 -> 0 | H97: =0 -> 0 | I97: =0 -> 0 | J97: =0 -> 0 | K97: x | L97: x | M97: x | N97: x
A98: 13.3 | B98: 0 | E98: Wysokość zobowiązań podlegających umorzeniu, o którym mowa w art. 190 ustawy o działalności leczniczej | F98: =0 -> 0 | G98: =0 -> 0 | H98: =0 -> 0 | I98: =0 -> 0 | J98: =0 -> 0 | K98: x | L98: x | M98: x | N98: x
A99: 13.4 | B99: 1 | E99: Wydatki na spłatę przejętych zobowiązań samodzielnego publicznego zakładu opieki zdrowotnej przekształconego na zasadach określonych w przepisach o działalności leczniczej | F99: =0 -> 0 | G99: =0 -> 0 | H99: =0 -> 0 | I99: =0 -> 0 | J99: =0 -> 0 | K99: =+IF(WydatkiPar,L99,"bd") -> 0 | L99: =0 -> 0 | M99: =0 -> 0 | N99: =+IF(WydatkiPar,ROUND(SUM(J99:J99)-K99,4),"x") -> 0
A100: 13.5 | B100: 1 | E100: Wydatki na spłatę przejętych zobowiązań samodzielnego publicznego zakładu opieki zdrowotnej likwidowanego na zasadach określonych w przepisach o działalności leczniczej | F100: =0 -> 0 | G100: =0 -> 0 | H100: =0 -> 0 | I100: =0 -> 0 | J100: =0 -> 0 | K100: =+IF(WydatkiPar,L100,"bd") -> 0 | L100: =0 -> 0 | M100: =0 -> 0 | N100: =+IF(WydatkiPar,ROUND(SUM(J100:J100)-K100,4),"x") -> 0
A101: 13.6 | B101: 1 | E101: Wydatki na spłatę zobowiązań samodzielnego publicznego zakładu opieki zdrowotnej przejętych do końca 2011 r. na podstawie przepisów o zakładach opieki zdrowotnej | F101: =0 -> 0 | G101: =0 -> 0 | H101: =0 -> 0 | I101: =0 -> 0 | J101: =0 -> 0 | K101: =+IF(WydatkiPar,L101,"bd") -> 0 | L101: =0 -> 0 | M101: =0 -> 0 | N101: =+IF(WydatkiPar,ROUND(J101-K101,4),"x") -> 0
A102: 13.7 | B102: 1 | E102: Wydatki bieżące na pokrycie ujemnego wyniku finansowego samodzielnego publicznego zakładu opieki zdrowotnej | F102: =0 -> 0 | G102: =0 -> 0 | H102: =0 -> 0 | I102: =0 -> 0 | J102: =0 -> 0 | K102: =+IF(WydatkiPar,L102,"bd") -> 0 | L102: =0 -> 0 | M102: =0 -> 0 | N102: =+IF(WydatkiPar,ROUND(J102-K102,4),"x") -> 0
A103: 14 | B103: 0 | C103: x | E103: Dane uzupełniające o długu i jego spłacie | F103: x | G103: x | H103: x | I103: x | J103: x | K103: x | L103: x | M103: x | N103: x
A104: 14.1 | B104: 0 | C104: x | E104: Spłaty rat kapitałowych oraz wykup papierów wartościowych, o których mowa w pkt. 5.1., wynikające wyłącznie z tytułu zobowiązań już zaciągniętych | F104: =1057000 -> 1057000 | G104: =100000 -> 100000 | H104: =400000 -> 400000 | I104: =400000 -> 400000 | J104: =600000 -> 600000 | K104: x | L104: x | M104: x | N104: x
A105: 14.2 | B105: 0 | C105: x | E105: Kwota długu, którego planowana spłata dokona się z wydatków budżetu | F105: =9850 -> 9850 | G105: =0 -> 0 | H105: =688000 -> 688000 | I105: =696129.22 -> 696129.22 | J105: =564000 -> 564000 | K105: x | L105: x | M105: x | N105: x
A106: 14.3 | B106: 0 | C106: x | E106: Wydatki zmniejszające dług, w tym | F106: =19850 -> 19850 | G106: =9850 -> 9850 | H106: =130000 -> 130000 | I106: =130000 -> 130000 | J106: =132129.22 -> 132129.22 | K106: x | L106: x | M106: x | N106: x
A107: 14.3.1 | B107: 0 | C107: x | E107: spłata zobowiązań wymagalnych z lat poprzednich, innych niż w pkt 14.3.3 | F107: =10000 -> 10000 | G107: =0 -> 0 | H107: =0 -> 0 | I107: =0 -> 0 | J107: =0 -> 0 | K107: x | L107: x | M107: x | N107: x
A108: 14.3.2 | B108: 0 | C108: x | E108: związane z umowami zaliczanymi do tytułów dłużnych wliczanych do państwowego długu publicznego | F108: =9850 -> 9850 | G108: =9850 -> 9850 | H108: =130000 -> 130000 | I108: =130000 -> 130000 | J108: =132129.22 -> 132129.22 | K108: x | L108: x | M108: x | N108: x
A109: 14.3.3 | B109: 0 | C109: x | E109: wypłaty z tytułu wymagalnych poręczeń i gwarancji | F109: =0 -> 0 | G109: =0 -> 0 | H109: =0 -> 0 | I109: =0 -> 0 | J109: =0 -> 0 | K109: x | L109: x | M109: x | N109: x
A110: 14.4 | B110: 0 | C110: x | E110: Wynik operacji niekasowych wpływających na kwotę długu ( m.in. umorzenia, różnice kursowe) | F110: =0 -> 0 | G110: =0 -> 0 | H110: =0 -> 0 | I110: =0 -> 0 | J110: =0 -> 0 | K110: x | L110: x | M110: x | N110: x
A111: 15 | B111: 0 | E111: Dane dotyczące emitowanych obligacji przychodowych | F111: x | G111: x | H111: x | I111: x | J111: x | K111: x | L111: x | M111: x | N111: x
A112: 15.1 | B112: 0 | E112: Środki z przedsięwzięcia gromadzone na rachunku bankowym, w tym: | F112: =0 -> 0 | G112: =0 -> 0 | H112: =0 -> 0 | I112: =0 -> 0 | J112: =0 -> 0 | K112: x | L112: x | M112: x | N112: x
A113: 15.1.1 | B113: 0 | C113: x | E113: środki na zaspokojenie roszczeń obligatariuszy | F113: =0 -> 0 | G113: =0 -> 0 | H113: =0 -> 0 | I113: =0 -> 0 | J113: =0 -> 0 | K113: x | L113: x | M113: x | N113: x
A114: 15.2 | B114: 0 | C114: x | E114: Wydatki bieżące z tytułu świadczenia emitenta należnego obligatariuszom, nieuwzględniane w limicie spłaty zobowiązań, o którym mowa w art. 243 ustawy | F114: =0 -> 0 | G114: =0 -> 0 | H114: =0 -> 0 | I114: =0 -> 0 | J114: =0 -> 0 | K114: x | L114: x | M114: x | N114: x

Sheet WPF a Rb (wybr okr) (hidden)
E1: Zestawienie wygenerowane na podstawie danych wprowadzonych do systemu BESTI@ | J1: © CWA "Pro publico" Sp. z o.o. | O1: =+ver_metodologii -> ver metodologii (2017-02-03a)
E2: Porównanie WPF rok prognozy N z wybranych okresem sprawozdawczym (np. za I półrocze) (na tle danych ze sprawozdań Rb za lata od N-3 do N-1)
E4: Nr Uchwały WPF: | J4: =DaneZrodlowe!B4 -> nowyWPF czerwiec | K4: z dn.: | L4: =+DaneZrodlowe!$P$4 -> 2017-06-30
E5: Nazwa JST: | J5: =DaneZrodlowe!D4 -> WIDUCHOWA | L5: =IF(DaneZrodlowe!C4=0,"",+"ver.: "&DaneZrodlowe!C4) -> 
E6: WPF za lata: | J6: =CONCATENATE(DaneZrodlowe!O1," - ",DaneZrodlowe!R1) -> 2017 - 2030
F7: Dane ze sprawozdań Rb
F8: IV kw wyk. | G8: IV kw wyk. | H8: III kw. plan | I8: IV kw wyk. | J8: WPF (N) | K8: =+"Rb za: "&RokRb&" r. "&"kw. "&KwartalRb -> Rb za: 2017 r. kw. 1 | O8: WPF [N+1] ... [N+4] | S8: dynamika (rok poprz.=100)
A9: Lp. | B9: PozObl | C9: X | E9: Wyszczególnienie | F9: =+G9-1 -> 2014 | G9: =+I9-1 -> 2015 | H9: =+J9-1 -> 2016 | I9: =+J9-1 -> 2016 | J9: =+metodologia!E9+Rok_bazowy -> 2017 | K9: Plan | L9: Wykonanie | M9: % wyk do WPF | N9: % wyk wg Rb | O9: =+J9+1 -> 2018 | P9: =+O9+1 -> 2019 | Q9: =+P9+1 -> 2020 | R9: =+Q9+1 -> 2021 | S9: =+G9 -> 2015 | T9: =+S9+1 -> 2016 | U9: 2017 | V9: 2018 | W9: 2019 | X9: 2020 | Y9: 2021
A10: 1 | B10: 1 | C10: x | E10: Dochody ogółem | F10: =17392993.42 -> 17392993.42 | G10: =17101682.73 -> 17101682.73 | H10: =20918417.46 -> 20918417.46 | I10: =20940703.88 -> 20940703.88 | J10: =20344541.94 -> 20344541.94 | K10: =19884766.75 -> 19884766.75 | L10: =5501664.7 -> 5501664.7 | M10: =+IF(J10<>0,L10/J10,0) -> 0.2704246041 | N10: =+IF(K10<>0,L10/K10,0) -> 0.2766773565 | O10: =20445387 -> 20445387 | P10: =22208748 -> 22208748 | Q10: =20807811 -> 20807811 | R10: =20863045 -> 20863045 | S10: =+IF(F10<>0,G10/F10-1,"") -> -0.01674873801 | T10: =+IF(G10<>0,I10/G10-1,"") -> 0.2244820706 | U10: =+IF(I10<>0,J10/I10-1,"") -> -0.02846904972 | V10: =+IF(J10<>0,O10/J10-1,"") -> 0.00495686068 | W10: =+IF(O10<>0,P10/O10-1,"") -> 0.08624737698 | X10: =+IF(P10<>0,Q10/P10-1,"") -> -0.06308041318 | Y10: 0.002654483934
A11: 1.1 | B11: 1 | C11: x | E11: Dochody bieżące | F11: =+F10-F18 -> 17056473.25 | G11: =+G10-G18 -> 16811380.25 | H11: =+H10-H18 -> 19931725.25 | I11: =+I10-I18 -> 20404178 | J11: =19965541.94 -> 19965541.94 | K11: =+K10-K18 -> 19574766.75 | L11: =+L10-L18 -> 5429837.31 | M11: 0.2719604269 | N11: 0.2773896302 | O11: =20045387 -> 20045387 | P11: =20366566 -> 20366566 | Q11: =20407811 -> 20407811 | R11: =20563045 -> 20563045 | S11: -0.01436950045 | T11: 0.2137122411 | U11: -0.0214973649 | V11: 0.003999143136 | W11: 0.01602258914 | X11: 0.002025132759 | Y11: 0.007606597297
A12: 1.1.1 | B12: 1 | E12: dochody z tytułu udziału we wpływach z podatku dochodowego od osób fizycznych | F12: =1673051 -> 1673051 | G12: =1919798 -> 1919798 | H12: =1938140 -> 1938140 | I12: =1971057 -> 1971057 | J12: =2287693 -> 2287693 | K12: =2287693 -> 2287693 | L12: =501175 -> 501175 | M12: 0.2190744125 | N12: 0.2190744125 | O12: =2100000 -> 2100000 | P12: =2100000 -> 2100000 | Q12: =2100000 -> 2100000 | R12: =2200000 -> 2200000 | S12: 0.1474832507 | T12: 0.02670020492 | U12: 0.1606427414 | V12: -0.08204466246 | W12: 0 | X12: 0 | Y12: 0.04761904762
A13: 1.1.2 | B13: 1 | E13: dochody z tytułu udziału we wpływach z podatku dochodowego od osób prawnych | F13: =8401.41 -> 8401.41 | G13: =3238.59 -> 3238.59 | H13: =3000 -> 3000 | I13: =6077.76 -> 6077.76 | J13: =6000 -> 6000 | K13: =6000 -> 6000 | L13: =625.44 -> 625.44 | M13: 0.10424 | N13: 0.10424 | O13: =9000 -> 9000 | P13: =10000 -> 10000 | Q13: =11000 -> 11000 | R13: =12000 -> 12000 | S13: -0.6145182773 | T13: 0.8766685502 | U13: -0.01279418733 | V13: 0.5 | W13: 0.1111111111 | X13: 0.1 | Y13: 0.09090909091
A14: 1.1.3 | B14: 1 | E14: podatki i opłaty | F14: =4929544.81 -> 4929544.81 | G14: =5000956.35 -> 5000956.35 | H14: =3921378 -> 3921378 | I14: =3889520.17 -> 3889520.17 | J14: =4055680 -> 4055680 | K14: =4055680 -> 4055680 | L14: =1149669.77 -> 1149669.77 | M14: 0.283471519 | N14: 0.283471519 | O14: =4242000 -> 4242000 | P14: =4405000 -> 4405000 | Q14: =4573000 -> 4573000 | R14: =4900000 -> 4900000 | S14: 0.01448643693 | T14: -0.2222447273 | U14: 0.04271987874 | V14: 0.04594050813 | W14: 0.0384252711 | X14: 0.038138479 | Y14: 0.07150666958
A15: 1.1.3.1 | B15: 1 | E15: z podatku od nieruchomości | F15: =2990336.23 -> 2990336.23 | G15: =3054437.86 -> 3054437.86 | H15: =1870000 -> 1870000 | I15: =1949911.42 -> 1949911.42 | J15: =1985000 -> 1985000 | K15: =1985000 -> 1985000 | L15: =548269.18 -> 548269.18 | M15: 0.276206136 | N15: 0.276206136 | O15: =2013000 -> 2013000 | P15: =2109000 -> 2109000 | Q15: =2209000 -> 2209000 | R15: =2311000 -> 2311000 | S15: 0.0214362617 | T15: -0.3616136555 | U15: 0.01799496102 | V15: 0.01410579345 | W15: 0.0476900149 | X15: 0.04741583689 | Y15: 0.0461747397
A16: 1.1.4 | B16: 1 | E16: z subwencji ogólnej | F16: =5676996 -> 5676996 | G16: =5458757 -> 5458757 | H16: =5866227 -> 5866227 | I16: =5866227 -> 5866227 | J16: =5956543 -> 5956543 | K16: =5956543 -> 5956543 | L16: =2076677 -> 2076677 | M16: 0.34863796 | N16: 0.34863796 | O16: =5900000 -> 5900000 | P16: =6000000 -> 6000000 | Q16: =6022000 -> 6022000 | R16: =6133000 -> 6133000 | S16: -0.03844269047 | T16: 0.07464519853 | U16: 0.01539592655 | V16: -0.009492586556 | W16: 0.01694915254 | X16: 0.003666666667 | Y16: 0.01843241448
A17: 1.1.5 | B17: 1 | E17: z tytułu dotacji i środków przeznaczonych na cele bieżące | F17: =4287663.44 -> 4287663.44 | G17: =4019037.08 -> 4019037.08 | H17: =6646197.25 -> 6646197.25 | I17: =7032750.51 -> 7032750.51 | J17: =7158325.94 -> 7158325.94 | K17: =6696444.75 -> 6696444.75 | L17: =1659026.75 -> 1659026.75 | M17: 0.2317618342 | N17: 0.2477473961 | O17: =7550000 -> 7550000 | P17: =7350000 -> 7350000 | Q17: =6900000 -> 6900000 | R17: =7090000 -> 7090000 | S17: -0.06265099016 | T17: 0.7498595733 | U17: 0.01785580618 | V17: 0.05471587397 | W17: -0.02649006623 | X17: -0.0612244898 | Y17: 0.02753623188
A18: 1.2 | B18: 1 | C18: x | E18: Dochody majątkowe, w tym | F18: =336520.17 -> 336520.17 | G18: =290302.48 -> 290302.48 | H18: =986692.21 -> 986692.21 | I18: =536525.88 -> 536525.88 | J18: =379000 -> 379000 | K18: =310000 -> 310000 | L18: =71827.39 -> 71827.39 | M18: 0.1895181794 | N18: 0.2317012581 | O18: =400000 -> 400000 | P18: =1842182 -> 1842182 | Q18: =400000 -> 400000 | R18: =300000 -> 300000 | S18: -0.1373400293 | T18: 0.8481615452 | U18: -0.2936035071 | V18: 0.05540897098 | W18: 3.605455 | X18: -0.782866188 | Y18: -0.25
A19: 1.2.1 | B19: 1 | C19: x | E19: ze sprzedaży majątku | F19: =179740.6 -> 179740.6 | G19: =222848.13 -> 222848.13 | H19: =391378 -> 391378 | I19: =286306.04 -> 286306.04 | J19: =300000 -> 300000 | K19: =300000 -> 300000 | L19: =70871.61 -> 70871.61 | M19: 0.2362387 | N19: 0.2362387 | O19: =400000 -> 400000 | P19: =400000 -> 400000 | Q19: =400000 -> 400000 | R19: =300000 -> 300000 | S19: 0.2398319022 | T19: 0.2847585483 | U19: 0.04782979779 | V19: 0.3333333333 | W19: 0 | X19: 0 | Y19: -0.25
A20: 1.2.2 | B20: 1 | E20: z tytułu dotacji oraz środków przeznaczonych na inwestycje | F20: =148162.3 -> 148162.3 | G20: =55441.71 -> 55441.71 | H20: =586314.21 -> 586314.21 | I20: =236186.71 -> 236186.71 | J20: =69000 -> 69000 | K20: =0 -> 0 | L20: =0 -> 0 | M20: 0 | N20: 0 | O20: =0 -> 0 | P20: =1442182 -> 1442182 | Q20: =0 -> 0 | R20: =0 -> 0 | S20: -0.6258042026 | T20: 3.260090643 | U20: -0.7078582449 | V20: -1 | X20: -1
A21: 2 | B21: 1 | C21: x | E21: Wydatki ogółem | F21: =17186267.02 -> 17186267.02 | G21: =16884782.78 -> 16884782.78 | H21: =20918417.46 -> 20918417.46 | I21: =20139669.01 -> 20139669.01 | J21: =22257541.94 -> 22257541.94 | K21: =21424766.75 -> 21424766.75 | L21: =4949713.21 -> 4949713.21 | M21: 0.2223836407 | N21: 0.2310276358 | O21: =19845387 -> 19845387 | P21: =20168748 -> 20168748 | Q21: =20207811 -> 20207811 | R21: =20263045 -> 20263045 | S21: -0.01754215966 | T21: 0.1927703941 | U21: 0.1051592719 | V21: -0.1083747229 | W21: 0.01629401331 | X21: 0.001936808373 | Y21: 0.002733299515
A22: 2.1 | B22: 1 | C22: x | E22: Wydatki bieżące, w tym: | F22: =+F21-F30 -> 16441428.08 | G22: =+G21-G30 -> 16307675.05 | H22: =+H21-H30 -> 18300888.25 | I22: =+I21-I30 -> 18183468.64 | J22: =18745507.31 -> 18745507.31 | K22: =+K21-K30 -> 18398613.75 | L22: =+L21-L30 -> 4857653.44 | M22: 0.259136942 | N22: 0.2640227957 | O22: =19241237 -> 19241237 | P22: =19561844 -> 19561844 | Q22: =19460149 -> 19460149 | R22: =19266564 -> 19266564 | S22: -0.008135122408 | T22: 0.1150252004 | U22: 0.03090932105 | V22: 0.02644525335 | W22: 0.0166624942 | X22: -0.005198640783 | Y22: -0.009947765559
A23: 2.1.1 | B23: 1 | C23: x | E23: z tytułu poręczeń i gwarancji | F23: =0 -> 0 | G23: =0 -> 0 | H23: =0 -> 0 | I23: =0 -> 0 | J23: =0 -> 0 | K23: =0 -> 0 | L23: =0 -> 0 | M23: 0 | N23: 0 | O23: =0 -> 0 | P23: =0 -> 0 | Q23: =0 -> 0 | R23: =0 -> 0
A24: 2.1.1.1 | B24: 0 | C24: x | E24: w tym: gwarancje i poręczenia podlegające wyłączeniu z limitu spłaty zobowiązań, o którym mowa w art. 243 ustawy | F24: x | G24: x | H24: x | I24: x | J24: =0 -> 0 | K24: x | L24: x | M24: x | N24: x | O24: =0 -> 0 | P24: =0 -> 0 | Q24: =0 -> 0 | R24: =0 -> 0 | S24: x | T24: x | U24: x | V24: x | W24: x | X24: x | Y24: x
A25: 2.1.2 | B25: 1 | E25: na spłatę przejętych zobowiązań samodzielnego publicznego zakładu opieki zdrowotnej przekształconego na zasadach określonych w przepisach o działalności leczniczej, w wysokości w jakiej nie podlegają sfinansowaniu dotacją z budżetu państwa | F25: x | G25: x | H25: x | I25: x | J25: =0 -> 0 | K25: =0 -> 0 | L25: =0 -> 0 | M25: x | N25: x | O25: =0 -> 0 | P25: =0 -> 0 | Q25: =0 -> 0 | R25: =0 -> 0 | S25: x | T25: x | U25: x | V25: x | W25: x | X25: x | Y25: x
A26: 2.1.3 | B26: 1 | C26: x | E26: wydatki na obsługę długu, w tym: | F26: =430171.93 -> 430171.93 | G26: =352254.63 -> 352254.63 | H26: =340000 -> 340000 | I26: =314345.48 -> 314345.48 | J26: =320000 -> 320000 | K26: =320000 -> 320000 | L26: =35180.7 -> 35180.7 | M26: =+IF(J26<>0,L26/J26,0) -> 0.1099396875 | N26: =+IF(K26<>0,L26/K26,0) -> 0.1099396875 | O26: =283000 -> 283000 | P26: =269000 -> 269000 | Q26: =255000 -> 255000 | R26: =240000 -> 240000 | S26: =+IF(F26<>0,G26/F26-1,"") -> -0.1811306005 | T26: =+IF(G26<>0,I26/G26-1,"") -> -0.1076185996 | U26: =+IF(I26<>0,J26/I26-1,"") -> 0.01798823384 | V26: =+IF(J26<>0,O26/J26-1,"") -> -0.115625 | W26: =+IF(O26<>0,P26/O26-1,"") -> -0.04946996466 | X26: =+IF(P26<>0,Q26/P26-1,"") -> -0.05204460967 | Y26: -0.05882352941
A27: 2.1.3.1 | B27: 1 | C27: x | E27: odsetki i dyskonto określone w art. 243 ust. 1 ustawy, w tym: | F27: =430171.93 -> 430171.93 | G27: =352254.63 -> 352254.63 | H27: =340000 -> 340000 | I27: =309345.48 -> 309345.48 | J27: =320000 -> 320000 | K27: =320000 -> 320000 | L27: =35180.7 -> 35180.7 | M27: 0.1099396875 | N27: =+IF(K27<>0,L27/K27,0) -> 0.1099396875 | O27: =283000 -> 283000 | P27: =269000 -> 269000 | Q27: =255000 -> 255000 | R27: =240000 -> 240000 | S27: =+IF(F27<>0,G27/F27-1,"") -> -0.1811306005 | T27: -0.1218128772 | U27: 0.03444213893 | V27: -0.115625 | W27: -0.04946996466 | X27: -0.05204460967 | Y27: -0.05882352941
A28: 2.1.3.1.1 | B28: 0 | C28: x | E28: odsetki i dyskonto podlegające wyłączeniu z limitu spłaty zobowiązań, o którym mowa w art. 243 ustawy, w terminie nie dłuższym niż 90 dni po zakończeniu programu, projektu lub zadania i otrzymaniu refundacji z tych środków (bez odsetek i dyskonta od zobowiązań na wkład krajowy) | F28: x | G28: x | H28: x | I28: x | J28: =0 -> 0 | K28: x | L28: x | M28: x | N28: x | O28: =0 -> 0 | P28: =0 -> 0 | Q28: =0 -> 0 | R28: =0 -> 0 | S28: x | T28: x | U28: x | V28: x | W28: x | X28: x | Y28: x
A29: 2.1.3.1.2 | B29: 0 | C29: x | E29: odsetki i dyskonto podlegające wyłączeniu z limitu spłaty zobowiązań, o którym mowa w art. 243 ustawy, z tytułu zobowiązań zaciągniętych na wkład krajowy | F29: x | G29: x | H29: x | I29: x | J29: =87300 -> 87300 | K29: x | L29: x | M29: x | N29: x | O29: =69300 -> 69300 | P29: =59000 -> 59000 | Q29: =59000 -> 59000 | R29: =59000 -> 59000 | S29: x | T29: x | U29: x | V29: x | W29: x | X29: x | Y29: x
A30: 2.2 | B30: 1 | C30: x | E30: Wydatki majątkowe | F30: =744838.94 -> 744838.94 | G30: =577107.73 -> 577107.73 | H30: =2617529.21 -> 2617529.21 | I30: =1956200.37 -> 1956200.37 | J30: =3512034.63 -> 3512034.63 | K30: =3026153 -> 3026153 | L30: =92059.77 -> 92059.77 | M30: 0.0262126601 | N30: =+IF(K30<>0,L30/K30,0) -> 0.03042138649 | O30: =604150 -> 604150 | P30: =606904 -> 606904 | Q30: =747662 -> 747662 | R30: =996481 -> 996481 | S30: =+IF(F30<>0,G30/F30-1,"") -> -0.2251912474 | T30: 2.389662395 | U30: 0.7953348153 | V30: -0.8279772088 | W30: 0.004558470578 | X30: 0.2319279491 | Y30: 0.3327961031
A31: 3 | B31: 1 | C31: x | E31: Wynik budżetu | F31: =+F10-F21 -> 206726.4 | G31: =+G10-G21 -> 216899.95 | H31: =+H10-H21 -> 0 | I31: =+I10-I21 -> 801034.87 | J31: =-1913000 -> -1913000 | K31: =+K10-K21 -> -1540000 | L31: =+L10-L21 -> 551951.49 | M31: -0.2885266545 | N31: =+IF(K31<>0,L31/K31,0) -> -0.3584100584 | O31: =600000 -> 600000 | P31: =2040000 -> 2040000 | Q31: =600000 -> 600000 | R31: =600000 -> 600000 | S31: =+IF(F31<>0,G31/F31-1,"") -> 0.0492126308 | T31: 2.693107675 | U31: -3.388160705 | V31: -1.313643492 | W31: 2.4 | X31: -0.7058823529 | Y31: 0
A32: 4 | B32: 1 | C32: x | E32: Przychody budżetu | J32: =2513000 -> 2513000 | K32: =2140000 -> 2140000 | L32: =1073011.96 -> 1073011.96 | M32: 0.4269844648 | N32: =+IF(K32<>0,L32/K32,0) -> 0.5014074579 | O32: =0 -> 0 | P32: =0 -> 0 | Q32: =0 -> 0 | R32: =0 -> 0 | S32: =+IF(F32<>0,G32/F32-1,"") ->  | V32: -1
A33: 4.1 | B33: 1 | C33: x | E33: Nadwyżka budżetowa z lat ubiegłych | J33: =0 -> 0 | K33: =0 -> 0 | L33: =0 -> 0 | M33: 0 | N33: =+IF(K33<>0,L33/K33,0) -> 0 | O33: =0 -> 0 | P33: =0 -> 0 | Q33: =0 -> 0 | R33: =0 -> 0 | S33: =+IF(F33<>0,G33/F33-1,"") -> 
A34: 4.1.1 | B34: 1 | C34: x | E34: w tym na pokrycie deficytu budżetu | F34: x | G34: x | H34: x | I34: x | J34: =0 -> 0 | K34: =0 -> 0 | L34: =0 -> 0 | M34: x | N34: x | O34: =0 -> 0 | P34: =0 -> 0 | Q34: =0 -> 0 | R34: =0 -> 0 | S34: x | T34: x | U34: x | V34: x | W34: x | X34: x | Y34: x
A35: 4.2 | B35: 1 | C35: x | E35: Wolne środki, o których mowa w art. 217 ust.2 pkt 6 ustawy | J35: =1073000 -> 1073000 | K35: =700000 -> 700000 | L35: =1073011.96 -> 1073011.96 | M35: 1.000011146 | N35: =+IF(K35<>0,L35/K35,0) -> 1.532874229 | O35: =0 -> 0 | P35: =0 -> 0 | Q35: =0 -> 0 | R35: =0 -> 0 | S35: =+IF(F35<>0,G35/F35-1,"") ->  | V35: -1
A36: 4.2.1 | B36: 1 | C36: x | E36: w tym na pokrycie deficytu budżetu | F36: x | G36: x | H36: x | I36: x | J36: =473000 -> 473000 | K36: =100000 -> 100000 | L36: =0 -> 0 | M36: x | N36: x | O36: =0 -> 0 | P36: =0 -> 0 | Q36: =0 -> 0 | R36: =0 -> 0 | S36: x | T36: x | U36: x | V36: x | W36: x | X36: x | Y36: x
A37: 4.3 | B37: 1 | C37: x | E37: Kredyty, pożyczki, emisja papierów wartościowych | J37: =1440000 -> 1440000 | K37: =1440000+0 -> 1440000 | L37: =0+0 -> 0 | M37: 0 | N37: =+IF(K37<>0,L37/K37,0) -> 0 | O37: =0 -> 0 | P37: =0 -> 0 | Q37: =0 -> 0 | R37: =0 -> 0 | S37: =+IF(F37<>0,G37/F37-1,"") ->  | V37: -1
A38: 4.3.1 | B38: 1 | C38: x | E38: w tym na pokrycie deficytu budżetu | F38: x | G38: x | H38: x | I38: x | J38: =1440000 -> 1440000 | K38: =1440000+0 -> 1440000 | L38: =0+0 -> 0 | M38: x | N38: x | O38: =0 -> 0 | P38: =0 -> 0 | Q38: =0 -> 0 | R38: =0 -> 0 | S38: x | T38: x | U38: x | V38: x | W38: x | X38: x | Y38: x
A39: 4.4 | B39: 1 | C39: x | E39: Inne przychody niezwiązane z zaciągnięciem długu | J39: =0 -> 0 | K39: =0+0+0 -> 0 | L39: =0+0+0 -> 0 | M39: 0 | N39: =+IF(K39<>0,L39/K39,0) -> 0 | O39: =0 -> 0 | P39: =0 -> 0 | Q39: =0 -> 0 | R39: =0 -> 0 | S39: =+IF(F39<>0,G39/F39-1,"") -> 
A40: 4.4.1 | B40: 1 | C40: x | E40: w tym na pokrycie deficytu budżetu | F40: x | G40: x | H40: x | I40: x | J40: =0 -> 0 | K40: =0 -> 0 | L40: =0 -> 0 | M40: x | N40: x | O40: =0 -> 0 | P40: =0 -> 0 | Q40: =0 -> 0 | R40: =0 -> 0 | S40: x | T40: x | U40: x | V40: x | W40: x | X40: x | Y40: x
A41: 5 | B41: 1 | C41: x | E41: Rozchody budżetu | J41: =600000 -> 600000 | K41: =600000 -> 600000 | L41: =300000 -> 300000 | M41: 0.5 | N41: =+IF(K41<>0,L41/K41,0) -> 0.5 | O41: =600000 -> 600000 | P41: =2040000 -> 2040000 | Q41: =600000 -> 600000 | R41: =600000 -> 600000 | S41: =+IF(F41<>0,G41/F41-1,"") ->  | V41: 0 | W41: 2.4 | X41: -0.7058823529 | Y41: 0
A42: 5.1 | B42: 1 | C42: x | E42: Spłaty rat kapitałowych kredytów i pożyczek oraz wykup papierów wartościowych | J42: =600000 -> 600000 | K42: =600000+0 -> 600000 | L42: =300000+0 -> 300000 | M42: 0.5 | N42: =+IF(K42<>0,L42/K42,0) -> 0.5 | O42: =600000 -> 600000 | P42: =2040000 -> 2040000 | Q42: =600000 -> 600000 | R42: =600000 -> 600000 | S42: =+IF(F42<>0,G42/F42-1,"") ->  | V42: 0 | W42: 2.4 | X42: -0.7058823529 | Y42: 0
A43: 5.1.1 | B43: 1 | C43: x | E43: w tym łączna kwota przypadających na dany rok kwot ustawowych wyłączeń z limitu spłaty zobowiązań, o którym mowa w art. 243 ustawy, z tego: | F43: x | G43: x | H43: x | I43: x | J43: =0 -> 0 | K43: =87300 -> 87300 | L43: =19923.13 -> 19923.13 | M43: x | N43: x | O43: =0 -> 0 | P43: =1440000 -> 1440000 | Q43: =0 -> 0 | R43: =0 -> 0 | S43: x | T43: x | U43: x | V43: x | W43: x | X43: x | Y43: x
A44: 5.1.1.1 | B44: 1 | C44: x | E44: kwota przypadających na dany rok kwot ustawowych wyłączeń określonych w art. 243 ust. 3 ustawy | F44: x | G44: x | H44: x | I44: x | J44: =0 -> 0 | K44: =87300 -> 87300 | L44: =19923.13 -> 19923.13 | M44: x | N44: x | O44: =0 -> 0 | P44: =1440000 -> 1440000 | Q44: =0 -> 0 | R44: =0 -> 0 | S44: x | T44: x | U44: x | V44: x | W44: x | X44: x | Y44: x
A45: 5.1.1.2 | B45: 1 | C45: x | E45: kwota przypadających na dany rok kwot ustawowych wyłączeń określonych w art. 243 ust. 3a ustawy | F45: x | G45: x | H45: x | I45: x | J45: =0 -> 0 | K45: =0 -> 0 | L45: =0 -> 0 | M45: x | N45: x | O45: =0 -> 0 | P45: =0 -> 0 | Q45: =0 -> 0 | R45: =0 -> 0 | S45: x | T45: x | U45: x | V45: x | W45: x | X45: x | Y45: x
A46: 5.1.1.3 | B46: 1 | C46: x | E46: kwota przypadających na dany rok kwot ustawowych wyłączeń innych niż określone w art. 243 ustawy | F46: x | G46: x | H46: x | I46: x | J46: =0 -> 0 | K46: =0+0 -> 0 | L46: =0+0 -> 0 | M46: x | N46: x | O46: =0 -> 0 | P46: =0 -> 0 | Q46: =0 -> 0 | R46: =0 -> 0 | S46: x | T46: x | U46: x | V46: x | W46: x | X46: x | Y46: x
A47: 5.2 | B47: 1 | E47: Inne rozchody niezwiązane ze spłatą długu | J47: =0 -> 0 | K47: =0+0 -> 0 | L47: =0+0 -> 0 | O47: =0 -> 0 | P47: =0 -> 0 | Q47: =0 -> 0 | R47: =0 -> 0 | S47: =+IF(F47<>0,G47/F47-1,"") ->  | T47: =+IF(G47<>0,I47/G47-1,"") ->  | U47: =+IF(I47<>0,J47/I47-1,"") ->  | V47: =+IF(J47<>0,O47/J47-1,"") ->  | W47: =+IF(O47<>0,P47/O47-1,"") ->  | X47: =+IF(P47<>0,Q47/P47-1,"") ->  | Y47: =+IF(Q47<>0,R47/Q47-1,"") -> 
A48: 6 | B48: 0 | C48: x | E48: Kwota długu | F48: =10540850 -> 10540850 | G48: =10431000 -> 10431000 | H48: =10758716.66 -> 10758716.66 | I48: =10727129.22 -> 10727129.22 | J48: =11435000 -> 11435000 | K48: x | L48: x | M48: x | N48: x | O48: =10715000 -> 10715000 | P48: =8558000 -> 8558000 | Q48: =7845000 -> 7845000 | R48: =7136000 -> 7136000 | S48: x | T48: x | U48: x | V48: x | W48: x | X48: x | Y48: x
A49: 7 | B49: 0 | E49: Kwota zobowiązań wynikających z przejęcia przez jednostkę samorządu terytorialnego zobowiązań po likwidowanych i przekształcanych jednostkach zaliczanych do sektora finansów publicznych | F49: x | G49: x | H49: x | I49: x | J49: =0 -> 0 | K49: x | L49: x | M49: x | N49: x | O49: =0 -> 0 | P49: =0 -> 0 | Q49: =0 -> 0 | R49: =0 -> 0 | S49: x | T49: x | U49: x | V49: x | W49: x | X49: x | Y49: x
A50: 8 | B50: 1 | E50: Relacja zrównoważenia wydatków bieżących, o której mowa w art. 242 ustawy | F50: x | G50: x | H50: x | I50: x | J50: x | K50: x | L50: x | M50: x | N50: x | O50: x | P50: x | Q50: x | R50: x | S50: x | T50: x | U50: x | V50: x | W50: x | X50: x | Y50: x
A51: 8.1 | B51: 1 | E51: Różnica między dochodami bieżącymi a wydatkami bieżącymi | F51: =+F11-F22 -> 615045.17 | G51: =+G11-G22 -> 503705.2 | H51: =+H11-H22 -> 1630837 | I51: =+I11-I22 -> 2220709.36 | J51: =1220034.63 -> 1220034.63 | K51: =+K11-K22 -> 1176153 | L51: =+L11-L22 -> 572183.87 | M51: =+IF(J51<>0,L51/J51,0) -> 0.4689898597 | N51: =+IF(K51<>0,L51/K51,0) -> 0.4864876168 | O51: =804150 -> 804150 | P51: =804722 -> 804722 | Q51: =947662 -> 947662 | R51: =1296481 -> 1296481 | S51: =+IF(F51<>0,G51/F51-1,"") -> -0.1810273057 | T51: =+IF(G51<>0,I51/G51-1,"") -> 3.408748133 | U51: =+IF(I51<>0,J51/I51-1,"") -> -0.4506103987 | V51: =+IF(J51<>0,O51/J51-1,"") -> -0.340879365 | W51: =+IF(O51<>0,P51/O51-1,"") -> 0.000711310079 | X51: 0.1776265592 | Y51: 0.3680837683
A52: 8.2 | B52: 1 | E52: Różnica między dochodami bieżącymi, skorygowanymi o środki a wydatkami bieżącymi, pomniejszonymi o wydatki | J52: =2293034.63 -> 2293034.63 | M52: =+IF(J52<>0,L52/J52,0) -> 0 | N52: =+IF(K52<>0,L52/K52,0) -> 0 | O52: =804150 -> 804150 | P52: =804722 -> 804722 | Q52: =947662 -> 947662 | R52: =1296481 -> 1296481 | S52: =+IF(F52<>0,G52/F52-1,"") ->  | T52: =+IF(G52<>0,I52/G52-1,"") ->  | U52: =+IF(I52<>0,J52/I52-1,"") ->  | V52: =+IF(J52<>0,O52/J52-1,"") -> -0.6493075205 | W52: 0.000711310079 | X52: 0.1776265592 | Y52: 0.3680837683
A53: 9 | B53: 0 | C53: x | E53: Wskaźnik spłaty zobowiązań | F53: x | G53: x | H53: x | I53: x | J53: x | K53: x | L53: x | M53: x | N53: x | O53: x | P53: x | Q53: x | R53: x | S53: x | T53: x | U53: x | V53: x | W53: x | X53: x | Y53: x
A54: 9.1 | B54: 0 | C54: x | E54: Wskaźnik planowanej łącznej kwoty spłaty zobowiązań, o której mowa w art. 243 ust. 1 ustawy do dochodów, bez uwzględnienia zobowiązań związku współtworzonego przez jednostkę samorządu terytorialnego i bez uwzględnienia ustawowych wyłączeń przypadających na dany rok. | F54: x | G54: x | H54: x | I54: x | J54: =0.0452 -> 0.0452 | K54: x | L54: x | M54: x | N54: x | O54: =0.0432 -> 0.0432 | P54: =0.104 -> 0.104 | Q54: =0.0411 -> 0.0411 | R54: =0.0403 -> 0.0403 | S54: x | T54: x | U54: x | V54: x | W54: x | X54: x | Y54: x
A55: 9.2 | B55: 0 | C55: x | E55: Wskaźnik planowanej łącznej kwoty spłaty zobowiązań, o której mowa w art. 243 ust. 1 ustawy do dochodów, bez uwzględnienia zobowiązań związku współtworzonego przez jednostkę samorządu terytorialnego, po uwzględnieniu ustawowych wyłączeń przypadających na dany rok. | F55: x | G55: x | H55: x | I55: x | J55: =0.0409 -> 0.0409 | K55: x | L55: x | M55: x | N55: x | O55: =0.0398 -> 0.0398 | P55: =0.0365 -> 0.0365 | Q55: =0.0383 -> 0.0383 | R55: =0.0374 -> 0.0374 | S55: x | T55: x | U55: x | V55: x | W55: x | X55: x | Y55: x
A56: 9.3 | B56: 0 | C56: x | E56: Kwota zobowiązań związku współtworzonego przez jednostkę samorządu terytorialnego przypadających do spłaty w danym roku budżetowym, podlegająca doliczeniu zgodnie z art. 244 ustawy | F56: x | G56: x | H56: x | I56: x | J56: =0 -> 0 | K56: =0 -> 0 | L56: =0 -> 0 | M56: x | N56: x | O56: =0 -> 0 | P56: =0 -> 0 | Q56: =0 -> 0 | R56: =0 -> 0 | S56: x | T56: x | U56: x | V56: x | W56: x | X56: x | Y56: x
A57: 9.4 | B57: 0 | C57: x | E57: Wskaźnik planowanej łącznej kwoty spłaty zobowiązań, o której mowa w art. 243 ust. 1 ustawy do dochodów, po uwzględnieniu zobowiązań związku współtworzonego przez jednostkę samorządu terytorialnego oraz po uwzględnieniu ustawowych wyłączeń przypadających na dany rok | F57: x | G57: x | H57: x | I57: x | J57: =0.0409 -> 0.0409 | K57: x | L57: x | M57: x | N57: x | O57: =0.0398 -> 0.0398 | P57: =0.0365 -> 0.0365 | Q57: =0.0383 -> 0.0383 | R57: =0.0374 -> 0.0374 | S57: x | T57: x | U57: x | V57: x | W57: x | X57: x | Y57: x
A58: 9.5 | B58: 0 | C58: x | E58: Wskaźnik dochodów bieżących powiększonych o dochody ze sprzedaży majątku oraz pomniejszonych o wydatki bieżące, do dochodów budżetu, ustalony dla danego roku (wskaźnik jednoroczny) | F58: x | G58: x | H58: x | I58: x | J58: =+IF(J10<>0,(J11+J19-J22)/J10,0) -> 0.07471461557 | K58: x | L58: x | M58: x | N58: x | O58: =+IF(O10<>0,(O11+O19-O22)/O10,0) -> 0.05889592601 | P58: =+IF(P10<>0,(P11+P19-P22)/P10,0) -> 0.05424538114 | Q58: =+IF(Q10<>0,(Q11+Q19-Q22)/Q10,0) -> 0.06476712039 | R58: =+IF(R10<>0,(R11+R19-R22)/R10,0) -> 0.07652195545 | S58: x | T58: x | U58: x | V58: x | W58: x | X58: x | Y58: x
A59: 9.6 | B59: 0 | C59: x | E59: Dopuszczalny wskaźnik spłaty zobowiązań określony w art. 243 ustawy, po uwzględnieniu ustawowych wyłączeń , obliczony w oparciu o plan 3 kwartału roku poprzedzającego pierwszy rok prognozy (wskaźnik ustalony w oparciu o średnią arytmetyczną z 3 poprzednich lat) | F59: x | G59: x | H59: x | I59: x | J59: =0.0616 -> 0.0616 | K59: x | L59: x | M59: x | N59: x | O59: =0.0713 -> 0.0713 | P59: =0.0768 -> 0.0768 | Q59: =0.0626 -> 0.0626 | R59: =0.0593 -> 0.0593 | S59: x | T59: x | U59: x | V59: x | W59: x | X59: x | Y59: x
A60: 9.6.1 | B60: 0 | C60: x | E60: Dopuszczalny wskaźnik spłaty zobowiązań określony w art. 243 ustawy, po uwzględnieniu ustawowych wyłączeń, obliczony w oparciu o wykonanie roku poprzedzającego pierwszy rok prognozy (wskaźnik ustalony w oparciu o średnią arytmetyczną z 3 poprzednich lat) | F60: x | G60: x | H60: x | I60: x | J60: =0.0693 -> 0.0693 | K60: x | L60: x | M60: x | N60: x | O60: =0.079 -> 0.079 | P60: =0.0844 -> 0.0844 | Q60: =0.0626 -> 0.0626 | R60: =0.0593 -> 0.0593 | S60: x | T60: x | U60: x | V60: x | W60: x | X60: x | Y60: x
A61: 9.7 | B61: 0 | C61: x | E61: Informacja o spełnieniu wskaźnika spłaty zobowiązań określonego w art. 243 ustawy, po uwzględnieniu zobowiązań związku współtworzonego przez jednostkę samorządu terytorialnego oraz po uwzględnieniu ustawowych wyłączeń, obliczonego w oparciu o plan 3 kwartałów roku poprzedzającego rok budżetowy | F61: x | G61: x | H61: x | I61: x | J61: =IF(J57<=J59,"Spełniona","Nie spełniona") -> Spełniona | K61: x | L61: x | M61: x | N61: x | O61: =IF(O57<=O59,"Spełniona","Nie spełniona") -> Spełniona | P61: =IF(P57<=P59,"Spełniona","Nie spełniona") -> Spełniona | Q61: =IF(Q57<=Q59,"Spełniona","Nie spełniona") -> Spełniona | R61: =IF(R57<=R59,"Spełniona","Nie spełniona") -> Spełniona | S61: x | T61: x | U61: x | V61: x | W61: x | X61: x | Y61: x
A62: 9.7.1 | B62: 0 | C62: x | E62: Informacja o spełnieniu wskaźnika spłaty zobowiązań określonego w art. 243 ustawy, po uwzględnieniu zobowiązań związku współtworzonego przez jednostkę samorządu terytorialnego oraz po uwzględnieniu ustawowych wyłączeń, obliczonego w oparciu o wykonanie roku poprzedzającego rok budżetowy | F62: x | G62: x | H62: x | I62: x | J62: =IF(J57<=J60,"Spełniona","Nie spełniona") -> Spełniona | K62: x | L62: x | M62: x | N62: x | O62: =IF(O57<=O60,"Spełniona","Nie spełniona") -> Spełniona | P62: =IF(P57<=P60,"Spełniona","Nie spełniona") -> Spełniona | Q62: =IF(Q57<=Q60,"Spełniona","Nie spełniona") -> Spełniona | R62: =IF(R57<=R60,"Spełniona","Nie spełniona") -> Spełniona | S62: x | T62: x | U62: x | V62: x | W62: x | X62: x | Y62: x
A63: 10 | B63: 0 | E63: Przeznaczenie prognozowanej nadwyżki budżetowej, w tym na: | F63: x | G63: x | H63: x | I63: x | J63: =0 -> 0 | K63: x | L63: x | M63: x | N63: x | O63: =600000 -> 600000 | P63: =2040000 -> 2040000 | Q63: =600000 -> 600000 | R63: =600000 -> 600000 | S63: x | T63: x | U63: x | V63: x | W63: x | X63: x | Y63: x
A64: 10.1 | B64: 0 | E64: Spłaty kredytów, pożyczek i wykup papierów wartościowych | F64: x | G64: x | H64: x | I64: x | J64: =0 -> 0 | K64: x | L64: x | M64: x | N64: x | O64: =600000 -> 600000 | P64: =2040000 -> 2040000 | Q64: =600000 -> 600000 | R64: =600000 -> 600000 | S64: x | T64: x | U64: x | V64: x | W64: x | X64: x | Y64: x
A65: 11 | B65: 1 | E65: Informacje uzupełniające o wybranych rodzajach wydatków budżetowych | F65: x | G65: x | H65: x | I65: x | J65: x | K65: x | L65: x | M65: x | N65: x | O65: x | P65: x | Q65: x | R65: x | S65: x | T65: x | U65: x | V65: x | W65: x | X65: x | Y65: x
A66: 11.1 | B66: 1 | E66: Wydatki bieżące na wynagrodzenia i składki od nich naliczane | F66: =6899183.64 -> 6899183.64 | G66: =7091945.11 -> 7091945.11 | H66: =7280908.61 -> 7280908.61 | I66: =7055332.33 -> 7055332.33 | J66: =7085185.02 -> 7085185.02 | K66: =7264265 -> 7264265 | L66: =2151938.73 -> 2151938.73 | M66: =+IF(J66<>0,L66/J66,0) -> 0.303723717 | N66: =+IF(K66<>0,L66/K66,0) -> 0.2962362648 | O66: =7607098 -> 7607098 | P66: =7835311 -> 7835311 | Q66: =8070371 -> 8070371 | R66: =8312482 -> 8312482 | S66: =+IF(F66<>0,G66/F66-1,"") -> 0.02793975056 | T66: =+IF(G66<>0,I66/G66-1,"") -> -0.005162586488 | U66: =+IF(I66<>0,J66/I66-1,"") -> 0.00423122379 | V66: =+IF(J66<>0,O66/J66-1,"") -> 0.073662576 | W66: =+IF(O66<>0,P66/O66-1,"") -> 0.03000000789 | X66: 0.03000008551 | Y66: 0.02999998389
A67: 11.2 | B67: 1 | E67: Wydatki związane z funkcjonowaniem organów jednostki samorządu terytorialnego | F67: =2167507.4 -> 2167507.4 | G67: =2269710.14 -> 2269710.14 | H67: =2379480.93 -> 2379480.93 | I67: =2259588.38 -> 2259588.38 | J67: =2208521 -> 2208521 | K67: =2210380 -> 2210380 | L67: =668592.99 -> 668592.99 | M67: =+IF(J67<>0,L67/J67,0) -> 0.3027333632 | N67: =+IF(K67<>0,L67/K67,0) -> 0.3024787548 | O67: =2500000 -> 2500000 | P67: =2600000 -> 2600000 | Q67: =2700000 -> 2700000 | R67: =2800000 -> 2800000 | S67: =+IF(F67<>0,G67/F67-1,"") -> 0.04715219888 | T67: =+IF(G67<>0,I67/G67-1,"") -> -0.00445949455 | U67: =+IF(I67<>0,J67/I67-1,"") -> -0.0226003021 | V67: =+IF(J67<>0,O67/J67-1,"") -> 0.1319792748 | W67: 0.04 | X67: 0.03846153846 | Y67: 0.03703703704
A68: 11.3 | B68: 0 | E68: Wydatki objęte limitem, o którym mowa w art. 226 ust. 3 pkt 4 ustawy | F68: x | G68: x | H68: x | I68: x | J68: =3212044 -> 3212044 | K68: x | L68: x | M68: x | N68: x | O68: =418500 -> 418500 | P68: =253000 -> 253000 | Q68: =209000 -> 209000 | R68: =183000 -> 183000 | S68: x | T68: x | U68: x | V68: x | W68: x | X68: x | Y68: x
A69: 11.3.1 | B69: 0 | E69: bieżące | F69: x | G69: x | H69: x | I69: x | J69: =470570 -> 470570 | K69: x | L69: x | M69: x | N69: x | O69: =298100 -> 298100 | P69: =136600 -> 136600 | Q69: =96600 -> 96600 | R69: =73710 -> 73710 | S69: x | T69: x | U69: x | V69: x | W69: x | X69: x | Y69: x
A70: 11.3.2 | B70: 0 | E70: majątkowe | F70: x | G70: x | H70: x | I70: x | J70: =2741474 -> 2741474 | K70: x | L70: x | M70: x | N70: x | O70: =120400 -> 120400 | P70: =116400 -> 116400 | Q70: =112400 -> 112400 | R70: =109290 -> 109290 | S70: x | T70: x | U70: x | V70: x | W70: x | X70: x | Y70: x
A71: 11.4 | B71: 1 | E71: Wydatki inwestycyjne kontynuowane | F71: =689838.94 -> 689838.94 | G71: =512107.73 -> 512107.73 | H71: =1590529.21 -> 1590529.21 | I71: =988579.18 -> 988579.18 | J71: =321470 -> 321470 | K71: =2976153 -> 2976153 | L71: =42059.77 -> 42059.77 | M71: =+IF((J71+J72)<>0,L71/(J71+J72),0) -> 0.01214885883 | N71: =+IF(K71<>0,L71/K71,0) -> 0.01413226067 | O71: =120400 -> 120400 | P71: =116400 -> 116400 | Q71: =112400 -> 112400 | R71: =109290 -> 109290 | S71: =+IF(F71<>0,G71/F71-1,"") -> -0.2576416025 | T71: =+IF(G71<>0,I71/G71-1,"") -> 0.9304125325 | U71: =+IF(I71<>0,(J72+J71)/I71-1,"") -> 2.502030692 | V71: =+IF((J71+J72)<>0,(O72+O71)/(J71+J72)-1,"") -> -0.8254927912 | W71: =+IF((O71+O72)<>0,(P72+P71)/(O71+O72)-1,"") -> 0.004558470578 | X71: =+IF((P71+P72)<>0,(Q72+Q71)/(P71+P72)-1,"") -> 0.2319279491 | Y71: =+IF((Q71+Q72)<>0,(R72+R71)/(Q71+Q72)-1,"") -> 0.3327961031
A72: 11.5 | B72: 1 | E72: Nowe wydatki inwestycyjne | J72: =3140564.63 -> 3140564.63 | O72: =483750 -> 483750 | P72: =490504 -> 490504 | Q72: =635262 -> 635262 | R72: =887191 -> 887191
A73: 11.6 | B73: 1 | E73: Wydatki majątkowe w formie dotacji | F73: =55000 -> 55000 | G73: =65000 -> 65000 | H73: =50000 -> 50000 | I73: =50000 -> 50000 | J73: =50000 -> 50000 | K73: =50000 -> 50000 | L73: =50000 -> 50000 | M73: =+IF(J73<>0,L73/J73,0) -> 1 | N73: =+IF(K73<>0,L73/K73,0) -> 1 | O73: =0 -> 0 | P73: =0 -> 0 | Q73: =0 -> 0 | R73: =0 -> 0 | S73: =+IF(F73<>0,G73/F73-1,"") -> 0.1818181818 | T73: =+IF(G73<>0,I73/G73-1,"") -> -0.2307692308 | U73: =+IF(I73<>0,J73/I73-1,"") -> 0 | V73: =+IF(J73<>0,O73/J73-1,"") -> -1 | W73: =+IF(O73<>0,P73/O73-1,"") ->  | X73: =+IF(P73<>0,Q73/P73-1,"") ->  | Y73: =+IF(Q73<>0,R73/Q73-1,"") -> 
A74: 12 | B74: 1 | E74: Finansowanie programów, projektów lub zadań realizowanych z udziałem środków, o których mowa w art. 5 ust. 1 pkt 2 i 3 ustawy | F74: x | G74: x | H74: x | I74: x | J74: x | K74: x | L74: x | M74: x | N74: x | O74: x | P74: x | Q74: x | R74: x | S74: x | T74: x | U74: x | V74: x | W74: x | X74: x | Y74: x
A75: 12.1 | B75: 1 | E75: Dochody bieżące na programy, projekty lub zadania finansowane z udziałem środków, o których mowa w art. 5 ust. 1 pkt 2 i 3 ustawy | F75: =205127.64 -> 205127.64 | G75: =38095.06 -> 38095.06 | H75: =0 -> 0 | I75: =0 -> 0 | J75: =69542 -> 69542 | K75: =0 -> 0 | L75: =0 -> 0 | M75: =+IF(J75<>0,L75/J75,0) -> 0 | N75: =+IF(K75<>0,L75/K75,0) -> 0 | O75: =0 -> 0 | P75: =0 -> 0 | Q75: =0 -> 0 | R75: =0 -> 0 | S75: =+IF(F75<>0,G75/F75-1,"") -> -0.8142860709 | T75: =+IF(G75<>0,I75/G75-1,"") -> -1 | U75: =+IF(I75<>0,J75/I75-1,"") ->  | V75: =+IF(J75<>0,O75/J75-1,"") -> -1 | W75: =+IF(O75<>0,P75/O75-1,"") -> 
A76: 12.1.1 | B76: 1 | E76: - w tym środki określone w art. 5 ust. 1 pkt 2 ustawy | F76: =194291.83 -> 194291.83 | G76: =38095.06 -> 38095.06 | H76: =0 -> 0 | I76: =0 -> 0 | J76: =69542 -> 69542 | K76: =0 -> 0 | L76: =0 -> 0 | M76: =+IF(J76<>0,L76/J76,0) -> 0 | N76: =+IF(K76<>0,L76/K76,0) -> 0 | O76: =0 -> 0 | P76: =0 -> 0 | Q76: =0 -> 0 | R76: =0 -> 0 | S76: =+IF(F76<>0,G76/F76-1,"") -> -0.8039286572 | T76: =+IF(G76<>0,I76/G76-1,"") -> -1 | U76: =+IF(I76<>0,J76/I76-1,"") ->  | V76: =+IF(J76<>0,O76/J76-1,"") -> -1
A77: 12.1.1.1 | B77: 0 | E77: - w tym środki określone w art. 5 ust. 1 pkt 2 ustawy wynikające wyłącznie z zawartych umów na realizację programu, projektu lub zadania | F77: x | G77: x | H77: x | I77: x | J77: =69542 -> 69542 | K77: x | L77: x | M77: x | N77: x | O77: =0 -> 0 | P77: =0 -> 0 | Q77: =0 -> 0 | R77: =0 -> 0 | S77: x | T77: x | U77: x | V77: x | W77: x | X77: x | Y77: x
A78: 12.2 | B78: 1 | E78: Dochody majątkowe na programy, projekty lub zadania finansowane z udziałem środków, o których mowa w art. 5 ust. 1 pkt 2 i 3 ustawy | F78: =119320.04 -> 119320.04 | G78: =34888.29 -> 34888.29 | H78: =462622 -> 462622 | I78: =0 -> 0 | J78: =0 -> 0 | K78: =0 -> 0 | L78: =0 -> 0 | M78: =+IF(J78<>0,L78/J78,0) -> 0 | N78: =+IF(K78<>0,L78/K78,0) -> 0 | O78: =0 -> 0 | P78: =1442182 -> 1442182 | Q78: =0 -> 0 | R78: =0 -> 0 | S78: =+IF(F78<>0,G78/F78-1,"") -> -0.7076074564 | T78: =+IF(G78<>0,I78/G78-1,"") -> -1 | U78: =+IF(I78<>0,J78/I78-1,"") ->  | V78: =+IF(J78<>0,O78/J78-1,"") ->  | W78: =+IF(O78<>0,P78/O78-1,"") ->  | X78: -1
A79: 12.2.1 | B79: 1 | E79: - w tym środki określone w art. 5 ust. 1 pkt 2 ustawy | F79: =119320.04 -> 119320.04 | G79: =34888.29 -> 34888.29 | H79: =462622 -> 462622 | I79: =0 -> 0 | J79: =0 -> 0 | K79: =0 -> 0 | L79: =0 -> 0 | M79: =+IF(J79<>0,L79/J79,0) -> 0 | N79: =+IF(K79<>0,L79/K79,0) -> 0 | O79: =0 -> 0 | P79: =1442182 -> 1442182 | Q79: =0 -> 0 | R79: =0 -> 0 | S79: =+IF(F79<>0,G79/F79-1,"") -> -0.7076074564 | T79: =+IF(G79<>0,I79/G79-1,"") -> -1 | U79: =+IF(I79<>0,J79/I79-1,"") ->  | V79: =+IF(J79<>0,O79/J79-1,"") ->  | X79: -1
A80: 12.2.1.1 | B80: 0 | E80: - w tym środki określone w art. 5 ust. 1 pkt 2 ustawy wynikające wyłącznie z zawartych umów na realizację programu, projektu lub zadania | F80: x | G80: x | H80: x | I80: x | J80: =0 -> 0 | K80: x | L80: x | M80: x | N80: x | O80: =0 -> 0 | P80: =1071389 -> 1071389 | Q80: =0 -> 0 | R80: =0 -> 0 | S80: x | T80: x | U80: x | V80: x | W80: x | X80: x | Y80: x
A81: 12.3 | B81: 1 | E81: Wydatki bieżące na programy, projekty lub zadania finansowane z udziałem środków, o których mowa w art. 5 ust. 1 pkt 2 i 3 ustawy | F81: =286708.61 -> 286708.61 | G81: =0 -> 0 | H81: =0 -> 0 | I81: =0 -> 0 | J81: =79456 -> 79456 | K81: =0 -> 0 | L81: =0 -> 0 | M81: =+IF(J81<>0,L81/J81,0) -> 0 | N81: =+IF(K81<>0,L81/K81,0) -> 0 | O81: =0 -> 0 | P81: =0 -> 0 | Q81: =0 -> 0 | R81: =0 -> 0 | S81: =+IF(F81<>0,G81/F81-1,"") -> -1 | T81: =+IF(G81<>0,I81/G81-1,"") ->  | U81: =+IF(I81<>0,J81/I81-1,"") ->  | V81: =+IF(J81<>0,O81/J81-1,"") -> -1 | W81: =+IF(O81<>0,P81/O81-1,"") -> 
A82: 12.3.1 | B82: 1 | E82: - w tym finansowane środkami określonymi w art. 5 ust. 1 pkt 2 ustawy | F82: =225896.56 -> 225896.56 | G82: =0 -> 0 | H82: =0 -> 0 | I82: =0 -> 0 | J82: =69542 -> 69542 | K82: =0 -> 0 | L82: =0 -> 0 | M82: =+IF(J82<>0,L82/J82,0) -> 0 | N82: =+IF(K82<>0,L82/K82,0) -> 0 | O82: =0 -> 0 | P82: =0 -> 0 | Q82: =0 -> 0 | R82: =0 -> 0 | S82: =+IF(F82<>0,G82/F82-1,"") -> -1 | T82: =+IF(G82<>0,I82/G82-1,"") ->  | U82: =+IF(I82<>0,J82/I82-1,"") ->  | V82: =+IF(J82<>0,O82/J82-1,"") -> -1
A83: 12.3.2 | B83: 0 | E83: Wydatki bieżące na realizację programu, projektu lub zadania wynikające wyłącznie z zawartych umów z podmiotem dysponującym środkami, o których mowa w art. 5 ust. 1 pkt 2 ustawy | F83: x | G83: x | H83: x | I83: x | J83: =79456 -> 79456 | K83: x | L83: x | M83: x | N83: x | O83: =0 -> 0 | P83: =0 -> 0 | Q83: =0 -> 0 | R83: =0 -> 0 | S83: x | T83: x | U83: x | V83: x | W83: x | X83: x | Y83: x
A84: 12.4 | B84: 1 | E84: Wydatki majątkowe na programy, projekty lub zadania finansowane z udziałem środków, o których mowa w art. 5 ust. 1 pkt 2 i 3 ustawy | F84: =141101.33 -> 141101.33 | G84: =0 -> 0 | H84: =727050 -> 727050 | I84: =34850 -> 34850 | J84: =2466474 -> 2466474 | K84: =2466474 -> 2466474 | L84: =0 -> 0 | M84: =+IF(J84<>0,L84/J84,0) -> 0 | N84: =+IF(K84<>0,L84/K84,0) -> 0 | O84: =0 -> 0 | P84: =0 -> 0 | Q84: =0 -> 0 | R84: =0 -> 0 | S84: =+IF(F84<>0,G84/F84-1,"") -> -1 | T84: =+IF(G84<>0,I84/G84-1,"") ->  | U84: =+IF(I84<>0,J84/I84-1,"") -> 69.77400287 | V84: =+IF(J84<>0,O84/J84-1,"") -> -1 | W84: =+IF(O84<>0,P84/O84-1,"") -> 
A85: 12.4.1 | B85: 1 | E85: - w tym finansowane środkami określonymi w art. 5 ust. 1 pkt 2 ustawy | F85: =91472.88 -> 91472.88 | G85: =0 -> 0 | H85: =462622 -> 462622 | I85: =0 -> 0 | J85: =1442182 -> 1442182 | K85: =1442182 -> 1442182 | L85: =0 -> 0 | M85: =+IF(J85<>0,L85/J85,0) -> 0 | N85: =+IF(K85<>0,L85/K85,0) -> 0 | O85: =0 -> 0 | P85: =0 -> 0 | Q85: =0 -> 0 | R85: =0 -> 0 | S85: =+IF(F85<>0,G85/F85-1,"") -> -1 | T85: =+IF(G85<>0,I85/G85-1,"") ->  | U85: =+IF(I85<>0,J85/I85-1,"") ->  | V85: =+IF(J85<>0,O85/J85-1,"") -> -1
A86: 12.4.2 | B86: 0 | E86: Wydatki majątkowe na realizację programu, projektu lub zadania wynikające wyłącznie z zawartych umów z podmiotem dysponującym środkami, o których mowa w art. 5 ust. 1 pkt 2 ustawy | F86: x | G86: x | H86: x | I86: x | J86: =1873431 -> 1873431 | K86: x | L86: x | M86: x | N86: x | O86: =0 -> 0 | P86: =0 -> 0 | Q86: =0 -> 0 | R86: =0 -> 0 | S86: x | T86: x | U86: x | V86: x | W86: x | X86: x | Y86: x
A87: 12.5 | B87: 0 | E87: Wydatki na wkład krajowy w związku z umową na realizację programu, projektu lub zadania finansowanego z udziałem środków, o których mowa w art. 5 ust. 1 pkt 2 ustawy bez względu na stopień finansowania tymi środkami | F87: x | G87: x | H87: x | I87: x | J87: =1024292 -> 1024292 | K87: x | L87: x | M87: x | N87: x | O87: =0 -> 0 | P87: =0 -> 0 | Q87: =0 -> 0 | R87: =0 -> 0 | S87: x | T87: x | U87: x | V87: x | W87: x | X87: x | Y87: x
A88: 12.5.1 | B88: 0 | E88: w tym w związku z już zawartą umową na realizację programu, projektu lub zadania | F88: x | G88: x | H88: x | I88: x | J88: =802042 -> 802042 | K88: x | L88: x | M88: x | N88: x | O88: =0 -> 0 | P88: =0 -> 0 | Q88: =0 -> 0 | R88: =0 -> 0 | S88: x | T88: x | U88: x | V88: x | W88: x | X88: x | Y88: x
A89: 12.6 | B89: 0 | E89: Wydatki na wkład krajowy w związku z zawartą po dniu 1 stycznia 2013 r. umową na realizację programu, projektu lub zadania finansowanego w co najmniej 60% środkami, o których mowa w art. 5 ust. 1 pkt 2 ustawy | F89: x | G89: x | H89: x | I89: x | J89: =1024292 -> 1024292 | K89: x | L89: x | M89: x | N89: x | O89: =0 -> 0 | P89: =0 -> 0 | Q89: =0 -> 0 | R89: =0 -> 0 | S89: x | T89: x | U89: x | V89: x | W89: x | X89: x | Y89: x
A90: 12.6.1 | B90: 0 | E90: w tym w związku z już zawartą umową na realizację programu, projektu lub zadania | F90: x | G90: x | H90: x | I90: x | J90: =802042 -> 802042 | K90: x | L90: x | M90: x | N90: x | O90: =0 -> 0 | P90: =0 -> 0 | Q90: =0 -> 0 | R90: =0 -> 0 | S90: x | T90: x | U90: x | V90: x | W90: x | X90: x | Y90: x
A91: 12.7 | B91: 0 | E91: Przychody z tytułu kredytów, pożyczek, emisji papierów wartościowych powstające w związku z umową na realizację programu, projektu lub zadania finansowanego z udziałem środków, o których mowa w art. 5 ust. 1 pkt 2 ustawy bez względu na stopień finansowania tymi środkami | F91: x | G91: x | H91: x | I91: x | J91: =0 -> 0 | K91: x | L91: x | M91: x | N91: x | O91: =0 -> 0 | P91: =0 -> 0 | Q91: =0 -> 0 | R91: =0 -> 0 | S91: x | T91: x | U91: x | V91: x | W91: x | X91: x | Y91: x
A92: 12.7.1 | B92: 0 | E92: w tym w związku z już zawartą umową na realizację programu, projektu lub zadania | F92: x | G92: x | H92: x | I92: x | J92: =0 -> 0 | K92: x | L92: x | M92: x | N92: x | O92: =0 -> 0 | P92: =0 -> 0 | Q92: =0 -> 0 | R92: =0 -> 0 | S92: x | T92: x | U92: x | V92: x | W92: x | X92: x | Y92: x
A93: 12.8 | B93: 0 | E93: Przychody z tytułu kredytów, pożyczek, emisji papierów wartościowych powstające w związku z zawartą po dniu 1 stycznia 2013 r. umową na realizację programu, projektu lub zadania finansowanego w co najmniej 60% środkami, o których mowa w art. 5 ust. 1 pkt 2 ustawy | F93: x | G93: x | H93: x | I93: x | J93: =0 -> 0 | K93: x | L93: x | M93: x | N93: x | O93: =0 -> 0 | P93: =0 -> 0 | Q93: =0 -> 0 | R93: =0 -> 0 | S93: x | T93: x | U93: x | V93: x | W93: x | X93: x | Y93: x
A94: 12.8.1 | B94: 0 | E94: w tym w związku z już zawartą umową na realizację programu, projektu lub zadania | F94: x | G94: x | H94: x | I94: x | J94: =0 -> 0 | K94: x | L94: x | M94: x | N94: x | O94: =0 -> 0 | P94: =0 -> 0 | Q94: =0 -> 0 | R94: =0 -> 0 | S94: x | T94: x | U94: x | V94: x | W94: x | X94: x | Y94: x
A95: 13 | B95: 1 | E95: Kwoty dotyczące przejęcia i spłaty zobowiązań po samodzielnych publicznych zakładach opieki zdrowotnej oraz pokrycia ujemnego wyniku | F95: x | G95: x | H95: x | I95: x | J95: x | K95: x | L95: x | M95: x | N95: x | O95: x | P95: x | Q95: x | R95: x | S95: x | T95: x | U95: x | V95: x | W95: x | X95: x | Y95: x
A96: 13.1 | B96: 0 | E96: Kwota zobowiązań wynikających z przejęcia przez jednostkę samorządu terytorialnego zobowiązań po likwidowanych i przekształcanych samodzielnych zakładach opieki zdrowotnej | F96: x | G96: x | H96: x | I96: x | J96: =0 -> 0 | K96: x | L96: x | M96: x | N96: x | O96: =0 -> 0 | P96: =0 -> 0 | Q96: =0 -> 0 | R96: =0 -> 0 | S96: x | T96: x | U96: x | V96: x | W96: x | X96: x | Y96: x
A97: 13.2 | B97: 0 | E97: Dochody budżetowe z tytułu dotacji celowej z budżetu państwa, o której mowa w art. 196 ustawy z dnia 15 kwietnia 2011 r. o działalności leczniczej (Dz.U. Nr 112, poz. 654, z późn. zm.) | F97: x | G97: x | H97: x | I97: x | J97: =0 -> 0 | K97: x | L97: x | M97: x | N97: x | O97: =0 -> 0 | P97: =0 -> 0 | Q97: =0 -> 0 | R97: =0 -> 0 | S97: x | T97: x | U97: x | V97: x | W97: x | X97: x | Y97: x
A98: 13.3 | B98: 0 | E98: Wysokość zobowiązań podlegających umorzeniu, o którym mowa w art. 190 ustawy o działalności leczniczej | F98: x | G98: x | H98: x | I98: x | J98: =0 -> 0 | K98: x | L98: x | M98: x | N98: x | O98: =0 -> 0 | P98: =0 -> 0 | Q98: =0 -> 0 | R98: =0 -> 0 | S98: x | T98: x | U98: x | V98: x | W98: x | X98: x | Y98: x
A99: 13.4 | B99: 1 | E99: Wydatki na spłatę przejętych zobowiązań samodzielnego publicznego zakładu opieki zdrowotnej przekształconego na zasadach określonych w przepisach o działalności leczniczej | F99: =0 -> 0 | G99: =0 -> 0 | H99: =0 -> 0 | I99: =0 -> 0 | J99: =0 -> 0 | K99: =0 -> 0 | L99: =0 -> 0 | M99: =+IF(J99<>0,L99/J99,0) -> 0 | N99: =+IF(K99<>0,L99/K99,0) -> 0 | O99: =0 -> 0 | P99: =0 -> 0 | Q99: =0 -> 0 | R99: =0 -> 0 | S99: =+IF(F99<>0,G99/F99-1,"") ->  | T99: =+IF(G99<>0,I99/G99-1,"") ->  | U99: =+IF(I99<>0,(J99)/I99-1,"") ->  | V99: =+IF(J99<>0,(O99)/J99-1,"") ->  | W99: =+IF(O99<>0,(P99)/O99-1,"") -> 
A100: 13.5 | B100: 1 | E100: Wydatki na spłatę przejętych zobowiązań samodzielnego publicznego zakładu opieki zdrowotnej likwidowanego na zasadach określonych w przepisach o działalności leczniczej | F100: =0 -> 0 | G100: =0 -> 0 | H100: =0 -> 0 | I100: =0 -> 0 | J100: =0 -> 0 | K100: =0 -> 0 | L100: =0 -> 0 | M100: =+IF(J100<>0,L100/J100,0) -> 0 | N100: =+IF(K100<>0,L100/K100,0) -> 0 | O100: =0 -> 0 | P100: =0 -> 0 | Q100: =0 -> 0 | R100: =0 -> 0 | S100: =+IF(F100<>0,G100/F100-1,"") ->  | T100: =+IF(G100<>0,I100/G100-1,"") ->  | U100: =+IF(I100<>0,(J100)/I100-1,"") ->  | V100: =+IF(J100<>0,(O100)/J100-1,"") -> 
A101: 13.6 | B101: 1 | E101: Wydatki na spłatę zobowiązań samodzielnego publicznego zakładu opieki zdrowotnej przejętych do końca 2011 r. na podstawie przepisów o zakładach opieki zdrowotnej | F101: =0 -> 0 | G101: =0 -> 0 | H101: =0 -> 0 | I101: =0 -> 0 | J101: =0 -> 0 | K101: =0 -> 0 | L101: =0 -> 0 | M101: =+IF(J101<>0,L101/J101,0) -> 0 | N101: =+IF(K101<>0,L101/K101,0) -> 0 | O101: =0 -> 0 | P101: =0 -> 0 | Q101: =0 -> 0 | R101: =0 -> 0 | S101: =+IF(F101<>0,G101/F101-1,"") ->  | T101: =+IF(G101<>0,I101/G101-1,"") ->  | U101: =+IF(I101<>0,J101/I101-1,"") ->  | V101: =+IF(J101<>0,O101/J101-1,"") ->  | W101: =+IF(O101<>0,P101/O101-1,"") -> 
A102: 13.7 | B102: 1 | E102: Wydatki bieżące na pokrycie ujemnego wyniku finansowego samodzielnego publicznego zakładu opieki zdrowotnej | F102: =0 -> 0 | G102: =0 -> 0 | H102: =0 -> 0 | I102: =0 -> 0 | J102: =0 -> 0 | K102: =0 -> 0 | L102: =0 -> 0 | M102: =+IF(J102<>0,L102/J102,0) -> 0 | N102: =+IF(K102<>0,L102/K102,0) -> 0 | O102: =0 -> 0 | P102: =0 -> 0 | Q102: =0 -> 0 | R102: =0 -> 0 | S102: =+IF(F102<>0,G102/F102-1,"") ->  | T102: =+IF(G102<>0,I102/G102-1,"") ->  | U102: =+IF(I102<>0,J102/I102-1,"") ->  | V102: =+IF(J102<>0,O102/J102-1,"") -> 
A103: 14 | B103: 0 | C103: x | E103: Dane uzupełniające o długu i jego spłacie | F103: x | G103: x | H103: x | I103: x | J103: x | K103: x | L103: x | M103: x | N103: x | O103: x | P103: x | Q103: x | R103: x | S103: x | T103: x | U103: x | V103: x | W103: x | X103: x | Y103: x
A104: 14.1 | B104: 0 | C104: x | E104: Spłaty rat kapitałowych oraz wykup papierów wartościowych, o których mowa w pkt. 5.1., wynikające wyłącznie z tytułu zobowiązań już zaciągniętych | F104: x | G104: x | H104: x | I104: x | J104: =600000 -> 600000 | K104: x | L104: x | M104: x | N104: x | O104: =600000 -> 600000 | P104: =600000 -> 600000 | Q104: =600000 -> 600000 | R104: =600000 -> 600000 | S104: x | T104: x | U104: x | V104: x | W104: x | X104: x | Y104: x
A105: 14.2 | B105: 0 | C105: x | E105: Kwota długu, którego planowana spłata dokona się z wydatków budżetu | F105: x | G105: x | H105: x | I105: x | J105: =564000 -> 564000 | K105: x | L105: x | M105: x | N105: x | O105: =444000 -> 444000 | P105: =327000 -> 327000 | Q105: =214000 -> 214000 | R105: =105000 -> 105000 | S105: x | T105: x | U105: x | V105: x | W105: x | X105: x | Y105: x
A106: 14.3 | B106: 0 | C106: x | E106: Wydatki zmniejszające dług, w tym | F106: x | G106: x | H106: x | I106: x | J106: =132129.22 -> 132129.22 | K106: x | L106: x | M106: x | N106: x | O106: =120000 -> 120000 | P106: =117000 -> 117000 | Q106: =113000 -> 113000 | R106: =109000 -> 109000 | S106: x | T106: x | U106: x | V106: x | W106: x | X106: x | Y106: x
A107: 14.3.1 | B107: 0 | C107: x | E107: spłata zobowiązań wymagalnych z lat poprzednich, innych niż w pkt 14.3.3 | F107: x | G107: x | H107: x | I107: x | J107: =0 -> 0 | K107: x | L107: x | M107: x | N107: x | O107: =0 -> 0 | P107: =0 -> 0 | Q107: =0 -> 0 | R107: =0 -> 0 | S107: x | T107: x | U107: x | V107: x | W107: x | X107: x | Y107: x
A108: 14.3.2 | B108: 0 | C108: x | E108: związane z umowami zaliczanymi do tytułów dłużnych wliczanych do państwowego długu publicznego | F108: x | G108: x | H108: x | I108: x | J108: =132129.22 -> 132129.22 | K108: x | L108: x | M108: x | N108: x | O108: =120000 -> 120000 | P108: =117000 -> 117000 | Q108: =113000 -> 113000 | R108: =109000 -> 109000 | S108: x | T108: x | U108: x | V108: x | W108: x | X108: x | Y108: x
A109: 14.3.3 | B109: 0 | C109: x | E109: wypłaty z tytułu wymagalnych poręczeń i gwarancji | F109: x | G109: x | H109: x | I109: x | J109: =0 -> 0 | K109: x | L109: x | M109: x | N109: x | O109: =0 -> 0 | P109: =0 -> 0 | Q109: =0 -> 0 | R109: =0 -> 0 | S109: x | T109: x | U109: x | V109: x | W109: x | X109: x | Y109: x
A110: 14.4 | B110: 0 | C110: x | E110: Wynik operacji niekasowych wpływających na kwotę długu ( m.in. umorzenia, różnice kursowe) | F110: x | G110: x | H110: x | I110: x | J110: =0 -> 0 | K110: x | L110: x | M110: x | N110: x | O110: =0 -> 0 | P110: =0 -> 0 | Q110: =0 -> 0 | R110: =0 -> 0 | S110: x | T110: x | U110: x | V110: x | W110: x | X110: x | Y110: x
A111: 15 | B111: 0 | E111: Dane dotyczące emitowanych obligacji przychodowych | F111: x | G111: x | H111: x | I111: x | J111: x | K111: x | L111: x | M111: x | N111: x | O111: x | P111: x | Q111: x | R111: x | S111: x | T111: x | U111: x | V111: x | W111: x | X111: x | Y111: x
A112: 15.1 | B112: 0 | E112: Środki z przedsięwzięcia gromadzone na rachunku bankowym, w tym: | F112: x | G112: x | H112: x | I112: x | J112: =0 -> 0 | K112: x | L112: x | M112: x | N112: x | O112: =0 -> 0 | P112: =0 -> 0 | Q112: =0 -> 0 | R112: =0 -> 0 | S112: x | T112: x | U112: x | V112: x | W112: x | X112: x | Y112: x
A113: 15.1.1 | B113: 0 | C113: x | E113: środki na zaspokojenie roszczeń obligatariuszy | F113: x | G113: x | H113: x | I113: x | J113: =0 -> 0 | K113: x | L113: x | M113: x | N113: x | O113: =0 -> 0 | P113: =0 -> 0 | Q113: =0 -> 0 | R113: =0 -> 0 | S113: x | T113: x | U113: x | V113: x | W113: x | X113: x | Y113: x
A114: 15.2 | B114: 0 | C114: x | E114: Wydatki bieżące z tytułu świadczenia emitenta należnego obligatariuszom, nieuwzględniane w limicie spłaty zobowiązań, o którym mowa w art. 243 ustawy | F114: x | G114: x | H114: x | I114: x | J114: =0 -> 0 | K114: x | L114: x | M114: x | N114: x | O114: =0 -> 0 | P114: =0 -> 0 | Q114: =0 -> 0 | R114: =0 -> 0 | S114: x | T114: x | U114: x | V114: x | W114: x | X114: x | Y114: x

Sheet Sprawdz WPF=Rb w (N-3)..(N-1) (hidden)
E1: Zestawienie wygenerowane na podstawie danych wprowadzonych do systemu BESTI@ | J1: © CWA "Pro publico" Sp. z o.o.
E2: Porównanie wybranego WPF ze sprawozdaniami Rb (dane za lata od N-3 do N-1)
E3: Nr Uchwały: | F3: =DaneZrodlowe!B4 -> nowyWPF czerwiec | G3: =IF(DaneZrodlowe!C4=0,"",+"ver.: "&DaneZrodlowe!C4) -> 
E4: z dn.: | F4: =+DaneZrodlowe!$P$4 -> 2017-06-30
E5: Nazwa JST: | F5: =DaneZrodlowe!D4 -> WIDUCHOWA
E6: WPF za lata: | F6: =CONCATENATE(DaneZrodlowe!O1," - ",DaneZrodlowe!R1) -> 2017 - 2030
F7: =+IF(+COUNTIF(F10:F114,(">0"))+COUNTIF(F10:F114,("<0"))<>0,"Niezgodność","Zgodne") -> Niezgodność | G7: =+IF(+COUNTIF(G10:G114,(">0"))+COUNTIF(G10:G114,("<0"))<>0,"Niezgodność","Zgodne") -> Niezgodność | H7: =+IF(+COUNTIF(H10:H114,(">0"))+COUNTIF(H10:H114,("<0"))<>0,"Niezgodność","Zgodne") -> Zgodne | I7: =+IF(+COUNTIF(I10:I114,(">0"))+COUNTIF(I10:I114,("<0"))<>0,"Niezgodność","Zgodne") -> Niezgodność
F8: Wykonanie | H8: Plan 3 kw. | I8: Wykonanie
A9: Lp. | B9: xx | C9: X | E9: Wyszczególnienie | F9: =+G9-1 -> 2014 | G9: =+H9-1 -> 2015 | H9: =+I9 -> 2016 | I9: =+Rok_bazowy-1 -> 2016
A10: 1 | B10: 1 | C10: x | E10: Dochody ogółem | F10: =+'WPF a Budzet (rok N)'!F10-'WPF a Rb (wybr okr)'!F10 -> 0 | G10: =+'WPF a Budzet (rok N)'!G10-'WPF a Rb (wybr okr)'!G10 -> 0 | H10: =+'WPF a Budzet (rok N)'!H10-'WPF a Rb (wybr okr)'!H10 -> 0 | I10: =+'WPF a Budzet (rok N)'!I10-'WPF a Rb (wybr okr)'!I10 -> 0
A11: 1.1 | B11: 1 | C11: x | E11: Dochody bieżące | F11: =+'WPF a Budzet (rok N)'!F11-'WPF a Rb (wybr okr)'!F11 -> 0 | G11: =+'WPF a Budzet (rok N)'!G11-'WPF a Rb (wybr okr)'!G11 -> 0 | H11: =+'WPF a Budzet (rok N)'!H11-'WPF a Rb (wybr okr)'!H11 -> 0 | I11: =+'WPF a Budzet (rok N)'!I11-'WPF a Rb (wybr okr)'!I11 -> 0
A12: 1.1.1 | B12: 1 | E12: dochody z tytułu udziału we wpływach z podatku dochodowego od osób fizycznych | F12: =+'WPF a Budzet (rok N)'!F12-'WPF a Rb (wybr okr)'!F12 -> 0 | G12: =+'WPF a Budzet (rok N)'!G12-'WPF a Rb (wybr okr)'!G12 -> 0 | H12: =+'WPF a Budzet (rok N)'!H12-'WPF a Rb (wybr okr)'!H12 -> 0 | I12: =+'WPF a Budzet (rok N)'!I12-'WPF a Rb (wybr okr)'!I12 -> 0
A13: 1.1.2 | B13: 1 | E13: dochody z tytułu udziału we wpływach z podatku dochodowego od osób prawnych | F13: =+'WPF a Budzet (rok N)'!F13-'WPF a Rb (wybr okr)'!F13 -> 0 | G13: =+'WPF a Budzet (rok N)'!G13-'WPF a Rb (wybr okr)'!G13 -> 0 | H13: =+'WPF a Budzet (rok N)'!H13-'WPF a Rb (wybr okr)'!H13 -> 0 | I13: =+'WPF a Budzet (rok N)'!I13-'WPF a Rb (wybr okr)'!I13 -> 0
A14: 1.1.3 | B14: 1 | E14: podatki i opłaty | F14: =+'WPF a Budzet (rok N)'!F14-'WPF a Rb (wybr okr)'!F14 -> 0 | G14: =+'WPF a Budzet (rok N)'!G14-'WPF a Rb (wybr okr)'!G14 -> 0 | H14: =+'WPF a Budzet (rok N)'!H14-'WPF a Rb (wybr okr)'!H14 -> 0 | I14: =+'WPF a Budzet (rok N)'!I14-'WPF a Rb (wybr okr)'!I14 -> 0
A15: 1.1.3.1 | B15: 1 | E15: z podatku od nieruchomości | F15: =+'WPF a Budzet (rok N)'!F15-'WPF a Rb (wybr okr)'!F15 -> 0 | G15: =+'WPF a Budzet (rok N)'!G15-'WPF a Rb (wybr okr)'!G15 -> 0 | H15: =+'WPF a Budzet (rok N)'!H15-'WPF a Rb (wybr okr)'!H15 -> 0 | I15: =+'WPF a Budzet (rok N)'!I15-'WPF a Rb (wybr okr)'!I15 -> 0
A16: 1.1.4 | B16: 1 | E16: z subwencji ogólnej | F16: =+'WPF a Budzet (rok N)'!F16-'WPF a Rb (wybr okr)'!F16 -> 0 | G16: =+'WPF a Budzet (rok N)'!G16-'WPF a Rb (wybr okr)'!G16 -> 0 | H16: =+'WPF a Budzet (rok N)'!H16-'WPF a Rb (wybr okr)'!H16 -> 0 | I16: =+'WPF a Budzet (rok N)'!I16-'WPF a Rb (wybr okr)'!I16 -> 0
A17: 1.1.5 | B17: 1 | E17: z tytułu dotacji i środków przeznaczonych na cele bieżące | F17: =+'WPF a Budzet (rok N)'!F17-'WPF a Rb (wybr okr)'!F17 -> 0 | G17: =+'WPF a Budzet (rok N)'!G17-'WPF a Rb (wybr okr)'!G17 -> 0 | H17: =+'WPF a Budzet (rok N)'!H17-'WPF a Rb (wybr okr)'!H17 -> 0 | I17: =+'WPF a Budzet (rok N)'!I17-'WPF a Rb (wybr okr)'!I17 -> 0
A18: 1.2 | B18: 1 | C18: x | E18: Dochody majątkowe, w tym | F18: =+'WPF a Budzet (rok N)'!F18-'WPF a Rb (wybr okr)'!F18 -> 0 | G18: =+'WPF a Budzet (rok N)'!G18-'WPF a Rb (wybr okr)'!G18 -> 0 | H18: =+'WPF a Budzet (rok N)'!H18-'WPF a Rb (wybr okr)'!H18 -> 0 | I18: =+'WPF a Budzet (rok N)'!I18-'WPF a Rb (wybr okr)'!I18 -> 0
A19: 1.2.1 | B19: 1 | C19: x | E19: ze sprzedaży majątku | F19: =+'WPF a Budzet (rok N)'!F19-'WPF a Rb (wybr okr)'!F19 -> 0 | G19: =+'WPF a Budzet (rok N)'!G19-'WPF a Rb (wybr okr)'!G19 -> 0 | H19: =+'WPF a Budzet (rok N)'!H19-'WPF a Rb (wybr okr)'!H19 -> 0 | I19: =+'WPF a Budzet (rok N)'!I19-'WPF a Rb (wybr okr)'!I19 -> 0
A20: 1.2.2 | B20: 1 | E20: z tytułu dotacji oraz środków przeznaczonych na inwestycje | F20: =+'WPF a Budzet (rok N)'!F20-'WPF a Rb (wybr okr)'!F20 -> 0 | G20: =+'WPF a Budzet (rok N)'!G20-'WPF a Rb (wybr okr)'!G20 -> 0 | H20: =+'WPF a Budzet (rok N)'!H20-'WPF a Rb (wybr okr)'!H20 -> 0 | I20: =+'WPF a Budzet (rok N)'!I20-'WPF a Rb (wybr okr)'!I20 -> 0
A21: 2 | B21: 1 | C21: x | E21: Wydatki ogółem | F21: =+'WPF a Budzet (rok N)'!F21-'WPF a Rb (wybr okr)'!F21 -> 0 | G21: =+'WPF a Budzet (rok N)'!G21-'WPF a Rb (wybr okr)'!G21 -> 0 | H21: =+'WPF a Budzet (rok N)'!H21-'WPF a Rb (wybr okr)'!H21 -> 0 | I21: =+'WPF a Budzet (rok N)'!I21-'WPF a Rb (wybr okr)'!I21 -> 0
A22: 2.1 | B22: 1 | C22: x | E22: Wydatki bieżące, w tym: | F22: =+'WPF a Budzet (rok N)'!F22-'WPF a Rb (wybr okr)'!F22 -> 0 | G22: =+'WPF a Budzet (rok N)'!G22-'WPF a Rb (wybr okr)'!G22 -> 0 | H22: =+'WPF a Budzet (rok N)'!H22-'WPF a Rb (wybr okr)'!H22 -> 0 | I22: =+'WPF a Budzet (rok N)'!I22-'WPF a Rb (wybr okr)'!I22 -> 0
A23: 2.1.1 | B23: 1 | C23: x | E23: z tytułu poręczeń i gwarancji | F23: =+'WPF a Budzet (rok N)'!F23-'WPF a Rb (wybr okr)'!F23 -> 0 | G23: =+'WPF a Budzet (rok N)'!G23-'WPF a Rb (wybr okr)'!G23 -> 0 | H23: =+'WPF a Budzet (rok N)'!H23-'WPF a Rb (wybr okr)'!H23 -> 0 | I23: =+'WPF a Budzet (rok N)'!I23-'WPF a Rb (wybr okr)'!I23 -> 0
A24: 2.1.1.1 | B24: 0 | C24: x | E24: w tym: gwarancje i poręczenia podlegające wyłączeniu z limitu spłaty zobowiązań, o którym mowa w art. 243 ustawy | F24: x | G24: x | H24: x | I24: x
A25: 2.1.2 | B25: 0 | E25: na spłatę przejętych zobowiązań samodzielnego publicznego zakładu opieki zdrowotnej przekształconego na zasadach określonych w przepisach o działalności leczniczej, w wysokości w jakiej nie podlegają sfinansowaniu dotacją z budżetu państwa | F25: x | G25: x | H25: x | I25: x
A26: 2.1.3 | B26: 1 | C26: x | E26: wydatki na obsługę długu, w tym: | F26: =+'WPF a Budzet (rok N)'!F26-'WPF a Rb (wybr okr)'!F26 -> 0 | G26: =+'WPF a Budzet (rok N)'!G26-'WPF a Rb (wybr okr)'!G26 -> 0 | H26: =+'WPF a Budzet (rok N)'!H26-'WPF a Rb (wybr okr)'!H26 -> 0 | I26: =+'WPF a Budzet (rok N)'!I26-'WPF a Rb (wybr okr)'!I26 -> 0
A27: 2.1.3.1 | B27: 1 | C27: x | E27: odsetki i dyskonto określone w art. 243 ust. 1 ustawy, w tym: | F27: =+'WPF a Budzet (rok N)'!F27-'WPF a Rb (wybr okr)'!F27 -> 0 | G27: =+'WPF a Budzet (rok N)'!G27-'WPF a Rb (wybr okr)'!G27 -> 0 | H27: =+'WPF a Budzet (rok N)'!H27-'WPF a Rb (wybr okr)'!H27 -> 0 | I27: =+'WPF a Budzet (rok N)'!I27-'WPF a Rb (wybr okr)'!I27 -> 0
A28: 2.1.3.1.1 | B28: 0 | C28: x | E28: odsetki i dyskonto podlegające wyłączeniu z limitu spłaty zobowiązań, o którym mowa w art. 243 ustawy, w terminie nie dłuższym niż 90 dni po zakończeniu programu, projektu lub zadania i otrzymaniu refundacji z tych środków (bez odsetek i dyskonta od zobowiązań na wkład krajowy) | F28: x | G28: x | H28: x | I28: x
A29: 2.1.3.1.2 | B29: 0 | C29: x | E29: odsetki i dyskonto podlegające wyłączeniu z limitu spłaty zobowiązań, o którym mowa w art. 243 ustawy, z tytułu zobowiązań zaciągniętych na wkład krajowy | F29: x | G29: x | H29: x | I29: x
A30: 2.2 | B30: 1 | C30: x | E30: Wydatki majątkowe | F30: =+'WPF a Budzet (rok N)'!F30-'WPF a Rb (wybr okr)'!F30 -> 0 | G30: =+'WPF a Budzet (rok N)'!G30-'WPF a Rb (wybr okr)'!G30 -> 0 | H30: =+'WPF a Budzet (rok N)'!H30-'WPF a Rb (wybr okr)'!H30 -> 0 | I30: =+'WPF a Budzet (rok N)'!I30-'WPF a Rb (wybr okr)'!I30 -> 0
A31: 3 | B31: 1 | C31: x | E31: Wynik budżetu | F31: =+'WPF a Budzet (rok N)'!F31-'WPF a Rb (wybr okr)'!F31 -> -2.240994945e-09 | G31: =+'WPF a Budzet (rok N)'!G31-'WPF a Rb (wybr okr)'!G31 -> 7.566995919e-10 | H31: =+'WPF a Budzet (rok N)'!H31-'WPF a Rb (wybr okr)'!H31 -> 0 | I31: =+'WPF a Budzet (rok N)'!I31-'WPF a Rb (wybr okr)'!I31 -> 2.677552402e-09
A32: 4 | B32: 0 | C32: x | E32: Przychody budżetu | F32: x | G32: x | H32: x | I32: x
A33: 4.1 | B33: 0 | C33: x | E33: Nadwyżka budżetowa z lat ubiegłych | F33: x | G33: x | H33: x | I33: x
A34: 4.1.1 | B34: 0 | C34: x | E34: w tym na pokrycie deficytu budżetu | F34: x | G34: x | H34: x | I34: x
A35: 4.2 | B35: 0 | C35: x | E35: Wolne środki, o których mowa w art. 217 ust.2 pkt 6 ustawy | F35: x | G35: x | H35: x | I35: x
A36: 4.2.1 | B36: 0 | C36: x | E36: w tym na pokrycie deficytu budżetu | F36: x | G36: x | H36: x | I36: x
A37: 4.3 | B37: 0 | C37: x | E37: Kredyty, pożyczki, emisja papierów wartościowych | F37: x | G37: x | H37: x | I37: x
A38: 4.3.1 | B38: 0 | C38: x | E38: w tym na pokrycie deficytu budżetu | F38: x | G38: x | H38: x | I38: x
A39: 4.4 | B39: 0 | C39: x | E39: Inne przychody niezwiązane z zaciągnięciem długu | F39: x | G39: x | H39: x | I39: x
A40: 4.4.1 | B40: 0 | C40: x | E40: w tym na pokrycie deficytu budżetu | F40: x | G40: x | H40: x | I40: x
A41: 5 | B41: 0 | C41: x | E41: Rozchody budżetu | F41: x | G41: x | H41: x | I41: x
A42: 5.1 | B42: 0 | C42: x | E42: Spłaty rat kapitałowych kredytów i pożyczek oraz wykup papierów wartościowych | F42: x | G42: x | H42: x | I42: x
A43: 5.1.1 | B43: 0 | C43: x | E43: w tym łączna kwota przypadających na dany rok kwot ustawowych wyłączeń z limitu spłaty zobowiązań, o którym mowa w art. 243 ustawy, z tego: | F43: x | G43: x | H43: x | I43: x
A44: 5.1.1.1 | B44: 0 | C44: x | E44: kwota przypadających na dany rok kwot ustawowych wyłączeń określonych w art. 243 ust. 3 ustawy | F44: x | G44: x | H44: x | I44: x
A45: 5.1.1.2 | B45: 0 | C45: x | E45: kwota przypadających na dany rok kwot ustawowych wyłączeń określonych w art. 243 ust. 3a ustawy | F45: x | G45: x | H45: x | I45: x
A46: 5.1.1.3 | B46: 0 | C46: x | E46: kwota przypadających na dany rok kwot ustawowych wyłączeń innych niż określone w art. 243 ustawy | F46: x | G46: x | H46: x | I46: x
A47: 5.2 | B47: 0 | E47: Inne rozchody niezwiązane ze spłatą długu | F47: x | G47: x | H47: x | I47: x
A48: 6 | B48: 1 | C48: x | E48: Kwota długu | F48: =+'WPF a Budzet (rok N)'!F48-'WPF a Rb (wybr okr)'!F48 -> 0 | G48: =+'WPF a Budzet (rok N)'!G48-'WPF a Rb (wybr okr)'!G48 -> 0 | H48: x | I48: =+'WPF a Budzet (rok N)'!I48-'WPF a Rb (wybr okr)'!I48 -> 0
A49: 7 | B49: 0 | E49: Kwota zobowiązań wynikających z przejęcia przez jednostkę samorządu terytorialnego zobowiązań po likwidowanych i przekształcanych jednostkach zaliczanych do sektora finansów publicznych | F49: x | G49: x | H49: x | I49: x
A50: 8 | B50: 1 | E50: Relacja zrównoważenia wydatków bieżących, o której mowa w art. 242 ustawy | F50: x | G50: x | H50: x | I50: x
A51: 8.1 | B51: 1 | E51: Różnica między dochodami bieżącymi a wydatkami bieżącymi | F51: =+'WPF a Budzet (rok N)'!F51-'WPF a Rb (wybr okr)'!F51 -> 0 | G51: =+'WPF a Budzet (rok N)'!G51-'WPF a Rb (wybr okr)'!G51 -> 7.566995919e-10 | H51: =+'WPF a Budzet (rok N)'!H51-'WPF a Rb (wybr okr)'!H51 -> 0 | I51: =+'WPF a Budzet (rok N)'!I51-'WPF a Rb (wybr okr)'!I51 -> 0
A52: 8.2 | B52: 0 | E52: Różnica między dochodami bieżącymi, skorygowanymi o środki a wydatkami bieżącymi, pomniejszonymi o wydatki | F52: x | G52: x | H52: x | I52: x
A53: 9 | B53: 0 | C53: x | E53: Wskaźnik spłaty zobowiązań | F53: x | G53: x | H53: x | I53: x
A54: 9.1 | B54: 0 | C54: x | E54: Wskaźnik planowanej łącznej kwoty spłaty zobowiązań, o której mowa w art. 243 ust. 1 ustawy do dochodów, bez uwzględnienia zobowiązań związku współtworzonego przez jednostkę samorządu terytorialnego i bez uwzględnienia ustawowych wyłączeń przypadających na dany rok. | F54: x | G54: x | H54: x | I54: x
A55: 9.2 | B55: 0 | C55: x | E55: Wskaźnik planowanej łącznej kwoty spłaty zobowiązań, o której mowa w art. 243 ust. 1 ustawy do dochodów, bez uwzględnienia zobowiązań związku współtworzonego przez jednostkę samorządu terytorialnego, po uwzględnieniu ustawowych wyłączeń przypadających na dany rok. | F55: x | G55: x | H55: x | I55: x
A56: 9.3 | B56: 0 | C56: x | E56: Kwota zobowiązań związku współtworzonego przez jednostkę samorządu terytorialnego przypadających do spłaty w danym roku budżetowym, podlegająca doliczeniu zgodnie z art. 244 ustawy | F56: x | G56: x | H56: x | I56: x
A57: 9.4 | B57: 0 | C57: x | E57: Wskaźnik planowanej łącznej kwoty spłaty zobowiązań, o której mowa w art. 243 ust. 1 ustawy do dochodów, po uwzględnieniu zobowiązań związku współtworzonego przez jednostkę samorządu terytorialnego oraz po uwzględnieniu ustawowych wyłączeń przypadających na dany rok | F57: x | G57: x | H57: x | I57: x
A58: 9.5 | B58: 0 | C58: x | E58: Wskaźnik dochodów bieżących powiększonych o dochody ze sprzedaży majątku oraz pomniejszonych o wydatki bieżące, do dochodów budżetu, ustalony dla danego roku (wskaźnik jednoroczny) | F58: x | G58: x | H58: x | I58: x
A59: 9.6 | B59: 0 | C59: x | E59: Dopuszczalny wskaźnik spłaty zobowiązań określony w art. 243 ustawy, po uwzględnieniu ustawowych wyłączeń , obliczony w oparciu o plan 3 kwartału roku poprzedzającego pierwszy rok prognozy (wskaźnik ustalony w oparciu o średnią arytmetyczną z 3 poprzednich lat) | F59: x | G59: x | H59: x | I59: x
A60: 9.6.1 | B60: 0 | C60: x | E60: Dopuszczalny wskaźnik spłaty zobowiązań określony w art. 243 ustawy, po uwzględnieniu ustawowych wyłączeń, obliczony w oparciu o wykonanie roku poprzedzającego pierwszy rok prognozy (wskaźnik ustalony w oparciu o średnią arytmetyczną z 3 poprzednich lat) | F60: x | G60: x | H60: x | I60: x
A61: 9.7 | B61: 0 | C61: x | E61: Informacja o spełnieniu wskaźnika spłaty zobowiązań określonego w art. 243 ustawy, po uwzględnieniu zobowiązań związku współtworzonego przez jednostkę samorządu terytorialnego oraz po uwzględnieniu ustawowych wyłączeń, obliczonego w oparciu o plan 3 kwartałów roku poprzedzającego rok budżetowy | F61: x | G61: x | H61: x | I61: x
A62: 9.7.1 | B62: 0 | C62: x | E62: Informacja o spełnieniu wskaźnika spłaty zobowiązań określonego w art. 243 ustawy, po uwzględnieniu zobowiązań związku współtworzonego przez jednostkę samorządu terytorialnego oraz po uwzględnieniu ustawowych wyłączeń, obliczonego w oparciu o wykonanie roku poprzedzającego rok budżetowy | F62: x | G62: x | H62: x | I62: x
A63: 10 | B63: 0 | E63: Przeznaczenie prognozowanej nadwyżki budżetowej, w tym na: | F63: x | G63: x | H63: x | I63: x
A64: 10.1 | B64: 0 | E64: Spłaty kredytów, pożyczek i wykup papierów wartościowych | F64: x | G64: x | H64: x | I64: x
A65: 11 | B65: 1 | E65: Informacje uzupełniające o wybranych rodzajach wydatków budżetowych | F65: x | G65: x | H65: x | I65: x
A66: 11.1 | B66: 1 | E66: Wydatki bieżące na wynagrodzenia i składki od nich naliczane | F66: =+'WPF a Budzet (rok N)'!F66-'WPF a Rb (wybr okr)'!F66 -> -200368.55 | G66: =+'WPF a Budzet (rok N)'!G66-'WPF a Rb (wybr okr)'!G66 -> 0 | H66: =+'WPF a Budzet (rok N)'!H66-'WPF a Rb (wybr okr)'!H66 -> 0 | I66: =+'WPF a Budzet (rok N)'!I66-'WPF a Rb (wybr okr)'!I66 -> 0
A67: 11.2 | B67: 1 | E67: Wydatki związane z funkcjonowaniem organów jednostki samorządu terytorialnego | F67: =+'WPF a Budzet (rok N)'!F67-'WPF a Rb (wybr okr)'!F67 -> -67507.4 | G67: =+'WPF a Budzet (rok N)'!G67-'WPF a Rb (wybr okr)'!G67 -> 0 | H67: =+'WPF a Budzet (rok N)'!H67-'WPF a Rb (wybr okr)'!H67 -> 0 | I67: =+'WPF a Budzet (rok N)'!I67-'WPF a Rb (wybr okr)'!I67 -> 0
A68: 11.3 | B68: 0 | E68: Wydatki objęte limitem, o którym mowa w art. 226 ust. 3 pkt 4 ustawy | F68: x | G68: x | H68: x | I68: x
A69: 11.3.1 | B69: 0 | E69: bieżące | F69: x | G69: x | H69: x | I69: x
A70: 11.3.2 | B70: 0 | E70: majątkowe | F70: x | G70: x | H70: x | I70: x
A71: 11.4 | B71: 0 | E71: Wydatki inwestycyjne kontynuowane | F71: x | G71: x | H71: x | I71: x
A72: 11.5 | B72: 0 | E72: Nowe wydatki inwestycyjne | F72: x | G72: x | H72: x | I72: x
A73: 11.6 | B73: 1 | E73: Wydatki majątkowe w formie dotacji | F73: =+'WPF a Budzet (rok N)'!F73-'WPF a Rb (wybr okr)'!F73 -> 0 | G73: =+'WPF a Budzet (rok N)'!G73-'WPF a Rb (wybr okr)'!G73 -> 0 | H73: =+'WPF a Budzet (rok N)'!H73-'WPF a Rb (wybr okr)'!H73 -> 0 | I73: =+'WPF a Budzet (rok N)'!I73-'WPF a Rb (wybr okr)'!I73 -> 0
A74: 12 | B74: 1 | E74: Finansowanie programów, projektów lub zadań realizowanych z udziałem środków, o których mowa w art. 5 ust. 1 pkt 2 i 3 ustawy | F74: x | G74: x | H74: x | I74: x
A75: 12.1 | B75: 1 | E75: Dochody bieżące na programy, projekty lub zadania finansowane z udziałem środków, o których mowa w art. 5 ust. 1 pkt 2 i 3 ustawy | F75: =+'WPF a Budzet (rok N)'!F75-'WPF a Rb (wybr okr)'!F75 -> -205127.64 | G75: =+'WPF a Budzet (rok N)'!G75-'WPF a Rb (wybr okr)'!G75 -> -38095.06 | H75: =+'WPF a Budzet (rok N)'!H75-'WPF a Rb (wybr okr)'!H75 -> 0 | I75: =+'WPF a Budzet (rok N)'!I75-'WPF a Rb (wybr okr)'!I75 -> 0
A76: 12.1.1 | B76: 1 | E76: - w tym środki określone w art. 5 ust. 1 pkt 2 ustawy | F76: =+'WPF a Budzet (rok N)'!F76-'WPF a Rb (wybr okr)'!F76 -> -194291.83 | G76: =+'WPF a Budzet (rok N)'!G76-'WPF a Rb (wybr okr)'!G76 -> -38095.06 | H76: =+'WPF a Budzet (rok N)'!H76-'WPF a Rb (wybr okr)'!H76 -> 0 | I76: =+'WPF a Budzet (rok N)'!I76-'WPF a Rb (wybr okr)'!I76 -> 0
A77: 12.1.1.1 | B77: 0 | E77: - w tym środki określone w art. 5 ust. 1 pkt 2 ustawy wynikające wyłącznie z zawartych umów na realizację programu, projektu lub zadania | F77: x | G77: x | H77: x | I77: x
A78: 12.2 | B78: 1 | E78: Dochody majątkowe na programy, projekty lub zadania finansowane z udziałem środków, o których mowa w art. 5 ust. 1 pkt 2 i 3 ustawy | F78: =+'WPF a Budzet (rok N)'!F78-'WPF a Rb (wybr okr)'!F78 -> -119320.04 | G78: =+'WPF a Budzet (rok N)'!G78-'WPF a Rb (wybr okr)'!G78 -> -34888.29 | H78: =+'WPF a Budzet (rok N)'!H78-'WPF a Rb (wybr okr)'!H78 -> 0 | I78: =+'WPF a Budzet (rok N)'!I78-'WPF a Rb (wybr okr)'!I78 -> 0
A79: 12.2.1 | B79: 1 | E79: - w tym środki określone w art. 5 ust. 1 pkt 2 ustawy | F79: =+'WPF a Budzet (rok N)'!F79-'WPF a Rb (wybr okr)'!F79 -> -119320.04 | G79: =+'WPF a Budzet (rok N)'!G79-'WPF a Rb (wybr okr)'!G79 -> -34888.29 | H79: =+'WPF a Budzet (rok N)'!H79-'WPF a Rb (wybr okr)'!H79 -> 0 | I79: =+'WPF a Budzet (rok N)'!I79-'WPF a Rb (wybr okr)'!I79 -> 0
A80: 12.2.1.1 | B80: 0 | E80: - w tym środki określone w art. 5 ust. 1 pkt 2 ustawy wynikające wyłącznie z zawartych umów na realizację programu, projektu lub zadania | F80: x | G80: x | H80: x | I80: x
A81: 12.3 | B81: 1 | E81: Wydatki bieżące na programy, projekty lub zadania finansowane z udziałem środków, o których mowa w art. 5 ust. 1 pkt 2 i 3 ustawy | F81: =+'WPF a Budzet (rok N)'!F81-'WPF a Rb (wybr okr)'!F81 -> -286708.61 | G81: =+'WPF a Budzet (rok N)'!G81-'WPF a Rb (wybr okr)'!G81 -> 0 | H81: =+'WPF a Budzet (rok N)'!H81-'WPF a Rb (wybr okr)'!H81 -> 0 | I81: =+'WPF a Budzet (rok N)'!I81-'WPF a Rb (wybr okr)'!I81 -> 0
A82: 12.3.1 | B82: 1 | E82: - w tym finansowane środkami określonymi w art. 5 ust. 1 pkt 2 ustawy | F82: =+'WPF a Budzet (rok N)'!F82-'WPF a Rb (wybr okr)'!F82 -> -225896.56 | G82: =+'WPF a Budzet (rok N)'!G82-'WPF a Rb (wybr okr)'!G82 -> 0 | H82: =+'WPF a Budzet (rok N)'!H82-'WPF a Rb (wybr okr)'!H82 -> 0 | I82: =+'WPF a Budzet (rok N)'!I82-'WPF a Rb (wybr okr)'!I82 -> 0
A83: 12.3.2 | B83: 0 | E83: Wydatki bieżące na realizację programu, projektu lub zadania wynikające wyłącznie z zawartych umów z podmiotem dysponującym środkami, o których mowa w art. 5 ust. 1 pkt 2 ustawy | F83: x | G83: x | H83: x | I83: x
A84: 12.4 | B84: 1 | E84: Wydatki majątkowe na programy, projekty lub zadania finansowane z udziałem środków, o których mowa w art. 5 ust. 1 pkt 2 i 3 ustawy | F84: =+'WPF a Budzet (rok N)'!F84-'WPF a Rb (wybr okr)'!F84 -> -141101.33 | G84: =+'WPF a Budzet (rok N)'!G84-'WPF a Rb (wybr okr)'!G84 -> 0 | H84: =+'WPF a Budzet (rok N)'!H84-'WPF a Rb (wybr okr)'!H84 -> 0 | I84: =+'WPF a Budzet (rok N)'!I84-'WPF a Rb (wybr okr)'!I84 -> 0
A85: 12.4.1 | B85: 1 | E85: - w tym finansowane środkami określonymi w art. 5 ust. 1 pkt 2 ustawy | F85: =+'WPF a Budzet (rok N)'!F85-'WPF a Rb (wybr okr)'!F85 -> -91472.88 | G85: =+'WPF a Budzet (rok N)'!G85-'WPF a Rb (wybr okr)'!G85 -> 0 | H85: =+'WPF a Budzet (rok N)'!H85-'WPF a Rb (wybr okr)'!H85 -> 0 | I85: =+'WPF a Budzet (rok N)'!I85-'WPF a Rb (wybr okr)'!I85 -> 0
A86: 12.4.2 | B86: 0 | E86: Wydatki majątkowe na realizację programu, projektu lub zadania wynikające wyłącznie z zawartych umów z podmiotem dysponującym środkami, o których mowa w art. 5 ust. 1 pkt 2 ustawy | F86: x | G86: x | H86: x | I86: x
A87: 12.5 | B87: 0 | E87: Wydatki na wkład krajowy w związku z umową na realizację programu, projektu lub zadania finansowanego z udziałem środków, o których mowa w art. 5 ust. 1 pkt 2 ustawy bez względu na stopień finansowania tymi środkami | F87: x | G87: x | H87: x | I87: x
A88: 12.5.1 | B88: 0 | E88: w tym w związku z już zawartą umową na realizację programu, projektu lub zadania | F88: x | G88: x | H88: x | I88: x
A89: 12.6 | B89: 0 | E89: Wydatki na wkład krajowy w związku z zawartą po dniu 1 stycznia 2013 r. umową na realizację programu, projektu lub zadania finansowanego w co najmniej 60% środkami, o których mowa w art. 5 ust. 1 pkt 2 ustawy | F89: x | G89: x | H89: x | I89: x
A90: 12.6.1 | B90: 0 | E90: w tym w związku z już zawartą umową na realizację programu, projektu lub zadania | F90: x | G90: x | H90: x | I90: x
A91: 12.7 | B91: 0 | E91: Przychody z tytułu kredytów, pożyczek, emisji papierów wartościowych powstające w związku z umową na realizację programu, projektu lub zadania finansowanego z udziałem środków, o których mowa w art. 5 ust. 1 pkt 2 ustawy bez względu na stopień finansowania tymi środkami | F91: x | G91: x | H91: x | I91: x
A92: 12.7.1 | B92: 0 | E92: w tym w związku z już zawartą umową na realizację programu, projektu lub zadania | F92: x | G92: x | H92: x | I92: x
A93: 12.8 | B93: 0 | E93: Przychody z tytułu kredytów, pożyczek, emisji papierów wartościowych powstające w związku z zawartą po dniu 1 stycznia 2013 r. umową na realizację programu, projektu lub zadania finansowanego w co najmniej 60% środkami, o których mowa w art. 5 ust. 1 pkt 2 ustawy | F93: x | G93: x | H93: x | I93: x
A94: 12.8.1 | B94: 0 | E94: w tym w związku z już zawartą umową na realizację programu, projektu lub zadania | F94: x | G94: x | H94: x | I94: x
A95: 13 | B95: 0 | E95: Kwoty dotyczące przejęcia i spłaty zobowiązań po samodzielnych publicznych zakładach opieki zdrowotnej oraz pokrycia ujemnego wyniku | F95: x | G95: x | H95: x | I95: x
A96: 13.1 | B96: 0 | E96: Kwota zobowiązań wynikających z przejęcia przez jednostkę samorządu terytorialnego zobowiązań po likwidowanych i przekształcanych samodzielnych zakładach opieki zdrowotnej | F96: x | G96: x | H96: x | I96: x
A97: 13.2 | B97: 0 | E97: Dochody budżetowe z tytułu dotacji celowej z budżetu państwa, o której mowa w art. 196 ustawy z dnia 15 kwietnia 2011 r. o działalności leczniczej (Dz.U. Nr 112, poz. 654, z późn. zm.) | F97: x | G97: x | H97: x | I97: x
A98: 13.3 | B98: 0 | E98: Wysokość zobowiązań podlegających umorzeniu, o którym mowa w art. 190 ustawy o działalności leczniczej | F98: x | G98: x | H98: x | I98: x
A99: 13.4 | B99: 0 | E99: Wydatki na spłatę przejętych zobowiązań samodzielnego publicznego zakładu opieki zdrowotnej przekształconego na zasadach określonych w przepisach o działalności leczniczej | F99: x | G99: x | H99: x | I99: x
A100: 13.5 | B100: 0 | E100: Wydatki na spłatę przejętych zobowiązań samodzielnego publicznego zakładu opieki zdrowotnej likwidowanego na zasadach określonych w przepisach o działalności leczniczej | F100: x | G100: x | H100: x | I100: x
A101: 13.6 | B101: 0 | E101: Wydatki na spłatę zobowiązań samodzielnego publicznego zakładu opieki zdrowotnej przejętych do końca 2011 r. na podstawie przepisów o zakładach opieki zdrowotnej | F101: x | G101: x | H101: x | I101: x
A102: 13.7 | B102: 0 | E102: Wydatki bieżące na pokrycie ujemnego wyniku finansowego samodzielnego publicznego zakładu opieki zdrowotnej | F102: x | G102: x | H102: x | I102: x
A103: 14 | B103: 0 | C103: x | E103: Dane uzupełniające o długu i jego spłacie | F103: x | G103: x | H103: x | I103: x
A104: 14.1 | B104: 0 | C104: x | E104: Spłaty rat kapitałowych oraz wykup papierów wartościowych, o których mowa w pkt. 5.1., wynikające wyłącznie z tytułu zobowiązań już zaciągniętych | F104: x | G104: x | H104: x | I104: x
A105: 14.2 | B105: 0 | C105: x | E105: Kwota długu, którego planowana spłata dokona się z wydatków budżetu | F105: x | G105: x | H105: x | I105: x
A106: 14.3 | B106: 0 | C106: x | E106: Wydatki zmniejszające dług, w tym | F106: x | G106: x | H106: x | I106: x
A107: 14.3.1 | B107: 0 | C107: x | E107: spłata zobowiązań wymagalnych z lat poprzednich, innych niż w pkt 14.3.3 | F107: x | G107: x | H107: x | I107: x
A108: 14.3.2 | B108: 0 | C108: x | E108: związane z umowami zaliczanymi do tytułów dłużnych wliczanych do państwowego długu publicznego | F108: x | G108: x | H108: x | I108: x
A109: 14.3.3 | B109: 0 | C109: x | E109: wypłaty z tytułu wymagalnych poręczeń i gwarancji | F109: x | G109: x | H109: x | I109: x
A110: 14.4 | B110: 0 | C110: x | E110: Wynik operacji niekasowych wpływających na kwotę długu ( m.in. umorzenia, różnice kursowe) | F110: x | G110: x | H110: x | I110: x
A111: 15 | B111: 0 | E111: Dane dotyczące emitowanych obligacji przychodowych | F111: x | G111: x | H111: x | I111: x
A112: 15.1 | B112: 0 | E112: Środki z przedsięwzięcia gromadzone na rachunku bankowym, w tym: | F112: x | G112: x | H112: x | I112: x
A113: 15.1.1 | B113: 0 | C113: x | E113: środki na zaspokojenie roszczeń obligatariuszy | F113: x | G113: x | H113: x | I113: x
A114: 15.2 | B114: 0 | C114: x | E114: Wydatki bieżące z tytułu świadczenia emitenta należnego obligatariuszom, nieuwzględniane w limicie spłaty zobowiązań, o którym mowa w art. 243 ustawy | F114: x | G114: x | H114: x | I114: x

Sheet Wybrany_WPF
O1: Załącznik Nr 1 do Zarządzenia Nr 399/2017 Wójta Gminy Widuchowa z dnia 30 czerwca 2017 r.
E2: Wykonanie | G2: Plan 3 kw. | H2: Wykonanie | J2: Wieloletnia prognoza finansowa Gminy Widuchowa na lata 2017 - 2030
A3: X | B3: Lp. | C3: Nazwy serii (rysunki) | D3: Wyszczególnienie | E3: =+F3-1 -> 2014 | F3: =+G3-1 -> 2015 | G3: =+H3 -> 2016 | H3: =+I3-1 -> 2016 | I3: =+DaneZrodlowe!$O$1 -> 2017 | J3: =+I3+1 -> 2018 | K3: =+J3+1 -> 2019 | L3: 2020 | M3: 2021 | N3: 2022 | O3: 2023 | P3: 2024 | Q3: 2025 | R3: 2026 | S3: 2027 | T3: 2028 | U3: 2029 | V3: 2030 | W3: 2031 | X3: 2032 | Y3: 2033 | Z3: 2034 | AA3: 2035 | AB3: 2036 | AC3: 2037 | AD3: 2038 | AE3: 2039 | AF3: 2040 | AG3: 2041 | AH3: 2042 | AI3: 2043 | AJ3: 2044 | AK3: 2045 | AL3: 2046
A4: x | B4: 1 | C4: Dochody ogółem | D4: Dochody ogółem | E4: =17392993.42 -> 17392993.42 | F4: =17101682.73 -> 17101682.73 | G4: =20918417.46 -> 20918417.46 | H4: =20940703.88 -> 20940703.88 | I4: =20344541.94 -> 20344541.94 | J4: =20445387 -> 20445387 | K4: =22208748 -> 22208748 | L4: =20807811 -> 20807811 | M4: =20863045 -> 20863045 | N4: =21134936 -> 21134936 | O4: =21623984 -> 21623984 | P4: =22130704 -> 22130704 | Q4: =22555625 -> 22555625 | R4: =22755625 -> 22755625 | S4: =22955625 -> 22955625 | T4: =23255625 -> 23255625 | U4: =23555625 -> 23555625 | V4: =23855625 -> 23855625 | W4: =0 -> 0 | X4: =0 -> 0 | Y4: =0 -> 0 | Z4: =0 -> 0 | AA4: =0 -> 0 | AB4: =0 -> 0 | AC4: =0 -> 0 | AD4: =0 -> 0 | AE4: =0 -> 0 | AF4: =0 -> 0 | AG4: =0 -> 0 | AH4: =0 -> 0 | AI4: =0 -> 0 | AJ4: =0 -> 0 | AK4: =0 -> 0 | AL4: =0 -> 0
A5: x | B5: 1.1 | C5: Dochody bieżące | D5: Dochody bieżące | E5: =17056473.25 -> 17056473.25 | F5: =16811380.25 -> 16811380.25 | G5: =19931725.25 -> 19931725.25 | H5: =20404178 -> 20404178 | I5: =19965541.94 -> 19965541.94 | J5: =20045387 -> 20045387 | K5: =20366566 -> 20366566 | L5: =20407811 -> 20407811 | M5: =20563045 -> 20563045 | N5: =20834936 -> 20834936 | O5: =21223984 -> 21223984 | P5: =21730704 -> 21730704 | Q5: =22255625 -> 22255625 | R5: =22455625 -> 22455625 | S5: =22655625 -> 22655625 | T5: =22955625 -> 22955625 | U5: =23255625 -> 23255625 | V5: =23555625 -> 23555625 | W5: =0 -> 0 | X5: =0 -> 0 | Y5: =0 -> 0 | Z5: =0 -> 0 | AA5: =0 -> 0 | AB5: =0 -> 0 | AC5: =0 -> 0 | AD5: =0 -> 0 | AE5: =0 -> 0 | AF5: =0 -> 0 | AG5: =0 -> 0 | AH5: =0 -> 0 | AI5: =0 -> 0 | AJ5: =0 -> 0 | AK5: =0 -> 0 | AL5: =0 -> 0
B6: 1.1.1 | C6: dochody z tytułu udziału we wpływach z podatku dochodowego od osób fizycznych | D6: dochody z tytułu udziału we wpływach z podatku dochodowego od osób fizycznych | E6: =1673051 -> 1673051 | F6: =1919798 -> 1919798 | G6: =1938140 -> 1938140 | H6: =1971057 -> 1971057 | I6: =2287693 -> 2287693 | J6: =2100000 -> 2100000 | K6: =2100000 -> 2100000 | L6: =2100000 -> 2100000 | M6: =2200000 -> 2200000 | N6: =2250000 -> 2250000 | O6: =2300000 -> 2300000 | P6: =2350000 -> 2350000 | Q6: =2400000 -> 2400000 | R6: =2450000 -> 2450000 | S6: =2500000 -> 2500000 | T6: =2550000 -> 2550000 | U6: =2600000 -> 2600000 | V6: =2650000 -> 2650000 | W6: =0 -> 0 | X6: =0 -> 0 | Y6: =0 -> 0 | Z6: =0 -> 0 | AA6: =0 -> 0 | AB6: =0 -> 0 | AC6: =0 -> 0 | AD6: =0 -> 0 | AE6: =0 -> 0 | AF6: =0 -> 0 | AG6: =0 -> 0 | AH6: =0 -> 0 | AI6: =0 -> 0 | AJ6: =0 -> 0 | AK6: =0 -> 0 | AL6: =0 -> 0
B7: 1.1.2 | C7: dochody z tytułu udziału we wpływach z podatku dochodowego od osób prawnych | D7: dochody z tytułu udziału we wpływach z podatku dochodowego od osób prawnych | E7: =8401.41 -> 8401.41 | F7: =3238.59 -> 3238.59 | G7: =3000 -> 3000 | H7: =6077.76 -> 6077.76 | I7: =6000 -> 6000 | J7: =9000 -> 9000 | K7: =10000 -> 10000 | L7: =11000 -> 11000 | M7: =12000 -> 12000 | N7: =13000 -> 13000 | O7: =14000 -> 14000 | P7: =15000 -> 15000 | Q7: =16000 -> 16000 | R7: =17000 -> 17000 | S7: =18000 -> 18000 | T7: =19000 -> 19000 | U7: =20000 -> 20000 | V7: =21000 -> 21000 | W7: =0 -> 0 | X7: =0 -> 0 | Y7: =0 -> 0 | Z7: =0 -> 0 | AA7: =0 -> 0 | AB7: =0 -> 0 | AC7: =0 -> 0 | AD7: =0 -> 0 | AE7: =0 -> 0 | AF7: =0 -> 0 | AG7: =0 -> 0 | AH7: =0 -> 0 | AI7: =0 -> 0 | AJ7: =0 -> 0 | AK7: =0 -> 0 | AL7: =0 -> 0
B8: 1.1.3 | C8: podatki i opłaty | D8: podatki i opłaty | E8: =4929544.81 -> 4929544.81 | F8: =5000956.35 -> 5000956.35 | G8: =3921378 -> 3921378 | H8: =3889520.17 -> 3889520.17 | I8: =4055680 -> 4055680 | J8: =4242000 -> 4242000 | K8: =4405000 -> 4405000 | L8: =4573000 -> 4573000 | M8: =4900000 -> 4900000 | N8: =5000000 -> 5000000 | O8: =5180000 -> 5180000 | P8: =5298000 -> 5298000 | Q8: =5493000 -> 5493000 | R8: =5493000 -> 5493000 | S8: =5493000 -> 5493000 | T8: =5400000 -> 5400000 | U8: =5400000 -> 5400000 | V8: =5400000 -> 5400000 | W8: =0 -> 0 | X8: =0 -> 0 | Y8: =0 -> 0 | Z8: =0 -> 0 | AA8: =0 -> 0 | AB8: =0 -> 0 | AC8: =0 -> 0 | AD8: =0 -> 0 | AE8: =0 -> 0 | AF8: =0 -> 0 | AG8: =0 -> 0 | AH8: =0 -> 0 | AI8: =0 -> 0 | AJ8: =0 -> 0 | AK8: =0 -> 0 | AL8: =0 -> 0
B9: 1.1.3.1 | C9: z podatku od nieruchomości | D9: z podatku od nieruchomości | E9: =2990336.23 -> 2990336.23 | F9: =3054437.86 -> 3054437.86 | G9: =1870000 -> 1870000 | H9: =1949911.42 -> 1949911.42 | I9: =1985000 -> 1985000 | J9: =2013000 -> 2013000 | K9: =2109000 -> 2109000 | L9: =2209000 -> 2209000 | M9: =2311000 -> 2311000 | N9: =2416000 -> 2416000 | O9: =2525000 -> 2525000 | P9: =2636000 -> 2636000 | Q9: =2752000 -> 2752000 | R9: 2752000 | S9: 2752000 | T9: 2752000 | U9: 2752000 | V9: 2752000 | W9: =0 -> 0 | X9: =0 -> 0 | Y9: =0 -> 0 | Z9: =0 -> 0 | AA9: =0 -> 0 | AB9: =0 -> 0 | AC9: =0 -> 0 | AD9: =0 -> 0 | AE9: =0 -> 0 | AF9: =0 -> 0 | AG9: =0 -> 0 | AH9: =0 -> 0 | AI9: =0 -> 0 | AJ9: =0 -> 0 | AK9: =0 -> 0 | AL9: =0 -> 0
B10: 1.1.4 | C10: z subwencji ogólnej | D10: z subwencji ogólnej | E10: =5676996 -> 5676996 | F10: =5458757 -> 5458757 | G10: =5866227 -> 5866227 | H10: =5866227 -> 5866227 | I10: =5956543 -> 5956543 | J10: =5900000 -> 5900000 | K10: =6000000 -> 6000000 | L10: =6022000 -> 6022000 | M10: =6133000 -> 6133000 | N10: =6250000 -> 6250000 | O10: =6400000 -> 6400000 | P10: =6450000 -> 6450000 | Q10: =6500000 -> 6500000 | R10: =6550000 -> 6550000 | S10: =6600000 -> 6600000 | T10: =6750000 -> 6750000 | U10: =6800000 -> 6800000 | V10: =6850000 -> 6850000 | W10: =0 -> 0 | X10: =0 -> 0 | Y10: =0 -> 0 | Z10: =0 -> 0 | AA10: =0 -> 0 | AB10: =0 -> 0 | AC10: =0 -> 0 | AD10: =0 -> 0 | AE10: =0 -> 0 | AF10: =0 -> 0 | AG10: =0 -> 0 | AH10: =0 -> 0 | AI10: =0 -> 0 | AJ10: =0 -> 0 | AK10: =0 -> 0 | AL10: =0 -> 0
B11: 1.1.5 | C11: z tytułu dotacji i środków przeznaczonych na cele bieżące | D11: z tytułu dotacji i środków przeznaczonych na cele bieżące | E11: =4287663.44 -> 4287663.44 | F11: =4019037.08 -> 4019037.08 | G11: =6646197.25 -> 6646197.25 | H11: =7032750.51 -> 7032750.51 | I11: =7158325.94 -> 7158325.94 | J11: =7550000 -> 7550000 | K11: =7350000 -> 7350000 | L11: =6900000 -> 6900000 | M11: =7090000 -> 7090000 | N11: =7200000 -> 7200000 | O11: =7250000 -> 7250000 | P11: =7450000 -> 7450000 | Q11: =7600000 -> 7600000 | R11: =7800000 -> 7800000 | S11: =7900000 -> 7900000 | T11: =8000000 -> 8000000 | U11: =8100000 -> 8100000 | V11: =8200000 -> 8200000 | W11: =0 -> 0 | X11: =0 -> 0 | Y11: =0 -> 0 | Z11: =0 -> 0 | AA11: =0 -> 0 | AB11: =0 -> 0 | AC11: =0 -> 0 | AD11: =0 -> 0 | AE11: =0 -> 0 | AF11: =0 -> 0 | AG11: =0 -> 0 | AH11: =0 -> 0 | AI11: =0 -> 0 | AJ11: =0 -> 0 | AK11: =0 -> 0 | AL11: =0 -> 0
A12: x | B12: 1.2 | C12: Dochody majątkowe | D12: Dochody majątkowe, w tym | E12: =336520.17 -> 336520.17 | F12: =290302.48 -> 290302.48 | G12: =986692.21 -> 986692.21 | H12: =536525.88 -> 536525.88 | I12: =379000 -> 379000 | J12: =400000 -> 400000 | K12: =1842182 -> 1842182 | L12: =400000 -> 400000 | M12: =300000 -> 300000 | N12: =300000 -> 300000 | O12: =400000 -> 400000 | P12: =400000 -> 400000 | Q12: =300000 -> 300000 | R12: 300000 | S12: 300000 | T12: 300000 | U12: 300000 | V12: 300000 | W12: =0 -> 0 | X12: =0 -> 0 | Y12: =0 -> 0 | Z12: =0 -> 0 | AA12: =0 -> 0 | AB12: =0 -> 0 | AC12: =0 -> 0 | AD12: =0 -> 0 | AE12: =0 -> 0 | AF12: =0 -> 0 | AG12: =0 -> 0 | AH12: =0 -> 0 | AI12: =0 -> 0 | AJ12: =0 -> 0 | AK12: =0 -> 0 | AL12: =0 -> 0
A13: x | B13: 1.2.1 | C13: ze sprzedaży majątku | D13: ze sprzedaży majątku | E13: =179740.6 -> 179740.6 | F13: =222848.13 -> 222848.13 | G13: =391378 -> 391378 | H13: =286306.04 -> 286306.04 | I13: =300000 -> 300000 | J13: =400000 -> 400000 | K13: =400000 -> 400000 | L13: =400000 -> 400000 | M13: =300000 -> 300000 | N13: =300000 -> 300000 | O13: =400000 -> 400000 | P13: =400000 -> 400000 | Q13: 300000 | R13: 300000 | S13: 300000 | T13: 300000 | U13: 300000 | V13: 300000 | W13: =0 -> 0 | X13: =0 -> 0 | Y13: =0 -> 0 | Z13: =0 -> 0 | AA13: =0 -> 0 | AB13: =0 -> 0 | AC13: =0 -> 0 | AD13: =0 -> 0 | AE13: =0 -> 0 | AF13: =0 -> 0 | AG13: =0 -> 0 | AH13: =0 -> 0 | AI13: =0 -> 0 | AJ13: =0 -> 0 | AK13: =0 -> 0 | AL13: =0 -> 0
B14: 1.2.2 | C14: z tytułu dotacji oraz środków przeznaczonych na inwestycje | D14: z tytułu dotacji oraz środków przeznaczonych na inwestycje | E14: =148162.3 -> 148162.3 | F14: =55441.71 -> 55441.71 | G14: =586314.21 -> 586314.21 | H14: =236186.71 -> 236186.71 | I14: =69000 -> 69000 | J14: =0 -> 0 | K14: =1442182 -> 1442182 | L14: =0 -> 0 | M14: =0 -> 0 | N14: =0 -> 0 | O14: =0 -> 0 | P14: =0 -> 0 | Q14: =0 -> 0 | R14: =0 -> 0 | S14: =0 -> 0 | T14: =0 -> 0 | U14: =0 -> 0 | V14: =0 -> 0 | W14: =0 -> 0 | X14: =0 -> 0 | Y14: =0 -> 0 | Z14: =0 -> 0 | AA14: =0 -> 0 | AB14: =0 -> 0 | AC14: =0 -> 0 | AD14: =0 -> 0 | AE14: =0 -> 0 | AF14: =0 -> 0 | AG14: =0 -> 0 | AH14: =0 -> 0 | AI14: =0 -> 0 | AJ14: =0 -> 0 | AK14: =0 -> 0 | AL14: =0 -> 0
A15: x | B15: 2 | C15: Wydatki ogółem | D15: Wydatki ogółem | E15: =17186267.02 -> 17186267.02 | F15: =16884782.78 -> 16884782.78 | G15: =20918417.46 -> 20918417.46 | H15: =20139669.01 -> 20139669.01 | I15: =22257541.94 -> 22257541.94 | J15: =19845387 -> 19845387 | K15: =20168748 -> 20168748 | L15: =20207811 -> 20207811 | M15: =20263045 -> 20263045 | N15: =20404936 -> 20404936 | O15: =20713984 -> 20713984 | P15: =20582704 -> 20582704 | Q15: =21812625 -> 21812625 | R15: =22155625 -> 22155625 | S15: =22255625 -> 22255625 | T15: =22655625 -> 22655625 | U15: =22955625 -> 22955625 | V15: =23255625 -> 23255625 | W15: =0 -> 0 | X15: =0 -> 0 | Y15: =0 -> 0 | Z15: =0 -> 0 | AA15: =0 -> 0 | AB15: =0 -> 0 | AC15: =0 -> 0 | AD15: =0 -> 0 | AE15: =0 -> 0 | AF15: =0 -> 0 | AG15: =0 -> 0 | AH15: =0 -> 0 | AI15: =0 -> 0 | AJ15: =0 -> 0 | AK15: =0 -> 0 | AL15: =0 -> 0
A16: x | B16: 2.1 | C16: Wydatki bieżące | D16: Wydatki bieżące, w tym: | E16: =16441428.08 -> 16441428.08 | F16: =16307675.05 -> 16307675.05 | G16: =18300888.25 -> 18300888.25 | H16: =18183468.64 -> 18183468.64 | I16: =18745507.31 -> 18745507.31 | J16: =19241237 -> 19241237 | K16: =19561844 -> 19561844 | L16: =19460149 -> 19460149 | M16: =19266564 -> 19266564 | N16: =19493510 -> 19493510 | O16: =19727425 -> 19727425 | P16: =20166759 -> 20166759 | Q16: =20718971 -> 20718971 | R16: =21118971 -> 21118971 | S16: =21418971 -> 21418971 | T16: =21518971 -> 21518971 | U16: =21718971 -> 21718971 | V16: =21918971 -> 21918971 | W16: =0 -> 0 | X16: =0 -> 0 | Y16: =0 -> 0 | Z16: =0 -> 0 | AA16: =0 -> 0 | AB16: =0 -> 0 | AC16: =0 -> 0 | AD16: =0 -> 0 | AE16: =0 -> 0 | AF16: =0 -> 0 | AG16: =0 -> 0 | AH16: =0 -> 0 | AI16: =0 -> 0 | AJ16: =0 -> 0 | AK16: =0 -> 0 | AL16: =0 -> 0
A17: x | B17: 2.1.1 | C17: z tytułu poręczeń i gwarancji | D17: z tytułu poręczeń i gwarancji | E17: =0 -> 0 | F17: =0 -> 0 | G17: =0 -> 0 | H17: =0 -> 0 | I17: =0 -> 0 | J17: =0 -> 0 | K17: =0 -> 0 | L17: =0 -> 0 | M17: =0 -> 0 | N17: =0 -> 0 | O17: =0 -> 0 | P17: =0 -> 0 | Q17: =0 -> 0 | R17: =0 -> 0 | S17: =0 -> 0 | T17: =0 -> 0 | U17: =0 -> 0 | V17: =0 -> 0 | W17: =0 -> 0 | X17: =0 -> 0 | Y17: =0 -> 0 | Z17: =0 -> 0 | AA17: =0 -> 0 | AB17: =0 -> 0 | AC17: =0 -> 0 | AD17: =0 -> 0 | AE17: =0 -> 0 | AF17: =0 -> 0 | AG17: =0 -> 0 | AH17: =0 -> 0 | AI17: =0 -> 0 | AJ17: =0 -> 0 | AK17: =0 -> 0 | AL17: =0 -> 0
A18: x | B18: 2.1.1.1 | C18: w tym: gwarancje i poręczenia podlegające wyłączeniu z limitu spłaty zobowiązań, o którym mowa w art. 243 ustawy | D18: w tym: gwarancje i poręczenia podlegające wyłączeniu z limitu spłaty zobowiązań, o którym mowa w art. 243 ustawy | E18: =0 -> 0 | F18: =0 -> 0 | G18: =0 -> 0 | H18: =0 -> 0 | I18: =0 -> 0 | J18: =0 -> 0 | K18: =0 -> 0 | L18: =0 -> 0 | M18: =0 -> 0 | N18: =0 -> 0 | O18: =0 -> 0 | P18: =0 -> 0 | Q18: =0 -> 0 | R18: =0 -> 0 | S18: =0 -> 0 | T18: =0 -> 0 | U18: =0 -> 0 | V18: =0 -> 0 | W18: =0 -> 0 | X18: =0 -> 0 | Y18: =0 -> 0 | Z18: =0 -> 0 | AA18: =0 -> 0 | AB18: =0 -> 0 | AC18: =0 -> 0 | AD18: =0 -> 0 | AE18: =0 -> 0 | AF18: =0 -> 0 | AG18: =0 -> 0 | AH18: =0 -> 0 | AI18: =0 -> 0 | AJ18: =0 -> 0 | AK18: =0 -> 0 | AL18: =0 -> 0
B19: 2.1.2 | C19: na spłatę przejętych zobowiązań samodzielnego publicznego zakładu opieki zdrowotnej przekształconego na zasadach określonych w przepisach o działalności leczniczej, w wysokości w jakiej nie podlegają sfinansowaniu dotacją z budżetu państwa | D19: na spłatę przejętych zobowiązań samodzielnego publicznego zakładu opieki zdrowotnej przekształconego na zasadach określonych w przepisach o działalności leczniczej, w wysokości w jakiej nie podlegają sfinansowaniu dotacją z budżetu państwa | E19: =0 -> 0 | F19: =0 -> 0 | G19: =0 -> 0 | H19: =0 -> 0 | I19: =0 -> 0 | J19: =0 -> 0 | K19: =0 -> 0 | L19: =0 -> 0 | M19: =0 -> 0 | N19: =0 -> 0 | O19: =0 -> 0 | P19: =0 -> 0 | Q19: =0 -> 0 | R19: =0 -> 0 | S19: =0 -> 0 | T19: =0 -> 0 | U19: =0 -> 0 | V19: =0 -> 0 | W19: =0 -> 0 | X19: =0 -> 0 | Y19: =0 -> 0 | Z19: =0 -> 0 | AA19: =0 -> 0 | AB19: =0 -> 0 | AC19: =0 -> 0 | AD19: =0 -> 0 | AE19: =0 -> 0 | AF19: =0 -> 0 | AG19: =0 -> 0 | AH19: =0 -> 0 | AI19: =0 -> 0 | AJ19: =0 -> 0 | AK19: =0 -> 0 | AL19: =0 -> 0
A20: x | B20: 2.1.3 | C20: wydatki na obsługę długu, w tym: | D20: wydatki na obsługę długu, w tym: | E20: =430171.93 -> 430171.93 | F20: =352254.63 -> 352254.63 | G20: =340000 -> 340000 | H20: =314345.48 -> 314345.48 | I20: =320000 -> 320000 | J20: =283000 -> 283000 | K20: =269000 -> 269000 | L20: =255000 -> 255000 | M20: =240000 -> 240000 | N20: =226000 -> 226000 | O20: =208000 -> 208000 | P20: =180000 -> 180000 | Q20: =134000 -> 134000 | R20: =112000 -> 112000 | S20: =90000 -> 90000 | T20: =65000 -> 65000 | U20: =43000 -> 43000 | V20: =22000 -> 22000 | W20: =0 -> 0 | X20: =0 -> 0 | Y20: =0 -> 0 | Z20: =0 -> 0 | AA20: =0 -> 0 | AB20: =0 -> 0 | AC20: =0 -> 0 | AD20: =0 -> 0 | AE20: =0 -> 0 | AF20: =0 -> 0 | AG20: =0 -> 0 | AH20: =0 -> 0 | AI20: =0 -> 0 | AJ20: =0 -> 0 | AK20: =0 -> 0 | AL20: =0 -> 0
A21: x | B21: 2.1.3.1 | C21: odsetki i dyskonto określone w art. 243 ust. 1 ustawy, w tym: | D21: odsetki i dyskonto określone w art. 243 ust. 1 ustawy, w tym: | E21: =430171.93 -> 430171.93 | F21: =352254.63 -> 352254.63 | G21: =340000 -> 340000 | H21: =309345.48 -> 309345.48 | I21: =320000 -> 320000 | J21: =283000 -> 283000 | K21: =269000 -> 269000 | L21: =255000 -> 255000 | M21: =240000 -> 240000 | N21: =226000 -> 226000 | O21: =208000 -> 208000 | P21: =180000 -> 180000 | Q21: =134000 -> 134000 | R21: =112000 -> 112000 | S21: =90000 -> 90000 | T21: =65000 -> 65000 | U21: =43000 -> 43000 | V21: =22000 -> 22000 | W21: =0 -> 0 | X21: =0 -> 0 | Y21: =0 -> 0 | Z21: =0 -> 0 | AA21: =0 -> 0 | AB21: =0 -> 0 | AC21: =0 -> 0 | AD21: =0 -> 0 | AE21: =0 -> 0 | AF21: =0 -> 0 | AG21: =0 -> 0 | AH21: =0 -> 0 | AI21: =0 -> 0 | AJ21: =0 -> 0 | AK21: =0 -> 0 | AL21: =0 -> 0
A22: x | B22: 2.1.3.1.1 | C22: odsetki i dyskonto podlegające wyłączeniu z limitu spłaty zobowiązań, o którym mowa w art. 243 ustawy, w terminie nie dłuższym niż 90 dni po zakończeniu programu, projektu lub zadania i otrzymaniu refundacji z tych środków (bez odsetek i dyskonta od zobowiązań na wkład krajowy) | D22: odsetki i dyskonto podlegające wyłączeniu z limitu spłaty zobowiązań, o którym mowa w art. 243 ustawy, w terminie nie dłuższym niż 90 dni po zakończeniu programu, projektu lub zadania i otrzymaniu refundacji z tych środków (bez odsetek i dyskonta od zobowiązań na wkład krajowy) | E22: =40000 -> 40000 | F22: =0 -> 0 | G22: =0 -> 0 | H22: =0 -> 0 | I22: =0 -> 0 | J22: =0 -> 0 | K22: =0 -> 0 | L22: =0 -> 0 | M22: =0 -> 0 | N22: =0 -> 0 | O22: =0 -> 0 | P22: =0 -> 0 | Q22: =0 -> 0 | R22: =0 -> 0 | S22: =0 -> 0 | T22: =0 -> 0 | U22: =0 -> 0 | V22: =0 -> 0 | W22: =0 -> 0 | X22: =0 -> 0 | Y22: =0 -> 0 | Z22: =0 -> 0 | AA22: =0 -> 0 | AB22: =0 -> 0 | AC22: =0 -> 0 | AD22: =0 -> 0 | AE22: =0 -> 0 | AF22: =0 -> 0 | AG22: =0 -> 0 | AH22: =0 -> 0 | AI22: =0 -> 0 | AJ22: =0 -> 0 | AK22: =0 -> 0 | AL22: =0 -> 0
A23: x | B23: 2.1.3.1.2 | C23: odsetki i dyskonto podlegające wyłączeniu z limitu spłaty zobowiązań, o którym mowa w art. 243 ustawy, z tytułu zobowiązań zaciągniętych na wkład krajowy | D23: odsetki i dyskonto podlegające wyłączeniu z limitu spłaty zobowiązań, o którym mowa w art. 243 ustawy, z tytułu zobowiązań zaciągniętych na wkład krajowy | E23: =130000 -> 130000 | F23: =107230.61 -> 107230.61 | G23: =105951.71 -> 105951.71 | H23: =96473.89 -> 96473.89 | I23: =87300 -> 87300 | J23: =69300 -> 69300 | K23: =59000 -> 59000 | L23: =59000 -> 59000 | M23: =59000 -> 59000 | N23: =41000 -> 41000 | O23: =19000 -> 19000 | P23: =11700 -> 11700 | Q23: =11700 -> 11700 | R23: =0 -> 0 | S23: =0 -> 0 | T23: =0 -> 0 | U23: =0 -> 0 | V23: =0 -> 0 | W23: =0 -> 0 | X23: =0 -> 0 | Y23: =0 -> 0 | Z23: =0 -> 0 | AA23: =0 -> 0 | AB23: =0 -> 0 | AC23: =0 -> 0 | AD23: =0 -> 0 | AE23: =0 -> 0 | AF23: =0 -> 0 | AG23: =0 -> 0 | AH23: =0 -> 0 | AI23: =0 -> 0 | AJ23: =0 -> 0 | AK23: =0 -> 0 | AL23: =0 -> 0
A24: x | B24: 2.2 | C24: Wydatki majątkowe | D24: Wydatki majątkowe | E24: =744838.94 -> 744838.94 | F24: =577107.73 -> 577107.73 | G24: =2617529.21 -> 2617529.21 | H24: =1956200.37 -> 1956200.37 | I24: =3512034.63 -> 3512034.63 | J24: =604150 -> 604150 | K24: =606904 -> 606904 | L24: =747662 -> 747662 | M24: =996481 -> 996481 | N24: =911426 -> 911426 | O24: =986559 -> 986559 | P24: =415945 -> 415945 | Q24: =1093654 -> 1093654 | R24: =1036654 -> 1036654 | S24: =836654 -> 836654 | T24: =1136654 -> 1136654 | U24: =1236654 -> 1236654 | V24: =1336654 -> 1336654 | W24: =0 -> 0 | X24: =0 -> 0 | Y24: =0 -> 0 | Z24: =0 -> 0 | AA24: =0 -> 0 | AB24: =0 -> 0 | AC24: =0 -> 0 | AD24: =0 -> 0 | AE24: =0 -> 0 | AF24: =0 -> 0 | AG24: =0 -> 0 | AH24: =0 -> 0 | AI24: =0 -> 0 | AJ24: =0 -> 0 | AK24: =0 -> 0 | AL24: =0 -> 0
A25: x | B25: 3 | C25: Wynik budżetu | D25: Wynik budżetu | E25: =206726.4 -> 206726.4 | F25: =216899.95 -> 216899.95 | G25: =0 -> 0 | H25: =801034.87 -> 801034.87 | I25: =-1913000 -> -1913000 | J25: =600000 -> 600000 | K25: =2040000 -> 2040000 | L25: =600000 -> 600000 | M25: =600000 -> 600000 | N25: =730000 -> 730000 | O25: =910000 -> 910000 | P25: =1548000 -> 1548000 | Q25: =743000 -> 743000 | R25: =600000 -> 600000 | S25: =700000 -> 700000 | T25: =600000 -> 600000 | U25: =600000 -> 600000 | V25: =600000 -> 600000 | W25: =0 -> 0 | X25: =0 -> 0 | Y25: =0 -> 0 | Z25: =0 -> 0 | AA25: =0 -> 0 | AB25: =0 -> 0 | AC25: =0 -> 0 | AD25: =0 -> 0 | AE25: =0 -> 0 | AF25: =0 -> 0 | AG25: =0 -> 0 | AH25: =0 -> 0 | AI25: =0 -> 0 | AJ25: =0 -> 0 | AK25: =0 -> 0 | AL25: =0 -> 0
A26: x | B26: 4 | C26: Przychody budżetu | D26: Przychody budżetu | E26: =1405350.74 -> 1405350.74 | F26: =555077.14 -> 555077.14 | G26: =400000 -> 400000 | H26: =671977.09 -> 671977.09 | I26: =2513000 -> 2513000 | J26: =0 -> 0 | K26: =0 -> 0 | L26: =0 -> 0 | M26: =0 -> 0 | N26: =0 -> 0 | O26: =0 -> 0 | P26: =0 -> 0 | Q26: =0 -> 0 | R26: =0 -> 0 | S26: =0 -> 0 | T26: =0 -> 0 | U26: =0 -> 0 | V26: =0 -> 0 | W26: =0 -> 0 | X26: =0 -> 0 | Y26: =0 -> 0 | Z26: =0 -> 0 | AA26: =0 -> 0 | AB26: =0 -> 0 | AC26: =0 -> 0 | AD26: =0 -> 0 | AE26: =0 -> 0 | AF26: =0 -> 0 | AG26: =0 -> 0 | AH26: =0 -> 0 | AI26: =0 -> 0 | AJ26: =0 -> 0 | AK26: =0 -> 0 | AL26: =0 -> 0
A27: x | B27: 4.1 | C27: Nadwyżka budżetowa z lat ubiegłych | D27: Nadwyżka budżetowa z lat ubiegłych | E27: =0 -> 0 | F27: =0 -> 0 | G27: =0 -> 0 | H27: =0 -> 0 | I27: =0 -> 0 | J27: =0 -> 0 | K27: =0 -> 0 | L27: =0 -> 0 | M27: =0 -> 0 | N27: =0 -> 0 | O27: =0 -> 0 | P27: =0 -> 0 | Q27: =0 -> 0 | R27: =0 -> 0 | S27: =0 -> 0 | T27: =0 -> 0 | U27: =0 -> 0 | V27: =0 -> 0 | W27: =0 -> 0 | X27: =0 -> 0 | Y27: =0 -> 0 | Z27: =0 -> 0 | AA27: =0 -> 0 | AB27: =0 -> 0 | AC27: =0 -> 0 | AD27: =0 -> 0 | AE27: =0 -> 0 | AF27: =0 -> 0 | AG27: =0 -> 0 | AH27: =0 -> 0 | AI27: =0 -> 0 | AJ27: =0 -> 0 | AK27: =0 -> 0 | AL27: =0 -> 0
A28: x | B28: 4.1.1 | C28: w tym na pokrycie deficytu budżetu | D28: w tym na pokrycie deficytu budżetu | E28: =0 -> 0 | F28: =0 -> 0 | G28: =0 -> 0 | H28: =0 -> 0 | I28: =0 -> 0 | J28: =0 -> 0 | K28: =0 -> 0 | L28: =0 -> 0 | M28: =0 -> 0 | N28: =0 -> 0 | O28: =0 -> 0 | P28: =0 -> 0 | Q28: =0 -> 0 | R28: =0 -> 0 | S28: =0 -> 0 | T28: =0 -> 0 | U28: =0 -> 0 | V28: =0 -> 0 | W28: =0 -> 0 | X28: =0 -> 0 | Y28: =0 -> 0 | Z28: =0 -> 0 | AA28: =0 -> 0 | AB28: =0 -> 0 | AC28: =0 -> 0 | AD28: =0 -> 0 | AE28: =0 -> 0 | AF28: =0 -> 0 | AG28: =0 -> 0 | AH28: =0 -> 0 | AI28: =0 -> 0 | AJ28: =0 -> 0 | AK28: =0 -> 0 | AL28: =0 -> 0
A29: x | B29: 4.2 | C29: Wolne środki, o których mowa w art. 217 ust.2 pkt 6 ustawy | D29: Wolne środki, o których mowa w art. 217 ust.2 pkt 6 ustawy | E29: =1405350.74 -> 1405350.74 | F29: =555077.14 -> 555077.14 | G29: =400000 -> 400000 | H29: =671977.09 -> 671977.09 | I29: =1073000 -> 1073000 | J29: =0 -> 0 | K29: =0 -> 0 | L29: =0 -> 0 | M29: =0 -> 0 | N29: =0 -> 0 | O29: =0 -> 0 | P29: =0 -> 0 | Q29: =0 -> 0 | R29: =0 -> 0 | S29: =0 -> 0 | T29: =0 -> 0 | U29: =0 -> 0 | V29: =0 -> 0 | W29: =0 -> 0 | X29: =0 -> 0 | Y29: =0 -> 0 | Z29: =0 -> 0 | AA29: =0 -> 0 | AB29: =0 -> 0 | AC29: =0 -> 0 | AD29: =0 -> 0 | AE29: =0 -> 0 | AF29: =0 -> 0 | AG29: =0 -> 0 | AH29: =0 -> 0 | AI29: =0 -> 0 | AJ29: =0 -> 0 | AK29: =0 -> 0 | AL29: =0 -> 0
A30: x | B30: 4.2.1 | C30: w tym na pokrycie deficytu budżetu | D30: w tym na pokrycie deficytu budżetu | E30: =0 -> 0 | F30: =0 -> 0 | G30: =0 -> 0 | H30: =0 -> 0 | I30: =473000 -> 473000 | J30: =0 -> 0 | K30: =0 -> 0 | L30: =0 -> 0 | M30: =0 -> 0 | N30: =0 -> 0 | O30: =0 -> 0 | P30: =0 -> 0 | Q30: =0 -> 0 | R30: =0 -> 0 | S30: =0 -> 0 | T30: =0 -> 0 | U30: =0 -> 0 | V30: =0 -> 0 | W30: =0 -> 0 | X30: =0 -> 0 | Y30: =0 -> 0 | Z30: =0 -> 0 | AA30: =0 -> 0 | AB30: =0 -> 0 | AC30: =0 -> 0 | AD30: =0 -> 0 | AE30: =0 -> 0 | AF30: =0 -> 0 | AG30: =0 -> 0 | AH30: =0 -> 0 | AI30: =0 -> 0 | AJ30: =0 -> 0 | AK30: =0 -> 0 | AL30: =0 -> 0
A31: x | B31: 4.3 | C31: Kredyty, pożyczki, emisja papierów wartościowych | D31: Kredyty, pożyczki, emisja papierów wartościowych | E31: =0 -> 0 | F31: =0 -> 0 | G31: =0 -> 0 | H31: =0 -> 0 | I31: =1440000 -> 1440000 | J31: =0 -> 0 | K31: =0 -> 0 | L31: =0 -> 0 | M31: =0 -> 0 | N31: =0 -> 0 | O31: =0 -> 0 | P31: =0 -> 0 | Q31: =0 -> 0 | R31: =0 -> 0 | S31: =0 -> 0 | T31: =0 -> 0 | U31: =0 -> 0 | V31: =0 -> 0 | W31: =0 -> 0 | X31: =0 -> 0 | Y31: =0 -> 0 | Z31: =0 -> 0 | AA31: =0 -> 0 | AB31: =0 -> 0 | AC31: =0 -> 0 | AD31: =0 -> 0 | AE31: =0 -> 0 | AF31: =0 -> 0 | AG31: =0 -> 0 | AH31: =0 -> 0 | AI31: =0 -> 0 | AJ31: =0 -> 0 | AK31: =0 -> 0 | AL31: =0 -> 0
A32: x | B32: 4.3.1 | C32: w tym na pokrycie deficytu budżetu | D32: w tym na pokrycie deficytu budżetu | E32: =0 -> 0 | F32: =0 -> 0 | G32: =0 -> 0 | H32: =0 -> 0 | I32: =1440000 -> 1440000 | J32: =0 -> 0 | K32: =0 -> 0 | L32: =0 -> 0 | M32: =0 -> 0 | N32: =0 -> 0 | O32: =0 -> 0 | P32: =0 -> 0 | Q32: =0 -> 0 | R32: =0 -> 0 | S32: =0 -> 0 | T32: =0 -> 0 | U32: =0 -> 0 | V32: =0 -> 0 | W32: =0 -> 0 | X32: =0 -> 0 | Y32: =0 -> 0 | Z32: =0 -> 0 | AA32: =0 -> 0 | AB32: =0 -> 0 | AC32: =0 -> 0 | AD32: =0 -> 0 | AE32: =0 -> 0 | AF32: =0 -> 0 | AG32: =0 -> 0 | AH32: =0 -> 0 | AI32: =0 -> 0 | AJ32: =0 -> 0 | AK32: =0 -> 0 | AL32: =0 -> 0
A33: x | B33: 4.4 | C33: Inne przychody niezwiązane z zaciągnięciem długu | D33: Inne przychody niezwiązane z zaciągnięciem długu | E33: =0 -> 0 | F33: =0 -> 0 | G33: =0 -> 0 | H33: =0 -> 0 | I33: =0 -> 0 | J33: =0 -> 0 | K33: =0 -> 0 | L33: =0 -> 0 | M33: =0 -> 0 | N33: =0 -> 0 | O33: =0 -> 0 | P33: =0 -> 0 | Q33: =0 -> 0 | R33: =0 -> 0 | S33: =0 -> 0 | T33: =0 -> 0 | U33: =0 -> 0 | V33: =0 -> 0 | W33: =0 -> 0 | X33: =0 -> 0 | Y33: =0 -> 0 | Z33: =0 -> 0 | AA33: =0 -> 0 | AB33: =0 -> 0 | AC33: =0 -> 0 | AD33: =0 -> 0 | AE33: =0 -> 0 | AF33: =0 -> 0 | AG33: =0 -> 0 | AH33: =0 -> 0 | AI33: =0 -> 0 | AJ33: =0 -> 0 | AK33: =0 -> 0 | AL33: =0 -> 0
A34: x | B34: 4.4.1 | C34: w tym na pokrycie deficytu budżetu | D34: w tym na pokrycie deficytu budżetu | E34: =0 -> 0 | F34: =0 -> 0 | G34: =0 -> 0 | H34: =0 -> 0 | I34: =0 -> 0 | J34: =0 -> 0 | K34: =0 -> 0 | L34: =0 -> 0 | M34: =0 -> 0 | N34: =0 -> 0 | O34: =0 -> 0 | P34: =0 -> 0 | Q34: =0 -> 0 | R34: =0 -> 0 | S34: =0 -> 0 | T34: =0 -> 0 | U34: =0 -> 0 | V34: =0 -> 0 | W34: =0 -> 0 | X34: =0 -> 0 | Y34: =0 -> 0 | Z34: =0 -> 0 | AA34: =0 -> 0 | AB34: =0 -> 0 | AC34: =0 -> 0 | AD34: =0 -> 0 | AE34: =0 -> 0 | AF34: =0 -> 0 | AG34: =0 -> 0 | AH34: =0 -> 0 | AI34: =0 -> 0 | AJ34: =0 -> 0 | AK34: =0 -> 0 | AL34: =0 -> 0
A35: x | B35: 5 | C35: Rozchody budżetu | D35: Rozchody budżetu | E35: =1057000 -> 1057000 | F35: =100000 -> 100000 | G35: =400000 -> 400000 | H35: =400000 -> 400000 | I35: =600000 -> 600000 | J35: =600000 -> 600000 | K35: =2040000 -> 2040000 | L35: =600000 -> 600000 | M35: =600000 -> 600000 | N35: =730000 -> 730000 | O35: =910000 -> 910000 | P35: =1548000 -> 1548000 | Q35: =743000 -> 743000 | R35: =600000 -> 600000 | S35: =700000 -> 700000 | T35: =600000 -> 600000 | U35: 600000 | V35: 600000 | W35: =0 -> 0 | X35: =0 -> 0 | Y35: =0 -> 0 | Z35: =0 -> 0 | AA35: =0 -> 0 | AB35: =0 -> 0 | AC35: =0 -> 0 | AD35: =0 -> 0 | AE35: =0 -> 0 | AF35: =0 -> 0 | AG35: =0 -> 0 | AH35: =0 -> 0 | AI35: =0 -> 0 | AJ35: =0 -> 0 | AK35: =0 -> 0 | AL35: =0 -> 0
A36: x | B36: 5.1 | C36: Spłaty rat kapitałowych kredytów i pożyczek oraz wykup papierów wartościowych | D36: Spłaty rat kapitałowych kredytów i pożyczek oraz wykup papierów wartościowych | E36: =1057000 -> 1057000 | F36: =100000 -> 100000 | G36: =400000 -> 400000 | H36: =400000 -> 400000 | I36: =600000 -> 600000 | J36: =600000 -> 600000 | K36: =2040000 -> 2040000 | L36: =600000 -> 600000 | M36: =600000 -> 600000 | N36: =730000 -> 730000 | O36: =910000 -> 910000 | P36: =1548000 -> 1548000 | Q36: =743000 -> 743000 | R36: =600000 -> 600000 | S36: =700000 -> 700000 | T36: 600000 | U36: 600000 | V36: 600000 | W36: =0 -> 0 | X36: =0 -> 0 | Y36: =0 -> 0 | Z36: =0 -> 0 | AA36: =0 -> 0 | AB36: =0 -> 0 | AC36: =0 -> 0 | AD36: =0 -> 0 | AE36: =0 -> 0 | AF36: =0 -> 0 | AG36: =0 -> 0 | AH36: =0 -> 0 | AI36: =0 -> 0 | AJ36: =0 -> 0 | AK36: =0 -> 0 | AL36: =0 -> 0
A37: x | B37: 5.1.1 | C37: w tym łączna kwota przypadających na dany rok kwot ustawowych wyłączeń z limitu spłaty zobowiązań, o którym mowa w art. 243 ustawy, z tego: | D37: w tym łączna kwota przypadających na dany rok kwot ustawowych wyłączeń z limitu spłaty zobowiązań, o którym mowa w art. 243 ustawy, z tego: | E37: =1057000 -> 1057000 | F37: =0 -> 0 | G37: =0 -> 0 | H37: =0 -> 0 | I37: =0 -> 0 | J37: =0 -> 0 | K37: =1440000 -> 1440000 | L37: =0 -> 0 | M37: =0 -> 0 | N37: =0 -> 0 | O37: =0 -> 0 | P37: =0 -> 0 | Q37: =0 -> 0 | R37: =0 -> 0 | S37: =0 -> 0 | T37: =0 -> 0 | U37: =0 -> 0 | V37: =0 -> 0 | W37: =0 -> 0 | X37: =0 -> 0 | Y37: =0 -> 0 | Z37: =0 -> 0 | AA37: =0 -> 0 | AB37: =0 -> 0 | AC37: =0 -> 0 | AD37: =0 -> 0 | AE37: =0 -> 0 | AF37: =0 -> 0 | AG37: =0 -> 0 | AH37: =0 -> 0 | AI37: =0 -> 0 | AJ37: =0 -> 0 | AK37: =0 -> 0 | AL37: =0 -> 0
A38: x | B38: 5.1.1.1 | C38: kwota przypadających na dany rok kwot ustawowych wyłączeń określonych w art. 243 ust. 3 ustawy | D38: kwota przypadających na dany rok kwot ustawowych wyłączeń określonych w art. 243 ust. 3 ustawy | E38: =1057000 -> 1057000 | F38: =0 -> 0 | G38: =0 -> 0 | H38: =0 -> 0 | I38: =0 -> 0 | J38: =0 -> 0 | K38: =1440000 -> 1440000 | L38: =0 -> 0 | M38: =0 -> 0 | N38: =0 -> 0 | O38: =0 -> 0 | P38: =0 -> 0 | Q38: =0 -> 0 | R38: =0 -> 0 | S38: =0 -> 0 | T38: =0 -> 0 | U38: =0 -> 0 | V38: =0 -> 0 | W38: =0 -> 0 | X38: =0 -> 0 | Y38: =0 -> 0 | Z38: =0 -> 0 | AA38: =0 -> 0 | AB38: =0 -> 0 | AC38: =0 -> 0 | AD38: =0 -> 0 | AE38: =0 -> 0 | AF38: =0 -> 0 | AG38: =0 -> 0 | AH38: =0 -> 0 | AI38: =0 -> 0 | AJ38: =0 -> 0 | AK38: =0 -> 0 | AL38: =0 -> 0
A39: x | B39: 5.1.1.2 | C39: kwota przypadających na dany rok kwot ustawowych wyłączeń określonych w art. 243 ust. 3a ustawy | D39: kwota przypadających na dany rok kwot ustawowych wyłączeń określonych w art. 243 ust. 3a ustawy | E39: =0 -> 0 | F39: =0 -> 0 | G39: =0 -> 0 | H39: =0 -> 0 | I39: =0 -> 0 | J39: =0 -> 0 | K39: =0 -> 0 | L39: =0 -> 0 | M39: =0 -> 0 | N39: =0 -> 0 | O39: =0 -> 0 | P39: =0 -> 0 | Q39: =0 -> 0 | R39: =0 -> 0 | S39: =0 -> 0 | T39: =0 -> 0 | U39: =0 -> 0 | V39: =0 -> 0 | W39: =0 -> 0 | X39: =0 -> 0 | Y39: =0 -> 0 | Z39: =0 -> 0 | AA39: =0 -> 0 | AB39: =0 -> 0 | AC39: =0 -> 0 | AD39: =0 -> 0 | AE39: =0 -> 0 | AF39: =0 -> 0 | AG39: =0 -> 0 | AH39: =0 -> 0 | AI39: =0 -> 0 | AJ39: =0 -> 0 | AK39: =0 -> 0 | AL39: =0 -> 0
A40: x | B40: 5.1.1.3 | C40: kwota przypadających na dany rok kwot ustawowych wyłączeń innych niż określone w art. 243 ustawy | D40: kwota przypadających na dany rok kwot ustawowych wyłączeń innych niż określone w art. 243 ustawy | E40: =0 -> 0 | F40: =0 -> 0 | G40: =0 -> 0 | H40: =0 -> 0 | I40: =0 -> 0 | J40: =0 -> 0 | K40: =0 -> 0 | L40: =0 -> 0 | M40: =0 -> 0 | N40: =0 -> 0 | O40: =0 -> 0 | P40: =0 -> 0 | Q40: =0 -> 0 | R40: =0 -> 0 | S40: =0 -> 0 | T40: =0 -> 0 | U40: =0 -> 0 | V40: =0 -> 0 | W40: =0 -> 0 | X40: =0 -> 0 | Y40: =0 -> 0 | Z40: =0 -> 0 | AA40: =0 -> 0 | AB40: =0 -> 0 | AC40: =0 -> 0 | AD40: =0 -> 0 | AE40: =0 -> 0 | AF40: =0 -> 0 | AG40: =0 -> 0 | AH40: =0 -> 0 | AI40: =0 -> 0 | AJ40: =0 -> 0 | AK40: =0 -> 0 | AL40: =0 -> 0
B41: 5.2 | C41: Inne rozchody niezwiązane ze spłatą długu | D41: Inne rozchody niezwiązane ze spłatą długu | E41: =0 -> 0 | F41: =0 -> 0 | G41: =0 -> 0 | H41: =0 -> 0 | I41: =0 -> 0 | J41: =0 -> 0 | K41: =0 -> 0 | L41: =0 -> 0 | M41: =0 -> 0 | N41: =0 -> 0 | O41: =0 -> 0 | P41: =0 -> 0 | Q41: =0 -> 0 | R41: =0 -> 0 | S41: =0 -> 0 | T41: =0 -> 0 | U41: =0 -> 0 | V41: =0 -> 0 | W41: =0 -> 0 | X41: =0 -> 0 | Y41: =0 -> 0 | Z41: =0 -> 0 | AA41: =0 -> 0 | AB41: =0 -> 0 | AC41: =0 -> 0 | AD41: =0 -> 0 | AE41: =0 -> 0 | AF41: =0 -> 0 | AG41: =0 -> 0 | AH41: =0 -> 0 | AI41: =0 -> 0 | AJ41: =0 -> 0 | AK41: =0 -> 0 | AL41: =0 -> 0
A42: x | B42: 6 | C42: Kwota długu | D42: Kwota długu | E42: =10540850 -> 10540850 | F42: =10431000 -> 10431000 | G42: =10719000 -> 10719000 | H42: =10727129.22 -> 10727129.22 | I42: =11435000 -> 11435000 | J42: =10715000 -> 10715000 | K42: =8558000 -> 8558000 | L42: =7845000 -> 7845000 | M42: =7136000 -> 7136000 | N42: =6301000 -> 6301000 | O42: =5391000 -> 5391000 | P42: =3843000 -> 3843000 | Q42: =3100000 -> 3100000 | R42: =2500000 -> 2500000 | S42: =1800000 -> 1800000 | T42: =1200000 -> 1200000 | U42: =600000 -> 600000 | V42: =0 -> 0 | W42: =0 -> 0 | X42: =0 -> 0 | Y42: =0 -> 0 | Z42: =0 -> 0 | AA42: =0 -> 0 | AB42: =0 -> 0 | AC42: =0 -> 0 | AD42: =0 -> 0 | AE42: =0 -> 0 | AF42: =0 -> 0 | AG42: =0 -> 0 | AH42: =0 -> 0 | AI42: =0 -> 0 | AJ42: =0 -> 0 | AK42: =0 -> 0 | AL42: =0 -> 0
B43: 7 | C43: Kwota zobowiązań wynikających z przejęcia przez jednostkę samorządu terytorialnego zobowiązań po likwidowanych i przekształcanych jednostkach zaliczanych do sektora finansów publicznych | D43: Kwota zobowiązań wynikających z przejęcia przez jednostkę samorządu terytorialnego zobowiązań po likwidowanych i przekształcanych jednostkach zaliczanych do sektora finansów publicznych | E43: =0 -> 0 | F43: =0 -> 0 | G43: =0 -> 0 | H43: =0 -> 0 | I43: =0 -> 0 | J43: =0 -> 0 | K43: =0 -> 0 | L43: =0 -> 0 | M43: =0 -> 0 | N43: =0 -> 0 | O43: =0 -> 0 | P43: =0 -> 0 | Q43: =0 -> 0 | R43: =0 -> 0 | S43: =0 -> 0 | T43: =0 -> 0 | U43: =0 -> 0 | V43: =0 -> 0 | W43: =0 -> 0 | X43: =0 -> 0 | Y43: =0 -> 0 | Z43: =0 -> 0 | AA43: =0 -> 0 | AB43: =0 -> 0 | AC43: =0 -> 0 | AD43: =0 -> 0 | AE43: =0 -> 0 | AF43: =0 -> 0 | AG43: =0 -> 0 | AH43: =0 -> 0 | AI43: =0 -> 0 | AJ43: =0 -> 0 | AK43: =0 -> 0 | AL43: =0 -> 0
B44: 8 | C44: Relacja zrównoważenia wydatków bieżących, o której mowa w art. 242 ustawy | D44: Relacja zrównoważenia wydatków bieżących, o której mowa w art. 242 ustawy | E44: x | F44: x | G44: x | H44: x | I44: x | J44: x | K44: x | L44: x | M44: x | N44: x | O44: x | P44: x | Q44: x | R44: x | S44: x | T44: x | U44: x | V44: x | W44: x | X44: x | Y44: x | Z44: x | AA44: x | AB44: x | AC44: x | AD44: x | AE44: x | AF44: x | AG44: x | AH44: x | AI44: x | AJ44: x | AK44: x | AL44: x
B45: 8.1 | C45: Różnica między dochodami bieżącymi a wydatkami bieżącymi | D45: Różnica między dochodami bieżącymi a wydatkami bieżącymi | E45: =615045.17 -> 615045.17 | F45: =503705.2 -> 503705.2 | G45: =1630837 -> 1630837 | H45: =2220709.36 -> 2220709.36 | I45: =1220034.63 -> 1220034.63 | J45: =804150 -> 804150 | K45: =804722 -> 804722 | L45: =947662 -> 947662 | M45: =1296481 -> 1296481 | N45: =1341426 -> 1341426 | O45: =1496559 -> 1496559 | P45: =1563945 -> 1563945 | Q45: =1536654 -> 1536654 | R45: =1336654 -> 1336654 | S45: =1236654 -> 1236654 | T45: =1436654 -> 1436654 | U45: =1536654 -> 1536654 | V45: =1636654 -> 1636654 | W45: =0 -> 0 | X45: =0 -> 0 | Y45: =0 -> 0 | Z45: =0 -> 0 | AA45: =0 -> 0 | AB45: =0 -> 0 | AC45: =0 -> 0 | AD45: =0 -> 0 | AE45: =0 -> 0 | AF45: =0 -> 0 | AG45: =0 -> 0 | AH45: =0 -> 0 | AI45: =0 -> 0 | AJ45: =0 -> 0 | AK45: =0 -> 0 | AL45: =0 -> 0
B46: 8.2 | C46: Różnica między dochodami bieżącymi, skorygowanymi o środki a wydatkami bieżącymi, pomniejszonymi o wydatki | D46: Różnica między dochodami bieżącymi, skorygowanymi o środki a wydatkami bieżącymi, pomniejszonymi o wydatki | E46: =2020395.91 -> 2020395.91 | F46: =1058782.34 -> 1058782.34 | G46: =2030837 -> 2030837 | H46: =2892686.45 -> 2892686.45 | I46: =2293034.63 -> 2293034.63 | J46: =804150 -> 804150 | K46: =804722 -> 804722 | L46: =947662 -> 947662 | M46: =1296481 -> 1296481 | N46: =1341426 -> 1341426 | O46: =1496559 -> 1496559 | P46: =1563945 -> 1563945 | Q46: =1536654 -> 1536654 | R46: =1336654 -> 1336654 | S46: =1236654 -> 1236654 | T46: =1436654 -> 1436654 | U46: =1536654 -> 1536654 | V46: =1636654 -> 1636654 | W46: =0 -> 0 | X46: =0 -> 0 | Y46: =0 -> 0 | Z46: =0 -> 0 | AA46: =0 -> 0 | AB46: =0 -> 0 | AC46: =0 -> 0 | AD46: =0 -> 0 | AE46: =0 -> 0 | AF46: =0 -> 0 | AG46: =0 -> 0 | AH46: =0 -> 0 | AI46: =0 -> 0 | AJ46: =0 -> 0 | AK46: =0 -> 0 | AL46: =0 -> 0
A47: x | B47: 9 | C47: Wskaźnik spłaty zobowiązań | D47: Wskaźnik spłaty zobowiązań | E47: x | F47: x | G47: x | H47: x | I47: x | J47: x | K47: x | L47: x | M47: x | N47: x | O47: x | P47: x | Q47: x | R47: x | S47: x | T47: x | U47: x | V47: x | W47: x | X47: x | Y47: x | Z47: x | AA47: x | AB47: x | AC47: x | AD47: x | AE47: x | AF47: x | AG47: x | AH47: x | AI47: x | AJ47: x | AK47: x | AL47: x
A48: x | B48: 9.1 | C48: (R+O) / D (bez wyłączeń) | D48: Wskaźnik planowanej łącznej kwoty spłaty zobowiązań, o której mowa w art. 243 ust. 1 ustawy do dochodów, bez uwzględnienia zobowiązań związku współtworzonego przez jednostkę samorządu terytorialnego i bez uwzględnienia ustawowych wyłączeń przypadających na dany rok. | E48: =0.0855 -> 0.0855 | F48: =0.0264 -> 0.0264 | G48: =0.0354 -> 0.0354 | H48: =0.0339 -> 0.0339 | I48: =0.0452 -> 0.0452 | J48: =0.0432 -> 0.0432 | K48: =0.104 -> 0.104 | L48: =0.0411 -> 0.0411 | M48: =0.0403 -> 0.0403 | N48: =0.0452 -> 0.0452 | O48: =0.0517 -> 0.0517 | P48: =0.0781 -> 0.0781 | Q48: =0.0389 -> 0.0389 | R48: =0.0313 -> 0.0313 | S48: =0.0344 -> 0.0344 | T48: =0.0286 -> 0.0286 | U48: =0.0273 -> 0.0273 | V48: =0.0261 -> 0.0261 | W48: =0 -> 0 | X48: =0 -> 0 | Y48: =0 -> 0 | Z48: =0 -> 0 | AA48: =0 -> 0 | AB48: =0 -> 0 | AC48: =0 -> 0 | AD48: =0 -> 0 | AE48: =0 -> 0 | AF48: =0 -> 0 | AG48: =0 -> 0 | AH48: =0 -> 0 | AI48: =0 -> 0 | AJ48: =0 -> 0 | AK48: =0 -> 0 | AL48: =0 -> 0
A49: x | B49: 9.2 | C49: (R+O) / D (z wyłączeniami) | D49: Wskaźnik planowanej łącznej kwoty spłaty zobowiązań, o której mowa w art. 243 ust. 1 ustawy do dochodów, bez uwzględnienia zobowiązań związku współtworzonego przez jednostkę samorządu terytorialnego, po uwzględnieniu ustawowych wyłączeń przypadających na dany rok. | E49: =0.015 -> 0.015 | F49: =0.0202 -> 0.0202 | G49: =0.0303 -> 0.0303 | H49: =0.0293 -> 0.0293 | I49: =0.0409 -> 0.0409 | J49: =0.0398 -> 0.0398 | K49: =0.0365 -> 0.0365 | L49: =0.0383 -> 0.0383 | M49: =0.0374 -> 0.0374 | N49: =0.0433 -> 0.0433 | O49: =0.0508 -> 0.0508 | P49: =0.0776 -> 0.0776 | Q49: =0.0384 -> 0.0384 | R49: =0.0313 -> 0.0313 | S49: =0.0344 -> 0.0344 | T49: =0.0286 -> 0.0286 | U49: =0.0273 -> 0.0273 | V49: =0.0261 -> 0.0261 | W49: =0 -> 0 | X49: =0 -> 0 | Y49: =0 -> 0 | Z49: =0 -> 0 | AA49: =0 -> 0 | AB49: =0 -> 0 | AC49: =0 -> 0 | AD49: =0 -> 0 | AE49: =0 -> 0 | AF49: =0 -> 0 | AG49: =0 -> 0 | AH49: =0 -> 0 | AI49: =0 -> 0 | AJ49: =0 -> 0 | AK49: =0 -> 0 | AL49: =0 -> 0
A50: x | B50: 9.3 | C50: Kwota zobowiązań związku współtworzonego przez jednostkę samorządu terytorialnego przypadających do spłaty w danym roku budżetowym, podlegająca doliczeniu zgodnie z art. 244 ustawy | D50: Kwota zobowiązań związku współtworzonego przez jednostkę samorządu terytorialnego przypadających do spłaty w danym roku budżetowym, podlegająca doliczeniu zgodnie z art. 244 ustawy | E50: =0 -> 0 | F50: =0 -> 0 | G50: =0 -> 0 | H50: =0 -> 0 | I50: =0 -> 0 | J50: =0 -> 0 | K50: =0 -> 0 | L50: =0 -> 0 | M50: =0 -> 0 | N50: =0 -> 0 | O50: =0 -> 0 | P50: =0 -> 0 | Q50: =0 -> 0 | R50: =0 -> 0 | S50: =0 -> 0 | T50: =0 -> 0 | U50: =0 -> 0 | V50: =0 -> 0 | W50: =0 -> 0 | X50: =0 -> 0 | Y50: =0 -> 0 | Z50: =0 -> 0 | AA50: =0 -> 0 | AB50: =0 -> 0 | AC50: =0 -> 0 | AD50: =0 -> 0 | AE50: =0 -> 0 | AF50: =0 -> 0 | AG50: =0 -> 0 | AH50: =0 -> 0 | AI50: =0 -> 0 | AJ50: =0 -> 0 | AK50: =0 -> 0 | AL50: =0 -> 0
A51: x | B51: 9.4 | C51: (R+O) / D (z wyłączeniami i zobowiązaniami związków) | D51: Wskaźnik planowanej łącznej kwoty spłaty zobowiązań, o której mowa w art. 243 ust. 1 ustawy do dochodów, po uwzględnieniu zobowiązań związku współtworzonego przez jednostkę samorządu terytorialnego oraz po uwzględnieniu ustawowych wyłączeń przypadających na dany rok | E51: =0.015 -> 0.015 | F51: =0.0202 -> 0.0202 | G51: =0.0303 -> 0.0303 | H51: =0.0293 -> 0.0293 | I51: =0.0409 -> 0.0409 | J51: =0.0398 -> 0.0398 | K51: =0.0365 -> 0.0365 | L51: =0.0383 -> 0.0383 | M51: =0.0374 -> 0.0374 | N51: =0.0433 -> 0.0433 | O51: =0.0508 -> 0.0508 | P51: =0.0776 -> 0.0776 | Q51: =0.0384 -> 0.0384 | R51: =0.0313 -> 0.0313 | S51: =0.0344 -> 0.0344 | T51: =0.0286 -> 0.0286 | U51: =0.0273 -> 0.0273 | V51: =0.0261 -> 0.0261 | W51: =0 -> 0 | X51: =0 -> 0 | Y51: =0 -> 0 | Z51: =0 -> 0 | AA51: =0 -> 0 | AB51: =0 -> 0 | AC51: =0 -> 0 | AD51: =0 -> 0 | AE51: =0 -> 0 | AF51: =0 -> 0 | AG51: =0 -> 0 | AH51: =0 -> 0 | AI51: =0 -> 0 | AJ51: =0 -> 0 | AK51: =0 -> 0 | AL51: =0 -> 0
A52: x | B52: 9.5 | C52: Wskaźnik dochodów bieżących powiększonych o dochody ze sprzedaży majątku oraz pomniejszonych o wydatki bieżące, do dochodów budżetu, ustalony dla danego roku (wskaźnik jednoroczny) | D52: Wskaźnik dochodów bieżących powiększonych o dochody ze sprzedaży majątku oraz pomniejszonych o wydatki bieżące, do dochodów budżetu, ustalony dla danego roku (wskaźnik jednoroczny) | E52: =+IF(AND(E3>=2013,E3<=2018),IF(E4<>0,(E5+E13-E16+E19)/E4,0),IF(E4<>0,(E5+E13-E16)/E4,0)) -> 0.04569574373 | F52: 0.04248431815 | G52: 0.09667150987 | H52: 0.1197197293 | I52: 0.07471461557 | J52: 0.05889592601 | K52: 0.05424538114 | L52: 0.06476712039 | M52: 0.07652195545 | N52: 0.07766411027 | O52: 0.08770627096 | P52: 0.08874299706 | Q52: 0.08142775915 | R52: 0.07192305199 | S52: 0.0669401944 | T52: 0.07467672875 | U52: 0.07797093051 | V52: 0.08118227881 | W52: 0 | X52: 0 | Y52: 0 | Z52: 0 | AA52: 0 | AB52: 0 | AC52: 0 | AD52: 0 | AE52: 0 | AF52: 0 | AG52: 0 | AH52: 0 | AI52: 0 | AJ52: 0 | AK52: 0 | AL52: 0
A53: x | B53: 9.6 | C53: Dopuszczalny wskaźnik spłaty zobowiązań z art. 243 ustawy, po uwzględnieniu ustawowych wyłączeń (planistyczny) | D53: Dopuszczalny wskaźnik spłaty zobowiązań określony w art. 243 ustawy, po uwzględnieniu ustawowych wyłączeń , obliczony w oparciu o plan 3 kwartału roku poprzedzającego pierwszy rok prognozy (wskaźnik ustalony w oparciu o średnią arytmetyczną z 3 poprzednich lat) | E53: x | F53: x | G53: x | H53: x | I53: =0.0616 -> 0.0616 | J53: =0.0713 -> 0.0713 | K53: =0.0768 -> 0.0768 | L53: =0.0626 -> 0.0626 | M53: =0.0593 -> 0.0593 | N53: =0.0652 -> 0.0652 | O53: =0.073 -> 0.073 | P53: =0.0806 -> 0.0806 | Q53: =0.0847 -> 0.0847 | R53: =0.0859 -> 0.0859 | S53: =0.0807 -> 0.0807 | T53: =0.0734 -> 0.0734 | U53: =0.0712 -> 0.0712 | V53: =0.0732 -> 0.0732 | W53: =0 -> 0 | X53: =0 -> 0 | Y53: =0 -> 0 | Z53: =0 -> 0 | AA53: =0 -> 0 | AB53: =0 -> 0 | AC53: =0 -> 0 | AD53: =0 -> 0 | AE53: =0 -> 0 | AF53: =0 -> 0 | AG53: =0 -> 0 | AH53: =0 -> 0 | AI53: =0 -> 0 | AJ53: =0 -> 0 | AK53: =0 -> 0 | AL53: =0 -> 0
A54: x | B54: 9.6.1 | C54: Dopuszczalny wskaźnik spłaty zobowiązań z art. 243 ustawy, po uwzględnieniu ustawowych wyłączeń (wykonanie) | D54: Dopuszczalny wskaźnik spłaty zobowiązań określony w art. 243 ustawy, po uwzględnieniu ustawowych wyłączeń, obliczony w oparciu o wykonanie roku poprzedzającego pierwszy rok prognozy (wskaźnik ustalony w oparciu o średnią arytmetyczną z 3 poprzednich lat) | E54: x | F54: x | G54: x | H54: x | I54: =0.0693 -> 0.0693 | J54: =0.079 -> 0.079 | K54: =0.0844 -> 0.0844 | L54: =0.0626 -> 0.0626 | M54: =0.0593 -> 0.0593 | N54: =0.0652 -> 0.0652 | O54: =0.073 -> 0.073 | P54: =0.0806 -> 0.0806 | Q54: =0.0847 -> 0.0847 | R54: =0.0859 -> 0.0859 | S54: =0.0807 -> 0.0807 | T54: =0.0734 -> 0.0734 | U54: =0.0712 -> 0.0712 | V54: =0.0732 -> 0.0732 | W54: =0 -> 0 | X54: =0 -> 0 | Y54: =0 -> 0 | Z54: =0 -> 0 | AA54: =0 -> 0 | AB54: =0 -> 0 | AC54: =0 -> 0 | AD54: =0 -> 0 | AE54: =0 -> 0 | AF54: =0 -> 0 | AG54: =0 -> 0 | AH54: =0 -> 0 | AI54: =0 -> 0 | AJ54: =0 -> 0 | AK54: =0 -> 0 | AL54: =0 -> 0
A55: x | B55: 9.7 | C55: Informacja o spełnieniu wskaźnika spłaty zobowiązań określonego w art. 243 ustawy, po uwzględnieniu zobowiązań związku współtworzonego przez jednostkę samorządu terytorialnego oraz po uwzględnieniu ustawowych wyłączeń, obliczonego w oparciu o plan 3 kwartałów roku poprzedzającego rok budżetowy | D55: Informacja o spełnieniu wskaźnika spłaty zobowiązań określonego w art. 243 ustawy, po uwzględnieniu zobowiązań związku współtworzonego przez jednostkę samorządu terytorialnego oraz po uwzględnieniu ustawowych wyłączeń, obliczonego w oparciu o plan 3 kwartałów roku poprzedzającego rok budżetowy | E55: x | F55: x | G55: x | H55: x | I55: =IF(I51<=I53,"Spełniona","Nie spełniona") -> Spełniona | J55: =IF(J51<=J53,"Spełniona","Nie spełniona") -> Spełniona | K55: Spełniona | L55: Spełniona | M55: Spełniona | N55: Spełniona | O55: Spełniona | P55: Spełniona | Q55: Spełniona | R55: Spełniona | S55: Spełniona | T55: Spełniona | U55: Spełniona | V55: Spełniona | W55: Spełniona | X55: Spełniona | Y55: Spełniona | Z55: Spełniona | AA55: Spełniona | AB55: Spełniona | AC55: Spełniona | AD55: Spełniona | AE55: Spełniona | AF55: Spełniona | AG55: Spełniona | AH55: Spełniona | AI55: Spełniona | AJ55: Spełniona | AK55: Spełniona | AL55: Spełniona
A56: x | B56: 9.7.1 | C56: Informacja o spełnieniu wskaźnika spłaty zobowiązań określonego w art. 243 ustawy, po uwzględnieniu zobowiązań związku współtworzonego przez jednostkę samorządu terytorialnego oraz po uwzględnieniu ustawowych wyłączeń, obliczonego w oparciu o wykonanie roku poprzedzającego rok budżetowy | D56: Informacja o spełnieniu wskaźnika spłaty zobowiązań określonego w art. 243 ustawy, po uwzględnieniu zobowiązań związku współtworzonego przez jednostkę samorządu terytorialnego oraz po uwzględnieniu ustawowych wyłączeń, obliczonego w oparciu o wykonanie roku poprzedzającego rok budżetowy | E56: x | F56: x | G56: x | H56: x | I56: =IF(I51<=I54,"Spełniona","Nie spełniona") -> Spełniona | J56: =IF(J51<=J54,"Spełniona","Nie spełniona") -> Spełniona | K56: Spełniona | L56: Spełniona | M56: Spełniona | N56: Spełniona | O56: Spełniona | P56: Spełniona | Q56: Spełniona | R56: Spełniona | S56: Spełniona | T56: Spełniona | U56: Spełniona | V56: Spełniona | W56: Spełniona | X56: Spełniona | Y56: Spełniona | Z56: Spełniona | AA56: Spełniona | AB56: Spełniona | AC56: Spełniona | AD56: Spełniona | AE56: Spełniona | AF56: Spełniona | AG56: Spełniona | AH56: Spełniona | AI56: Spełniona | AJ56: Spełniona | AK56: Spełniona | AL56: Spełniona
B57: 10 | C57: Przeznaczenie prognozowanej nadwyżki budżetowej, w tym na: | D57: Przeznaczenie prognozowanej nadwyżki budżetowej, w tym na: | E57: =0 -> 0 | F57: =0 -> 0 | G57: =0 -> 0 | H57: =0 -> 0 | I57: =0 -> 0 | J57: =600000 -> 600000 | K57: =2040000 -> 2040000 | L57: =600000 -> 600000 | M57: =600000 -> 600000 | N57: =730000 -> 730000 | O57: =910000 -> 910000 | P57: =1548000 -> 1548000 | Q57: =743000 -> 743000 | R57: =600000 -> 600000 | S57: =700000 -> 700000 | T57: =600000 -> 600000 | U57: 600000 | V57: 600000 | W57: =0 -> 0 | X57: =0 -> 0 | Y57: =0 -> 0 | Z57: =0 -> 0 | AA57: =0 -> 0 | AB57: =0 -> 0 | AC57: =0 -> 0 | AD57: =0 -> 0 | AE57: =0 -> 0 | AF57: =0 -> 0 | AG57: =0 -> 0 | AH57: =0 -> 0 | AI57: =0 -> 0 | AJ57: =0 -> 0 | AK57: =0 -> 0 | AL57: =0 -> 0
B58: 10.1 | C58: Spłaty kredytów, pożyczek i wykup papierów wartościowych | D58: Spłaty kredytów, pożyczek i wykup papierów wartościowych | E58: =406000 -> 406000 | F58: =100000 -> 100000 | G58: =0 -> 0 | H58: =0 -> 0 | I58: =0 -> 0 | J58: =600000 -> 600000 | K58: =2040000 -> 2040000 | L58: =600000 -> 600000 | M58: =600000 -> 600000 | N58: =730000 -> 730000 | O58: =910000 -> 910000 | P58: =1548000 -> 1548000 | Q58: =743000 -> 743000 | R58: =600000 -> 600000 | S58: =700000 -> 700000 | T58: 600000 | U58: 600000 | V58: 600000 | W58: =0 -> 0 | X58: =0 -> 0 | Y58: =0 -> 0 | Z58: =0 -> 0 | AA58: =0 -> 0 | AB58: =0 -> 0 | AC58: =0 -> 0 | AD58: =0 -> 0 | AE58: =0 -> 0 | AF58: =0 -> 0 | AG58: =0 -> 0 | AH58: =0 -> 0 | AI58: =0 -> 0 | AJ58: =0 -> 0 | AK58: =0 -> 0 | AL58: =0 -> 0
B59: 11 | C59: Informacje uzupełniające o wybranych rodzajach wydatków budżetowych | D59: Informacje uzupełniające o wybranych rodzajach wydatków budżetowych | E59: x | F59: x | G59: x | H59: x | I59: x | J59: x | K59: x | L59: x | M59: x | N59: x | O59: x | P59: x | Q59: x | R59: x | S59: x | T59: x | U59: x | V59: x | W59: x | X59: x | Y59: x | Z59: x | AA59: x | AB59: x | AC59: x | AD59: x | AE59: x | AF59: x | AG59: x | AH59: x | AI59: x | AJ59: x | AK59: x | AL59: x
B60: 11.1 | C60: Wydatki bieżące na wynagrodzenia i składki od nich naliczane | D60: Wydatki bieżące na wynagrodzenia i składki od nich naliczane | E60: =6698815.09 -> 6698815.09 | F60: =7091945.11 -> 7091945.11 | G60: =7280908.61 -> 7280908.61 | H60: =7055332.33 -> 7055332.33 | I60: =7085185.02 -> 7085185.02 | J60: =7607098 -> 7607098 | K60: =7835311 -> 7835311 | L60: =8070371 -> 8070371 | M60: =8312482 -> 8312482 | N60: =8561856 -> 8561856 | O60: =8818712 -> 8818712 | P60: =9083273 -> 9083273 | Q60: =9355771 -> 9355771 | R60: =9555771 -> 9555771 | S60: =9600000 -> 9600000 | T60: =9700000 -> 9700000 | U60: =9800000 -> 9800000 | V60: =9800000 -> 9800000 | W60: =0 -> 0 | X60: =0 -> 0 | Y60: =0 -> 0 | Z60: =0 -> 0 | AA60: =0 -> 0 | AB60: =0 -> 0 | AC60: =0 -> 0 | AD60: =0 -> 0 | AE60: =0 -> 0 | AF60: =0 -> 0 | AG60: =0 -> 0 | AH60: =0 -> 0 | AI60: =0 -> 0 | AJ60: =0 -> 0 | AK60: =0 -> 0 | AL60: =0 -> 0
B61: 11.2 | C61: Wydatki związane z funkcjonowaniem organów jednostki samorządu terytorialnego | D61: Wydatki związane z funkcjonowaniem organów jednostki samorządu terytorialnego | E61: =2100000 -> 2100000 | F61: =2269710.14 -> 2269710.14 | G61: =2379480.93 -> 2379480.93 | H61: =2259588.38 -> 2259588.38 | I61: =2208521 -> 2208521 | J61: =2500000 -> 2500000 | K61: =2600000 -> 2600000 | L61: =2700000 -> 2700000 | M61: =2800000 -> 2800000 | N61: =2900000 -> 2900000 | O61: =3000000 -> 3000000 | P61: =3100000 -> 3100000 | Q61: =3200000 -> 3200000 | R61: =3300000 -> 3300000 | S61: =3400000 -> 3400000 | T61: =3400000 -> 3400000 | U61: =3500000 -> 3500000 | V61: =3500000 -> 3500000 | W61: =0 -> 0 | X61: =0 -> 0 | Y61: =0 -> 0 | Z61: =0 -> 0 | AA61: =0 -> 0 | AB61: =0 -> 0 | AC61: =0 -> 0 | AD61: =0 -> 0 | AE61: =0 -> 0 | AF61: =0 -> 0 | AG61: =0 -> 0 | AH61: =0 -> 0 | AI61: =0 -> 0 | AJ61: =0 -> 0 | AK61: =0 -> 0 | AL61: =0 -> 0
B62: 11.3 | C62: Wydatki objęte limitem, o którym mowa w art. 226 ust. 3 pkt 4 ustawy | D62: Wydatki objęte limitem, o którym mowa w art. 226 ust. 3 pkt 4 ustawy | E62: =315833.26 -> 315833.26 | F62: =0 -> 0 | G62: =1315050 -> 1315050 | H62: =583530 -> 583530 | I62: =3212044 -> 3212044 | J62: =418500 -> 418500 | K62: =253000 -> 253000 | L62: =209000 -> 209000 | M62: =183000 -> 183000 | N62: =179000 -> 179000 | O62: =0 -> 0 | P62: =0 -> 0 | Q62: =0 -> 0 | R62: =0 -> 0 | S62: =0 -> 0 | T62: =0 -> 0 | U62: =0 -> 0 | V62: =0 -> 0 | W62: =0 -> 0 | X62: =0 -> 0 | Y62: =0 -> 0 | Z62: =0 -> 0 | AA62: =0 -> 0 | AB62: =0 -> 0 | AC62: =0 -> 0 | AD62: =0 -> 0 | AE62: =0 -> 0 | AF62: =0 -> 0 | AG62: =0 -> 0 | AH62: =0 -> 0 | AI62: =0 -> 0 | AJ62: =0 -> 0 | AK62: =0 -> 0 | AL62: =0 -> 0
B63: 11.3.1 | C63: Wydatki bieżące na przedsięwzięcia | D63: bieżące | E63: =116605.57 -> 116605.57 | F63: =0 -> 0 | G63: =418000 -> 418000 | H63: =400000 -> 400000 | I63: =470570 -> 470570 | J63: =298100 -> 298100 | K63: =136600 -> 136600 | L63: =96600 -> 96600 | M63: =73710 -> 73710 | N63: =73710 -> 73710 | O63: =0 -> 0 | P63: =0 -> 0 | Q63: =0 -> 0 | R63: =0 -> 0 | S63: =0 -> 0 | T63: =0 -> 0 | U63: =0 -> 0 | V63: =0 -> 0 | W63: =0 -> 0 | X63: =0 -> 0 | Y63: =0 -> 0 | Z63: =0 -> 0 | AA63: =0 -> 0 | AB63: =0 -> 0 | AC63: =0 -> 0 | AD63: =0 -> 0 | AE63: =0 -> 0 | AF63: =0 -> 0 | AG63: =0 -> 0 | AH63: =0 -> 0 | AI63: =0 -> 0 | AJ63: =0 -> 0 | AK63: =0 -> 0 | AL63: =0 -> 0
B64: 11.3.2 | C64: Wydatki majątkowe na przedsięwzięcia | D64: majątkowe | E64: =199227.69 -> 199227.69 | F64: =0 -> 0 | G64: =897050 -> 897050 | H64: =183530 -> 183530 | I64: =2741474 -> 2741474 | J64: =120400 -> 120400 | K64: =116400 -> 116400 | L64: =112400 -> 112400 | M64: =109290 -> 109290 | N64: =105290 -> 105290 | O64: =0 -> 0 | P64: =0 -> 0 | Q64: =0 -> 0 | R64: =0 -> 0 | S64: =0 -> 0 | T64: =0 -> 0 | U64: =0 -> 0 | V64: =0 -> 0 | W64: =0 -> 0 | X64: =0 -> 0 | Y64: =0 -> 0 | Z64: =0 -> 0 | AA64: =0 -> 0 | AB64: =0 -> 0 | AC64: =0 -> 0 | AD64: =0 -> 0 | AE64: =0 -> 0 | AF64: =0 -> 0 | AG64: =0 -> 0 | AH64: =0 -> 0 | AI64: =0 -> 0 | AJ64: =0 -> 0 | AK64: =0 -> 0 | AL64: =0 -> 0
B65: 11.4 | C65: Wydatki inwestycyjne kontynuowane | D65: Wydatki inwestycyjne kontynuowane | E65: =261062 -> 261062 | F65: =0 -> 0 | G65: =0 -> 0 | H65: =0 -> 0 | I65: =321470 -> 321470 | J65: =120400 -> 120400 | K65: =116400 -> 116400 | L65: =112400 -> 112400 | M65: =109290 -> 109290 | N65: =105290 -> 105290 | O65: =0 -> 0 | P65: =0 -> 0 | Q65: =0 -> 0 | R65: =0 -> 0 | S65: =0 -> 0 | T65: =0 -> 0 | U65: =0 -> 0 | V65: =0 -> 0 | W65: =0 -> 0 | X65: =0 -> 0 | Y65: =0 -> 0 | Z65: =0 -> 0 | AA65: =0 -> 0 | AB65: =0 -> 0 | AC65: =0 -> 0 | AD65: =0 -> 0 | AE65: =0 -> 0 | AF65: =0 -> 0 | AG65: =0 -> 0 | AH65: =0 -> 0 | AI65: =0 -> 0 | AJ65: =0 -> 0 | AK65: =0 -> 0 | AL65: =0 -> 0
B66: 11.5 | C66: Nowe wydatki inwestycyjne | D66: Nowe wydatki inwestycyjne | E66: =383938 -> 383938 | F66: =512107.73 -> 512107.73 | G66: =2567529.21 -> 2567529.21 | H66: =1777814.09 -> 1777814.09 | I66: =3140564.63 -> 3140564.63 | J66: =483750 -> 483750 | K66: =490504 -> 490504 | L66: =635262 -> 635262 | M66: =887191 -> 887191 | N66: =806136 -> 806136 | O66: =986559 -> 986559 | P66: =415945 -> 415945 | Q66: =1093654 -> 1093654 | R66: =1036654 -> 1036654 | S66: =836654 -> 836654 | T66: =1136654 -> 1136654 | U66: =1236654 -> 1236654 | V66: =1336654 -> 1336654 | W66: =0 -> 0 | X66: =0 -> 0 | Y66: =0 -> 0 | Z66: =0 -> 0 | AA66: =0 -> 0 | AB66: =0 -> 0 | AC66: =0 -> 0 | AD66: =0 -> 0 | AE66: =0 -> 0 | AF66: =0 -> 0 | AG66: =0 -> 0 | AH66: =0 -> 0 | AI66: =0 -> 0 | AJ66: =0 -> 0 | AK66: =0 -> 0 | AL66: =0 -> 0
B67: 11.6 | C67: Wydatki majątkowe w formie dotacji | D67: Wydatki majątkowe w formie dotacji | E67: =55000 -> 55000 | F67: =65000 -> 65000 | G67: =50000 -> 50000 | H67: =50000 -> 50000 | I67: =50000 -> 50000 | J67: =0 -> 0 | K67: =0 -> 0 | L67: =0 -> 0 | M67: =0 -> 0 | N67: =0 -> 0 | O67: =0 -> 0 | P67: =0 -> 0 | Q67: =0 -> 0 | R67: =0 -> 0 | S67: =0 -> 0 | T67: =0 -> 0 | U67: =0 -> 0 | V67: =0 -> 0 | W67: =0 -> 0 | X67: =0 -> 0 | Y67: =0 -> 0 | Z67: =0 -> 0 | AA67: =0 -> 0 | AB67: =0 -> 0 | AC67: =0 -> 0 | AD67: =0 -> 0 | AE67: =0 -> 0 | AF67: =0 -> 0 | AG67: =0 -> 0 | AH67: =0 -> 0 | AI67: =0 -> 0 | AJ67: =0 -> 0 | AK67: =0 -> 0 | AL67: =0 -> 0
B68: 12 | C68: Finansowanie programów, projektów lub zadań realizowanych z udziałem środków, o których mowa w art. 5 ust. 1 pkt 2 i 3 ustawy | D68: Finansowanie programów, projektów lub zadań realizowanych z udziałem środków, o których mowa w art. 5 ust. 1 pkt 2 i 3 ustawy | E68: x | F68: x | G68: x | H68: x | I68: x | J68: x | K68: x | L68: x | M68: x | N68: x | O68: x | P68: x | Q68: x | R68: x | S68: x | T68: x | U68: x | V68: x | W68: x | X68: x | Y68: x | Z68: x | AA68: x | AB68: x | AC68: x | AD68: x | AE68: x | AF68: x | AG68: x | AH68: x | AI68: x | AJ68: x | AK68: x | AL68: x
B69: 12.1 | C69: Dochody bieżące na programy, projekty lub zadania finansowane z udziałem środków, o których mowa w art. 5 ust. 1 pkt 2 i 3 ustawy | D69: Dochody bieżące na programy, projekty lub zadania finansowane z udziałem środków, o których mowa w art. 5 ust. 1 pkt 2 i 3 ustawy | E69: =0 -> 0 | F69: =0 -> 0 | G69: =0 -> 0 | H69: =0 -> 0 | I69: =69542 -> 69542 | J69: =0 -> 0 | K69: =0 -> 0 | L69: =0 -> 0 | M69: =0 -> 0 | N69: =0 -> 0 | O69: =0 -> 0 | P69: =0 -> 0 | Q69: =0 -> 0 | R69: =0 -> 0 | S69: =0 -> 0 | T69: =0 -> 0 | U69: =0 -> 0 | V69: =0 -> 0 | W69: =0 -> 0 | X69: =0 -> 0 | Y69: =0 -> 0 | Z69: =0 -> 0 | AA69: =0 -> 0 | AB69: =0 -> 0 | AC69: =0 -> 0 | AD69: =0 -> 0 | AE69: =0 -> 0 | AF69: =0 -> 0 | AG69: =0 -> 0 | AH69: =0 -> 0 | AI69: =0 -> 0 | AJ69: =0 -> 0 | AK69: =0 -> 0 | AL69: =0 -> 0
B70: 12.1.1 | C70: - w tym środki określone w art. 5 ust. 1 pkt 2 ustawy | D70: - w tym środki określone w art. 5 ust. 1 pkt 2 ustawy | E70: =0 -> 0 | F70: =0 -> 0 | G70: =0 -> 0 | H70: =0 -> 0 | I70: =69542 -> 69542 | J70: =0 -> 0 | K70: =0 -> 0 | L70: =0 -> 0 | M70: =0 -> 0 | N70: =0 -> 0 | O70: =0 -> 0 | P70: =0 -> 0 | Q70: =0 -> 0 | R70: =0 -> 0 | S70: =0 -> 0 | T70: =0 -> 0 | U70: =0 -> 0 | V70: =0 -> 0 | W70: =0 -> 0 | X70: =0 -> 0 | Y70: =0 -> 0 | Z70: =0 -> 0 | AA70: =0 -> 0 | AB70: =0 -> 0 | AC70: =0 -> 0 | AD70: =0 -> 0 | AE70: =0 -> 0 | AF70: =0 -> 0 | AG70: =0 -> 0 | AH70: =0 -> 0 | AI70: =0 -> 0 | AJ70: =0 -> 0 | AK70: =0 -> 0 | AL70: =0 -> 0
B71: 12.1.1.1 | C71: - w tym środki określone w art. 5 ust. 1 pkt 2 ustawy wynikające wyłącznie z zawartych umów na realizację programu, projektu lub zadania | D71: - w tym środki określone w art. 5 ust. 1 pkt 2 ustawy wynikające wyłącznie z zawartych umów na realizację programu, projektu lub zadania | E71: =0 -> 0 | F71: =0 -> 0 | G71: =0 -> 0 | H71: =0 -> 0 | I71: =69542 -> 69542 | J71: =0 -> 0 | K71: =0 -> 0 | L71: =0 -> 0 | M71: =0 -> 0 | N71: =0 -> 0 | O71: =0 -> 0 | P71: =0 -> 0 | Q71: =0 -> 0 | R71: =0 -> 0 | S71: =0 -> 0 | T71: =0 -> 0 | U71: =0 -> 0 | V71: =0 -> 0 | W71: =0 -> 0 | X71: =0 -> 0 | Y71: =0 -> 0 | Z71: =0 -> 0 | AA71: =0 -> 0 | AB71: =0 -> 0 | AC71: =0 -> 0 | AD71: =0 -> 0 | AE71: =0 -> 0 | AF71: =0 -> 0 | AG71: =0 -> 0 | AH71: =0 -> 0 | AI71: =0 -> 0 | AJ71: =0 -> 0 | AK71: =0 -> 0 | AL71: =0 -> 0
B72: 12.2 | C72: Dochody majątkowe na programy, projekty lub zadania finansowane z udziałem środków, o których mowa w art. 5 ust. 1 pkt 2 i 3 ustawy | D72: Dochody majątkowe na programy, projekty lub zadania finansowane z udziałem środków, o których mowa w art. 5 ust. 1 pkt 2 i 3 ustawy | E72: =0 -> 0 | F72: =0 -> 0 | G72: =462622 -> 462622 | H72: =0 -> 0 | I72: =0 -> 0 | J72: =0 -> 0 | K72: =1442182 -> 1442182 | L72: =0 -> 0 | M72: =0 -> 0 | N72: =0 -> 0 | O72: =0 -> 0 | P72: =0 -> 0 | Q72: =0 -> 0 | R72: =0 -> 0 | S72: =0 -> 0 | T72: =0 -> 0 | U72: =0 -> 0 | V72: =0 -> 0 | W72: =0 -> 0 | X72: =0 -> 0 | Y72: =0 -> 0 | Z72: =0 -> 0 | AA72: =0 -> 0 | AB72: =0 -> 0 | AC72: =0 -> 0 | AD72: =0 -> 0 | AE72: =0 -> 0 | AF72: =0 -> 0 | AG72: =0 -> 0 | AH72: =0 -> 0 | AI72: =0 -> 0 | AJ72: =0 -> 0 | AK72: =0 -> 0 | AL72: =0 -> 0
B73: 12.2.1 | C73: - w tym środki określone w art. 5 ust. 1 pkt 2 ustawy | D73: - w tym środki określone w art. 5 ust. 1 pkt 2 ustawy | E73: =0 -> 0 | F73: =0 -> 0 | G73: =462622 -> 462622 | H73: =0 -> 0 | I73: =0 -> 0 | J73: =0 -> 0 | K73: =1442182 -> 1442182 | L73: =0 -> 0 | M73: =0 -> 0 | N73: =0 -> 0 | O73: =0 -> 0 | P73: =0 -> 0 | Q73: =0 -> 0 | R73: =0 -> 0 | S73: =0 -> 0 | T73: =0 -> 0 | U73: =0 -> 0 | V73: =0 -> 0 | W73: =0 -> 0 | X73: =0 -> 0 | Y73: =0 -> 0 | Z73: =0 -> 0 | AA73: =0 -> 0 | AB73: =0 -> 0 | AC73: =0 -> 0 | AD73: =0 -> 0 | AE73: =0 -> 0 | AF73: =0 -> 0 | AG73: =0 -> 0 | AH73: =0 -> 0 | AI73: =0 -> 0 | AJ73: =0 -> 0 | AK73: =0 -> 0 | AL73: =0 -> 0
B74: 12.2.1.1 | C74: - w tym środki określone w art. 5 ust. 1 pkt 2 ustawy wynikające wyłącznie z zawartych umów na realizację programu, projektu lub zadania | D74: - w tym środki określone w art. 5 ust. 1 pkt 2 ustawy wynikające wyłącznie z zawartych umów na realizację programu, projektu lub zadania | E74: =0 -> 0 | F74: =0 -> 0 | G74: =0 -> 0 | H74: =0 -> 0 | I74: =0 -> 0 | J74: =0 -> 0 | K74: =1071389 -> 1071389 | L74: =0 -> 0 | M74: =0 -> 0 | N74: =0 -> 0 | O74: =0 -> 0 | P74: =0 -> 0 | Q74: =0 -> 0 | R74: =0 -> 0 | S74: =0 -> 0 | T74: =0 -> 0 | U74: =0 -> 0 | V74: =0 -> 0 | W74: =0 -> 0 | X74: =0 -> 0 | Y74: =0 -> 0 | Z74: =0 -> 0 | AA74: =0 -> 0 | AB74: =0 -> 0 | AC74: =0 -> 0 | AD74: =0 -> 0 | AE74: =0 -> 0 | AF74: =0 -> 0 | AG74: =0 -> 0 | AH74: =0 -> 0 | AI74: =0 -> 0 | AJ74: =0 -> 0 | AK74: =0 -> 0 | AL74: =0 -> 0
B75: 12.3 | C75: Wydatki bieżące na programy, projekty lub zadania finansowane z udziałem środków, o których mowa w art. 5 ust. 1 pkt 2 i 3 ustawy | D75: Wydatki bieżące na programy, projekty lub zadania finansowane z udziałem środków, o których mowa w art. 5 ust. 1 pkt 2 i 3 ustawy | E75: =0 -> 0 | F75: =0 -> 0 | G75: =0 -> 0 | H75: =0 -> 0 | I75: =79456 -> 79456 | J75: =0 -> 0 | K75: =0 -> 0 | L75: =0 -> 0 | M75: =0 -> 0 | N75: =0 -> 0 | O75: =0 -> 0 | P75: =0 -> 0 | Q75: =0 -> 0 | R75: =0 -> 0 | S75: =0 -> 0 | T75: =0 -> 0 | U75: =0 -> 0 | V75: =0 -> 0 | W75: =0 -> 0 | X75: =0 -> 0 | Y75: =0 -> 0 | Z75: =0 -> 0 | AA75: =0 -> 0 | AB75: =0 -> 0 | AC75: =0 -> 0 | AD75: =0 -> 0 | AE75: =0 -> 0 | AF75: =0 -> 0 | AG75: =0 -> 0 | AH75: =0 -> 0 | AI75: =0 -> 0 | AJ75: =0 -> 0 | AK75: =0 -> 0 | AL75: =0 -> 0
B76: 12.3.1 | C76: - w tym finansowane środkami określonymi w art. 5 ust. 1 pkt 2 ustawy | D76: - w tym finansowane środkami określonymi w art. 5 ust. 1 pkt 2 ustawy | E76: =0 -> 0 | F76: =0 -> 0 | G76: =0 -> 0 | H76: =0 -> 0 | I76: =69542 -> 69542 | J76: =0 -> 0 | K76: =0 -> 0 | L76: =0 -> 0 | M76: =0 -> 0 | N76: =0 -> 0 | O76: =0 -> 0 | P76: =0 -> 0 | Q76: =0 -> 0 | R76: =0 -> 0 | S76: =0 -> 0 | T76: =0 -> 0 | U76: =0 -> 0 | V76: =0 -> 0 | W76: =0 -> 0 | X76: =0 -> 0 | Y76: =0 -> 0 | Z76: =0 -> 0 | AA76: =0 -> 0 | AB76: =0 -> 0 | AC76: =0 -> 0 | AD76: =0 -> 0 | AE76: =0 -> 0 | AF76: =0 -> 0 | AG76: =0 -> 0 | AH76: =0 -> 0 | AI76: =0 -> 0 | AJ76: =0 -> 0 | AK76: =0 -> 0 | AL76: =0 -> 0
B77: 12.3.2 | C77: Wydatki bieżące na realizację programu, projektu lub zadania wynikające wyłącznie z zawartych umów z podmiotem dysponującym środkami, o których mowa w art. 5 ust. 1 pkt 2 ustawy | D77: Wydatki bieżące na realizację programu, projektu lub zadania wynikające wyłącznie z zawartych umów z podmiotem dysponującym środkami, o których mowa w art. 5 ust. 1 pkt 2 ustawy | E77: =0 -> 0 | F77: =0 -> 0 | G77: =0 -> 0 | H77: =0 -> 0 | I77: =79456 -> 79456 | J77: =0 -> 0 | K77: =0 -> 0 | L77: =0 -> 0 | M77: =0 -> 0 | N77: =0 -> 0 | O77: =0 -> 0 | P77: =0 -> 0 | Q77: =0 -> 0 | R77: =0 -> 0 | S77: =0 -> 0 | T77: =0 -> 0 | U77: =0 -> 0 | V77: =0 -> 0 | W77: =0 -> 0 | X77: =0 -> 0 | Y77: =0 -> 0 | Z77: =0 -> 0 | AA77: =0 -> 0 | AB77: =0 -> 0 | AC77: =0 -> 0 | AD77: =0 -> 0 | AE77: =0 -> 0 | AF77: =0 -> 0 | AG77: =0 -> 0 | AH77: =0 -> 0 | AI77: =0 -> 0 | AJ77: =0 -> 0 | AK77: =0 -> 0 | AL77: =0 -> 0
B78: 12.4 | C78: Wydatki majątkowe na programy, projekty lub zadania finansowane z udziałem środków, o których mowa w art. 5 ust. 1 pkt 2 i 3 ustawy | D78: Wydatki majątkowe na programy, projekty lub zadania finansowane z udziałem środków, o których mowa w art. 5 ust. 1 pkt 2 i 3 ustawy | E78: =0 -> 0 | F78: =0 -> 0 | G78: =727050 -> 727050 | H78: =34850 -> 34850 | I78: =2466474 -> 2466474 | J78: =0 -> 0 | K78: =0 -> 0 | L78: =0 -> 0 | M78: =0 -> 0 | N78: =0 -> 0 | O78: =0 -> 0 | P78: =0 -> 0 | Q78: =0 -> 0 | R78: =0 -> 0 | S78: =0 -> 0 | T78: =0 -> 0 | U78: =0 -> 0 | V78: =0 -> 0 | W78: =0 -> 0 | X78: =0 -> 0 | Y78: =0 -> 0 | Z78: =0 -> 0 | AA78: =0 -> 0 | AB78: =0 -> 0 | AC78: =0 -> 0 | AD78: =0 -> 0 | AE78: =0 -> 0 | AF78: =0 -> 0 | AG78: =0 -> 0 | AH78: =0 -> 0 | AI78: =0 -> 0 | AJ78: =0 -> 0 | AK78: =0 -> 0 | AL78: =0 -> 0
B79: 12.4.1 | C79: - w tym finansowane środkami określonymi w art. 5 ust. 1 pkt 2 ustawy | D79: - w tym finansowane środkami określonymi w art. 5 ust. 1 pkt 2 ustawy | E79: =0 -> 0 | F79: =0 -> 0 | G79: =462622 -> 462622 | H79: =0 -> 0 | I79: =1442182 -> 1442182 | J79: =0 -> 0 | K79: =0 -> 0 | L79: =0 -> 0 | M79: =0 -> 0 | N79: =0 -> 0 | O79: =0 -> 0 | P79: =0 -> 0 | Q79: =0 -> 0 | R79: =0 -> 0 | S79: =0 -> 0 | T79: =0 -> 0 | U79: =0 -> 0 | V79: =0 -> 0 | W79: =0 -> 0 | X79: =0 -> 0 | Y79: =0 -> 0 | Z79: =0 -> 0 | AA79: =0 -> 0 | AB79: =0 -> 0 | AC79: =0 -> 0 | AD79: =0 -> 0 | AE79: =0 -> 0 | AF79: =0 -> 0 | AG79: =0 -> 0 | AH79: =0 -> 0 | AI79: =0 -> 0 | AJ79: =0 -> 0 | AK79: =0 -> 0 | AL79: =0 -> 0
B80: 12.4.2 | C80: Wydatki majątkowe na realizację programu, projektu lub zadania wynikające wyłącznie z zawartych umów z podmiotem dysponującym środkami, o których mowa w art. 5 ust. 1 pkt 2 ustawy | D80: Wydatki majątkowe na realizację programu, projektu lub zadania wynikające wyłącznie z zawartych umów z podmiotem dysponującym środkami, o których mowa w art. 5 ust. 1 pkt 2 ustawy | E80: =0 -> 0 | F80: =0 -> 0 | G80: =0 -> 0 | H80: =0 -> 0 | I80: =1873431 -> 1873431 | J80: =0 -> 0 | K80: =0 -> 0 | L80: =0 -> 0 | M80: =0 -> 0 | N80: =0 -> 0 | O80: =0 -> 0 | P80: =0 -> 0 | Q80: =0 -> 0 | R80: =0 -> 0 | S80: =0 -> 0 | T80: =0 -> 0 | U80: =0 -> 0 | V80: =0 -> 0 | W80: =0 -> 0 | X80: =0 -> 0 | Y80: =0 -> 0 | Z80: =0 -> 0 | AA80: =0 -> 0 | AB80: =0 -> 0 | AC80: =0 -> 0 | AD80: =0 -> 0 | AE80: =0 -> 0 | AF80: =0 -> 0 | AG80: =0 -> 0 | AH80: =0 -> 0 | AI80: =0 -> 0 | AJ80: =0 -> 0 | AK80: =0 -> 0 | AL80: =0 -> 0
B81: 12.5 | C81: Wydatki na wkład krajowy w związku z umową na realizację programu, projektu lub zadania finansowanego z udziałem środków, o których mowa w art. 5 ust. 1 pkt 2 ustawy bez względu na stopień finansowania tymi środkami | D81: Wydatki na wkład krajowy w związku z umową na realizację programu, projektu lub zadania finansowanego z udziałem środków, o których mowa w art. 5 ust. 1 pkt 2 ustawy bez względu na stopień finansowania tymi środkami | E81: =0 -> 0 | F81: =0 -> 0 | G81: =264428 -> 264428 | H81: =0 -> 0 | I81: =1024292 -> 1024292 | J81: =0 -> 0 | K81: =0 -> 0 | L81: =0 -> 0 | M81: =0 -> 0 | N81: =0 -> 0 | O81: =0 -> 0 | P81: =0 -> 0 | Q81: =0 -> 0 | R81: =0 -> 0 | S81: =0 -> 0 | T81: =0 -> 0 | U81: =0 -> 0 | V81: =0 -> 0 | W81: =0 -> 0 | X81: =0 -> 0 | Y81: =0 -> 0 | Z81: =0 -> 0 | AA81: =0 -> 0 | AB81: =0 -> 0 | AC81: =0 -> 0 | AD81: =0 -> 0 | AE81: =0 -> 0 | AF81: =0 -> 0 | AG81: =0 -> 0 | AH81: =0 -> 0 | AI81: =0 -> 0 | AJ81: =0 -> 0 | AK81: =0 -> 0 | AL81: =0 -> 0
B82: 12.5.1 | C82: w tym w związku z już zawartą umową na realizację programu, projektu lub zadania | D82: w tym w związku z już zawartą umową na realizację programu, projektu lub zadania | E82: =0 -> 0 | F82: =0 -> 0 | G82: =0 -> 0 | H82: =0 -> 0 | I82: =802042 -> 802042 | J82: =0 -> 0 | K82: =0 -> 0 | L82: =0 -> 0 | M82: =0 -> 0 | N82: =0 -> 0 | O82: =0 -> 0 | P82: =0 -> 0 | Q82: =0 -> 0 | R82: =0 -> 0 | S82: =0 -> 0 | T82: =0 -> 0 | U82: =0 -> 0 | V82: =0 -> 0 | W82: =0 -> 0 | X82: =0 -> 0 | Y82: =0 -> 0 | Z82: =0 -> 0 | AA82: =0 -> 0 | AB82: =0 -> 0 | AC82: =0 -> 0 | AD82: =0 -> 0 | AE82: =0 -> 0 | AF82: =0 -> 0 | AG82: =0 -> 0 | AH82: =0 -> 0 | AI82: =0 -> 0 | AJ82: =0 -> 0 | AK82: =0 -> 0 | AL82: =0 -> 0
B83: 12.6 | C83: Wydatki na wkład krajowy w związku z zawartą po dniu 1 stycznia 2013 r. umową na realizację programu, projektu lub zadania finansowanego w co najmniej 60% środkami, o których mowa w art. 5 ust. 1 pkt 2 ustawy | D83: Wydatki na wkład krajowy w związku z zawartą po dniu 1 stycznia 2013 r. umową na realizację programu, projektu lub zadania finansowanego w co najmniej 60% środkami, o których mowa w art. 5 ust. 1 pkt 2 ustawy | E83: =0 -> 0 | F83: =0 -> 0 | G83: =264428 -> 264428 | H83: =0 -> 0 | I83: =1024292 -> 1024292 | J83: =0 -> 0 | K83: =0 -> 0 | L83: =0 -> 0 | M83: =0 -> 0 | N83: =0 -> 0 | O83: =0 -> 0 | P83: =0 -> 0 | Q83: =0 -> 0 | R83: =0 -> 0 | S83: =0 -> 0 | T83: =0 -> 0 | U83: =0 -> 0 | V83: =0 -> 0 | W83: =0 -> 0 | X83: =0 -> 0 | Y83: =0 -> 0 | Z83: =0 -> 0 | AA83: =0 -> 0 | AB83: =0 -> 0 | AC83: =0 -> 0 | AD83: =0 -> 0 | AE83: =0 -> 0 | AF83: =0 -> 0 | AG83: =0 -> 0 | AH83: =0 -> 0 | AI83: =0 -> 0 | AJ83: =0 -> 0 | AK83: =0 -> 0 | AL83: =0 -> 0
B84: 12.6.1 | C84: w tym w związku z już zawartą umową na realizację programu, projektu lub zadania | D84: w tym w związku z już zawartą umową na realizację programu, projektu lub zadania | E84: =0 -> 0 | F84: =0 -> 0 | G84: =0 -> 0 | H84: =0 -> 0 | I84: =802042 -> 802042 | J84: =0 -> 0 | K84: =0 -> 0 | L84: =0 -> 0 | M84: =0 -> 0 | N84: =0 -> 0 | O84: =0 -> 0 | P84: =0 -> 0 | Q84: =0 -> 0 | R84: =0 -> 0 | S84: =0 -> 0 | T84: =0 -> 0 | U84: =0 -> 0 | V84: =0 -> 0 | W84: =0 -> 0 | X84: =0 -> 0 | Y84: =0 -> 0 | Z84: =0 -> 0 | AA84: =0 -> 0 | AB84: =0 -> 0 | AC84: =0 -> 0 | AD84: =0 -> 0 | AE84: =0 -> 0 | AF84: =0 -> 0 | AG84: =0 -> 0 | AH84: =0 -> 0 | AI84: =0 -> 0 | AJ84: =0 -> 0 | AK84: =0 -> 0 | AL84: =0 -> 0
B85: 12.7 | C85: Przychody z tytułu kredytów, pożyczek, emisji papierów wartościowych powstające w związku z umową na realizację programu, projektu lub zadania finansowanego z udziałem środków, o których mowa w art. 5 ust. 1 pkt 2 ustawy bez względu na stopień finansowania tymi środkami | D85: Przychody z tytułu kredytów, pożyczek, emisji papierów wartościowych powstające w związku z umową na realizację programu, projektu lub zadania finansowanego z udziałem środków, o których mowa w art. 5 ust. 1 pkt 2 ustawy bez względu na stopień finansowania tymi środkami | E85: =0 -> 0 | F85: =0 -> 0 | G85: =0 -> 0 | H85: =0 -> 0 | I85: =0 -> 0 | J85: =0 -> 0 | K85: =0 -> 0 | L85: =0 -> 0 | M85: =0 -> 0 | N85: =0 -> 0 | O85: =0 -> 0 | P85: =0 -> 0 | Q85: =0 -> 0 | R85: =0 -> 0 | S85: =0 -> 0 | T85: =0 -> 0 | U85: =0 -> 0 | V85: =0 -> 0 | W85: =0 -> 0 | X85: =0 -> 0 | Y85: =0 -> 0 | Z85: =0 -> 0 | AA85: =0 -> 0 | AB85: =0 -> 0 | AC85: =0 -> 0 | AD85: =0 -> 0 | AE85: =0 -> 0 | AF85: =0 -> 0 | AG85: =0 -> 0 | AH85: =0 -> 0 | AI85: =0 -> 0 | AJ85: =0 -> 0 | AK85: =0 -> 0 | AL85: =0 -> 0
B86: 12.7.1 | C86: w tym w związku z już zawartą umową na realizację programu, projektu lub zadania | D86: w tym w związku z już zawartą umową na realizację programu, projektu lub zadania | E86: =0 -> 0 | F86: =0 -> 0 | G86: =0 -> 0 | H86: =0 -> 0 | I86: =0 -> 0 | J86: =0 -> 0 | K86: =0 -> 0 | L86: =0 -> 0 | M86: =0 -> 0 | N86: =0 -> 0 | O86: =0 -> 0 | P86: =0 -> 0 | Q86: =0 -> 0 | R86: =0 -> 0 | S86: =0 -> 0 | T86: =0 -> 0 | U86: =0 -> 0 | V86: =0 -> 0 | W86: =0 -> 0 | X86: =0 -> 0 | Y86: =0 -> 0 | Z86: =0 -> 0 | AA86: =0 -> 0 | AB86: =0 -> 0 | AC86: =0 -> 0 | AD86: =0 -> 0 | AE86: =0 -> 0 | AF86: =0 -> 0 | AG86: =0 -> 0 | AH86: =0 -> 0 | AI86: =0 -> 0 | AJ86: =0 -> 0 | AK86: =0 -> 0 | AL86: =0 -> 0
B87: 12.8 | C87: Przychody z tytułu kredytów, pożyczek, emisji papierów wartościowych powstające w związku z zawartą po dniu 1 stycznia 2013 r. umową na realizację programu, projektu lub zadania finansowanego w co najmniej 60% środkami, o których mowa w art. 5 ust. 1 pkt 2 ustawy | D87: Przychody z tytułu kredytów, pożyczek, emisji papierów wartościowych powstające w związku z zawartą po dniu 1 stycznia 2013 r. umową na realizację programu, projektu lub zadania finansowanego w co najmniej 60% środkami, o których mowa w art. 5 ust. 1 pkt 2 ustawy | E87: =0 -> 0 | F87: =0 -> 0 | G87: =0 -> 0 | H87: =0 -> 0 | I87: =0 -> 0 | J87: =0 -> 0 | K87: =0 -> 0 | L87: =0 -> 0 | M87: =0 -> 0 | N87: =0 -> 0 | O87: =0 -> 0 | P87: =0 -> 0 | Q87: =0 -> 0 | R87: =0 -> 0 | S87: =0 -> 0 | T87: =0 -> 0 | U87: =0 -> 0 | V87: =0 -> 0 | W87: =0 -> 0 | X87: =0 -> 0 | Y87: =0 -> 0 | Z87: =0 -> 0 | AA87: =0 -> 0 | AB87: =0 -> 0 | AC87: =0 -> 0 | AD87: =0 -> 0 | AE87: =0 -> 0 | AF87: =0 -> 0 | AG87: =0 -> 0 | AH87: =0 -> 0 | AI87: =0 -> 0 | AJ87: =0 -> 0 | AK87: =0 -> 0 | AL87: =0 -> 0
B88: 12.8.1 | C88: w tym w związku z już zawartą umową na realizację programu, projektu lub zadania | D88: w tym w związku z już zawartą umową na realizację programu, projektu lub zadania | E88: =0 -> 0 | F88: =0 -> 0 | G88: =0 -> 0 | H88: =0 -> 0 | I88: =0 -> 0 | J88: =0 -> 0 | K88: =0 -> 0 | L88: =0 -> 0 | M88: =0 -> 0 | N88: =0 -> 0 | O88: =0 -> 0 | P88: =0 -> 0 | Q88: =0 -> 0 | R88: =0 -> 0 | S88: =0 -> 0 | T88: =0 -> 0 | U88: =0 -> 0 | V88: =0 -> 0 | W88: =0 -> 0 | X88: =0 -> 0 | Y88: =0 -> 0 | Z88: =0 -> 0 | AA88: =0 -> 0 | AB88: =0 -> 0 | AC88: =0 -> 0 | AD88: =0 -> 0 | AE88: =0 -> 0 | AF88: =0 -> 0 | AG88: =0 -> 0 | AH88: =0 -> 0 | AI88: =0 -> 0 | AJ88: =0 -> 0 | AK88: =0 -> 0 | AL88: =0 -> 0
B89: 13 | C89: Kwoty dotyczące przejęcia i spłaty zobowiązań po samodzielnych publicznych zakładach opieki zdrowotnej oraz pokrycia ujemnego wyniku | D89: Kwoty dotyczące przejęcia i spłaty zobowiązań po samodzielnych publicznych zakładach opieki zdrowotnej oraz pokrycia ujemnego wyniku | E89: x | F89: x | G89: x | H89: x | I89: x | J89: x | K89: x | L89: x | M89: x | N89: x | O89: x | P89: x | Q89: x | R89: x | S89: x | T89: x | U89: x | V89: x | W89: x | X89: x | Y89: x | Z89: x | AA89: x | AB89: x | AC89: x | AD89: x | AE89: x | AF89: x | AG89: x | AH89: x | AI89: x | AJ89: x | AK89: x | AL89: x
B90: 13.1 | C90: Kwota zobowiązań wynikających z przejęcia przez jednostkę samorządu terytorialnego zobowiązań po likwidowanych i przekształcanych samodzielnych zakładach opieki zdrowotnej | D90: Kwota zobowiązań wynikających z przejęcia przez jednostkę samorządu terytorialnego zobowiązań po likwidowanych i przekształcanych samodzielnych zakładach opieki zdrowotnej | E90: =0 -> 0 | F90: =0 -> 0 | G90: =0 -> 0 | H90: =0 -> 0 | I90: =0 -> 0 | J90: =0 -> 0 | K90: =0 -> 0 | L90: =0 -> 0 | M90: =0 -> 0 | N90: =0 -> 0 | O90: =0 -> 0 | P90: =0 -> 0 | Q90: =0 -> 0 | R90: =0 -> 0 | S90: =0 -> 0 | T90: =0 -> 0 | U90: =0 -> 0 | V90: =0 -> 0 | W90: =0 -> 0 | X90: =0 -> 0 | Y90: =0 -> 0 | Z90: =0 -> 0 | AA90: =0 -> 0 | AB90: =0 -> 0 | AC90: =0 -> 0 | AD90: =0 -> 0 | AE90: =0 -> 0 | AF90: =0 -> 0 | AG90: =0 -> 0 | AH90: =0 -> 0 | AI90: =0 -> 0 | AJ90: =0 -> 0 | AK90: =0 -> 0 | AL90: =0 -> 0
B91: 13.2 | C91: Dochody budżetowe z tytułu dotacji celowej z budżetu państwa, o której mowa w art. 196 ustawy z dnia 15 kwietnia 2011 r. o działalności leczniczej (Dz.U. Nr 112, poz. 654, z późn. zm.) | D91: Dochody budżetowe z tytułu dotacji celowej z budżetu państwa, o której mowa w art. 196 ustawy z dnia 15 kwietnia 2011 r. o działalności leczniczej (Dz.U. Nr 112, poz. 654, z późn. zm.) | E91: =0 -> 0 | F91: =0 -> 0 | G91: =0 -> 0 | H91: =0 -> 0 | I91: =0 -> 0 | J91: =0 -> 0 | K91: =0 -> 0 | L91: =0 -> 0 | M91: =0 -> 0 | N91: =0 -> 0 | O91: =0 -> 0 | P91: =0 -> 0 | Q91: =0 -> 0 | R91: =0 -> 0 | S91: =0 -> 0 | T91: =0 -> 0 | U91: =0 -> 0 | V91: =0 -> 0 | W91: =0 -> 0 | X91: =0 -> 0 | Y91: =0 -> 0 | Z91: =0 -> 0 | AA91: =0 -> 0 | AB91: =0 -> 0 | AC91: =0 -> 0 | AD91: =0 -> 0 | AE91: =0 -> 0 | AF91: =0 -> 0 | AG91: =0 -> 0 | AH91: =0 -> 0 | AI91: =0 -> 0 | AJ91: =0 -> 0 | AK91: =0 -> 0 | AL91: =0 -> 0
B92: 13.3 | C92: Wysokość zobowiązań podlegających umorzeniu, o którym mowa w art. 190 ustawy o działalności leczniczej | D92: Wysokość zobowiązań podlegających umorzeniu, o którym mowa w art. 190 ustawy o działalności leczniczej | E92: =0 -> 0 | F92: =0 -> 0 | G92: =0 -> 0 | H92: =0 -> 0 | I92: =0 -> 0 | J92: =0 -> 0 | K92: =0 -> 0 | L92: =0 -> 0 | M92: =0 -> 0 | N92: =0 -> 0 | O92: =0 -> 0 | P92: =0 -> 0 | Q92: =0 -> 0 | R92: =0 -> 0 | S92: =0 -> 0 | T92: =0 -> 0 | U92: =0 -> 0 | V92: =0 -> 0 | W92: =0 -> 0 | X92: =0 -> 0 | Y92: =0 -> 0 | Z92: =0 -> 0 | AA92: =0 -> 0 | AB92: =0 -> 0 | AC92: =0 -> 0 | AD92: =0 -> 0 | AE92: =0 -> 0 | AF92: =0 -> 0 | AG92: =0 -> 0 | AH92: =0 -> 0 | AI92: =0 -> 0 | AJ92: =0 -> 0 | AK92: =0 -> 0 | AL92: =0 -> 0
B93: 13.4 | C93: Wydatki na spłatę przejętych zobowiązań samodzielnego publicznego zakładu opieki zdrowotnej przekształconego na zasadach określonych w przepisach o działalności leczniczej | D93: Wydatki na spłatę przejętych zobowiązań samodzielnego publicznego zakładu opieki zdrowotnej przekształconego na zasadach określonych w przepisach o działalności leczniczej | E93: =0 -> 0 | F93: =0 -> 0 | G93: =0 -> 0 | H93: =0 -> 0 | I93: =0 -> 0 | J93: =0 -> 0 | K93: =0 -> 0 | L93: =0 -> 0 | M93: =0 -> 0 | N93: =0 -> 0 | O93: =0 -> 0 | P93: =0 -> 0 | Q93: =0 -> 0 | R93: =0 -> 0 | S93: =0 -> 0 | T93: =0 -> 0 | U93: =0 -> 0 | V93: =0 -> 0 | W93: =0 -> 0 | X93: =0 -> 0 | Y93: =0 -> 0 | Z93: =0 -> 0 | AA93: =0 -> 0 | AB93: =0 -> 0 | AC93: =0 -> 0 | AD93: =0 -> 0 | AE93: =0 -> 0 | AF93: =0 -> 0 | AG93: =0 -> 0 | AH93: =0 -> 0 | AI93: =0 -> 0 | AJ93: =0 -> 0 | AK93: =0 -> 0 | AL93: =0 -> 0
B94: 13.5 | C94: Wydatki na spłatę przejętych zobowiązań samodzielnego publicznego zakładu opieki zdrowotnej likwidowanego na zasadach określonych w przepisach o działalności leczniczej | D94: Wydatki na spłatę przejętych zobowiązań samodzielnego publicznego zakładu opieki zdrowotnej likwidowanego na zasadach określonych w przepisach o działalności leczniczej | E94: =0 -> 0 | F94: =0 -> 0 | G94: =0 -> 0 | H94: =0 -> 0 | I94: =0 -> 0 | J94: =0 -> 0 | K94: =0 -> 0 | L94: =0 -> 0 | M94: =0 -> 0 | N94: =0 -> 0 | O94: =0 -> 0 | P94: =0 -> 0 | Q94: =0 -> 0 | R94: =0 -> 0 | S94: =0 -> 0 | T94: =0 -> 0 | U94: =0 -> 0 | V94: =0 -> 0 | W94: =0 -> 0 | X94: =0 -> 0 | Y94: =0 -> 0 | Z94: =0 -> 0 | AA94: =0 -> 0 | AB94: =0 -> 0 | AC94: =0 -> 0 | AD94: =0 -> 0 | AE94: =0 -> 0 | AF94: =0 -> 0 | AG94: =0 -> 0 | AH94: =0 -> 0 | AI94: =0 -> 0 | AJ94: =0 -> 0 | AK94: =0 -> 0 | AL94: =0 -> 0
B95: 13.6 | C95: Wydatki na spłatę zobowiązań samodzielnego publicznego zakładu opieki zdrowotnej przejętych do końca 2011 r. na podstawie przepisów o zakładach opieki zdrowotnej | D95: Wydatki na spłatę zobowiązań samodzielnego publicznego zakładu opieki zdrowotnej przejętych do końca 2011 r. na podstawie przepisów o zakładach opieki zdrowotnej | E95: =0 -> 0 | F95: =0 -> 0 | G95: =0 -> 0 | H95: =0 -> 0 | I95: =0 -> 0 | J95: =0 -> 0 | K95: =0 -> 0 | L95: =0 -> 0 | M95: =0 -> 0 | N95: =0 -> 0 | O95: =0 -> 0 | P95: =0 -> 0 | Q95: =0 -> 0 | R95: =0 -> 0 | S95: =0 -> 0 | T95: =0 -> 0 | U95: =0 -> 0 | V95: =0 -> 0 | W95: =0 -> 0 | X95: =0 -> 0 | Y95: =0 -> 0 | Z95: =0 -> 0 | AA95: =0 -> 0 | AB95: =0 -> 0 | AC95: =0 -> 0 | AD95: =0 -> 0 | AE95: =0 -> 0 | AF95: =0 -> 0 | AG95: =0 -> 0 | AH95: =0 -> 0 | AI95: =0 -> 0 | AJ95: =0 -> 0 | AK95: =0 -> 0 | AL95: =0 -> 0
B96: 13.7 | C96: Wydatki bieżące na pokrycie ujemnego wyniku finansowego samodzielnego publicznego zakładu opieki zdrowotnej | D96: Wydatki bieżące na pokrycie ujemnego wyniku finansowego samodzielnego publicznego zakładu opieki zdrowotnej | E96: =0 -> 0 | F96: =0 -> 0 | G96: =0 -> 0 | H96: =0 -> 0 | I96: =0 -> 0 | J96: =0 -> 0 | K96: =0 -> 0 | L96: =0 -> 0 | M96: =0 -> 0 | N96: =0 -> 0 | O96: =0 -> 0 | P96: =0 -> 0 | Q96: =0 -> 0 | R96: =0 -> 0 | S96: =0 -> 0 | T96: =0 -> 0 | U96: =0 -> 0 | V96: =0 -> 0 | W96: =0 -> 0 | X96: =0 -> 0 | Y96: =0 -> 0 | Z96: =0 -> 0 | AA96: =0 -> 0 | AB96: =0 -> 0 | AC96: =0 -> 0 | AD96: =0 -> 0 | AE96: =0 -> 0 | AF96: =0 -> 0 | AG96: =0 -> 0 | AH96: =0 -> 0 | AI96: =0 -> 0 | AJ96: =0 -> 0 | AK96: =0 -> 0 | AL96: =0 -> 0
A97: x | B97: 14 | C97: Dane uzupełniające o długu i jego spłacie | D97: Dane uzupełniające o długu i jego spłacie | E97: x | F97: x | G97: x | H97: x | I97: x | J97: x | K97: x | L97: x | M97: x | N97: x | O97: x | P97: x | Q97: x | R97: x | S97: x | T97: x | U97: x | V97: x | W97: x | X97: x | Y97: x | Z97: x | AA97: x | AB97: x | AC97: x | AD97: x | AE97: x | AF97: x | AG97: x | AH97: x | AI97: x | AJ97: x | AK97: x | AL97: x
A98: x | B98: 14.1 | C98: Spłaty rat kapitałowych oraz wykup papierów wartościowych, o których mowa w pkt. 5.1., wynikające wyłącznie z tytułu zobowiązań już zaciągniętych | D98: Spłaty rat kapitałowych oraz wykup papierów wartościowych, o których mowa w pkt. 5.1., wynikające wyłącznie z tytułu zobowiązań już zaciągniętych | E98: =1057000 -> 1057000 | F98: =100000 -> 100000 | G98: =400000 -> 400000 | H98: =400000 -> 400000 | I98: =600000 -> 600000 | J98: =600000 -> 600000 | K98: =600000 -> 600000 | L98: =600000 -> 600000 | M98: =600000 -> 600000 | N98: =730000 -> 730000 | O98: =910000 -> 910000 | P98: =1548000 -> 1548000 | Q98: =743000 -> 743000 | R98: =600000 -> 600000 | S98: =700000 -> 700000 | T98: =600000 -> 600000 | U98: =600000 -> 600000 | V98: =600000 -> 600000 | W98: =0 -> 0 | X98: =0 -> 0 | Y98: =0 -> 0 | Z98: =0 -> 0 | AA98: =0 -> 0 | AB98: =0 -> 0 | AC98: =0 -> 0 | AD98: =0 -> 0 | AE98: =0 -> 0 | AF98: =0 -> 0 | AG98: =0 -> 0 | AH98: =0 -> 0 | AI98: =0 -> 0 | AJ98: =0 -> 0 | AK98: =0 -> 0 | AL98: =0 -> 0
A99: x | B99: 14.2 | C99: Kwota długu, którego planowana spłata dokona się z wydatków budżetu | D99: Kwota długu, którego planowana spłata dokona się z wydatków budżetu | E99: =9850 -> 9850 | F99: =0 -> 0 | G99: =688000 -> 688000 | H99: =696129.22 -> 696129.22 | I99: =564000 -> 564000 | J99: =444000 -> 444000 | K99: =327000 -> 327000 | L99: =214000 -> 214000 | M99: =105000 -> 105000 | N99: =0 -> 0 | O99: =0 -> 0 | P99: =0 -> 0 | Q99: =0 -> 0 | R99: =0 -> 0 | S99: =0 -> 0 | T99: =0 -> 0 | U99: =0 -> 0 | V99: =0 -> 0 | W99: =0 -> 0 | X99: =0 -> 0 | Y99: =0 -> 0 | Z99: =0 -> 0 | AA99: =0 -> 0 | AB99: =0 -> 0 | AC99: =0 -> 0 | AD99: =0 -> 0 | AE99: =0 -> 0 | AF99: =0 -> 0 | AG99: =0 -> 0 | AH99: =0 -> 0 | AI99: =0 -> 0 | AJ99: =0 -> 0 | AK99: =0 -> 0 | AL99: =0 -> 0
A100: x | B100: 14.3 | C100: Wydatki zmniejszające dług, w tym | D100: Wydatki zmniejszające dług, w tym | E100: =19850 -> 19850 | F100: =9850 -> 9850 | G100: =130000 -> 130000 | H100: =130000 -> 130000 | I100: =132129.22 -> 132129.22 | J100: =120000 -> 120000 | K100: =117000 -> 117000 | L100: =113000 -> 113000 | M100: =109000 -> 109000 | N100: =105000 -> 105000 | O100: =0 -> 0 | P100: =0 -> 0 | Q100: =0 -> 0 | R100: =0 -> 0 | S100: =0 -> 0 | T100: =0 -> 0 | U100: =0 -> 0 | V100: =0 -> 0 | W100: =0 -> 0 | X100: =0 -> 0 | Y100: =0 -> 0 | Z100: =0 -> 0 | AA100: =0 -> 0 | AB100: =0 -> 0 | AC100: =0 -> 0 | AD100: =0 -> 0 | AE100: =0 -> 0 | AF100: =0 -> 0 | AG100: =0 -> 0 | AH100: =0 -> 0 | AI100: =0 -> 0 | AJ100: =0 -> 0 | AK100: =0 -> 0 | AL100: =0 -> 0
A101: x | B101: 14.3.1 | C101: spłata zobowiązań wymagalnych z lat poprzednich, innych niż w pkt 14.3.3 | D101: spłata zobowiązań wymagalnych z lat poprzednich, innych niż w pkt 14.3.3 | E101: =10000 -> 10000 | F101: =0 -> 0 | G101: =0 -> 0 | H101: =0 -> 0 | I101: =0 -> 0 | J101: =0 -> 0 | K101: =0 -> 0 | L101: =0 -> 0 | M101: =0 -> 0 | N101: =0 -> 0 | O101: =0 -> 0 | P101: =0 -> 0 | Q101: =0 -> 0 | R101: =0 -> 0 | S101: =0 -> 0 | T101: =0 -> 0 | U101: =0 -> 0 | V101: =0 -> 0 | W101: =0 -> 0 | X101: =0 -> 0 | Y101: =0 -> 0 | Z101: =0 -> 0 | AA101: =0 -> 0 | AB101: =0 -> 0 | AC101: =0 -> 0 | AD101: =0 -> 0 | AE101: =0 -> 0 | AF101: =0 -> 0 | AG101: =0 -> 0 | AH101: =0 -> 0 | AI101: =0 -> 0 | AJ101: =0 -> 0 | AK101: =0 -> 0 | AL101: =0 -> 0
A102: x | B102: 14.3.2 | C102: związane z umowami zaliczanymi do tytułów dłużnych wliczanych do państwowego długu publicznego | D102: związane z umowami zaliczanymi do tytułów dłużnych wliczanych do państwowego długu publicznego | E102: =9850 -> 9850 | F102: =9850 -> 9850 | G102: =130000 -> 130000 | H102: =130000 -> 130000 | I102: =132129.22 -> 132129.22 | J102: =120000 -> 120000 | K102: =117000 -> 117000 | L102: =113000 -> 113000 | M102: =109000 -> 109000 | N102: =105000 -> 105000 | O102: =0 -> 0 | P102: =0 -> 0 | Q102: =0 -> 0 | R102: =0 -> 0 | S102: =0 -> 0 | T102: =0 -> 0 | U102: =0 -> 0 | V102: =0 -> 0 | W102: =0 -> 0 | X102: =0 -> 0 | Y102: =0 -> 0 | Z102: =0 -> 0 | AA102: =0 -> 0 | AB102: =0 -> 0 | AC102: =0 -> 0 | AD102: =0 -> 0 | AE102: =0 -> 0 | AF102: =0 -> 0 | AG102: =0 -> 0 | AH102: =0 -> 0 | AI102: =0 -> 0 | AJ102: =0 -> 0 | AK102: =0 -> 0 | AL102: =0 -> 0
A103: x | B103: 14.3.3 | C103: wypłaty z tytułu wymagalnych poręczeń i gwarancji | D103: wypłaty z tytułu wymagalnych poręczeń i gwarancji | E103: =0 -> 0 | F103: =0 -> 0 | G103: =0 -> 0 | H103: =0 -> 0 | I103: =0 -> 0 | J103: =0 -> 0 | K103: =0 -> 0 | L103: =0 -> 0 | M103: =0 -> 0 | N103: =0 -> 0 | O103: =0 -> 0 | P103: =0 -> 0 | Q103: =0 -> 0 | R103: =0 -> 0 | S103: =0 -> 0 | T103: =0 -> 0 | U103: =0 -> 0 | V103: =0 -> 0 | W103: =0 -> 0 | X103: =0 -> 0 | Y103: =0 -> 0 | Z103: =0 -> 0 | AA103: =0 -> 0 | AB103: =0 -> 0 | AC103: =0 -> 0 | AD103: =0 -> 0 | AE103: =0 -> 0 | AF103: =0 -> 0 | AG103: =0 -> 0 | AH103: =0 -> 0 | AI103: =0 -> 0 | AJ103: =0 -> 0 | AK103: =0 -> 0 | AL103: =0 -> 0
A104: x | B104: 14.4 | C104: Wynik operacji niekasowych wpływających na kwotę długu ( m.in. umorzenia, różnice kursowe) | D104: Wynik operacji niekasowych wpływających na kwotę długu ( m.in. umorzenia, różnice kursowe) | E104: =0 -> 0 | F104: =0 -> 0 | G104: =0 -> 0 | H104: =0 -> 0 | I104: =0 -> 0 | J104: =0 -> 0 | K104: =0 -> 0 | L104: =0 -> 0 | M104: =0 -> 0 | N104: =0 -> 0 | O104: =0 -> 0 | P104: =0 -> 0 | Q104: =0 -> 0 | R104: =0 -> 0 | S104: =0 -> 0 | T104: =0 -> 0 | U104: =0 -> 0 | V104: =0 -> 0 | W104: =0 -> 0 | X104: =0 -> 0 | Y104: =0 -> 0 | Z104: =0 -> 0 | AA104: =0 -> 0 | AB104: =0 -> 0 | AC104: =0 -> 0 | AD104: =0 -> 0 | AE104: =0 -> 0 | AF104: =0 -> 0 | AG104: =0 -> 0 | AH104: =0 -> 0 | AI104: =0 -> 0 | AJ104: =0 -> 0 | AK104: =0 -> 0 | AL104: =0 -> 0
B105: 15 | C105: Dane dotyczące emitowanych obligacji przychodowych | D105: Dane dotyczące emitowanych obligacji przychodowych | E105: x | F105: x | G105: x | H105: x | I105: x | J105: x | K105: x | L105: x | M105: x | N105: x | O105: x | P105: x | Q105: x | R105: x | S105: x | T105: x | U105: x | V105: x | W105: x | X105: x | Y105: x | Z105: x | AA105: x | AB105: x | AC105: x | AD105: x | AE105: x | AF105: x | AG105: x | AH105: x | AI105: x | AJ105: x | AK105: x | AL105: x
B106: 15.1 | C106: Środki z przedsięwzięcia gromadzone na rachunku bankowym, w tym: | D106: Środki z przedsięwzięcia gromadzone na rachunku bankowym, w tym: | E106: =0 -> 0 | F106: =0 -> 0 | G106: =0 -> 0 | H106: =0 -> 0 | I106: =0 -> 0 | J106: =0 -> 0 | K106: =0 -> 0 | L106: =0 -> 0 | M106: =0 -> 0 | N106: =0 -> 0 | O106: =0 -> 0 | P106: =0 -> 0 | Q106: =0 -> 0 | R106: =0 -> 0 | S106: =0 -> 0 | T106: =0 -> 0 | U106: =0 -> 0 | V106: =0 -> 0 | W106: =0 -> 0 | X106: =0 -> 0 | Y106: =0 -> 0 | Z106: =0 -> 0 | AA106: =0 -> 0 | AB106: =0 -> 0 | AC106: =0 -> 0 | AD106: =0 -> 0 | AE106: =0 -> 0 | AF106: =0 -> 0 | AG106: =0 -> 0 | AH106: =0 -> 0 | AI106: =0 -> 0 | AJ106: =0 -> 0 | AK106: =0 -> 0 | AL106: =0 -> 0
A107: x | B107: 15.1.1 | C107: środki na zaspokojenie roszczeń obligatariuszy | D107: środki na zaspokojenie roszczeń obligatariuszy | E107: =0 -> 0 | F107: =0 -> 0 | G107: =0 -> 0 | H107: =0 -> 0 | I107: =0 -> 0 | J107: =0 -> 0 | K107: =0 -> 0 | L107: =0 -> 0 | M107: =0 -> 0 | N107: =0 -> 0 | O107: =0 -> 0 | P107: =0 -> 0 | Q107: =0 -> 0 | R107: =0 -> 0 | S107: =0 -> 0 | T107: =0 -> 0 | U107: =0 -> 0 | V107: =0 -> 0 | W107: =0 -> 0 | X107: =0 -> 0 | Y107: =0 -> 0 | Z107: =0 -> 0 | AA107: =0 -> 0 | AB107: =0 -> 0 | AC107: =0 -> 0 | AD107: =0 -> 0 | AE107: =0 -> 0 | AF107: =0 -> 0 | AG107: =0 -> 0 | AH107: =0 -> 0 | AI107: =0 -> 0 | AJ107: =0 -> 0 | AK107: =0 -> 0 | AL107: =0 -> 0
A108: x | B108: 15.2 | C108: Wydatki bieżące z tytułu świadczenia emitenta należnego obligatariuszom, nieuwzględniane w limicie spłaty zobowiązań, o którym mowa w art. 243 ustawy | D108: Wydatki bieżące z tytułu świadczenia emitenta należnego obligatariuszom, nieuwzględniane w limicie spłaty zobowiązań, o którym mowa w art. 243 ustawy | E108: =0 -> 0 | F108: =0 -> 0 | G108: =0 -> 0 | H108: =0 -> 0 | I108: =0 -> 0 | J108: =0 -> 0 | K108: =0 -> 0 | L108: =0 -> 0 | M108: =0 -> 0 | N108: =0 -> 0 | O108: =0 -> 0 | P108: =0 -> 0 | Q108: =0 -> 0 | R108: =0 -> 0 | S108: =0 -> 0 | T108: =0 -> 0 | U108: =0 -> 0 | V108: =0 -> 0 | W108: =0 -> 0 | X108: =0 -> 0 | Y108: =0 -> 0 | Z108: =0 -> 0 | AA108: =0 -> 0 | AB108: =0 -> 0 | AC108: =0 -> 0 | AD108: =0 -> 0 | AE108: =0 -> 0 | AF108: =0 -> 0 | AG108: =0 -> 0 | AH108: =0 -> 0 | AI108: =0 -> 0 | AJ108: =0 -> 0 | AK108: =0 -> 0 | AL108: =0 -> 0
A109: x | B109: 16 | D109: Stopień niezachowania relacji określonych w art. 242-244 ustawy (dotyczy tylko JST objętych procedurą z art. 240a lub 240b) | E109: x | F109: x | G109: x | H109: x | I109: x | J109: x | K109: x | L109: x | M109: x | N109: x | O109: x | P109: x | Q109: x | R109: x | S109: x | T109: x | U109: x | V109: x | W109: x | X109: x | Y109: x | Z109: x | AA109: x | AB109: x | AC109: x | AD109: x | AE109: x | AF109: x | AG109: x | AH109: x | AI109: x | AJ109: x | AK109: x | AL109: x
A110: x | B110: 16.1 | D110: Stopień niezachowania relacji zrównoważenia wydatków bieżących, o której mowa w poz. 8.2 | E110: x | F110: x | G110: x | H110: x | I110: =+IF(I46<0,I46,"") ->  | J110: =+IF(J46<0,J46,"") ->  | K110: =+IF(K46<0,K46,"") -> 
A111: x | B111: 16.2 | D111: Stopień niezachowania wskaźnika spłaty zobowiązań, o którym mowa w poz. 9.7 | E111: x | F111: x | G111: x | H111: x | I111: =IF(I51<=I53,"",I53- I51) ->  | J111: =IF(J51<=J53,"",J53-J51) ->  | K111: =IF(K51<=K53,"",K53-K51) -> 
A112: x | B112: 16.3 | D112: Stopień niezachowania wskaźnika spłaty zobowiązań, o którym mowa w poz. 9.7.1 | E112: x | F112: x | G112: x | H112: x | I112: =IF(I51<=I54,"",I54-I51) ->  | J112: =IF(J51<=J54,"",J54-J51) ->  | K112: =IF(K51<=K54,"",K54-K51) -> 
B118: Weryfikacja danych wykazanych w tabeli Wieloletnia Prognoza Finansowa
D119: Reguła formalna
D120: Reguła rachunkowa
D121: Reguła logiczna
D122: Reguły kontrolne
B123: [1.1] + [4.1] + [4.2] >= ([2.1] - [2.1.2]) | C123: [1.1] + [4.1] + [4.2] >= ([2.1] - [2.1.2]) | D123: Spełnienie wskaźnika z art. 242 | E123: x | F123: x | G123: x | H123: x | I123: =IF(ROUND(I5+I27+I29,2)>=ROUND(I16-I19,2),"TAK","NIE") -> TAK | J123: TAK | K123: TAK | L123: TAK | M123: TAK | N123: TAK | O123: TAK | P123: TAK | Q123: TAK | R123: TAK | S123: TAK | T123: TAK | U123: TAK | V123: TAK | W123: TAK | X123: TAK | Y123: TAK | Z123: TAK | AA123: TAK | AB123: TAK | AC123: TAK | AD123: TAK | AE123: TAK | AF123: TAK | AG123: TAK | AH123: TAK | AI123: TAK | AJ123: TAK | AK123: TAK | AL123: TAK
B124: [13.3] = 0 (dla lat 2014 i wyższych) | C124: [13.3] = 0 (dla lat 2014 i wyższych) | D124: Umorzenie zobowiązań, o którym mowa w art. 190 ustawy o działalności leczniczej nie wykracza poza ustawowy okres | E124: x | F124: x | G124: x | H124: x | I124: x | J124: x | K124: =IF(K92=0,"TAK","BŁĄD") -> TAK | L124: TAK | M124: TAK | N124: TAK | O124: TAK | P124: TAK | Q124: TAK | R124: TAK | S124: TAK | T124: TAK | U124: TAK | V124: TAK | W124: TAK | X124: TAK | Y124: TAK | Z124: TAK | AA124: TAK | AB124: TAK | AC124: TAK | AD124: TAK | AE124: TAK | AF124: TAK | AG124: TAK | AH124: TAK | AI124: TAK | AJ124: TAK | AK124: TAK | AL124: TAK
B125: [1] + [4] - [2] - [5] = 0 | C125: [1] + [4] - [2] - [5] = 0 | D125: Kontrola poprawności zbilansowania budżetu | E125: x | F125: x | G125: x | H125: x | I125: =IF(ROUND(I4+I26-I15-I35,2)=0,"OK",ROUND(I4+I26-I15-I35,2)) -> OK | J125: OK | K125: OK | L125: OK | M125: OK | N125: OK | O125: OK | P125: OK | Q125: OK | R125: OK | S125: OK | T125: OK | U125: OK | V125: OK | W125: OK | X125: OK | Y125: OK | Z125: OK | AA125: OK | AB125: OK | AC125: OK | AD125: OK | AE125: OK | AF125: OK | AG125: OK | AH125: OK | AI125: OK | AJ125: OK | AK125: OK | AL125: OK
B126: [6]"n" = [6]"n-1" + [4.3]"n" - [5.1]"n" + ([14.2]"n"-[14.2]"n-1") + [14.4] | C126: [6]"n" = [6]"n-1" + [4.3]"n" - [5.1]"n" + ([14.2]"n"-[14.2]"n-1") + [14.4] | D126: Kontrola poprawności wyliczenia kwoty długu | E126: x | F126: x | G126: x | H126: x | I126: =+IF(ROUND(H42+I31-I36+(I99-H99)+I104-I42,2)=0,"OK",ROUND(H42+I31-I36+(I99-H99)+I104-I42,2)) -> OK | J126: OK | K126: OK | L126: OK | M126: OK | N126: OK | O126: OK | P126: OK | Q126: OK | R126: OK | S126: OK | T126: OK | U126: OK | V126: OK | W126: OK | X126: OK | Y126: OK | Z126: OK | AA126: OK | AB126: OK | AC126: OK | AD126: OK | AE126: OK | AF126: OK | AG126: OK | AH126: OK | AI126: OK | AJ126: OK | AK126: OK | AL126: OK
B127: [14.2] "n" = ( [14.2] "n-1" - [14.3] "n" ) | C127: [14.2] "n" = ( [14.2] "n-1" - [14.3] "n" ) | D127: Analiza zmiany kwoty długu spłacanego wydatkami budżetu - wartości różne od zera wymagają objaśnienia - wartości większe od zera wskazują na powstanie w roku prognozy nowego długu tego typu - wartości mniejsze od zera co do zasady nie powinny wystąpić | E127: x | F127: x | G127: x | H127: x | I127: =+IF(H99=0,"N/D",IF(ROUND(I99+I100-H99,2)=0,"OK",ROUND(I99+I100-H99,2))) -> OK | J127: OK | K127: OK | L127: OK | M127: OK | N127: OK | O127: N/D | P127: N/D | Q127: N/D | R127: N/D | S127: N/D | T127: N/D | U127: N/D | V127: N/D | W127: N/D | X127: N/D | Y127: N/D | Z127: N/D | AA127: N/D | AB127: N/D | AC127: N/D | AD127: N/D | AE127: N/D | AF127: N/D | AG127: N/D | AH127: N/D | AI127: N/D | AJ127: N/D | AK127: N/D | AL127: N/D
B128: [13.1] "n" - ( [13.3] + [13.4] + [13.5] + [13.6] ) "n" = [13.1] "n-1" | C128: [13.1] "n" - ( [13.3] + [13.4] + [13.5] + [13.6] ) "n" = [13.1] "n-1" | D128: Porównanie na koniec roku prognozy stanu zobowiązań przejętych przez jst po likwidowanych i przekształcanych SP ZOZ z wydatkami i umorzeniami poniesionymi na ten cel ze stanem zobowiązań z okresu N-1 | E128: x | F128: x | G128: x | H128: x | I128: =+IF(H90=0,"N/D",IF(ROUND(I90+(I92+I93+I94+I95)-H90,2)=0,"OK",ROUND(I90+(I92+I93+I94+I95)-H90,2))) -> N/D | J128: N/D | K128: N/D | L128: N/D | M128: N/D | N128: N/D | O128: N/D | P128: N/D | Q128: N/D | R128: N/D | S128: N/D | T128: N/D | U128: N/D | V128: N/D | W128: N/D | X128: N/D | Y128: N/D | Z128: N/D | AA128: N/D | AB128: N/D | AC128: N/D | AD128: N/D | AE128: N/D | AF128: N/D | AG128: N/D | AH128: N/D | AI128: N/D | AJ128: N/D | AK128: N/D | AL128: N/D
B129: jeśli [3] < 0 to sprawdź czy [4.1.1] + [4.2.1] + [4.3.1] + [4.4.1] + [3] = 0 | C129: jeśli [3] < 0 to sprawdź czy [4.1.1] + [4.2.1] + [4.3.1] + [4.4.1] + [3] = 0 | D129: Kontrola poprawności wykazania źródeł pokrycia deficytu | E129: x | F129: x | G129: x | H129: x | I129: =IF(I25<0,IF(ROUND(I28+I30+I32+I34+I25,2)=0,"OK",ROUND(I28+I30+I32+I34+I25,2)),"N/D") -> OK | J129: N/D | K129: N/D | L129: N/D | M129: N/D | N129: N/D | O129: N/D | P129: N/D | Q129: N/D | R129: N/D | S129: N/D | T129: N/D | U129: N/D | V129: N/D | W129: N/D | X129: N/D | Y129: N/D | Z129: N/D | AA129: N/D | AB129: N/D | AC129: N/D | AD129: N/D | AE129: N/D | AF129: N/D | AG129: N/D | AH129: N/D | AI129: N/D | AJ129: N/D | AK129: N/D | AL129: N/D
B130: jeśli [3] >= 0 to sprawdź czy [4.1.1]=0 i [4.2.1]=0 i [4.3.1]=0 i [4.4.1] = 0 | C130: jeśli [3] >= 0 to sprawdź czy [4.1.1]=0 i [4.2.1]=0 i [4.3.1]=0 i [4.4.1] = 0 | D130: Kontrola poprawności niewykazania źródeł pokrycia deficytu przy nadwyżce budżetu | E130: x | F130: x | G130: x | H130: x | I130: =IF(I25>=0,IF(ROUND(I28+I30+I32+I34,2)=0,"OK",ROUND(I28+I30+I32+I34,2)),"N/D") -> N/D | J130: OK | K130: OK | L130: OK | M130: OK | N130: OK | O130: OK | P130: OK | Q130: OK | R130: OK | S130: OK | T130: OK | U130: OK | V130: OK | W130: OK | X130: OK | Y130: OK | Z130: OK | AA130: OK | AB130: OK | AC130: OK | AD130: OK | AE130: OK | AF130: OK | AG130: OK | AH130: OK | AI130: OK | AJ130: OK | AK130: OK | AL130: OK
B131: [1.1.3] >= [1.1.3.1] | C131: [1.1.3] >= [1.1.3.1] | D131: Reguła logiczna: [1.1.3] >= [1.1.3.1] | E131: x | F131: x | G131: x | H131: x | I131: =IF(I8>=I9,"OK","BŁĄD") -> OK | J131: OK | K131: OK | L131: OK | M131: OK | N131: OK | O131: OK | P131: OK | Q131: OK | R131: OK | S131: OK | T131: OK | U131: OK | V131: OK | W131: OK | X131: OK | Y131: OK | Z131: OK | AA131: OK | AB131: OK | AC131: OK | AD131: OK | AE131: OK | AF131: OK | AG131: OK | AH131: OK | AI131: OK | AJ131: OK | AK131: OK | AL131: OK
B132: [1.1.5] >= [13.2] | C132: [1.1.5] >= [13.2] | D132: Reguła logiczna: [1.1.5] >= [13.2] | E132: x | F132: x | G132: x | H132: x | I132: =IF(I11>=I91,"OK","BŁĄD") -> OK | J132: OK | K132: OK | L132: OK | M132: OK | N132: OK | O132: OK | P132: OK | Q132: OK | R132: OK | S132: OK | T132: OK | U132: OK | V132: OK | W132: OK | X132: OK | Y132: OK | Z132: OK | AA132: OK | AB132: OK | AC132: OK | AD132: OK | AE132: OK | AF132: OK | AG132: OK | AH132: OK | AI132: OK | AJ132: OK | AK132: OK | AL132: OK
B133: [1.1] >= ([1.1.1] + [1.1.2] + [1.1.3] + [1.1.4] + [1.1.5]) | C133: [1.1] >= ([1.1.1] + [1.1.2] + [1.1.3] + [1.1.4] + [1.1.5]) | D133: Reguła logiczna: [1.1] >= ([1.1.1] + [1.1.2] + [1.1.3] + [1.1.4] + [1.1.5]) | E133: x | F133: x | G133: x | H133: x | I133: =IF(I5>=I6+I7+I8+I10+I11,"OK","BŁĄD") -> OK | J133: OK | K133: OK | L133: OK | M133: OK | N133: OK | O133: OK | P133: OK | Q133: OK | R133: OK | S133: OK | T133: OK | U133: OK | V133: OK | W133: OK | X133: OK | Y133: OK | Z133: OK | AA133: OK | AB133: OK | AC133: OK | AD133: OK | AE133: OK | AF133: OK | AG133: OK | AH133: OK | AI133: OK | AJ133: OK | AK133: OK | AL133: OK
B134: [1.1] >= [12.1] | C134: [1.1] >= [12.1] | D134: Reguła logiczna: [1.1] >= [12.1] | E134: x | F134: x | G134: x | H134: x | I134: =IF(I5>=I69,"OK","BŁĄD") -> OK | J134: OK | K134: OK | L134: OK | M134: OK | N134: OK | O134: OK | P134: OK | Q134: OK | R134: OK | S134: OK | T134: OK | U134: OK | V134: OK | W134: OK | X134: OK | Y134: OK | Z134: OK | AA134: OK | AB134: OK | AC134: OK | AD134: OK | AE134: OK | AF134: OK | AG134: OK | AH134: OK | AI134: OK | AJ134: OK | AK134: OK | AL134: OK
B135: [1.2] >= [1.2.1] | C135: [1.2] >= [1.2.1] | D135: Reguła logiczna: [1.2] >= [1.2.1] | E135: x | F135: x | G135: x | H135: x | I135: =IF(I12>=I13,"OK","BŁĄD") -> OK | J135: OK | K135: OK | L135: OK | M135: OK | N135: OK | O135: OK | P135: OK | Q135: OK | R135: OK | S135: OK | T135: OK | U135: OK | V135: OK | W135: OK | X135: OK | Y135: OK | Z135: OK | AA135: OK | AB135: OK | AC135: OK | AD135: OK | AE135: OK | AF135: OK | AG135: OK | AH135: OK | AI135: OK | AJ135: OK | AK135: OK | AL135: OK
B136: [1.2] >= [1.2.2] | C136: [1.2] >= [1.2.2] | D136: Reguła logiczna: [1.2] >= [1.2.2] | E136: x | F136: x | G136: x | H136: x | I136: =IF(I12>=I14,"OK","BŁĄD") -> OK | J136: OK | K136: OK | L136: OK | M136: OK | N136: OK | O136: OK | P136: OK | Q136: OK | R136: OK | S136: OK | T136: OK | U136: OK | V136: OK | W136: OK | X136: OK | Y136: OK | Z136: OK | AA136: OK | AB136: OK | AC136: OK | AD136: OK | AE136: OK | AF136: OK | AG136: OK | AH136: OK | AI136: OK | AJ136: OK | AK136: OK | AL136: OK
B137: [1.2] >= [12.2] | C137: [1.2] >= [12.2] | D137: Reguła logiczna: [1.2] >= [12.2] | E137: x | F137: x | G137: x | H137: x | I137: =IF(I12>=I72,"OK","BŁĄD") -> OK | J137: OK | K137: OK | L137: OK | M137: OK | N137: OK | O137: OK | P137: OK | Q137: OK | R137: OK | S137: OK | T137: OK | U137: OK | V137: OK | W137: OK | X137: OK | Y137: OK | Z137: OK | AA137: OK | AB137: OK | AC137: OK | AD137: OK | AE137: OK | AF137: OK | AG137: OK | AH137: OK | AI137: OK | AJ137: OK | AK137: OK | AL137: OK
D138: Reguła logiczna: jeżeli [3] >0 to [10] = [3] | E138: x | F138: x | G138: x | H138: x | I138: =+IF(I25>0,IF(I25=I57,"OK","Błąd"),"N/D") -> N/D | J138: OK | K138: OK | L138: OK | M138: OK | N138: OK | O138: OK | P138: OK | Q138: OK | R138: OK | S138: OK | T138: OK | U138: OK | V138: OK | W138: N/D | X138: N/D | Y138: N/D | Z138: N/D | AA138: N/D | AB138: N/D | AC138: N/D | AD138: N/D | AE138: N/D | AF138: N/D | AG138: N/D | AH138: N/D | AI138: N/D | AJ138: N/D | AK138: N/D | AL138: N/D
B139: [10] >= [10.1] | C139: [10] >= [10.1] | D139: Reguła logiczna: [10] >= [10.1] | E139: x | F139: x | G139: x | H139: x | I139: =IF(I57>=I58,"OK","BŁĄD") -> OK | J139: OK | K139: OK | L139: OK | M139: OK | N139: OK | O139: OK | P139: OK | Q139: OK | R139: OK | S139: OK | T139: OK | U139: OK | V139: OK | W139: OK | X139: OK | Y139: OK | Z139: OK | AA139: OK | AB139: OK | AC139: OK | AD139: OK | AE139: OK | AF139: OK | AG139: OK | AH139: OK | AI139: OK | AJ139: OK | AK139: OK | AL139: OK
C140: jeśli [10] > 0 to powinno być [10.1] > 0 | D140: Reguła logiczna: jeżeli [10] > 0 to [10.1] >0 | E140: x | F140: x | G140: x | H140: x | I140: =IF(I57>0,IF(I58>0,"OK","BŁĄD"),"N/D") -> N/D | J140: OK | K140: OK | L140: OK | M140: OK | N140: OK | O140: OK | P140: OK | Q140: OK | R140: OK | S140: OK | T140: OK | U140: OK | V140: OK | W140: N/D | X140: N/D | Y140: N/D | Z140: N/D | AA140: N/D | AB140: N/D | AC140: N/D | AD140: N/D | AE140: N/D | AF140: N/D | AG140: N/D | AH140: N/D | AI140: N/D | AJ140: N/D | AK140: N/D | AL140: N/D
B141: [12.1] >= [12.1.1] | C141: [12.1] >= [12.1.1] | D141: Reguła logiczna: [12.1] >= [12.1.1] | E141: x | F141: x | G141: x | H141: x | I141: =IF(I69>=I70,"OK","BŁĄD") -> OK | J141: OK | K141: OK | L141: OK | M141: OK | N141: OK | O141: OK | P141: OK | Q141: OK | R141: OK | S141: OK | T141: OK | U141: OK | V141: OK | W141: OK | X141: OK | Y141: OK | Z141: OK | AA141: OK | AB141: OK | AC141: OK | AD141: OK | AE141: OK | AF141: OK | AG141: OK | AH141: OK | AI141: OK | AJ141: OK | AK141: OK | AL141: OK
B142: [12.1.1] >= [12.1.1.1] | C142: [12.1.1] >= [12.1.1.1] | D142: Reguła logiczna: [12.1.1] >= [12.1.1.1] | E142: x | F142: x | G142: x | H142: x | I142: OK | J142: OK | K142: OK | L142: OK | M142: OK | N142: OK | O142: OK | P142: OK | Q142: OK | R142: OK | S142: OK | T142: OK | U142: OK | V142: OK | W142: OK | X142: OK | Y142: OK | Z142: OK | AA142: OK | AB142: OK | AC142: OK | AD142: OK | AE142: OK | AF142: OK | AG142: OK | AH142: OK | AI142: OK | AJ142: OK | AK142: OK | AL142: OK
B143: [12.2] >= [12.2.1] | C143: [12.2] >= [12.2.1] | D143: Reguła logiczna: [12.2] >= [12.2.1] | E143: x | F143: x | G143: x | H143: x | I143: =IF(I72>=I73,"OK","BŁĄD") -> OK | J143: OK | K143: OK | L143: OK | M143: OK | N143: OK | O143: OK | P143: OK | Q143: OK | R143: OK | S143: OK | T143: OK | U143: OK | V143: OK | W143: OK | X143: OK | Y143: OK | Z143: OK | AA143: OK | AB143: OK | AC143: OK | AD143: OK | AE143: OK | AF143: OK | AG143: OK | AH143: OK | AI143: OK | AJ143: OK | AK143: OK | AL143: OK
B144: [12.2.1] >= [12.2.1.1] | C144: [12.2.1] >= [12.2.1.1] | D144: Reguła logiczna: [12.2.1] >= [12.2.1.1] | E144: x | F144: x | G144: x | H144: x | I144: OK | J144: OK | K144: OK | L144: OK | M144: OK | N144: OK | O144: OK | P144: OK | Q144: OK | R144: OK | S144: OK | T144: OK | U144: OK | V144: OK | W144: OK | X144: OK | Y144: OK | Z144: OK | AA144: OK | AB144: OK | AC144: OK | AD144: OK | AE144: OK | AF144: OK | AG144: OK | AH144: OK | AI144: OK | AJ144: OK | AK144: OK | AL144: OK
B145: [12.3] >= [12.3.1] | C145: [12.3] >= [12.3.1] | D145: Reguła logiczna: [12.3] >= [12.3.1] | E145: x | F145: x | G145: x | H145: x | I145: =IF(I75>=I76,"OK","BŁĄD") -> OK | J145: OK | K145: OK | L145: OK | M145: OK | N145: OK | O145: OK | P145: OK | Q145: OK | R145: OK | S145: OK | T145: OK | U145: OK | V145: OK | W145: OK | X145: OK | Y145: OK | Z145: OK | AA145: OK | AB145: OK | AC145: OK | AD145: OK | AE145: OK | AF145: OK | AG145: OK | AH145: OK | AI145: OK | AJ145: OK | AK145: OK | AL145: OK
B146: [12.3] >= [12.3.2] | C146: [12.3] >= [12.3.2] | D146: Reguła logiczna: [12.3] >= [12.3.2] | E146: x | F146: x | G146: x | H146: x | I146: =IF(I75>=I77,"OK","BŁĄD") -> OK | J146: OK | K146: OK | L146: OK | M146: OK | N146: OK | O146: OK | P146: OK | Q146: OK | R146: OK | S146: OK | T146: OK | U146: OK | V146: OK | W146: OK | X146: OK | Y146: OK | Z146: OK | AA146: OK | AB146: OK | AC146: OK | AD146: OK | AE146: OK | AF146: OK | AG146: OK | AH146: OK | AI146: OK | AJ146: OK | AK146: OK | AL146: OK
B147: [12.4] >= [12.4.1] | C147: [12.4] >= [12.4.1] | D147: Reguła logiczna: [12.4] >= [12.4.1] | E147: x | F147: x | G147: x | H147: x | I147: =IF(I78>=I79,"OK","BŁĄD") -> OK | J147: OK | K147: OK | L147: OK | M147: OK | N147: OK | O147: OK | P147: OK | Q147: OK | R147: OK | S147: OK | T147: OK | U147: OK | V147: OK | W147: OK | X147: OK | Y147: OK | Z147: OK | AA147: OK | AB147: OK | AC147: OK | AD147: OK | AE147: OK | AF147: OK | AG147: OK | AH147: OK | AI147: OK | AJ147: OK | AK147: OK | AL147: OK
B148: [12.4] >= [12.4.2] | C148: [12.4] >= [12.4.2] | D148: Reguła logiczna: [12.4] >= [12.4.2] | E148: x | F148: x | G148: x | H148: x | I148: =IF(I78>=I80,"OK","BŁĄD") -> OK | J148: OK | K148: OK | L148: OK | M148: OK | N148: OK | O148: OK | P148: OK | Q148: OK | R148: OK | S148: OK | T148: OK | U148: OK | V148: OK | W148: OK | X148: OK | Y148: OK | Z148: OK | AA148: OK | AB148: OK | AC148: OK | AD148: OK | AE148: OK | AF148: OK | AG148: OK | AH148: OK | AI148: OK | AJ148: OK | AK148: OK | AL148: OK
B149: [12.4] >= [12.4.1] | C149: [12.4] >= [12.4.1] | D149: Reguła logiczna: [12.5] >= [12.5.1] | E149: x | F149: x | G149: x | H149: x | I149: =IF(I81>=I82,"OK","BŁĄD") -> OK | J149: =IF(J81>=J82,"OK","BŁĄD") -> OK | K149: OK | L149: OK | M149: OK | N149: OK | O149: OK | P149: OK | Q149: OK | R149: OK | S149: OK | T149: OK | U149: OK | V149: OK | W149: OK | X149: OK | Y149: OK | Z149: OK | AA149: OK | AB149: OK | AC149: OK | AD149: OK | AE149: OK | AF149: OK | AG149: OK | AH149: OK | AI149: OK | AJ149: OK | AK149: OK | AL149: OK
B150: [12.4] >= [12.4.1] | C150: [12.4] >= [12.4.1] | D150: Reguła logiczna: [12.6] >= [12.6.1] | E150: x | F150: x | G150: x | H150: x | I150: =IF(I83>=I84,"OK","BŁĄD") -> OK | J150: =IF(J83>=J84,"OK","BŁĄD") -> OK | K150: OK | L150: OK | M150: OK | N150: OK | O150: OK | P150: OK | Q150: OK | R150: OK | S150: OK | T150: OK | U150: OK | V150: OK | W150: OK | X150: OK | Y150: OK | Z150: OK | AA150: OK | AB150: OK | AC150: OK | AD150: OK | AE150: OK | AF150: OK | AG150: OK | AH150: OK | AI150: OK | AJ150: OK | AK150: OK | AL150: OK
B151: [12.4] >= [12.4.1] | C151: [12.4] >= [12.4.1] | D151: Reguła logiczna: [12.7] >= [12.7.1] | E151: x | F151: x | G151: x | H151: x | I151: =IF(I85>=I86,"OK","BŁĄD") -> OK | J151: =IF(J85>=J86,"OK","BŁĄD") -> OK | K151: OK | L151: OK | M151: OK | N151: OK | O151: OK | P151: OK | Q151: OK | R151: OK | S151: OK | T151: OK | U151: OK | V151: OK | W151: OK | X151: OK | Y151: OK | Z151: OK | AA151: OK | AB151: OK | AC151: OK | AD151: OK | AE151: OK | AF151: OK | AG151: OK | AH151: OK | AI151: OK | AJ151: OK | AK151: OK | AL151: OK
B152: [12.4] >= [12.4.1] | C152: [12.4] >= [12.4.1] | D152: Reguła logiczna: [12.8] >= [12.8.1] | E152: x | F152: x | G152: x | H152: x | I152: =IF(I87>=I88,"OK","BŁĄD") -> OK | J152: =IF(J87>=J88,"OK","BŁĄD") -> OK | K152: OK | L152: OK | M152: OK | N152: OK | O152: OK | P152: OK | Q152: OK | R152: OK | S152: OK | T152: OK | U152: OK | V152: OK | W152: OK | X152: OK | Y152: OK | Z152: OK | AA152: OK | AB152: OK | AC152: OK | AD152: OK | AE152: OK | AF152: OK | AG152: OK | AH152: OK | AI152: OK | AJ152: OK | AK152: OK | AL152: OK
B153: [13.1] >= [13.3] | C153: [13.1] >= [13.3] | D153: Reguła logiczna: [13.1] >= [13.3] | E153: x | F153: x | G153: x | H153: x | I153: =IF(I90>=I92,"OK","BŁĄD") -> OK | J153: OK | K153: OK | L153: OK | M153: OK | N153: OK | O153: OK | P153: OK | Q153: OK | R153: OK | S153: OK | T153: OK | U153: OK | V153: OK | W153: OK | X153: OK | Y153: OK | Z153: OK | AA153: OK | AB153: OK | AC153: OK | AD153: OK | AE153: OK | AF153: OK | AG153: OK | AH153: OK | AI153: OK | AJ153: OK | AK153: OK | AL153: OK
B154: [13.4] >= [2.1.2] | C154: [13.4] >= [2.1.2] | D154: Reguła logiczna: [13.4] >= [2.1.2] | E154: x | F154: x | G154: x | H154: x | I154: =IF(I93>=I19,"OK","BŁĄD") -> OK | J154: OK | K154: OK | L154: OK | M154: OK | N154: OK | O154: OK | P154: OK | Q154: OK | R154: OK | S154: OK | T154: OK | U154: OK | V154: OK | W154: OK | X154: OK | Y154: OK | Z154: OK | AA154: OK | AB154: OK | AC154: OK | AD154: OK | AE154: OK | AF154: OK | AG154: OK | AH154: OK | AI154: OK | AJ154: OK | AK154: OK | AL154: OK
B155: [14.3] >= [14.3.1] + [14.3.2] + [14.3.3] | C155: [14.3] >= [14.3.1] + [14.3.2] + [14.3.3] | D155: Reguła logiczna: [14.3] >= [14.3.1] + [14.3.2] + [14.3.3] | E155: x | F155: x | G155: x | H155: x | I155: =IF(I100>=(I101+I102+I103),"OK","BŁĄD") -> OK | J155: OK | K155: OK | L155: OK | M155: OK | N155: OK | O155: OK | P155: OK | Q155: OK | R155: OK | S155: OK | T155: OK | U155: OK | V155: OK | W155: OK | X155: OK | Y155: OK | Z155: OK | AA155: OK | AB155: OK | AC155: OK | AD155: OK | AE155: OK | AF155: OK | AG155: OK | AH155: OK | AI155: OK | AJ155: OK | AK155: OK | AL155: OK
B156: [13.1] >= [13.3] | C156: [13.1] >= [13.3] | D156: Reguła logiczna: [15.1] >= [15.1.1] | E156: x | F156: x | G156: x | H156: x | I156: =IF(I106>=I107,"OK","BŁĄD") -> OK | J156: =IF(J106>=J107,"OK","BŁĄD") -> OK | K156: OK | L156: OK | M156: OK | N156: OK | O156: OK | P156: OK | Q156: OK | R156: OK | S156: OK | T156: OK | U156: OK | V156: OK | W156: OK | X156: OK | Y156: OK | Z156: OK | AA156: OK | AB156: OK | AC156: OK | AD156: OK | AE156: OK | AF156: OK | AG156: OK | AH156: OK | AI156: OK | AJ156: OK | AK156: OK | AL156: OK
B157: [2.1.1] >= [2.1.1.1] | C157: [2.1.1] >= [2.1.1.1] | D157: Reguła logiczna: [2.1.1] >= [2.1.1.1] | E157: x | F157: x | G157: x | H157: x | I157: =IF(I17>=I18,"OK","BŁĄD") -> OK | J157: OK | K157: OK | L157: OK | M157: OK | N157: OK | O157: OK | P157: OK | Q157: OK | R157: OK | S157: OK | T157: OK | U157: OK | V157: OK | W157: OK | X157: OK | Y157: OK | Z157: OK | AA157: OK | AB157: OK | AC157: OK | AD157: OK | AE157: OK | AF157: OK | AG157: OK | AH157: OK | AI157: OK | AJ157: OK | AK157: OK | AL157: OK
B158: [2.1.1] >= [14.3.3] | C158: [2.1.1] >= [14.3.3] | D158: Reguła logiczna: [2.1.1] >= [14.3.3] | E158: x | F158: x | G158: x | H158: x | I158: =IF(I17>=I103,"OK","BŁĄD") -> OK | J158: OK | K158: OK | L158: OK | M158: OK | N158: OK | O158: OK | P158: OK | Q158: OK | R158: OK | S158: OK | T158: OK | U158: OK | V158: OK | W158: OK | X158: OK | Y158: OK | Z158: OK | AA158: OK | AB158: OK | AC158: OK | AD158: OK | AE158: OK | AF158: OK | AG158: OK | AH158: OK | AI158: OK | AJ158: OK | AK158: OK | AL158: OK
B159: [2.1.3] >= [2.1.3.1] | C159: [2.1.3] >= [2.1.3.1] | D159: Reguła logiczna: [2.1.3] >= [2.1.3.1] | E159: x | F159: x | G159: x | H159: x | I159: =IF(I20>=I21,"OK","BŁĄD") -> OK | J159: OK | K159: OK | L159: OK | M159: OK | N159: OK | O159: OK | P159: OK | Q159: OK | R159: OK | S159: OK | T159: OK | U159: OK | V159: OK | W159: OK | X159: OK | Y159: OK | Z159: OK | AA159: OK | AB159: OK | AC159: OK | AD159: OK | AE159: OK | AF159: OK | AG159: OK | AH159: OK | AI159: OK | AJ159: OK | AK159: OK | AL159: OK
B160: [2.1.3] >= [2.1.3.1] | C160: [2.1.3] >= [2.1.3.1] | D160: Reguła logiczna: [2.1.3.1] >= [2.1.3.1.1]+[2.1.3.1.2] | E160: x | F160: x | G160: x | H160: x | I160: =IF(I21>=(I22+I23),"OK","BŁĄD") -> OK | J160: OK | K160: OK | L160: OK | M160: OK | N160: OK | O160: OK | P160: OK | Q160: OK | R160: OK | S160: OK | T160: OK | U160: OK | V160: OK | W160: OK | X160: OK | Y160: OK | Z160: OK | AA160: OK | AB160: OK | AC160: OK | AD160: OK | AE160: OK | AF160: OK | AG160: OK | AH160: OK | AI160: OK | AJ160: OK | AK160: OK | AL160: OK
B161: [2.1] >= ([2.1.1] + [2.1.2] + [2.1.3]) | C161: [2.1] >= ([2.1.1] + [2.1.2] + [2.1.3]) | D161: Reguła logiczna: [2.1] >= ([2.1.1] + [2.1.2] + [2.1.3]) | E161: x | F161: x | G161: x | H161: x | I161: =IF(I16>=(I17+I19+I20),"OK","BŁĄD") -> OK | J161: OK | K161: OK | L161: OK | M161: OK | N161: OK | O161: OK | P161: OK | Q161: OK | R161: OK | S161: OK | T161: OK | U161: OK | V161: OK | W161: OK | X161: OK | Y161: OK | Z161: OK | AA161: OK | AB161: OK | AC161: OK | AD161: OK | AE161: OK | AF161: OK | AG161: OK | AH161: OK | AI161: OK | AJ161: OK | AK161: OK | AL161: OK
B162: [2.1] >= [11.1] | C162: [2.1] >= [11.1] | D162: Reguła logiczna: [2.1] >= [11.1] | E162: x | F162: x | G162: x | H162: x | I162: =IF(I16>=I60,"OK","BŁĄD") -> OK | J162: OK | K162: OK | L162: OK | M162: OK | N162: OK | O162: OK | P162: OK | Q162: OK | R162: OK | S162: OK | T162: OK | U162: OK | V162: OK | W162: OK | X162: OK | Y162: OK | Z162: OK | AA162: OK | AB162: OK | AC162: OK | AD162: OK | AE162: OK | AF162: OK | AG162: OK | AH162: OK | AI162: OK | AJ162: OK | AK162: OK | AL162: OK
B163: [2.1] >= [11.3.1] | C163: [2.1] >= [11.3.1] | D163: Reguła logiczna: [2.1] >= [11.3.1] | E163: x | F163: x | G163: x | H163: x | I163: =IF(I16>=I63,"OK","BŁĄD") -> OK | J163: OK | K163: OK | L163: OK | M163: OK | N163: OK | O163: OK | P163: OK | Q163: OK | R163: OK | S163: OK | T163: OK | U163: OK | V163: OK | W163: OK | X163: OK | Y163: OK | Z163: OK | AA163: OK | AB163: OK | AC163: OK | AD163: OK | AE163: OK | AF163: OK | AG163: OK | AH163: OK | AI163: OK | AJ163: OK | AK163: OK | AL163: OK
B164: [2.1] >= [12.3] | C164: [2.1] >= [12.3] | D164: Reguła logiczna: [2.1] >= [12.3] | E164: x | F164: x | G164: x | H164: x | I164: =IF(I16>=I75,"OK","BŁĄD") -> OK | J164: OK | K164: OK | L164: OK | M164: OK | N164: OK | O164: OK | P164: OK | Q164: OK | R164: OK | S164: OK | T164: OK | U164: OK | V164: OK | W164: OK | X164: OK | Y164: OK | Z164: OK | AA164: OK | AB164: OK | AC164: OK | AD164: OK | AE164: OK | AF164: OK | AG164: OK | AH164: OK | AI164: OK | AJ164: OK | AK164: OK | AL164: OK
B165: [2.1] >= [13.7] | C165: [2.1] >= [13.7] | D165: Reguła logiczna: [2.1] >= [13.7] | E165: x | F165: x | G165: x | H165: x | I165: =IF(I16>=I96,"OK","BŁĄD") -> OK | J165: OK | K165: OK | L165: OK | M165: OK | N165: OK | O165: OK | P165: OK | Q165: OK | R165: OK | S165: OK | T165: OK | U165: OK | V165: OK | W165: OK | X165: OK | Y165: OK | Z165: OK | AA165: OK | AB165: OK | AC165: OK | AD165: OK | AE165: OK | AF165: OK | AG165: OK | AH165: OK | AI165: OK | AJ165: OK | AK165: OK | AL165: OK
B166: [2.2] >= [11.3.2] | C166: [2.2] >= [11.3.2] | D166: Reguła logiczna: [2.2] >= [11.3.2] | E166: x | F166: x | G166: x | H166: x | I166: =IF(I24>=I64,"OK","BŁĄD") -> OK | J166: OK | K166: OK | L166: OK | M166: OK | N166: OK | O166: OK | P166: OK | Q166: OK | R166: OK | S166: OK | T166: OK | U166: OK | V166: OK | W166: OK | X166: OK | Y166: OK | Z166: OK | AA166: OK | AB166: OK | AC166: OK | AD166: OK | AE166: OK | AF166: OK | AG166: OK | AH166: OK | AI166: OK | AJ166: OK | AK166: OK | AL166: OK
B167: [2.2] >= [11.4] + [11.5] | C167: [2.2] >= [11.4] + [11.5] | D167: Reguła logiczna: [2.2] >= [11.4] + [11.5] | E167: x | F167: x | G167: x | H167: x | I167: =IF(I24>=I65+I66,"OK","BŁĄD") -> OK | J167: OK | K167: OK | L167: OK | M167: OK | N167: OK | O167: OK | P167: OK | Q167: OK | R167: OK | S167: OK | T167: OK | U167: OK | V167: OK | W167: OK | X167: OK | Y167: OK | Z167: OK | AA167: OK | AB167: OK | AC167: OK | AD167: OK | AE167: OK | AF167: OK | AG167: OK | AH167: OK | AI167: OK | AJ167: OK | AK167: OK | AL167: OK
B168: [2.2] >= [11.6] | C168: [2.2] >= [11.6] | D168: Reguła logiczna: [2.2] >= [11.6] | E168: x | F168: x | G168: x | H168: x | I168: =IF(I24>=I67,"OK","BŁĄD") -> OK | J168: OK | K168: OK | L168: OK | M168: OK | N168: OK | O168: OK | P168: OK | Q168: OK | R168: OK | S168: OK | T168: OK | U168: OK | V168: OK | W168: OK | X168: OK | Y168: OK | Z168: OK | AA168: OK | AB168: OK | AC168: OK | AD168: OK | AE168: OK | AF168: OK | AG168: OK | AH168: OK | AI168: OK | AJ168: OK | AK168: OK | AL168: OK
B169: [2.2] >= [12.4] | C169: [2.2] >= [12.4] | D169: Reguła logiczna: [2.2] >= [12.4] | E169: x | F169: x | G169: x | H169: x | I169: =IF(I24>=I78,"OK","BŁĄD") -> OK | J169: OK | K169: OK | L169: OK | M169: OK | N169: OK | O169: OK | P169: OK | Q169: OK | R169: OK | S169: OK | T169: OK | U169: OK | V169: OK | W169: OK | X169: OK | Y169: OK | Z169: OK | AA169: OK | AB169: OK | AC169: OK | AD169: OK | AE169: OK | AF169: OK | AG169: OK | AH169: OK | AI169: OK | AJ169: OK | AK169: OK | AL169: OK
B170: [4.1] >= [4.1.1] | C170: [4.1] >= [4.1.1] | D170: Reguła logiczna: [4.1] >= [4.1.1] | E170: x | F170: x | G170: x | H170: x | I170: =IF(I27>=I28,"OK","BŁĄD") -> OK | J170: OK | K170: OK | L170: OK | M170: OK | N170: OK | O170: OK | P170: OK | Q170: OK | R170: OK | S170: OK | T170: OK | U170: OK | V170: OK | W170: OK | X170: OK | Y170: OK | Z170: OK | AA170: OK | AB170: OK | AC170: OK | AD170: OK | AE170: OK | AF170: OK | AG170: OK | AH170: OK | AI170: OK | AJ170: OK | AK170: OK | AL170: OK
B171: [4.2] >= [4.2.1] | C171: [4.2] >= [4.2.1] | D171: Reguła logiczna: [4.2] >= [4.2.1] | E171: x | F171: x | G171: x | H171: x | I171: =IF(I29>=I30,"OK","BŁĄD") -> OK | J171: OK | K171: OK | L171: OK | M171: OK | N171: OK | O171: OK | P171: OK | Q171: OK | R171: OK | S171: OK | T171: OK | U171: OK | V171: OK | W171: OK | X171: OK | Y171: OK | Z171: OK | AA171: OK | AB171: OK | AC171: OK | AD171: OK | AE171: OK | AF171: OK | AG171: OK | AH171: OK | AI171: OK | AJ171: OK | AK171: OK | AL171: OK
B172: [4.3] >= [4.3.1] | C172: [4.3] >= [4.3.1] | D172: Reguła logiczna: [4.3] >= [4.3.1] | E172: x | F172: x | G172: x | H172: x | I172: =IF(I31>=I32,"OK","BŁĄD") -> OK | J172: OK | K172: OK | L172: OK | M172: OK | N172: OK | O172: OK | P172: OK | Q172: OK | R172: OK | S172: OK | T172: OK | U172: OK | V172: OK | W172: OK | X172: OK | Y172: OK | Z172: OK | AA172: OK | AB172: OK | AC172: OK | AD172: OK | AE172: OK | AF172: OK | AG172: OK | AH172: OK | AI172: OK | AJ172: OK | AK172: OK | AL172: OK
B173: [4.4] >= [4.4.1] | C173: [4.4] >= [4.4.1] | D173: Reguła logiczna: [4.4] >= [4.4.1] | E173: x | F173: x | G173: x | H173: x | I173: =IF(I33>=I34,"OK","BŁĄD") -> OK | J173: OK | K173: OK | L173: OK | M173: OK | N173: OK | O173: OK | P173: OK | Q173: OK | R173: OK | S173: OK | T173: OK | U173: OK | V173: OK | W173: OK | X173: OK | Y173: OK | Z173: OK | AA173: OK | AB173: OK | AC173: OK | AD173: OK | AE173: OK | AF173: OK | AG173: OK | AH173: OK | AI173: OK | AJ173: OK | AK173: OK | AL173: OK
B174: [5.1] >= [5.1.1] | C174: [5.1] >= [5.1.1] | D174: Reguła logiczna: [5.1] >= [5.1.1] | E174: x | F174: x | G174: x | H174: x | I174: =IF(I36>=I37,"OK","BŁĄD") -> OK | J174: OK | K174: OK | L174: OK | M174: OK | N174: OK | O174: OK | P174: OK | Q174: OK | R174: OK | S174: OK | T174: OK | U174: OK | V174: OK | W174: OK | X174: OK | Y174: OK | Z174: OK | AA174: OK | AB174: OK | AC174: OK | AD174: OK | AE174: OK | AF174: OK | AG174: OK | AH174: OK | AI174: OK | AJ174: OK | AK174: OK | AL174: OK
B175: [5.1] >= [10.1] | C175: [5.1] >= [10.1] | D175: Reguła logiczna: [5.1] >= [10.1] | E175: x | F175: x | G175: x | H175: x | I175: =IF(I36>=I58,"OK","BŁĄD") -> OK | J175: OK | K175: OK | L175: OK | M175: OK | N175: OK | O175: OK | P175: OK | Q175: OK | R175: OK | S175: OK | T175: OK | U175: OK | V175: OK | W175: OK | X175: OK | Y175: OK | Z175: OK | AA175: OK | AB175: OK | AC175: OK | AD175: OK | AE175: OK | AF175: OK | AG175: OK | AH175: OK | AI175: OK | AJ175: OK | AK175: OK | AL175: OK
B176: [5.1] >= [14.1] | C176: [5.1] >= [14.1] | D176: Reguła logiczna: [5.1] >= [14.1] | E176: x | F176: x | G176: x | H176: x | I176: =IF(I36>=I98,"OK","BŁĄD") -> OK | J176: OK | K176: OK | L176: OK | M176: OK | N176: OK | O176: OK | P176: OK | Q176: OK | R176: OK | S176: OK | T176: OK | U176: OK | V176: OK | W176: OK | X176: OK | Y176: OK | Z176: OK | AA176: OK | AB176: OK | AC176: OK | AD176: OK | AE176: OK | AF176: OK | AG176: OK | AH176: OK | AI176: OK | AJ176: OK | AK176: OK | AL176: OK
B177: [6] >=[7] | C177: [6] >=[7] | D177: Reguła logiczna: [6] >=[7] | E177: x | F177: x | G177: x | H177: x | I177: =IF(I42>=I43,"OK","BŁĄD") -> OK | J177: OK | K177: OK | L177: OK | M177: OK | N177: OK | O177: OK | P177: OK | Q177: OK | R177: OK | S177: OK | T177: OK | U177: OK | V177: OK | W177: OK | X177: OK | Y177: OK | Z177: OK | AA177: OK | AB177: OK | AC177: OK | AD177: OK | AE177: OK | AF177: OK | AG177: OK | AH177: OK | AI177: OK | AJ177: OK | AK177: OK | AL177: OK
B178: [6] >= [14.2] | C178: [6] >= [14.2] | D178: Reguła logiczna: [6] >= [14.2] | E178: x | F178: x | G178: x | H178: x | I178: =IF(I42>=I99,"OK","BŁĄD") -> OK | J178: OK | K178: OK | L178: OK | M178: OK | N178: OK | O178: OK | P178: OK | Q178: OK | R178: OK | S178: OK | T178: OK | U178: OK | V178: OK | W178: OK | X178: OK | Y178: OK | Z178: OK | AA178: OK | AB178: OK | AC178: OK | AD178: OK | AE178: OK | AF178: OK | AG178: OK | AH178: OK | AI178: OK | AJ178: OK | AK178: OK | AL178: OK
B179: 7>=13.1 | C179: 7>=13.1 | D179: Reguła logiczna: 7>=13.1 | E179: x | F179: x | G179: x | H179: x | I179: =IF(I43>=I90,"OK","BŁĄD") -> OK | J179: OK | K179: OK | L179: OK | M179: OK | N179: OK | O179: OK | P179: OK | Q179: OK | R179: OK | S179: OK | T179: OK | U179: OK | V179: OK | W179: OK | X179: OK | Y179: OK | Z179: OK | AA179: OK | AB179: OK | AC179: OK | AD179: OK | AE179: OK | AF179: OK | AG179: OK | AH179: OK | AI179: OK | AJ179: OK | AK179: OK | AL179: OK
B180: jeżeli [2.1.3] <> 0 to [2.1.3.1] <> 0 | C180: jeżeli [2.1.3] <> 0 to [2.1.3.1] <> 0 | D180: Reguła logiczna: jeżeli [2.1.3] <> 0 to [2.1.3.1] <> 0 | E180: x | F180: x | G180: x | H180: x | I180: =IF(I20<>0,IF(I21<>0,"OK","BŁĄD"),"N/D") -> OK | J180: OK | K180: OK | L180: OK | M180: OK | N180: OK | O180: OK | P180: OK | Q180: OK | R180: OK | S180: OK | T180: OK | U180: OK | V180: OK | W180: N/D | X180: N/D | Y180: N/D | Z180: N/D | AA180: N/D | AB180: N/D | AC180: N/D | AD180: N/D | AE180: N/D | AF180: N/D | AG180: N/D | AH180: N/D | AI180: N/D | AJ180: N/D | AK180: N/D | AL180: N/D
D182: Kontrola poprawności podstawowych kwot
D183: Dochody ogółem = bieżące + majątkowe | E183: =E5+E12 -> 17392993.42 | F183: 17101682.73 | G183: 20918417.46 | H183: 20940703.88 | I183: 20344541.94 | J183: 20445387 | K183: 22208748 | L183: 20807811 | M183: 20863045 | N183: 21134936 | O183: 21623984 | P183: 22130704 | Q183: 22555625 | R183: 22755625 | S183: 22955625 | T183: 23255625 | U183: 23555625 | V183: 23855625 | W183: 0 | X183: 0 | Y183: 0 | Z183: 0 | AA183: 0 | AB183: 0 | AC183: 0 | AD183: 0 | AE183: 0 | AF183: 0 | AG183: 0 | AH183: 0 | AI183: 0 | AJ183: 0 | AK183: 0 | AL183: 0
D184: Wydatki ogółem = bieżące + majątkowe | E184: =E16+E24 -> 17186267.02 | F184: 16884782.78 | G184: 20918417.46 | H184: 20139669.01 | I184: 22257541.94 | J184: 19845387 | K184: 20168748 | L184: 20207811 | M184: 20263045 | N184: 20404936 | O184: 20713984 | P184: 20582704 | Q184: 21812625 | R184: 22155625 | S184: 22255625 | T184: 22655625 | U184: 22955625 | V184: 23255625 | W184: 0 | X184: 0 | Y184: 0 | Z184: 0 | AA184: 0 | AB184: 0 | AC184: 0 | AD184: 0 | AE184: 0 | AF184: 0 | AG184: 0 | AH184: 0 | AI184: 0 | AJ184: 0 | AK184: 0 | AL184: 0
D185: Wynik budżetu = dochody ogółem - wydatki ogółem | E185: =E4-E15 -> 206726.4 | F185: 216899.95 | G185: 0 | H185: 801034.87 | I185: -1913000 | J185: 600000 | K185: 2040000 | L185: 600000 | M185: 600000 | N185: 730000 | O185: 910000 | P185: 1548000 | Q185: 743000 | R185: 600000 | S185: 700000 | T185: 600000 | U185: 600000 | V185: 600000 | W185: 0 | X185: 0 | Y185: 0 | Z185: 0 | AA185: 0 | AB185: 0 | AC185: 0 | AD185: 0 | AE185: 0 | AF185: 0 | AG185: 0 | AH185: 0 | AI185: 0 | AJ185: 0 | AK185: 0 | AL185: 0
D186: Wyliczenie kwoty długu | E186: x | F186: =E42+F31-F36+(F99-E99)+F104 -> 10431000 | G186: x | H186: =F42+H31-H36+(H99-F99)+H104 -> 10727129.22 | I186: =H42+I31-I36+(I99-H99)+I104 -> 11435000 | J186: 10715000 | K186: 8558000 | L186: 7845000 | M186: 7136000 | N186: 6301000 | O186: 5391000 | P186: 3843000 | Q186: 3100000 | R186: 2500000 | S186: 1800000 | T186: 1200000 | U186: 600000 | V186: 0 | W186: 0 | X186: 0 | Y186: 0 | Z186: 0 | AA186: 0 | AB186: 0 | AC186: 0 | AD186: 0 | AE186: 0 | AF186: 0 | AG186: 0 | AH186: 0 | AI186: 0 | AJ186: 0 | AK186: 0 | AL186: 0
D187: Wyliczenie zobowiązań wynikających z przejęcia przez jst zobowiązań po likwidowanych i przekształcanych SZOZ | E187: x | F187: =E90-(F92+F93+F94+F95) -> 0 | G187: x | H187: =F90-(H92+H93+H94+H95) -> 0 | I187: =H90-(I92+I93+I94+I95) -> 0 | J187: 0 | K187: 0 | L187: 0 | M187: 0 | N187: 0 | O187: 0 | P187: 0 | Q187: 0 | R187: 0 | S187: 0 | T187: 0 | U187: 0 | V187: 0 | W187: 0 | X187: 0 | Y187: 0 | Z187: 0 | AA187: 0 | AB187: 0 | AC187: 0 | AD187: 0 | AE187: 0 | AF187: 0 | AG187: 0 | AH187: 0 | AI187: 0 | AJ187: 0 | AK187: 0 | AL187: 0

Sheet AnalizaWsk243 (hidden)
B1: Zestawienie wygenerowane na podstawie danych wprowadzonych do systemu BESTI@ | J1: zaokrąglaj wskaźniki procentowe do liczby miejsc po przecinku: | K1: 2
B2: Układ WPF wg Rozporządzenia Ministra Finansów z dnia 10.01.2013 po zmianie z Dz.U.2013.1736, Dz.U.2014.1127
B3: Uwaga: Jeśli wydatki budżetowe w systemie BeSTi@ są rejestrowane w grupach to NIE WYBIERAĆ opcji "Dane z budżetu po zmianach" (z powodu braku danych dot. poz. 2.1.3.1. na arkuszu pojawią się błędy)
B5: Nr Uchwały: | D5: =DaneZrodlowe!B4 -> nowyWPF czerwiec | E5: =D6&" - "&"WPF za lata "&D7&" - Nr Uchwały JST: "&D5&" "&D8 -> WIDUCHOWA - WPF za lata 2017 - 2030 - Nr Uchwały JST: nowyWPF czerwiec
B6: Nazwa JST: | D6: =DaneZrodlowe!D4 -> WIDUCHOWA | E6: dane zależne od wybranej opcji
B7: WPF za lata: | D7: =CONCATENATE(DaneZrodlowe!O1," - ",DaneZrodlowe!R1) -> 2017 - 2030 | E7: eWPF | H7: 2 | I7: 1
D8: =IF(DaneZrodlowe!C4=0,"",+"ver.: "&DaneZrodlowe!C4) ->  | E8: Wykonanie | G8: Plan 3 kw. | H8: =+"Wykonanie "&IF($H$7=1,"z WPF","z Rb") -> Wykonanie z Rb | I8: =+"Prognoza "&IF($I$7=1,"z eWPF","ze zmiany budżetu") -> Prognoza z eWPF | J8: Prognoza z eWPF
A9: X | B9: Lp. | C9: Formuła | D9: Wyszczególnienie | E9: =+F9-1 -> 2014 | F9: =+G9-1 -> 2015 | G9: =+H9 -> 2016 | H9: =+I9-1 -> 2016 | I9: =+DaneZrodlowe!$O$1 -> 2017 | J9: =+I9+1 -> 2018 | K9: =+J9+1 -> 2019 | L9: 2020 | M9: 2021 | N9: 2022 | O9: 2023 | P9: 2024 | Q9: 2025 | R9: 2026 | S9: 2027 | T9: 2028 | U9: 2029 | V9: 2030 | W9: 2031 | X9: 2032 | Y9: 2033 | Z9: 2034 | AA9: 2035 | AB9: 2036 | AC9: 2037 | AD9: 2038 | AE9: 2039 | AF9: 2040 | AG9: 2041 | AH9: 2042 | AI9: 2043 | AJ9: 2044 | AK9: 2045 | AL9: 2046
D10: PRAWA STRONA WZORU (art. 243)
A11: x | B11: 1.1 | D11: Dochody bieżące [Db] | E11: =Wybrany_WPF!E5 -> 17056473.25 | F11: =Wybrany_WPF!F5 -> 16811380.25 | G11: =Wybrany_WPF!G5 -> 19931725.25 | H11: =+IF($H$7=1,'WPF a Budzet (rok N)'!I11,'WPF a Rb (wybr okr)'!I11) -> 20404178 | I11: =+IF($I$7=1,Wybrany_WPF!I5,'Budzet po zmianach (rok N)'!F11) -> 19965541.94 | J11: =+Wybrany_WPF!J5 -> 20045387 | K11: =+Wybrany_WPF!K5 -> 20366566 | L11: =+Wybrany_WPF!L5 -> 20407811 | M11: =+Wybrany_WPF!M5 -> 20563045 | N11: =+Wybrany_WPF!N5 -> 20834936 | O11: =+Wybrany_WPF!O5 -> 21223984 | P11: =+Wybrany_WPF!P5 -> 21730704 | Q11: =+Wybrany_WPF!Q5 -> 22255625 | R11: =+Wybrany_WPF!R5 -> 22455625 | S11: =+Wybrany_WPF!S5 -> 22655625 | T11: =+Wybrany_WPF!T5 -> 22955625 | U11: =+Wybrany_WPF!U5 -> 23255625 | V11: =+Wybrany_WPF!V5 -> 23555625 | W11: =+Wybrany_WPF!W5 -> 0 | X11: =+Wybrany_WPF!X5 -> 0 | Y11: =+Wybrany_WPF!Y5 -> 0 | Z11: =+Wybrany_WPF!Z5 -> 0 | AA11: =+Wybrany_WPF!AA5 -> 0 | AB11: =+Wybrany_WPF!AB5 -> 0 | AC11: =+Wybrany_WPF!AC5 -> 0 | AD11: =+Wybrany_WPF!AD5 -> 0 | AE11: =+Wybrany_WPF!AE5 -> 0 | AF11: =+Wybrany_WPF!AF5 -> 0 | AG11: =+Wybrany_WPF!AG5 -> 0 | AH11: =+Wybrany_WPF!AH5 -> 0 | AI11: =+Wybrany_WPF!AI5 -> 0 | AJ11: =+Wybrany_WPF!AJ5 -> 0 | AK11: =+Wybrany_WPF!AK5 -> 0 | AL11: =+Wybrany_WPF!AL5 -> 0
A12: x | B12: 1.2.1 | D12: Dochody ze sprzedaży majątku [Dsm] | E12: =Wybrany_WPF!E13 -> 179740.6 | F12: =Wybrany_WPF!F13 -> 222848.13 | G12: =Wybrany_WPF!G13 -> 391378 | H12: =+IF($H$7=1,'WPF a Budzet (rok N)'!I19,'WPF a Rb (wybr okr)'!I19) -> 286306.04 | I12: =+IF($I$7=1,Wybrany_WPF!I13,'Budzet po zmianach (rok N)'!F19) -> 300000 | J12: =+Wybrany_WPF!J13 -> 400000 | K12: =+Wybrany_WPF!K13 -> 400000 | L12: =+Wybrany_WPF!L13 -> 400000 | M12: =+Wybrany_WPF!M13 -> 300000 | N12: =+Wybrany_WPF!N13 -> 300000 | O12: =+Wybrany_WPF!O13 -> 400000 | P12: =+Wybrany_WPF!P13 -> 400000 | Q12: =+Wybrany_WPF!Q13 -> 300000 | R12: =+Wybrany_WPF!R13 -> 300000 | S12: =+Wybrany_WPF!S13 -> 300000 | T12: =+Wybrany_WPF!T13 -> 300000 | U12: =+Wybrany_WPF!U13 -> 300000 | V12: =+Wybrany_WPF!V13 -> 300000 | W12: =+Wybrany_WPF!W13 -> 0 | X12: =+Wybrany_WPF!X13 -> 0 | Y12: =+Wybrany_WPF!Y13 -> 0 | Z12: =+Wybrany_WPF!Z13 -> 0 | AA12: =+Wybrany_WPF!AA13 -> 0 | AB12: =+Wybrany_WPF!AB13 -> 0 | AC12: =+Wybrany_WPF!AC13 -> 0 | AD12: =+Wybrany_WPF!AD13 -> 0 | AE12: =+Wybrany_WPF!AE13 -> 0 | AF12: =+Wybrany_WPF!AF13 -> 0 | AG12: =+Wybrany_WPF!AG13 -> 0 | AH12: =+Wybrany_WPF!AH13 -> 0 | AI12: =+Wybrany_WPF!AI13 -> 0 | AJ12: =+Wybrany_WPF!AJ13 -> 0 | AK12: =+Wybrany_WPF!AK13 -> 0 | AL12: =+Wybrany_WPF!AL13 -> 0
A13: x | B13: 2.1 | D13: Wydatki bieżące [Wb] | E13: =Wybrany_WPF!E16 -> 16441428.08 | F13: =Wybrany_WPF!F16 -> 16307675.05 | G13: =Wybrany_WPF!G16 -> 18300888.25 | H13: =+IF($H$7=1,'WPF a Budzet (rok N)'!I22,'WPF a Rb (wybr okr)'!I22) -> 18183468.64 | I13: =+IF($I$7=1,Wybrany_WPF!I16,'Budzet po zmianach (rok N)'!F22) -> 18745507.31 | J13: =+Wybrany_WPF!J16 -> 19241237 | K13: =+Wybrany_WPF!K16 -> 19561844 | L13: =+Wybrany_WPF!L16 -> 19460149 | M13: =+Wybrany_WPF!M16 -> 19266564 | N13: =+Wybrany_WPF!N16 -> 19493510 | O13: =+Wybrany_WPF!O16 -> 19727425 | P13: =+Wybrany_WPF!P16 -> 20166759 | Q13: =+Wybrany_WPF!Q16 -> 20718971 | R13: =+Wybrany_WPF!R16 -> 21118971 | S13: =+Wybrany_WPF!S16 -> 21418971 | T13: =+Wybrany_WPF!T16 -> 21518971 | U13: =+Wybrany_WPF!U16 -> 21718971 | V13: =+Wybrany_WPF!V16 -> 21918971 | W13: =+Wybrany_WPF!W16 -> 0 | X13: =+Wybrany_WPF!X16 -> 0 | Y13: =+Wybrany_WPF!Y16 -> 0 | Z13: =+Wybrany_WPF!Z16 -> 0 | AA13: =+Wybrany_WPF!AA16 -> 0 | AB13: =+Wybrany_WPF!AB16 -> 0 | AC13: =+Wybrany_WPF!AC16 -> 0 | AD13: =+Wybrany_WPF!AD16 -> 0 | AE13: =+Wybrany_WPF!AE16 -> 0 | AF13: =+Wybrany_WPF!AF16 -> 0 | AG13: =+Wybrany_WPF!AG16 -> 0 | AH13: =+Wybrany_WPF!AH16 -> 0 | AI13: =+Wybrany_WPF!AI16 -> 0 | AJ13: =+Wybrany_WPF!AJ16 -> 0 | AK13: =+Wybrany_WPF!AK16 -> 0 | AL13: =+Wybrany_WPF!AL16 -> 0
D14: [Db-Wb+Dsm] | E14: =+E11+E12-E13 -> 794785.77 | F14: 726553.33 | G14: 2022215 | H14: 2507015.4 | I14: 1520034.63 | J14: 1204150 | K14: 1204722 | L14: 1347662 | M14: 1596481 | N14: 1641426 | O14: 1896559 | P14: 1963945 | Q14: 1836654 | R14: 1636654 | S14: 1536654 | T14: 1736654 | U14: 1836654 | V14: 1936654 | W14: 0 | X14: 0 | Y14: 0 | Z14: 0 | AA14: 0 | AB14: 0 | AC14: 0 | AD14: 0 | AE14: 0 | AF14: 0 | AG14: 0 | AH14: 0 | AI14: 0 | AJ14: 0 | AK14: 0 | AL14: 0
A15: x | B15: 1 | C15: [1.1]+[1.2] | D15: Dochody ogółem [D] | E15: =Wybrany_WPF!E4 -> 17392993.42 | F15: =Wybrany_WPF!F4 -> 17101682.73 | G15: =Wybrany_WPF!G4 -> 20918417.46 | H15: =+IF($H$7=1,'WPF a Budzet (rok N)'!I10,'WPF a Rb (wybr okr)'!I10) -> 20940703.88 | I15: =+IF($I$7=1,Wybrany_WPF!I4,'Budzet po zmianach (rok N)'!F10) -> 20344541.94 | J15: =Wybrany_WPF!J4 -> 20445387 | K15: =Wybrany_WPF!K4 -> 22208748 | L15: =Wybrany_WPF!L4 -> 20807811 | M15: =Wybrany_WPF!M4 -> 20863045 | N15: =Wybrany_WPF!N4 -> 21134936 | O15: =Wybrany_WPF!O4 -> 21623984 | P15: =Wybrany_WPF!P4 -> 22130704 | Q15: =Wybrany_WPF!Q4 -> 22555625 | R15: =Wybrany_WPF!R4 -> 22755625 | S15: =Wybrany_WPF!S4 -> 22955625 | T15: =Wybrany_WPF!T4 -> 23255625 | U15: =Wybrany_WPF!U4 -> 23555625 | V15: =Wybrany_WPF!V4 -> 23855625 | W15: =Wybrany_WPF!W4 -> 0 | X15: =Wybrany_WPF!X4 -> 0 | Y15: =Wybrany_WPF!Y4 -> 0 | Z15: =Wybrany_WPF!Z4 -> 0 | AA15: =Wybrany_WPF!AA4 -> 0 | AB15: =Wybrany_WPF!AB4 -> 0 | AC15: =Wybrany_WPF!AC4 -> 0 | AD15: =Wybrany_WPF!AD4 -> 0 | AE15: =Wybrany_WPF!AE4 -> 0 | AF15: =Wybrany_WPF!AF4 -> 0 | AG15: =Wybrany_WPF!AG4 -> 0 | AH15: =Wybrany_WPF!AH4 -> 0 | AI15: =Wybrany_WPF!AI4 -> 0 | AJ15: =Wybrany_WPF!AJ4 -> 0 | AK15: =Wybrany_WPF!AK4 -> 0 | AL15: =Wybrany_WPF!AL4 -> 0
A16: x | B16: 9.5 | C16: [1.1]+[1.2.1]-[2.1]/[1] | D16: Wskaźnik jednoroczny (prawa strona wzoru z art. 243) - [Db-Wb+Dsm] / [D] | E16: =+ROUND(IF(E15<>0,(E11+E12-E13)/E15,0),$K$1+2) -> 0.0457 | F16: 0.0425 | G16: 0.0967 | H16: 0.1197 | I16: 0.0747 | J16: 0.0589 | K16: 0.0542 | L16: 0.0648 | M16: 0.0765 | N16: 0.0777 | O16: 0.0877 | P16: 0.0887 | Q16: 0.0814 | R16: 0.0719 | S16: 0.0669 | T16: 0.0747 | U16: 0.078 | V16: 0.0812 | W16: 0 | X16: 0 | Y16: 0 | Z16: 0 | AA16: 0 | AB16: 0 | AC16: 0 | AD16: 0 | AE16: 0 | AF16: 0 | AG16: 0 | AH16: 0 | AI16: 0 | AJ16: 0 | AK16: 0 | AL16: 0
B17: 2.1.2 | D17: Wydatki na spłatę przejętych zobowiązań przekształconego SP ZOZ (ustawa o działalności leczniczej), w wysokości w jakiej nie podlegają sfinansowaniu dotacją z budżetu państwa | E17: =+Wybrany_WPF!E19 -> 0 | F17: =+Wybrany_WPF!F19 -> 0 | G17: =+Wybrany_WPF!G19 -> 0 | H17: =+Wybrany_WPF!H19 -> 0 | I17: =+Wybrany_WPF!I19 -> 0 | J17: =+Wybrany_WPF!J19 -> 0 | K17: =+Wybrany_WPF!K19 -> 0 | L17: =+Wybrany_WPF!L19 -> 0 | M17: =+Wybrany_WPF!M19 -> 0 | N17: =+Wybrany_WPF!N19 -> 0
D18: Wskaźnik jednoroczny (prawa strona wzoru z art. 243) - [Db-(Wb - WbZOZ) +Dsm] / [D] | E18: =+ROUND(+IF(AND(E9>=2013,E9<=2018),IF(E15<>0,(E14+E17)/E15,0),IF(E15<>0,(E14)/E15,0)),$K$1+2) -> 0.0457 | F18: 0.0425 | G18: 0.0967 | H18: 0.1197 | I18: 0.0747 | J18: 0.0589 | K18: 0.0542 | L18: 0.0648 | M18: 0.0765 | N18: 0.0777 | O18: 0.0877 | P18: 0.0887 | Q18: 0.0814 | R18: 0.0719 | S18: 0.0669 | T18: 0.0747 | U18: 0.078 | V18: 0.0812 | W18: 0 | X18: 0 | Y18: 0 | Z18: 0 | AA18: 0 | AB18: 0 | AC18: 0 | AD18: 0 | AE18: 0 | AF18: 0 | AG18: 0 | AH18: 0 | AI18: 0 | AJ18: 0 | AK18: 0 | AL18: 0
A19: x | B19: 9.6 | C19: średnia z trzech poprzednich lat | D19: Średnia z art. 243 ustawy, z uwzględnieniem wyłączeń (plan 3 kw.) | I19: =+ROUND(IF(I15<>0,(G18+F18+E18)/3,0),$K$1+2) -> 0.0616 | J19: =+ROUND(IF(J15<>0,(I18+G18+F18)/3,0),$K$1+2) -> 0.0713 | K19: =+ROUND(IF(K15<>0,(I18+J18+G18)/3,0),+$K$1+2) -> 0.0768 | L19: =+ROUND(IF(L15<>0,(J18+I18+K18)/3,0),$K$1+2) -> 0.0626 | M19: 0.0593 | N19: 0.0652 | O19: 0.073 | P19: 0.0806 | Q19: 0.0847 | R19: 0.0859 | S19: 0.0807 | T19: 0.0734 | U19: 0.0712 | V19: 0.0732 | W19: 0 | X19: 0 | Y19: 0 | Z19: 0 | AA19: 0 | AB19: 0 | AC19: 0 | AD19: 0 | AE19: 0 | AF19: 0 | AG19: 0 | AH19: 0 | AI19: 0 | AJ19: 0 | AK19: 0 | AL19: 0
A20: x | B20: 9.6.1 | C20: średnia z trzech poprzednich lat | D20: Średnia z art.. 243 ustawy, z uwzględnieniem wyłączeń (wykonanie) | I20: =+ROUND(IF(I15<>0,(H18+F18+E18)/3,0),$K$1+2) -> 0.0693 | J20: =+ROUND(IF(J15<>0,(I18+H18+F18)/3,0),$K$1+2) -> 0.079 | K20: =+ROUND(IF(K15<>0,(J18+H18+I18)/3,0),$K$1+2) -> 0.0844
D21: LEWA STRONA WZORU (art. 243)
A22: x | B22: 2.1.1 | D22: [O] Wydatki z tytułu poręczeń i gwarancji | E22: =Wybrany_WPF!E17 -> 0 | F22: =Wybrany_WPF!F17 -> 0 | G22: =Wybrany_WPF!G17 -> 0 | H22: =Wybrany_WPF!H17 -> 0 | I22: =+IF($I$7=1,Wybrany_WPF!I17,'Budzet po zmianach (rok N)'!F23) -> 0 | J22: =+Wybrany_WPF!J17 -> 0 | K22: =+Wybrany_WPF!K17 -> 0 | L22: =+Wybrany_WPF!L17 -> 0 | M22: =+Wybrany_WPF!M17 -> 0 | N22: =+Wybrany_WPF!N17 -> 0 | O22: =+Wybrany_WPF!O17 -> 0 | P22: =+Wybrany_WPF!P17 -> 0 | Q22: =+Wybrany_WPF!Q17 -> 0 | R22: =+Wybrany_WPF!R17 -> 0 | S22: =+Wybrany_WPF!S17 -> 0 | T22: =+Wybrany_WPF!T17 -> 0 | U22: =+Wybrany_WPF!U17 -> 0 | V22: =+Wybrany_WPF!V17 -> 0 | W22: =+Wybrany_WPF!W17 -> 0 | X22: =+Wybrany_WPF!X17 -> 0 | Y22: =+Wybrany_WPF!Y17 -> 0 | Z22: =+Wybrany_WPF!Z17 -> 0 | AA22: =+Wybrany_WPF!AA17 -> 0 | AB22: =+Wybrany_WPF!AB17 -> 0 | AC22: =+Wybrany_WPF!AC17 -> 0 | AD22: =+Wybrany_WPF!AD17 -> 0 | AE22: =+Wybrany_WPF!AE17 -> 0 | AF22: =+Wybrany_WPF!AF17 -> 0 | AG22: =+Wybrany_WPF!AG17 -> 0 | AH22: =+Wybrany_WPF!AH17 -> 0 | AI22: =+Wybrany_WPF!AI17 -> 0 | AJ22: =+Wybrany_WPF!AJ17 -> 0 | AK22: =+Wybrany_WPF!AK17 -> 0 | AL22: =+Wybrany_WPF!AL17 -> 0
A23: x | B23: 2.1.3.1 | D23: [O] Wydatki na odsetki i dyskonto określone w art. 243 ust. 1 ustawy lub art. 169 ust. 1 ufp z 2005 r.. | E23: =Wybrany_WPF!E21 -> 430171.93 | F23: =Wybrany_WPF!F21 -> 352254.63 | G23: =Wybrany_WPF!G21 -> 340000 | H23: =Wybrany_WPF!H21 -> 309345.48 | I23: =+IF($I$7=1,Wybrany_WPF!I21,'Budzet po zmianach (rok N)'!F27) -> 320000 | J23: =+Wybrany_WPF!J21 -> 283000 | K23: =+Wybrany_WPF!K21 -> 269000 | L23: =+Wybrany_WPF!L21 -> 255000 | M23: =+Wybrany_WPF!M21 -> 240000 | N23: =+Wybrany_WPF!N21 -> 226000 | O23: =+Wybrany_WPF!O21 -> 208000 | P23: =+Wybrany_WPF!P21 -> 180000 | Q23: =+Wybrany_WPF!Q21 -> 134000 | R23: =+Wybrany_WPF!R21 -> 112000 | S23: =+Wybrany_WPF!S21 -> 90000 | T23: =+Wybrany_WPF!T21 -> 65000 | U23: =+Wybrany_WPF!U21 -> 43000 | V23: =+Wybrany_WPF!V21 -> 22000 | W23: =+Wybrany_WPF!W21 -> 0 | X23: =+Wybrany_WPF!X21 -> 0 | Y23: =+Wybrany_WPF!Y21 -> 0 | Z23: =+Wybrany_WPF!Z21 -> 0 | AA23: =+Wybrany_WPF!AA21 -> 0 | AB23: =+Wybrany_WPF!AB21 -> 0 | AC23: =+Wybrany_WPF!AC21 -> 0 | AD23: =+Wybrany_WPF!AD21 -> 0 | AE23: =+Wybrany_WPF!AE21 -> 0 | AF23: =+Wybrany_WPF!AF21 -> 0 | AG23: =+Wybrany_WPF!AG21 -> 0 | AH23: =+Wybrany_WPF!AH21 -> 0 | AI23: =+Wybrany_WPF!AI21 -> 0 | AJ23: =+Wybrany_WPF!AJ21 -> 0 | AK23: =+Wybrany_WPF!AK21 -> 0 | AL23: =+Wybrany_WPF!AL21 -> 0
A24: x | B24: 5.1 | D24: [R] Spłaty rat kapitałowych kredytów i pożyczek oraz wykup papierów wartościowych | E24: =Wybrany_WPF!E36 -> 1057000 | F24: =Wybrany_WPF!F36 -> 100000 | G24: =Wybrany_WPF!G36 -> 400000 | H24: =Wybrany_WPF!H36 -> 400000 | I24: =+IF($I$7=1,Wybrany_WPF!I36,'Budzet po zmianach (rok N)'!F42) -> 600000 | J24: =+Wybrany_WPF!J36 -> 600000 | K24: =+Wybrany_WPF!K36 -> 2040000 | L24: =+Wybrany_WPF!L36 -> 600000 | M24: =+Wybrany_WPF!M36 -> 600000 | N24: =+Wybrany_WPF!N36 -> 730000 | O24: =+Wybrany_WPF!O36 -> 910000 | P24: =+Wybrany_WPF!P36 -> 1548000 | Q24: =+Wybrany_WPF!Q36 -> 743000 | R24: =+Wybrany_WPF!R36 -> 600000 | S24: =+Wybrany_WPF!S36 -> 700000 | T24: =+Wybrany_WPF!T36 -> 600000 | U24: =+Wybrany_WPF!U36 -> 600000 | V24: =+Wybrany_WPF!V36 -> 600000 | W24: =+Wybrany_WPF!W36 -> 0 | X24: =+Wybrany_WPF!X36 -> 0 | Y24: =+Wybrany_WPF!Y36 -> 0 | Z24: =+Wybrany_WPF!Z36 -> 0 | AA24: =+Wybrany_WPF!AA36 -> 0 | AB24: =+Wybrany_WPF!AB36 -> 0 | AC24: =+Wybrany_WPF!AC36 -> 0 | AD24: =+Wybrany_WPF!AD36 -> 0 | AE24: =+Wybrany_WPF!AE36 -> 0 | AF24: =+Wybrany_WPF!AF36 -> 0 | AG24: =+Wybrany_WPF!AG36 -> 0 | AH24: =+Wybrany_WPF!AH36 -> 0 | AI24: =+Wybrany_WPF!AI36 -> 0 | AJ24: =+Wybrany_WPF!AJ36 -> 0 | AK24: =+Wybrany_WPF!AK36 -> 0 | AL24: =+Wybrany_WPF!AL36 -> 0
D25: [ R + O ] | E25: =+E22+E23+E24 -> 1487171.93 | F25: 452254.63 | G25: 740000 | H25: 709345.48 | I25: 920000 | J25: 883000 | K25: 2309000 | L25: 855000 | M25: 840000 | N25: 956000 | O25: 1118000 | P25: 1728000 | Q25: 877000 | R25: 712000 | S25: 790000 | T25: 665000 | U25: 643000 | V25: 622000 | W25: 0 | X25: 0 | Y25: 0 | Z25: 0 | AA25: 0 | AB25: 0 | AC25: 0 | AD25: 0 | AE25: 0 | AF25: 0 | AG25: 0 | AH25: 0 | AI25: 0 | AJ25: 0 | AK25: 0 | AL25: 0
A26: x | B26: 1 | D26: Dochody ogółem [D] | E26: =+E15 -> 17392993.42 | F26: 17101682.73 | G26: 20918417.46 | H26: 20940703.88 | I26: 20344541.94 | J26: 20445387 | K26: 22208748 | L26: 20807811 | M26: 20863045 | N26: 21134936 | O26: 21623984 | P26: 22130704 | Q26: 22555625 | R26: 22755625 | S26: 22955625 | T26: 23255625 | U26: 23555625 | V26: 23855625 | W26: 0 | X26: 0 | Y26: 0 | Z26: 0 | AA26: 0 | AB26: 0 | AC26: 0 | AD26: 0 | AE26: 0 | AF26: 0 | AG26: 0 | AH26: 0 | AI26: 0 | AJ26: 0 | AK26: 0 | AL26: 0
D27: Wskaźnik [R+O] / [D] (bez związków i bez wyłączeń ) | E27: =+ROUND(IF(E26<>0,E25/E26,0),$K$1+2) -> 0.0855 | F27: 0.0264 | G27: 0.0354 | H27: 0.0339 | I27: 0.0452 | J27: 0.0432 | K27: 0.104 | L27: 0.0411 | M27: 0.0403 | N27: 0.0452 | O27: 0.0517 | P27: 0.0781 | Q27: 0.0389 | R27: 0.0313 | S27: 0.0344 | T27: 0.0286 | U27: 0.0273 | V27: 0.0261 | W27: 0 | X27: 0 | Y27: 0 | Z27: 0 | AA27: 0 | AB27: 0 | AC27: 0 | AD27: 0 | AE27: 0 | AF27: 0 | AG27: 0 | AH27: 0 | AI27: 0 | AJ27: 0 | AK27: 0 | AL27: 0
A28: x | B28: 2.1.1.1 +2.1.3.1.1 +2.1.3.1.2 | D28: odsetki oraz gwarancje i poręczenia podlegające wyłączeniu - art. 243 ufp (Dz. U. Nr 157, poz. 1240) | E28: =Wybrany_WPF!E18+Wybrany_WPF!E22+Wybrany_WPF!E23 -> 170000 | F28: =Wybrany_WPF!F18+Wybrany_WPF!F22+Wybrany_WPF!F23 -> 107230.61 | G28: =Wybrany_WPF!G18+Wybrany_WPF!G22+Wybrany_WPF!G23 -> 105951.71 | H28: =Wybrany_WPF!H18+Wybrany_WPF!H22+Wybrany_WPF!H23 -> 96473.89 | I28: =Wybrany_WPF!I18+Wybrany_WPF!I22+Wybrany_WPF!I23 -> 87300 | J28: =Wybrany_WPF!J18+Wybrany_WPF!J22+Wybrany_WPF!J23 -> 69300 | K28: =Wybrany_WPF!K18+Wybrany_WPF!K22+Wybrany_WPF!K23 -> 59000 | L28: =Wybrany_WPF!L18+Wybrany_WPF!L22+Wybrany_WPF!L23 -> 59000 | M28: =Wybrany_WPF!M18+Wybrany_WPF!M22+Wybrany_WPF!M23 -> 59000 | N28: =Wybrany_WPF!N18+Wybrany_WPF!N22+Wybrany_WPF!N23 -> 41000 | O28: =Wybrany_WPF!O18+Wybrany_WPF!O22+Wybrany_WPF!O23 -> 19000 | P28: =Wybrany_WPF!P18+Wybrany_WPF!P22+Wybrany_WPF!P23 -> 11700 | Q28: =Wybrany_WPF!Q18+Wybrany_WPF!Q22+Wybrany_WPF!Q23 -> 11700 | R28: =Wybrany_WPF!R18+Wybrany_WPF!R22+Wybrany_WPF!R23 -> 0 | S28: =Wybrany_WPF!S18+Wybrany_WPF!S22+Wybrany_WPF!S23 -> 0 | T28: =Wybrany_WPF!T18+Wybrany_WPF!T22+Wybrany_WPF!T23 -> 0 | U28: =Wybrany_WPF!U18+Wybrany_WPF!U22+Wybrany_WPF!U23 -> 0 | V28: =Wybrany_WPF!V18+Wybrany_WPF!V22+Wybrany_WPF!V23 -> 0 | W28: =Wybrany_WPF!W18+Wybrany_WPF!W22+Wybrany_WPF!W23 -> 0 | X28: =Wybrany_WPF!X18+Wybrany_WPF!X22+Wybrany_WPF!X23 -> 0 | Y28: =Wybrany_WPF!Y18+Wybrany_WPF!Y22+Wybrany_WPF!Y23 -> 0 | Z28: =Wybrany_WPF!Z18+Wybrany_WPF!Z22+Wybrany_WPF!Z23 -> 0 | AA28: =Wybrany_WPF!AA18+Wybrany_WPF!AA22+Wybrany_WPF!AA23 -> 0 | AB28: =Wybrany_WPF!AB18+Wybrany_WPF!AB22+Wybrany_WPF!AB23 -> 0 | AC28: =Wybrany_WPF!AC18+Wybrany_WPF!AC22+Wybrany_WPF!AC23 -> 0 | AD28: =Wybrany_WPF!AD18+Wybrany_WPF!AD22+Wybrany_WPF!AD23 -> 0 | AE28: =Wybrany_WPF!AE18+Wybrany_WPF!AE22+Wybrany_WPF!AE23 -> 0 | AF28: =Wybrany_WPF!AF18+Wybrany_WPF!AF22+Wybrany_WPF!AF23 -> 0 | AG28: =Wybrany_WPF!AG18+Wybrany_WPF!AG22+Wybrany_WPF!AG23 -> 0 | AH28: =Wybrany_WPF!AH18+Wybrany_WPF!AH22+Wybrany_WPF!AH23 -> 0 | AI28: =Wybrany_WPF!AI18+Wybrany_WPF!AI22+Wybrany_WPF!AI23 -> 0 | AJ28: =Wybrany_WPF!AJ18+Wybrany_WPF!AJ22+Wybrany_WPF!AJ23 -> 0 | AK28: =Wybrany_WPF!AK18+Wybrany_WPF!AK22+Wybrany_WPF!AK23 -> 0 | AL28: =Wybrany_WPF!AL18+Wybrany_WPF!AL22+Wybrany_WPF!AL23 -> 0
A29: x | B29: 5.1.1 | D29: łączna kwota rocznych kwot wyłączeń ze spłat - art. 243 ufp, art. 121a (Dz. U. Nr 157, poz. 1241) oraz art. 36 (Dz.U. 2012 poz. 1456) | E29: =Wybrany_WPF!E37 -> 1057000 | F29: =Wybrany_WPF!F37 -> 0 | G29: =Wybrany_WPF!G37 -> 0 | H29: =Wybrany_WPF!H37 -> 0 | I29: =+Wybrany_WPF!I37 -> 0 | J29: =+Wybrany_WPF!J37 -> 0 | K29: =+Wybrany_WPF!K37 -> 1440000 | L29: =+Wybrany_WPF!L37 -> 0 | M29: =+Wybrany_WPF!M37 -> 0 | N29: =+Wybrany_WPF!N37 -> 0 | O29: =+Wybrany_WPF!O37 -> 0 | P29: =+Wybrany_WPF!P37 -> 0 | Q29: =+Wybrany_WPF!Q37 -> 0 | R29: =+Wybrany_WPF!R37 -> 0 | S29: =+Wybrany_WPF!S37 -> 0 | T29: =+Wybrany_WPF!T37 -> 0 | U29: =+Wybrany_WPF!U37 -> 0 | V29: =+Wybrany_WPF!V37 -> 0 | W29: =+Wybrany_WPF!W37 -> 0 | X29: =+Wybrany_WPF!X37 -> 0 | Y29: =+Wybrany_WPF!Y37 -> 0 | Z29: =+Wybrany_WPF!Z37 -> 0 | AA29: =+Wybrany_WPF!AA37 -> 0 | AB29: =+Wybrany_WPF!AB37 -> 0 | AC29: =+Wybrany_WPF!AC37 -> 0 | AD29: =+Wybrany_WPF!AD37 -> 0 | AE29: =+Wybrany_WPF!AE37 -> 0 | AF29: =+Wybrany_WPF!AF37 -> 0 | AG29: =+Wybrany_WPF!AG37 -> 0 | AH29: =+Wybrany_WPF!AH37 -> 0 | AI29: =+Wybrany_WPF!AI37 -> 0 | AJ29: =+Wybrany_WPF!AJ37 -> 0 | AK29: =+Wybrany_WPF!AK37 -> 0 | AL29: =+Wybrany_WPF!AL37 -> 0
D30: Łączna kwota przypadających na dany rok kwot wyłączeń | E30: =+SUM(E28:E29) -> 1227000 | F30: =+SUM(F28:F29) -> 107230.61 | G30: =+SUM(G28:G29) -> 105951.71 | H30: =+SUM(H28:H29) -> 96473.89 | I30: =+SUM(I28:I29) -> 87300 | J30: =+SUM(J28:J29) -> 69300 | K30: 1499000 | L30: 59000 | M30: 59000 | N30: 41000 | O30: 19000 | P30: 11700 | Q30: 11700 | R30: 0 | S30: 0 | T30: 0 | U30: 0 | V30: 0 | W30: 0 | X30: 0 | Y30: 0 | Z30: 0 | AA30: 0 | AB30: 0 | AC30: 0 | AD30: 0 | AE30: 0 | AF30: 0 | AG30: 0 | AH30: 0 | AI30: 0 | AJ30: 0 | AK30: 0 | AL30: 0
D31: [ R + O - wyłączenia] | E31: =+E25-E30 -> 260171.93 | F31: 345024.02 | G31: 634048.29 | H31: 612871.59 | I31: 832700 | J31: 813700 | K31: 810000 | L31: 796000 | M31: 781000 | N31: 915000 | O31: 1099000 | P31: 1716300 | Q31: 865300 | R31: 712000 | S31: 790000 | T31: 665000 | U31: 643000 | V31: 622000 | W31: 0 | X31: 0 | Y31: 0 | Z31: 0 | AA31: 0 | AB31: 0 | AC31: 0 | AD31: 0 | AE31: 0 | AF31: 0 | AG31: 0 | AH31: 0 | AI31: 0 | AJ31: 0 | AK31: 0 | AL31: 0
D32: Wskaźnik [R+O] / [D] (bez związków i z wyłączeniami) | E32: =+ROUND(IF(E26<>0,E31/E26,0),$K$1+2) -> 0.015 | F32: 0.0202 | G32: 0.0303 | H32: 0.0293 | I32: 0.0409 | J32: 0.0398 | K32: 0.0365 | L32: 0.0383 | M32: 0.0374 | N32: 0.0433 | O32: 0.0508 | P32: 0.0776 | Q32: 0.0384 | R32: 0.0313 | S32: 0.0344 | T32: 0.0286 | U32: 0.0273 | V32: 0.0261 | W32: 0 | X32: 0 | Y32: 0 | Z32: 0 | AA32: 0 | AB32: 0 | AC32: 0 | AD32: 0 | AE32: 0 | AF32: 0 | AG32: 0 | AH32: 0 | AI32: 0 | AJ32: 0 | AK32: 0 | AL32: 0
A33: x | B33: 9.3 | D33: Kwota zobowiązań związku JST, podlegająca doliczeniu zgodnie z art. 244 ustawy | E33: =Wybrany_WPF!E50 -> 0 | F33: =Wybrany_WPF!F50 -> 0 | G33: =Wybrany_WPF!G50 -> 0 | H33: =Wybrany_WPF!H50 -> 0 | I33: =+Wybrany_WPF!I50 -> 0 | J33: =+Wybrany_WPF!J50 -> 0 | K33: =+Wybrany_WPF!K50 -> 0 | L33: =+Wybrany_WPF!L50 -> 0 | M33: =+Wybrany_WPF!M50 -> 0 | N33: =+Wybrany_WPF!N50 -> 0 | O33: =+Wybrany_WPF!O50 -> 0 | P33: =+Wybrany_WPF!P50 -> 0 | Q33: =+Wybrany_WPF!Q50 -> 0 | R33: =+Wybrany_WPF!R50 -> 0 | S33: =+Wybrany_WPF!S50 -> 0 | T33: =+Wybrany_WPF!T50 -> 0 | U33: =+Wybrany_WPF!U50 -> 0 | V33: =+Wybrany_WPF!V50 -> 0 | W33: =+Wybrany_WPF!W50 -> 0 | X33: =+Wybrany_WPF!X50 -> 0 | Y33: =+Wybrany_WPF!Y50 -> 0 | Z33: =+Wybrany_WPF!Z50 -> 0 | AA33: =+Wybrany_WPF!AA50 -> 0 | AB33: =+Wybrany_WPF!AB50 -> 0 | AC33: =+Wybrany_WPF!AC50 -> 0 | AD33: =+Wybrany_WPF!AD50 -> 0 | AE33: =+Wybrany_WPF!AE50 -> 0 | AF33: =+Wybrany_WPF!AF50 -> 0 | AG33: =+Wybrany_WPF!AG50 -> 0 | AH33: =+Wybrany_WPF!AH50 -> 0 | AI33: =+Wybrany_WPF!AI50 -> 0 | AJ33: =+Wybrany_WPF!AJ50 -> 0 | AK33: =+Wybrany_WPF!AK50 -> 0 | AL33: =+Wybrany_WPF!AL50 -> 0
D34: [ R + O - wyłączenia + związki] | E34: =+E31+E33 -> 260171.93 | F34: 345024.02 | G34: 634048.29 | H34: 612871.59 | I34: 832700 | J34: 813700 | K34: 810000 | L34: 796000 | M34: 781000 | N34: 915000 | O34: 1099000 | P34: 1716300 | Q34: 865300 | R34: 712000 | S34: 790000 | T34: 665000 | U34: 643000 | V34: 622000 | W34: 0 | X34: 0 | Y34: 0 | Z34: 0 | AA34: 0 | AB34: 0 | AC34: 0 | AD34: 0 | AE34: 0 | AF34: 0 | AG34: 0 | AH34: 0 | AI34: 0 | AJ34: 0 | AK34: 0 | AL34: 0
D35: Wskaźnik [R+O] / [D] (ze związkami i z wyłączeniami) | E35: =+ROUND(IF(E26<>0,E34/E26,0),$K$1+2) -> 0.015 | F35: 0.0202 | G35: 0.0303 | H35: 0.0293 | I35: 0.0409 | J35: 0.0398 | K35: 0.0365 | L35: 0.0383 | M35: 0.0374 | N35: 0.0433 | O35: 0.0508 | P35: 0.0776 | Q35: 0.0384 | R35: 0.0313 | S35: 0.0344 | T35: 0.0286 | U35: 0.0273 | V35: 0.0261 | W35: 0 | X35: 0 | Y35: 0 | Z35: 0 | AA35: 0 | AB35: 0 | AC35: 0 | AD35: 0 | AE35: 0 | AF35: 0 | AG35: 0 | AH35: 0 | AI35: 0 | AJ35: 0 | AK35: 0 | AL35: 0
D37: Spełnienie wskaźnika planistycznego
D38: Wskaźnik [R+O] / [D] (bez związków i bez wyłączeń ) | I38: =+IF(I$27<=I$19,"Spełniony","Nie spełniony") -> Spełniony | J38: Spełniony | K38: Nie spełniony | L38: Spełniony | M38: Spełniony | N38: Spełniony | O38: Spełniony | P38: Spełniony | Q38: Spełniony | R38: Spełniony | S38: Spełniony | T38: Spełniony | U38: Spełniony | V38: Spełniony | W38: Spełniony | X38: Spełniony | Y38: Spełniony | Z38: Spełniony | AA38: Spełniony | AB38: Spełniony | AC38: Spełniony | AD38: Spełniony | AE38: Spełniony | AF38: Spełniony | AG38: Spełniony | AH38: Spełniony | AI38: Spełniony | AJ38: Spełniony | AK38: Spełniony | AL38: Spełniony
D39: Wskaźnik [R+O] / [D] (bez związków i z wyłączeniami) | I39: =+IF(I$32<=I$19,"Spełniony","Nie spełniony") -> Spełniony | J39: Spełniony | K39: Spełniony | L39: Spełniony | M39: Spełniony | N39: Spełniony | O39: Spełniony | P39: Spełniony | Q39: Spełniony | R39: Spełniony | S39: Spełniony | T39: Spełniony | U39: Spełniony | V39: Spełniony | W39: Spełniony | X39: Spełniony | Y39: Spełniony | Z39: Spełniony | AA39: Spełniony | AB39: Spełniony | AC39: Spełniony | AD39: Spełniony | AE39: Spełniony | AF39: Spełniony | AG39: Spełniony | AH39: Spełniony | AI39: Spełniony | AJ39: Spełniony | AK39: Spełniony | AL39: Spełniony
D40: Wskaźnik [R+O] / [D] (ze związkami i z wyłączeniami) | I40: =+IF(I$35<=I$19,"Spełniony","Nie spełniony") -> Spełniony | J40: Spełniony | K40: Spełniony | L40: Spełniony | M40: Spełniony | N40: Spełniony | O40: Spełniony | P40: Spełniony | Q40: Spełniony | R40: Spełniony | S40: Spełniony | T40: Spełniony | U40: Spełniony | V40: Spełniony | W40: Spełniony | X40: Spełniony | Y40: Spełniony | Z40: Spełniony | AA40: Spełniony | AB40: Spełniony | AC40: Spełniony | AD40: Spełniony | AE40: Spełniony | AF40: Spełniony | AG40: Spełniony | AH40: Spełniony | AI40: Spełniony | AJ40: Spełniony | AK40: Spełniony | AL40: Spełniony
D41: Spełnienie wskaźnika wg wykonania
D42: Wskaźnik [R+O] / [D] (bez związków i bez wyłączeń ) | I42: =+IF(I$27<=I$20,"Spełniony","Nie spełniony") -> Spełniony | J42: =+IF(J$27<=J$20,"Spełniony","Nie spełniony") -> Spełniony | K42: =+IF(K$27<=K$20,"Spełniony","Nie spełniony") -> Nie spełniony | L42: x
D43: Wskaźnik [R+O] / [D] (bez związków i z wyłączeniami) | I43: =+IF(I$32<=I$20,"Spełniony","Nie spełniony") -> Spełniony | J43: =+IF(J$32<=J$20,"Spełniony","Nie spełniony") -> Spełniony | K43: =+IF(K$32<=K$20,"Spełniony","Nie spełniony") -> Spełniony
D44: Wskaźnik [R+O] / [D] (ze związkami i z wyłączeniami) | I44: =+IF(I$35<=I$20,"Spełniony","Nie spełniony") -> Spełniony | J44: =+IF(J$35<=J$20,"Spełniony","Nie spełniony") -> Spełniony | K44: =+IF(K$35<=K$20,"Spełniony","Nie spełniony") -> Spełniony
B46: 1.1 | D46: Dochody bieżące | E46: =+Wybrany_WPF!E5 -> 17056473.25 | F46: =+Wybrany_WPF!F5 -> 16811380.25 | G46: =+Wybrany_WPF!G5 -> 19931725.25 | H46: =+IF($H$7=1,'WPF a Budzet (rok N)'!I11,'WPF a Rb (wybr okr)'!I11) -> 20404178 | I46: =+IF($I$7=1,Wybrany_WPF!I5,'Budzet po zmianach (rok N)'!F11) -> 19965541.94 | J46: =+Wybrany_WPF!J5 -> 20045387 | K46: =+Wybrany_WPF!K5 -> 20366566 | L46: =+Wybrany_WPF!L5 -> 20407811 | M46: =+Wybrany_WPF!M5 -> 20563045 | N46: =+Wybrany_WPF!N5 -> 20834936 | O46: =+Wybrany_WPF!O5 -> 21223984 | P46: =+Wybrany_WPF!P5 -> 21730704 | Q46: =+Wybrany_WPF!Q5 -> 22255625 | R46: =+Wybrany_WPF!R5 -> 22455625 | S46: =+Wybrany_WPF!S5 -> 22655625 | T46: =+Wybrany_WPF!T5 -> 22955625 | U46: =+Wybrany_WPF!U5 -> 23255625 | V46: =+Wybrany_WPF!V5 -> 23555625 | W46: =+Wybrany_WPF!W5 -> 0 | X46: =+Wybrany_WPF!X5 -> 0 | Y46: =+Wybrany_WPF!Y5 -> 0 | Z46: =+Wybrany_WPF!Z5 -> 0 | AA46: =+Wybrany_WPF!AA5 -> 0 | AB46: =+Wybrany_WPF!AB5 -> 0 | AC46: =+Wybrany_WPF!AC5 -> 0 | AD46: =+Wybrany_WPF!AD5 -> 0 | AE46: =+Wybrany_WPF!AE5 -> 0 | AF46: =+Wybrany_WPF!AF5 -> 0 | AG46: =+Wybrany_WPF!AG5 -> 0 | AH46: =+Wybrany_WPF!AH5 -> 0 | AI46: =+Wybrany_WPF!AI5 -> 0 | AJ46: =+Wybrany_WPF!AJ5 -> 0 | AK46: =+Wybrany_WPF!AK5 -> 0 | AL46: =+Wybrany_WPF!AL5 -> 0
B47: 2.1 | D47: Wydatki bieżące | E47: =+Wybrany_WPF!E16 -> 16441428.08 | F47: =+Wybrany_WPF!F16 -> 16307675.05 | G47: =+Wybrany_WPF!G16 -> 18300888.25 | H47: =+IF($H$7=1,'WPF a Budzet (rok N)'!I22,'WPF a Rb (wybr okr)'!I22) -> 18183468.64 | I47: =+IF($I$7=1,Wybrany_WPF!I16,'Budzet po zmianach (rok N)'!F22) -> 18745507.31 | J47: =+Wybrany_WPF!J16 -> 19241237 | K47: =+Wybrany_WPF!K16 -> 19561844 | L47: =+Wybrany_WPF!L16 -> 19460149 | M47: =+Wybrany_WPF!M16 -> 19266564 | N47: =+Wybrany_WPF!N16 -> 19493510 | O47: =+Wybrany_WPF!O16 -> 19727425 | P47: =+Wybrany_WPF!P16 -> 20166759 | Q47: =+Wybrany_WPF!Q16 -> 20718971 | R47: =+Wybrany_WPF!R16 -> 21118971 | S47: =+Wybrany_WPF!S16 -> 21418971 | T47: =+Wybrany_WPF!T16 -> 21518971 | U47: =+Wybrany_WPF!U16 -> 21718971 | V47: =+Wybrany_WPF!V16 -> 21918971 | W47: =+Wybrany_WPF!W16 -> 0 | X47: =+Wybrany_WPF!X16 -> 0 | Y47: =+Wybrany_WPF!Y16 -> 0 | Z47: =+Wybrany_WPF!Z16 -> 0 | AA47: =+Wybrany_WPF!AA16 -> 0 | AB47: =+Wybrany_WPF!AB16 -> 0 | AC47: =+Wybrany_WPF!AC16 -> 0 | AD47: =+Wybrany_WPF!AD16 -> 0 | AE47: =+Wybrany_WPF!AE16 -> 0 | AF47: =+Wybrany_WPF!AF16 -> 0 | AG47: =+Wybrany_WPF!AG16 -> 0 | AH47: =+Wybrany_WPF!AH16 -> 0 | AI47: =+Wybrany_WPF!AI16 -> 0 | AJ47: =+Wybrany_WPF!AJ16 -> 0 | AK47: =+Wybrany_WPF!AK16 -> 0 | AL47: =+Wybrany_WPF!AL16 -> 0
B48: 8.1 | D48: Wynik bieżący | E48: =+E46-E47 -> 615045.17 | F48: 503705.2 | G48: 1630837 | H48: 2220709.36 | I48: 1220034.63 | J48: 804150 | K48: 804722 | L48: 947662 | M48: 1296481 | N48: 1341426 | O48: 1496559 | P48: 1563945 | Q48: 1536654 | R48: 1336654 | S48: 1236654 | T48: 1436654 | U48: 1536654 | V48: 1636654 | W48: 0 | X48: 0 | Y48: 0 | Z48: 0 | AA48: 0 | AB48: 0 | AC48: 0 | AD48: 0 | AE48: 0 | AF48: 0 | AG48: 0 | AH48: 0 | AI48: 0 | AJ48: 0 | AK48: 0 | AL48: 0
B49: 1.2 | D49: Dochody majątkowe | E49: =+Wybrany_WPF!E12 -> 336520.17 | F49: =+Wybrany_WPF!F12 -> 290302.48 | G49: =+Wybrany_WPF!G12 -> 986692.21 | H49: =+H52-H46 -> 536525.88 | I49: =+I52-I46 -> 379000 | J49: =+Wybrany_WPF!J12 -> 400000 | K49: =+Wybrany_WPF!K12 -> 1842182 | L49: =+Wybrany_WPF!L12 -> 400000 | M49: =+Wybrany_WPF!M12 -> 300000 | N49: =+Wybrany_WPF!N12 -> 300000 | O49: =+Wybrany_WPF!O12 -> 400000 | P49: =+Wybrany_WPF!P12 -> 400000 | Q49: =+Wybrany_WPF!Q12 -> 300000 | R49: =+Wybrany_WPF!R12 -> 300000 | S49: =+Wybrany_WPF!S12 -> 300000 | T49: =+Wybrany_WPF!T12 -> 300000 | U49: =+Wybrany_WPF!U12 -> 300000 | V49: =+Wybrany_WPF!V12 -> 300000 | W49: =+Wybrany_WPF!W12 -> 0 | X49: =+Wybrany_WPF!X12 -> 0 | Y49: =+Wybrany_WPF!Y12 -> 0 | Z49: =+Wybrany_WPF!Z12 -> 0 | AA49: =+Wybrany_WPF!AA12 -> 0 | AB49: =+Wybrany_WPF!AB12 -> 0 | AC49: =+Wybrany_WPF!AC12 -> 0 | AD49: =+Wybrany_WPF!AD12 -> 0 | AE49: =+Wybrany_WPF!AE12 -> 0 | AF49: =+Wybrany_WPF!AF12 -> 0 | AG49: =+Wybrany_WPF!AG12 -> 0 | AH49: =+Wybrany_WPF!AH12 -> 0 | AI49: =+Wybrany_WPF!AI12 -> 0 | AJ49: =+Wybrany_WPF!AJ12 -> 0 | AK49: =+Wybrany_WPF!AK12 -> 0 | AL49: =+Wybrany_WPF!AL12 -> 0
B50: 2.2 | D50: Wydatki majątkowe | E50: =+Wybrany_WPF!E24 -> 744838.94 | F50: =+Wybrany_WPF!F24 -> 577107.73 | G50: =+Wybrany_WPF!G24 -> 2617529.21 | H50: =+H53-H47 -> 1956200.37 | I50: =+I53-I47 -> 3512034.63 | J50: =+Wybrany_WPF!J24 -> 604150 | K50: =+Wybrany_WPF!K24 -> 606904 | L50: =+Wybrany_WPF!L24 -> 747662 | M50: =+Wybrany_WPF!M24 -> 996481 | N50: =+Wybrany_WPF!N24 -> 911426 | O50: =+Wybrany_WPF!O24 -> 986559 | P50: =+Wybrany_WPF!P24 -> 415945 | Q50: =+Wybrany_WPF!Q24 -> 1093654 | R50: =+Wybrany_WPF!R24 -> 1036654 | S50: =+Wybrany_WPF!S24 -> 836654 | T50: =+Wybrany_WPF!T24 -> 1136654 | U50: =+Wybrany_WPF!U24 -> 1236654 | V50: =+Wybrany_WPF!V24 -> 1336654 | W50: =+Wybrany_WPF!W24 -> 0 | X50: =+Wybrany_WPF!X24 -> 0 | Y50: =+Wybrany_WPF!Y24 -> 0 | Z50: =+Wybrany_WPF!Z24 -> 0 | AA50: =+Wybrany_WPF!AA24 -> 0 | AB50: =+Wybrany_WPF!AB24 -> 0 | AC50: =+Wybrany_WPF!AC24 -> 0 | AD50: =+Wybrany_WPF!AD24 -> 0 | AE50: =+Wybrany_WPF!AE24 -> 0 | AF50: =+Wybrany_WPF!AF24 -> 0 | AG50: =+Wybrany_WPF!AG24 -> 0 | AH50: =+Wybrany_WPF!AH24 -> 0 | AI50: =+Wybrany_WPF!AI24 -> 0 | AJ50: =+Wybrany_WPF!AJ24 -> 0 | AK50: =+Wybrany_WPF!AK24 -> 0 | AL50: =+Wybrany_WPF!AL24 -> 0
D51: Wynik majątkowy | E51: =+E49-E50 -> -408318.77 | F51: -286805.25 | G51: -1630837 | H51: -1419674.49 | I51: =+I49-I50 -> -3133034.63 | J51: -204150 | K51: 1235278 | L51: -347662 | M51: -696481 | N51: -611426 | O51: -586559 | P51: -15945 | Q51: -793654 | R51: -736654 | S51: -536654 | T51: -836654 | U51: -936654 | V51: -1036654 | W51: 0 | X51: 0 | Y51: 0 | Z51: 0 | AA51: 0 | AB51: 0 | AC51: 0 | AD51: 0 | AE51: 0 | AF51: 0 | AG51: 0 | AH51: 0 | AI51: 0 | AJ51: 0 | AK51: 0 | AL51: 0
B52: 1 | D52: Dochody | E52: =+Wybrany_WPF!E4 -> 17392993.42 | F52: =+Wybrany_WPF!F4 -> 17101682.73 | G52: =+Wybrany_WPF!G4 -> 20918417.46 | H52: =+IF($H$7=1,'WPF a Budzet (rok N)'!I10,'WPF a Rb (wybr okr)'!I10) -> 20940703.88 | I52: =+IF($I$7=1,Wybrany_WPF!I4,'Budzet po zmianach (rok N)'!F10) -> 20344541.94 | J52: =+Wybrany_WPF!J4 -> 20445387 | K52: =+Wybrany_WPF!K4 -> 22208748 | L52: =+Wybrany_WPF!L4 -> 20807811 | M52: =+Wybrany_WPF!M4 -> 20863045 | N52: =+Wybrany_WPF!N4 -> 21134936 | O52: =+Wybrany_WPF!O4 -> 21623984 | P52: =+Wybrany_WPF!P4 -> 22130704 | Q52: =+Wybrany_WPF!Q4 -> 22555625 | R52: =+Wybrany_WPF!R4 -> 22755625 | S52: =+Wybrany_WPF!S4 -> 22955625 | T52: =+Wybrany_WPF!T4 -> 23255625 | U52: =+Wybrany_WPF!U4 -> 23555625 | V52: =+Wybrany_WPF!V4 -> 23855625 | W52: =+Wybrany_WPF!W4 -> 0 | X52: =+Wybrany_WPF!X4 -> 0 | Y52: =+Wybrany_WPF!Y4 -> 0 | Z52: =+Wybrany_WPF!Z4 -> 0 | AA52: =+Wybrany_WPF!AA4 -> 0 | AB52: =+Wybrany_WPF!AB4 -> 0 | AC52: =+Wybrany_WPF!AC4 -> 0 | AD52: =+Wybrany_WPF!AD4 -> 0 | AE52: =+Wybrany_WPF!AE4 -> 0 | AF52: =+Wybrany_WPF!AF4 -> 0 | AG52: =+Wybrany_WPF!AG4 -> 0 | AH52: =+Wybrany_WPF!AH4 -> 0 | AI52: =+Wybrany_WPF!AI4 -> 0 | AJ52: =+Wybrany_WPF!AJ4 -> 0 | AK52: =+Wybrany_WPF!AK4 -> 0 | AL52: =+Wybrany_WPF!AL4 -> 0
B53: 2 | D53: Wydatki | E53: =+Wybrany_WPF!E15 -> 17186267.02 | F53: =+Wybrany_WPF!F15 -> 16884782.78 | G53: =+Wybrany_WPF!G15 -> 20918417.46 | H53: =+IF($H$7=1,'WPF a Budzet (rok N)'!I21,'WPF a Rb (wybr okr)'!I21) -> 20139669.01 | I53: =+IF($I$7=1,Wybrany_WPF!I15,'Budzet po zmianach (rok N)'!F21) -> 22257541.94 | J53: =+Wybrany_WPF!J15 -> 19845387 | K53: =+Wybrany_WPF!K15 -> 20168748 | L53: =+Wybrany_WPF!L15 -> 20207811 | M53: =+Wybrany_WPF!M15 -> 20263045 | N53: =+Wybrany_WPF!N15 -> 20404936 | O53: =+Wybrany_WPF!O15 -> 20713984 | P53: =+Wybrany_WPF!P15 -> 20582704 | Q53: =+Wybrany_WPF!Q15 -> 21812625 | R53: =+Wybrany_WPF!R15 -> 22155625 | S53: =+Wybrany_WPF!S15 -> 22255625 | T53: =+Wybrany_WPF!T15 -> 22655625 | U53: =+Wybrany_WPF!U15 -> 22955625 | V53: =+Wybrany_WPF!V15 -> 23255625 | W53: =+Wybrany_WPF!W15 -> 0 | X53: =+Wybrany_WPF!X15 -> 0 | Y53: =+Wybrany_WPF!Y15 -> 0 | Z53: =+Wybrany_WPF!Z15 -> 0 | AA53: =+Wybrany_WPF!AA15 -> 0 | AB53: =+Wybrany_WPF!AB15 -> 0 | AC53: =+Wybrany_WPF!AC15 -> 0 | AD53: =+Wybrany_WPF!AD15 -> 0 | AE53: =+Wybrany_WPF!AE15 -> 0 | AF53: =+Wybrany_WPF!AF15 -> 0 | AG53: =+Wybrany_WPF!AG15 -> 0 | AH53: =+Wybrany_WPF!AH15 -> 0 | AI53: =+Wybrany_WPF!AI15 -> 0 | AJ53: =+Wybrany_WPF!AJ15 -> 0 | AK53: =+Wybrany_WPF!AK15 -> 0 | AL53: =+Wybrany_WPF!AL15 -> 0
B54: 3 | D54: Wynik budżetu | E54: =+Wybrany_WPF!E25 -> 206726.4 | F54: =+Wybrany_WPF!F25 -> 216899.95 | G54: =+Wybrany_WPF!G25 -> 0 | H54: =+H52-H53 -> 801034.87 | I54: =+I52-I53 -> -1913000 | J54: =+Wybrany_WPF!J25 -> 600000 | K54: =+Wybrany_WPF!K25 -> 2040000 | L54: =+Wybrany_WPF!L25 -> 600000 | M54: =+Wybrany_WPF!M25 -> 600000 | N54: =+Wybrany_WPF!N25 -> 730000 | O54: =+Wybrany_WPF!O25 -> 910000 | P54: =+Wybrany_WPF!P25 -> 1548000 | Q54: =+Wybrany_WPF!Q25 -> 743000 | R54: =+Wybrany_WPF!R25 -> 600000 | S54: =+Wybrany_WPF!S25 -> 700000 | T54: =+Wybrany_WPF!T25 -> 600000 | U54: =+Wybrany_WPF!U25 -> 600000 | V54: =+Wybrany_WPF!V25 -> 600000 | W54: =+Wybrany_WPF!W25 -> 0 | X54: =+Wybrany_WPF!X25 -> 0 | Y54: =+Wybrany_WPF!Y25 -> 0 | Z54: =+Wybrany_WPF!Z25 -> 0 | AA54: =+Wybrany_WPF!AA25 -> 0 | AB54: =+Wybrany_WPF!AB25 -> 0 | AC54: =+Wybrany_WPF!AC25 -> 0 | AD54: =+Wybrany_WPF!AD25 -> 0 | AE54: =+Wybrany_WPF!AE25 -> 0 | AF54: =+Wybrany_WPF!AF25 -> 0 | AG54: =+Wybrany_WPF!AG25 -> 0 | AH54: =+Wybrany_WPF!AH25 -> 0 | AI54: =+Wybrany_WPF!AI25 -> 0 | AJ54: =+Wybrany_WPF!AJ25 -> 0 | AK54: =+Wybrany_WPF!AK25 -> 0 | AL54: =+Wybrany_WPF!AL25 -> 0
B55: 4 | D55: Przychody | E55: =+Wybrany_WPF!E26 -> 1405350.74 | F55: =+Wybrany_WPF!F26 -> 555077.14 | G55: =+Wybrany_WPF!G26 -> 400000 | H55: =+Wybrany_WPF!H26 -> 671977.09 | I55: =+Wybrany_WPF!I26 -> 2513000 | J55: =+Wybrany_WPF!J26 -> 0 | K55: =+Wybrany_WPF!K26 -> 0 | L55: =+Wybrany_WPF!L26 -> 0 | M55: =+Wybrany_WPF!M26 -> 0 | N55: =+Wybrany_WPF!N26 -> 0 | O55: =+Wybrany_WPF!O26 -> 0 | P55: =+Wybrany_WPF!P26 -> 0 | Q55: =+Wybrany_WPF!Q26 -> 0 | R55: =+Wybrany_WPF!R26 -> 0 | S55: =+Wybrany_WPF!S26 -> 0 | T55: =+Wybrany_WPF!T26 -> 0 | U55: =+Wybrany_WPF!U26 -> 0 | V55: =+Wybrany_WPF!V26 -> 0 | W55: =+Wybrany_WPF!W26 -> 0 | X55: =+Wybrany_WPF!X26 -> 0 | Y55: =+Wybrany_WPF!Y26 -> 0 | Z55: =+Wybrany_WPF!Z26 -> 0 | AA55: =+Wybrany_WPF!AA26 -> 0 | AB55: =+Wybrany_WPF!AB26 -> 0 | AC55: =+Wybrany_WPF!AC26 -> 0 | AD55: =+Wybrany_WPF!AD26 -> 0 | AE55: =+Wybrany_WPF!AE26 -> 0 | AF55: =+Wybrany_WPF!AF26 -> 0 | AG55: =+Wybrany_WPF!AG26 -> 0 | AH55: =+Wybrany_WPF!AH26 -> 0 | AI55: =+Wybrany_WPF!AI26 -> 0 | AJ55: =+Wybrany_WPF!AJ26 -> 0 | AK55: =+Wybrany_WPF!AK26 -> 0 | AL55: =+Wybrany_WPF!AL26 -> 0
B56: 5 | D56: Rozchody | E56: =+Wybrany_WPF!E35 -> 1057000 | F56: =+Wybrany_WPF!F35 -> 100000 | G56: =+Wybrany_WPF!G35 -> 400000 | H56: =+Wybrany_WPF!H35 -> 400000 | I56: =+Wybrany_WPF!I35 -> 600000 | J56: =+Wybrany_WPF!J35 -> 600000 | K56: =+Wybrany_WPF!K35 -> 2040000 | L56: =+Wybrany_WPF!L35 -> 600000 | M56: =+Wybrany_WPF!M35 -> 600000 | N56: =+Wybrany_WPF!N35 -> 730000 | O56: =+Wybrany_WPF!O35 -> 910000 | P56: =+Wybrany_WPF!P35 -> 1548000 | Q56: =+Wybrany_WPF!Q35 -> 743000 | R56: =+Wybrany_WPF!R35 -> 600000 | S56: =+Wybrany_WPF!S35 -> 700000 | T56: =+Wybrany_WPF!T35 -> 600000 | U56: =+Wybrany_WPF!U35 -> 600000 | V56: =+Wybrany_WPF!V35 -> 600000 | W56: =+Wybrany_WPF!W35 -> 0 | X56: =+Wybrany_WPF!X35 -> 0 | Y56: =+Wybrany_WPF!Y35 -> 0 | Z56: =+Wybrany_WPF!Z35 -> 0 | AA56: =+Wybrany_WPF!AA35 -> 0 | AB56: =+Wybrany_WPF!AB35 -> 0 | AC56: =+Wybrany_WPF!AC35 -> 0 | AD56: =+Wybrany_WPF!AD35 -> 0 | AE56: =+Wybrany_WPF!AE35 -> 0 | AF56: =+Wybrany_WPF!AF35 -> 0 | AG56: =+Wybrany_WPF!AG35 -> 0 | AH56: =+Wybrany_WPF!AH35 -> 0 | AI56: =+Wybrany_WPF!AI35 -> 0 | AJ56: =+Wybrany_WPF!AJ35 -> 0 | AK56: =+Wybrany_WPF!AK35 -> 0 | AL56: =+Wybrany_WPF!AL35 -> 0
D57: Bilansowanie budżetu (D+P) - (W+R) | E57: =+ROUND((E52+E55)-(E53+E56),2) -> 555077.14 | F57: 671977.09 | G57: 0 | H57: 1073011.96 | I57: 0 | J57: 0 | K57: 0 | L57: 0 | M57: 0 | N57: 0 | O57: 0 | P57: 0 | Q57: 0 | R57: 0 | S57: 0 | T57: 0 | U57: 0 | V57: 0 | W57: 0 | X57: 0 | Y57: 0 | Z57: 0 | AA57: 0 | AB57: 0 | AC57: 0 | AD57: 0 | AE57: 0 | AF57: 0 | AG57: 0 | AH57: 0 | AI57: 0 | AJ57: 0 | AK57: 0 | AL57: 0

Sheet metodologia (hidden)
B1: Metodologia | L1: ver metodologii (2017-02-03a)
L3: budżet wg dok w §§
A4: RokRb | B4: =2017 -> 2017 | J4: =20344541.94+0 -> 20344541.94 | K4: =0+0 -> 0 | L4: budżet wg dok w grupach
A5: KwartalRb | B5: =1 -> 1 | J5: =+IF(J4>0,1,0) -> 1 | K5: =+IF(K4>0,2,0) -> 0
I6: SzczegolowoscDanych | J6: =+SUM(J5:K5) -> 1
I7: WydatkiPar | J7: =+IF(OR('WPF a Budzet (rok N)'!K2=1,'WPF a Budzet (rok N)'!K2=3),TRUE(),FALSE()) -> TRUE
I8: WydatkiParBud | J8: =+IF(OR('Budzet po zmianach (rok N)'!F2=1,'Budzet po zmianach (rok N)'!F2=3),TRUE(),FALSE()) -> TRUE | L8: Zestawienia porównujące prognozę dla roku N w WPF z budżetem i sprawozdaniami Rb zostały wygenerowane z użyciem poniższych reguł
B9: Lp. | C9: Wyszczególnienie | D9: 0 | E9: 0 | F9: =+E9+1 -> 1 | G9: =+F9+1 -> 2 | H9: =+G9+1 -> 3 | I9: =+H9+1 -> 4 | J9: definicje dla dochodów i wydatków budżetu w paragrafach (przychody i rozchody są wspólne) | K9: definicje dla dochodów i wydatków budżetu w niepełnej szczegółowości
A10: 10 | B10: 1 | C10: Dochody ogółem | D10: =+"rokwzgl="&D$9&" i lp="&$A10 -> rokwzgl=0 i lp=10 | E10: rokwzgl=0 i lp=10 | F10: rokwzgl=1 i lp=10 | G10: rokwzgl=2 i lp=10 | H10: rokwzgl=3 i lp=10 | I10: rokwzgl=4 i lp=10 | J10: załacznik='Plan dochodów' i uklad=1 | K10: załacznik='Plan dochodów' i uklad=0
A11: 20 | B11: 1.1 | C11: Dochody bieżące | D11: rokwzgl=0 i lp=20 | E11: rokwzgl=0 i lp=20 | F11: rokwzgl=1 i lp=20 | G11: rokwzgl=2 i lp=20 | H11: rokwzgl=3 i lp=20 | I11: rokwzgl=4 i lp=20
A12: 30 | B12: 1.1.1 | C12: dochody z tytułu udziału we wpływach z podatku dochodowego od osób fizycznych | D12: rokwzgl=0 i lp=30 | E12: rokwzgl=0 i lp=30 | F12: rokwzgl=1 i lp=30 | G12: rokwzgl=2 i lp=30 | H12: rokwzgl=3 i lp=30 | I12: rokwzgl=4 i lp=30 | J12: =+CONCATENATE("załacznik='Plan dochodów' i uklad=1 i ",L12) -> załacznik='Plan dochodów' i uklad=1 i paragraf zawiera(001) | K12: =+CONCATENATE("załacznik='Plan dochodów' i uklad=0 i ",L12) -> załacznik='Plan dochodów' i uklad=0 i paragraf zawiera(001) | L12: paragraf zawiera(001)
A13: 40 | B13: 1.1.2 | C13: dochody z tytułu udziału we wpływach z podatku dochodowego od osób prawnych | D13: rokwzgl=0 i lp=40 | E13: rokwzgl=0 i lp=40 | F13: rokwzgl=1 i lp=40 | G13: rokwzgl=2 i lp=40 | H13: rokwzgl=3 i lp=40 | I13: rokwzgl=4 i lp=40 | J13: =+CONCATENATE("załacznik='Plan dochodów' i uklad=1 i ",L13) -> załacznik='Plan dochodów' i uklad=1 i paragraf zawiera(002) | K13: =+CONCATENATE("załacznik='Plan dochodów' i uklad=0 i ",L13) -> załacznik='Plan dochodów' i uklad=0 i paragraf zawiera(002) | L13: paragraf zawiera(002)
A14: 50 | B14: 1.1.3 | C14: podatki i opłaty | D14: rokwzgl=0 i lp=50 | E14: rokwzgl=0 i lp=50 | F14: rokwzgl=1 i lp=50 | G14: rokwzgl=2 i lp=50 | H14: rokwzgl=3 i lp=50 | I14: rokwzgl=4 i lp=50 | J14: załacznik='Plan dochodów' i uklad=1 i paragraf zawiera(031,032,033,034,035,036,037,038,039,040,041,042,043,044,045,046,047,048,049,050,051,056,059,068,069, 055, 065, 066, 067, 064, 061, 062, 063) | K14: załacznik='Plan dochodów' i uklad=0 i paragraf zawiera(031,032,033,034,035,036,037,038,039,040,041,042,043,044,045,046,047,048,049,050,051,056,059,068,069, 055, 065, 066, 067, 064, 061, 062, 063) | L14: paragraf zawiera(031,032,033,034,035,036,037,038,039,040,041,042,043,044,045,046,047,048,049,050,051,056,059,068,069, 055, 065, 066, 067, 064, 061, 062, 063)
A15: 60 | B15: 1.1.3.1 | C15: z podatku od nieruchomości | D15: rokwzgl=0 i lp=60 | E15: rokwzgl=0 i lp=60 | F15: rokwzgl=1 i lp=60 | G15: rokwzgl=2 i lp=60 | H15: rokwzgl=3 i lp=60 | I15: rokwzgl=4 i lp=60 | J15: załacznik='Plan dochodów' i uklad=1 i paragraf zawiera(031) | K15: załacznik='Plan dochodów' i uklad=0 i paragraf zawiera(031) | L15: paragraf zawiera(031)
A16: 70 | B16: 1.1.4 | C16: z subwencji ogólnej | D16: rokwzgl=0 i lp=70 | E16: rokwzgl=0 i lp=70 | F16: rokwzgl=1 i lp=70 | G16: rokwzgl=2 i lp=70 | H16: rokwzgl=3 i lp=70 | I16: rokwzgl=4 i lp=70 | J16: załacznik='Plan dochodów' i uklad=1 i paragraf zawiera(292, 275,276,277,279) | K16: załacznik='Plan dochodów' i uklad=0 i paragraf zawiera(292, 275,276,277,279) | L16: paragraf zawiera(292, 275,276,277,279)
A17: 80 | B17: 1.1.5 | C17: z tytułu dotacji i środków przeznaczonych na cele bieżące | D17: rokwzgl=0 i lp=80 | E17: rokwzgl=0 i lp=80 | F17: rokwzgl=1 i lp=80 | G17: rokwzgl=2 i lp=80 | H17: rokwzgl=3 i lp=80 | I17: rokwzgl=4 i lp=80 | J17: załacznik='Plan dochodów' i uklad=1 i paragraf zawiera(200, 201, 202, 203, 211, 212, 213, 221, 222, 223, 231, 232, 233, 244, 246, 269, 270,271, 273, 284,287, 288,290,204,205,206,216,234, 278) | K17: załacznik='Plan dochodów' i uklad=0 i paragraf zawiera(200, 201, 202, 203, 211, 212, 213, 221, 222, 223, 231, 232, 233, 244, 246, 269, 270,271, 273, 284,287, 288,290,204,205,206,216,234, 278) | L17: paragraf zawiera(200, 201, 202, 203, 211, 212, 213, 221, 222, 223, 231, 232, 233, 244, 246, 269, 270,271, 273, 284,287, 288,290,204,205,206,216,234, 278)
A18: 90 | B18: 1.2 | C18: Dochody majątkowe, w tym | D18: rokwzgl=0 i lp=90 | E18: rokwzgl=0 i lp=90 | F18: rokwzgl=1 i lp=90 | G18: rokwzgl=2 i lp=90 | H18: rokwzgl=3 i lp=90 | I18: rokwzgl=4 i lp=90 | J18: załacznik='Plan dochodów' i uklad=1 i paragraf zawiera(076, 077, 078, 080, 087, 618, 620, 626, 628, 629, 630, 631, 632, 633, 641, 642, 643, 651, 652, 653, 656, 661, 662, 663, 664, 665, 666, 668, 625, 634, 644, 645, 669) | K18: załacznik='Plan dochodów' i uklad=0 i paragraf zawiera(076, 077, 078, 080, 087, 618, 620, 626, 628, 629, 630, 631, 632, 633, 641, 642, 643, 651, 652, 653, 656, 661, 662, 663, 664, 665, 666, 668, 625, 634, 644, 645, 669) | L18: paragraf zawiera(076, 077, 078, 080, 087, 618, 620, 626, 628, 629, 630, 631, 632, 633, 641, 642, 643, 651, 652, 653, 656, 661, 662, 663, 664, 665, 666, 668, 625, 634, 644, 645, 669)
A19: 100 | B19: 1.2.1 | C19: ze sprzedaży majątku | D19: rokwzgl=0 i lp=100 | E19: rokwzgl=0 i lp=100 | F19: rokwzgl=1 i lp=100 | G19: rokwzgl=2 i lp=100 | H19: rokwzgl=3 i lp=100 | I19: rokwzgl=4 i lp=100 | J19: załacznik='Plan dochodów' i uklad=1 i paragraf zawiera(077, 078, 080, 087) | K19: załacznik='Plan dochodów' i uklad=0 i paragraf zawiera(077, 078, 080, 087) | L19: paragraf zawiera(077, 078, 080, 087)
A20: 110 | B20: 1.2.2 | C20: z tytułu dotacji oraz środków przeznaczonych na inwestycje | D20: rokwzgl=0 i lp=110 | E20: rokwzgl=0 i lp=110 | F20: rokwzgl=1 i lp=110 | G20: rokwzgl=2 i lp=110 | H20: rokwzgl=3 i lp=110 | I20: rokwzgl=4 i lp=110 | J20: załacznik='Plan dochodów' i uklad=1 i paragraf zawiera(620, 626, 628, 629, 630, 631, 632, 633, 641, 642, 643, 651, 652, 653, 656, 661, 662, 663, 664, 665, 625, 618, 634, 644, 645) | K20: załacznik='Plan dochodów' i uklad=0 i paragraf zawiera(620, 626, 628, 629, 630, 631, 632, 633, 641, 642, 643, 651, 652, 653, 656, 661, 662, 663, 664, 665, 625, 618, 634, 644, 645) | L20: paragraf zawiera(620, 626, 628, 629, 630, 631, 632, 633, 641, 642, 643, 651, 652, 653, 656, 661, 662, 663, 664, 665, 625, 618, 634, 644, 645)
A21: 120 | B21: 2 | C21: Wydatki ogółem | D21: rokwzgl=0 i lp=120 | E21: rokwzgl=0 i lp=120 | F21: rokwzgl=1 i lp=120 | G21: rokwzgl=2 i lp=120 | H21: rokwzgl=3 i lp=120 | I21: rokwzgl=4 i lp=120 | J21: załacznik='Plan wydatków' i uklad=1 | K21: załacznik='Plan wydatków' i uklad=0
A22: 130 | B22: 2.1 | C22: Wydatki bieżące, w tym: | D22: rokwzgl=0 i lp=130 | E22: rokwzgl=0 i lp=130 | F22: rokwzgl=1 i lp=130 | G22: rokwzgl=2 i lp=130 | H22: rokwzgl=3 i lp=130 | I22: rokwzgl=4 i lp=130
A23: 140 | B23: 2.1.1 | C23: z tytułu poręczeń i gwarancji | D23: rokwzgl=0 i lp=140 | E23: rokwzgl=0 i lp=140 | F23: rokwzgl=1 i lp=140 | G23: rokwzgl=2 i lp=140 | H23: rokwzgl=3 i lp=140 | I23: rokwzgl=4 i lp=140 | J23: =+CONCATENATE("załacznik='Plan wydatków' i uklad=1 i ",L23) -> załacznik='Plan wydatków' i uklad=1 i (paragraf zawiera(802, 803)) | K23: załacznik='Plan wydatków' i (grupa zawiera(B5PGW)) i uklad=0 | L23: (paragraf zawiera(802, 803))
A24: 150 | B24: 2.1.1.1 | C24: w tym: gwarancje i poręczenia podlegające wyłączeniu z limitu spłaty zobowiązań, o którym mowa w art. 243 ustawy | D24: rokwzgl=0 i lp=150 | E24: rokwzgl=0 i lp=150 | F24: rokwzgl=1 i lp=150 | G24: rokwzgl=2 i lp=150 | H24: rokwzgl=3 i lp=150 | I24: rokwzgl=4 i lp=150
A25: 160 | B25: 2.1.2 | C25: na spłatę przejętych zobowiązań samodzielnego publicznego zakładu opieki zdrowotnej przekształconego na zasadach określonych w przepisach o działalności leczniczej, w wysokości w jakiej nie podlegają sfinansowaniu dotacją z budżetu państwa | D25: rokwzgl=0 i lp=160 | E25: rokwzgl=0 i lp=160 | F25: rokwzgl=1 i lp=160 | G25: rokwzgl=2 i lp=160 | H25: rokwzgl=3 i lp=160 | I25: rokwzgl=4 i lp=160
A26: 170 | B26: 2.1.3 | C26: wydatki na obsługę długu, w tym: | D26: rokwzgl=0 i lp=170 | E26: rokwzgl=0 i lp=170 | F26: rokwzgl=1 i lp=170 | G26: rokwzgl=2 i lp=170 | H26: rokwzgl=3 i lp=170 | I26: rokwzgl=4 i lp=170 | J26: =+CONCATENATE("załacznik='Plan wydatków' i uklad=1 i ",L26) -> załacznik='Plan wydatków' i uklad=1 i (paragraf zawiera(801, 806, 807, 809, 810, 811, 812, 813)) | K26: załacznik='Plan wydatków' i (grupa zawiera(B6DLG)) i uklad=0 | L26: (paragraf zawiera(801, 806, 807, 809, 810, 811, 812, 813))
A27: 180 | B27: 2.1.3.1 | C27: odsetki i dyskonto określone w art. 243 ust. 1 ustawy, w tym: | D27: rokwzgl=0 i lp=180 | E27: rokwzgl=0 i lp=180 | F27: rokwzgl=1 i lp=180 | G27: rokwzgl=2 i lp=180 | H27: rokwzgl=3 i lp=180 | I27: rokwzgl=4 i lp=180 | J27: =+CONCATENATE("załacznik='Plan wydatków' i uklad=1 i ",L27) -> załacznik='Plan wydatków' i uklad=1 i paragraf zawiera(806, 807, 812, 811, 813) | K27: załacznik='Plan wydatków' i (grupa zawiera(X)) i uklad=0 | L27: paragraf zawiera(806, 807, 812, 811, 813)
A28: 182 | B28: 2.1.3.1.1 | C28: odsetki i dyskonto podlegające wyłączeniu z limitu spłaty zobowiązań, o którym mowa w art. 243 ustawy, w terminie nie dłuższym niż 90 dni po zakończeniu programu, projektu lub zadania i otrzymaniu refundacji z tych środków (bez odsetek i dyskonta od zobowiązań na wkład krajowy) | D28: rokwzgl=0 i lp=182 | E28: rokwzgl=0 i lp=182 | F28: rokwzgl=1 i lp=182 | G28: rokwzgl=2 i lp=182 | H28: rokwzgl=3 i lp=182 | I28: rokwzgl=4 i lp=182
A29: 184 | B29: 2.1.3.1.2 | C29: odsetki i dyskonto podlegające wyłączeniu z limitu spłaty zobowiązań, o którym mowa w art. 243 ustawy, z tytułu zobowiązań zaciągniętych na wkład krajowy | D29: rokwzgl=0 i lp=184 | E29: rokwzgl=0 i lp=184 | F29: rokwzgl=1 i lp=184 | G29: rokwzgl=2 i lp=184 | H29: rokwzgl=3 i lp=184 | I29: rokwzgl=4 i lp=184
A30: 190 | B30: 2.2 | C30: Wydatki majątkowe | D30: rokwzgl=0 i lp=190 | E30: rokwzgl=0 i lp=190 | F30: rokwzgl=1 i lp=190 | G30: rokwzgl=2 i lp=190 | H30: rokwzgl=3 i lp=190 | I30: rokwzgl=4 i lp=190 | J30: =+CONCATENATE("załacznik='Plan wydatków' i uklad=1 i ",L30) -> załacznik='Plan wydatków' i uklad=1 i (paragraf zawiera(601, 605, 606, 613, 614, 617, 619, 620, 621, 622, 623, 630, 656, 657, 658, 661, 662, 663,664,665, 666, 680, 625, 669) ) | K30: załacznik='Plan wydatków' i (grupa zawiera(M1IWL,M1IUZ,M2ZAU,M3WSP)) i uklad=0 | L30: (paragraf zawiera(601, 605, 606, 613, 614, 617, 619, 620, 621, 622, 623, 630, 656, 657, 658, 661, 662, 663,664,665, 666, 680, 625, 669) )
A31: 200 | B31: 3 | C31: Wynik budżetu | D31: rokwzgl=0 i lp=200 | E31: rokwzgl=0 i lp=200 | F31: rokwzgl=1 i lp=200 | G31: rokwzgl=2 i lp=200 | H31: rokwzgl=3 i lp=200 | I31: rokwzgl=4 i lp=200
A32: 210 | B32: 4 | C32: Przychody budżetu | D32: =+"rokwzgl="&D$9&" i lp="&$A32 -> rokwzgl=0 i lp=210 | E32: =+"rokwzgl="&E$9&" i lp="&$A32 -> rokwzgl=0 i lp=210 | F32: rokwzgl=1 i lp=210 | G32: rokwzgl=2 i lp=210 | H32: rokwzgl=3 i lp=210 | I32: =+"rokwzgl="&I$9&" i lp="&$A32 -> rokwzgl=4 i lp=210 | J32: załacznik='Plan przychodów'
A33: 220 | B33: 4.1 | C33: Nadwyżka budżetowa z lat ubiegłych | D33: rokwzgl=0 i lp=220 | E33: rokwzgl=0 i lp=220 | F33: rokwzgl=1 i lp=220 | G33: rokwzgl=2 i lp=220 | H33: rokwzgl=3 i lp=220 | I33: rokwzgl=4 i lp=220 | J33: =+CONCATENATE("załacznik='Plan przychodów' i ",L33) -> załacznik='Plan przychodów' i paragraf zawiera(957) | L33: paragraf zawiera(957)
A34: 230 | B34: 4.1.1 | C34: w tym na pokrycie deficytu budżetu | D34: rokwzgl=0 i lp=230 | E34: rokwzgl=0 i lp=230 | F34: rokwzgl=1 i lp=230 | G34: rokwzgl=2 i lp=230 | H34: rokwzgl=3 i lp=230 | I34: rokwzgl=4 i lp=230
A35: 240 | B35: 4.2 | C35: Wolne środki, o których mowa w art. 217 ust.2 pkt 6 ustawy | D35: rokwzgl=0 i lp=240 | E35: rokwzgl=0 i lp=240 | F35: rokwzgl=1 i lp=240 | G35: rokwzgl=2 i lp=240 | H35: rokwzgl=3 i lp=240 | I35: rokwzgl=4 i lp=240 | J35: =+CONCATENATE("załacznik='Plan przychodów' i ",L35) -> załacznik='Plan przychodów' i paragraf zawiera(950) | L35: paragraf zawiera(950)
A36: 250 | B36: 4.2.1 | C36: w tym na pokrycie deficytu budżetu | D36: rokwzgl=0 i lp=250 | E36: rokwzgl=0 i lp=250 | F36: rokwzgl=1 i lp=250 | G36: rokwzgl=2 i lp=250 | H36: rokwzgl=3 i lp=250 | I36: rokwzgl=4 i lp=250
A37: 260 | B37: 4.3 | C37: Kredyty, pożyczki, emisja papierów wartościowych | D37: rokwzgl=0 i lp=260 | E37: rokwzgl=0 i lp=260 | F37: rokwzgl=1 i lp=260 | G37: rokwzgl=2 i lp=260 | H37: rokwzgl=3 i lp=260 | I37: rokwzgl=4 i lp=260 | J37: =+CONCATENATE("załacznik='Plan przychodów' i ",L37) -> załacznik='Plan przychodów' i paragraf zawiera(903,931,952,953) | L37: paragraf zawiera(903,931,952,953)
